{"text_format":"1","workbook":"xlsx","n_sheets":13,"sheets":["OLD PAPI_24- 27 (Delib. 246) ","Identificação das ações 24-27","Acompanhamento das metas 24-27","Acomp. financeiro  24-27","PAPI 2024-2027","Consolidaçao - 1","Consolidaçao - 2","Orientações","Acomp. - PAPI_21 (Delib. 190) ","Acomp. PAPI_22_23 (Delib. 246) ","Operacional","Explicativo","de-para 246 190"],"not_rendered":{"charts":5,"images":0,"macros":0,"external_links":0,"defined_names":10,"comments":7,"pivot_tables":6},"unopened":[],"bounds":{"document_bytes":16777216,"sheet_cells":100000,"rows_first":2000,"rows_last":500,"rows_between":2000,"halvings":0,"cell_chars":16384,"cell_head_chars":4096},"cells_cut":0,"cells_raw":0,"read":"whole","date_system":"1900"}

{"sheet":"OLD PAPI_24- 27 (Delib. 246) ","index":0,"n_rows":50,"n_cols":24,"rows_kept":50,"cut":false,"hidden":true,"merged":[]}
["ID Ação","Ação iniciou no PA/PI anterior?","Se sim, id da ação anterior","Ano previsto para início","Tipo de ação","É ou será  empreendimento FEHIDRO?","Ação requer recursos financeiros?","SubPDC","Prioridade do SubPDC","Ação","Meta","% Execução da meta do quadriênio","Segmento do executor","Área de abrangência","Nome da área de abrangência","Recurso financeiro estimado no ano\n(R$) - Cobrança Estadual","Recurso financeiro estimado no ano (R$) - CFURH","Recurso financeiro estimado no ano\n(R$) - Cobrança Federal","Recurso financeiro estimado no ano (R$) - Outras","Especificar Fonte - \"Outras\"","Recurso financeiro estimado no ano\n(R$)","Recurso financeiro disponibilizado no ano (R$)","Recurso financeiro executado no ano (R$)","Justificativa sobre execução física e financeira"]
["SID012024","Não",null,2024,null,"Sim",null,"3.1 - Efluentes","Não prioritário","Efetuar estudos de detalhe sobre a disponibilidade hídrica superficial e subterrânea (AG.11)","MG.4 - Realizar ao menos 01 estudo que subsidie o planejamento e a gestão de recursos hídricos na UGRHi 18",null,null,"Sub-bacia","Sub-bacia crítica conforme classe de  vazão de referência apontadas no Relatório de Situação",null,null,null,null,null,{"$f":"IF(SUM(PAPI20_22_23[[#This Row],[Recurso financeiro estimado no ano\n(R$) - Cobrança Estadual]:[Recurso financeiro estimado no ano (R$) - Outras]]) >0,SUM(PAPI20_22_23[[#This Row],[Recurso financeiro estimado no ano\n(R$) - Cobrança Estadual]:[Recurso financeiro estimado no ano (R$) - Outras]]),\"\")","v":""}]
["SID012025",null,null,2024,null,null,null,null,null,"Manter o cadastro atualizado na bacia hidrográfica SJD  (AG.13)","MG.4 - Realizar ao menos 01 estudo para acompanhamento e adequação da cobrança pelo uso dos recursos hídricos",null,"Estado","UGRHi","UGRHi 18",170000,null,null,null,null,{"$f":"IF(SUM(PAPI20_22_23[[#This Row],[Recurso financeiro estimado no ano\n(R$) - Cobrança Estadual]:[Recurso financeiro estimado no ano (R$) - Outras]]) >0,SUM(PAPI20_22_23[[#This Row],[Recurso financeiro estimado no ano\n(R$) - Cobrança Estadual]:[Recurso financeiro estimado no ano (R$) - Outras]]),\"\")","v":170000}]
["SID012024",null,null,null,null,null,null,null,null,"Execução de obras de sistemas de esgotamento sanitário, bem como de tratamento de efluentes provenientes de ETE  (AI.3, 4, 5 e 6)","MI. 2 e 3 - Efetuar melhorias nos sistemas de tratamento de esgoto  em ao \nmenos 02 municípios",null,"Município","Município","Municípios da UGRHi 18 que apresentem proporção de redução da carga orgânica poluidora domestica ≤ 80%. ",260000,null,null,null,null,{"$f":"IF(SUM(PAPI20_22_23[[#This Row],[Recurso financeiro estimado no ano\n(R$) - Cobrança Estadual]:[Recurso financeiro estimado no ano (R$) - Outras]]) >0,SUM(PAPI20_22_23[[#This Row],[Recurso financeiro estimado no ano\n(R$) - Cobrança Estadual]:[Recurso financeiro estimado no ano (R$) - Outras]]),\"\")","v":260000}]
["SID042022",null,null,null,null,null,null,null,null,"Execução de obras e projetos (AI 8 e 9) nos casos em que haja comprometimento dos recursos hídricos","MI.4 -  Efetuar melhorias nos sistemas de aterros sanitários em ao menos 02  municípios",null,"Município","Município","Municípios com sistema de tratamento e coleta de resíduos sólidos ineficientes, conforme  consta no Rel. Situação.",250000,null,null,null,null,{"$f":"IF(SUM(PAPI20_22_23[[#This Row],[Recurso financeiro estimado no ano\n(R$) - Cobrança Estadual]:[Recurso financeiro estimado no ano (R$) - Outras]]) >0,SUM(PAPI20_22_23[[#This Row],[Recurso financeiro estimado no ano\n(R$) - Cobrança Estadual]:[Recurso financeiro estimado no ano (R$) - Outras]]),\"\")","v":250000}]
["SID052022",null,null,null,null,null,null,null,null,"Execução de obras ou projetos que controle a erosão do solo ou assoreamento dos corpos d’água, em áreas urbanas ou rurais (AI. 14, 15 e 16)","MI. 6 e MI. 7 - Aprimorar sistemas de conservação do solo e controle de erosão em ao menos 03 municípios",null,"Município","Município","Municípios com Plano de Drenagem ou Plano Diretor de Erosão elaborado",null,288866.7,null,null,null,{"$f":"IF(SUM(PAPI20_22_23[[#This Row],[Recurso financeiro estimado no ano\n(R$) - Cobrança Estadual]:[Recurso financeiro estimado no ano (R$) - Outras]]) >0,SUM(PAPI20_22_23[[#This Row],[Recurso financeiro estimado no ano\n(R$) - Cobrança Estadual]:[Recurso financeiro estimado no ano (R$) - Outras]]),\"\")","v":288866.7}]
["SID062022",null,null,null,null,null,null,null,null,"Implementação das açoes indicadas no Plano de Saneamento (AI.11 e 12)\n(troca de hidrômetros, manutenção de rede, instalação de válvulas redutoras de pressão, entre outros)","MI.5 - Reduzir perdas em sistemas de abastecimento de água em ao menos 02 municípios",null,"Município","Município","Ilha Solteira, Santa Fé do Sul, Suzanápolis, São João de Iracema e Neves Paulista",170000,null,null,null,null,{"$f":"IF(SUM(PAPI20_22_23[[#This Row],[Recurso financeiro estimado no ano\n(R$) - Cobrança Estadual]:[Recurso financeiro estimado no ano (R$) - Outras]]) >0,SUM(PAPI20_22_23[[#This Row],[Recurso financeiro estimado no ano\n(R$) - Cobrança Estadual]:[Recurso financeiro estimado no ano (R$) - Outras]]),\"\")","v":170000}]
["SID072022",null,null,null,null,null,null,null,null,"Execução de obras ou projetos de galerias de águas pluviais e canalização de curso d'água em área urbana e periurbana (AI.17, AI. 21, 22 e 23 )","MI. 7 e MI. 9 - Realizar melhorias nos sistemas de drenagem em ao menos 02 municípios",null,"Município","Município","Obras indicadas no Plano/Estudo de Drenagem no Município  e para Projetos com necessidades de readequação/ampliação",null,200000,null,null,null,{"$f":"IF(SUM(PAPI20_22_23[[#This Row],[Recurso financeiro estimado no ano\n(R$) - Cobrança Estadual]:[Recurso financeiro estimado no ano (R$) - Outras]]) >0,SUM(PAPI20_22_23[[#This Row],[Recurso financeiro estimado no ano\n(R$) - Cobrança Estadual]:[Recurso financeiro estimado no ano (R$) - Outras]]),\"\")","v":200000}]
["SID082022",null,null,null,null,null,null,null,null,"Orientação aos produtores rurais quanto à importância da outorga e treinamento/capacitação sobre os procedimentos de outorga e licenciamento ambiental (AG.25)","MG.9. Realizar ao menos 1 curso de capacitação técnica relacionada ao planejamento e gestão de recursos hídricos",null,null,"UGRHi","UGRHi 18",150000,null,null,null,null,{"$f":"IF(SUM(PAPI20_22_23[[#This Row],[Recurso financeiro estimado no ano\n(R$) - Cobrança Estadual]:[Recurso financeiro estimado no ano (R$) - Outras]]) >0,SUM(PAPI20_22_23[[#This Row],[Recurso financeiro estimado no ano\n(R$) - Cobrança Estadual]:[Recurso financeiro estimado no ano (R$) - Outras]]),\"\")","v":150000},150000,0,"empreendimento não iniciado - emitiu o contrato"]
["SID012023",null,null,null,null,null,null,null,null,"Realizar estudo/diagnóstico ambiental das nascentes, por sub-bacia, na UGRHI","Aumentar as informações afim de subsidiar o planejamento e a gestão dos recursos hídricos na UGRHI",null,"DIVERSOS","UGRHi","UGRHi 18 ",200197.43,null,null,null,null,{"$f":"IF(SUM(PAPI20_22_23[[#This Row],[Recurso financeiro estimado no ano\n(R$) - Cobrança Estadual]:[Recurso financeiro estimado no ano (R$) - Outras]]) >0,SUM(PAPI20_22_23[[#This Row],[Recurso financeiro estimado no ano\n(R$) - Cobrança Estadual]:[Recurso financeiro estimado no ano (R$) - Outras]]),\"\")","v":200197.43}]
["SID022023",null,null,null,null,null,null,null,null,"Elaborar mapa de feições erosivas da UGRHI"," Aumentar as informações afim de subsidiar o planejamento e a gestão dos recursos hídricos na UGRHI",null,"DIVERSOS","UGRHi","UGRHi 18 ",null,280000,null,null,null,{"$f":"IF(SUM(PAPI20_22_23[[#This Row],[Recurso financeiro estimado no ano\n(R$) - Cobrança Estadual]:[Recurso financeiro estimado no ano (R$) - Outras]]) >0,SUM(PAPI20_22_23[[#This Row],[Recurso financeiro estimado no ano\n(R$) - Cobrança Estadual]:[Recurso financeiro estimado no ano (R$) - Outras]]),\"\")","v":280000}]
["SID032022",null,null,null,null,null,null,null,null,"Elaboração do Plano diretor de controle de perdas","Aumentar as informações afim de subsidiar o planejamento e a gestão dos recursos hídricos na UGRHI",null,"Município","Município","Ilha Solteira, Neves Paulista, São João de Iracema e Santa Fé do Sul.",170000,null,null,null,null,{"$f":"IF(SUM(PAPI20_22_23[[#This Row],[Recurso financeiro estimado no ano\n(R$) - Cobrança Estadual]:[Recurso financeiro estimado no ano (R$) - Outras]]) >0,SUM(PAPI20_22_23[[#This Row],[Recurso financeiro estimado no ano\n(R$) - Cobrança Estadual]:[Recurso financeiro estimado no ano (R$) - Outras]]),\"\")","v":170000}]
["SID042023",null,null,null,null,null,null,null,null,"Elaborar estudos para o controle de processos erosivos e projetos (básicos e/ou executivos), serviços ou obras para prevenção, prioritariamente em bacias de abastecimento, nascentes e áreas de recarga\n(troca de hidrômetros, manutenção de rede, instalação de válvulas redutoras de pressão, entre outros)","Prevenir e controlar processos de erosão e assoreamento, visando a melhoria ou recuperação dos corpos d’água",null,"Município","Município","Floreal, General Salgado, Ilha Solteira, Jales, Monte Aprazível, Neves Paulista, Nhandeara, Palmeira d´oeste, Santa Fé do Sul, Sebastianópolis do Sul, Cosmorama, Monte Aprazível, Poloni, Santa Salete, Santana da Ponte Pensa, São Francisco, Tanabi, Três Fronteiras e Votuporanga",400000,300000,null,null,null,{"$f":"IF(SUM(PAPI20_22_23[[#This Row],[Recurso financeiro estimado no ano\n(R$) - Cobrança Estadual]:[Recurso financeiro estimado no ano (R$) - Outras]]) >0,SUM(PAPI20_22_23[[#This Row],[Recurso financeiro estimado no ano\n(R$) - Cobrança Estadual]:[Recurso financeiro estimado no ano (R$) - Outras]]),\"\")","v":700000}]
["SID052023",null,null,null,null,null,null,null,null,"Elaborar Projetos (básicos e/ou executivos), obras ou serviços em sistemas de abastecimento, visando controle e redução de perdas de água","Alcance de uma média de 25% de perdas globais nos municípios da Bacia",null,"Município","Município","Ilha Solteira, Suzanápolis, Santa Fé do Sul, Neves Paulista e São João de Iracema.",300000,null,null,null,null,{"$f":"IF(SUM(PAPI20_22_23[[#This Row],[Recurso financeiro estimado no ano\n(R$) - Cobrança Estadual]:[Recurso financeiro estimado no ano (R$) - Outras]]) >0,SUM(PAPI20_22_23[[#This Row],[Recurso financeiro estimado no ano\n(R$) - Cobrança Estadual]:[Recurso financeiro estimado no ano (R$) - Outras]]),\"\")","v":300000}]
["SID092023",null,null,null,null,null,null,null,null,"Aquisição de equipamentos para operacionalização  de sistemas de alerta, radares meteorológicos ou redes telemétricas integrados a sistemas de suporte à decisão; divulgação de informações e apoio à defesa civil (AG. 24) ","MG. 8 - Estruturar 01 Sala de Situação visando o Monitoramento de eventos extremos e sistemas de suporte a decisão",null,null,"Sub-bacia","UGRHi 18",400000,null,null,null,null,{"$f":"IF(SUM(PAPI20_22_23[[#This Row],[Recurso financeiro estimado no ano\n(R$) - Cobrança Estadual]:[Recurso financeiro estimado no ano (R$) - Outras]]) >0,SUM(PAPI20_22_23[[#This Row],[Recurso financeiro estimado no ano\n(R$) - Cobrança Estadual]:[Recurso financeiro estimado no ano (R$) - Outras]]),\"\")","v":400000},851322.1,0,"adiantamos a indicação da ação prevista para 2023 - empreendimento cancelado"]
["SID07023",null,null,null,null,null,null,null,null,"Elaborar projetos (básicos e/ou executivos), serviços, obras em municípios com sistema de coleta e disposição final de resíduos sólidos ineficientes e/ou inadequadas; e implantar pontos de entrega voluntária (PEV), e programas de coleta seletiva"," Aumentar a cobertura da coleta de resíduos sólidos em áreas urbanas e rurais dos municípios ",null,"Município","Município","Município",308323.15000000002,null,null,null,null,{"$f":"IF(SUM(PAPI20_22_23[[#This Row],[Recurso financeiro estimado no ano\n(R$) - Cobrança Estadual]:[Recurso financeiro estimado no ano (R$) - Outras]]) >0,SUM(PAPI20_22_23[[#This Row],[Recurso financeiro estimado no ano\n(R$) - Cobrança Estadual]:[Recurso financeiro estimado no ano (R$) - Outras]]),\"\")","v":308323.15000000002}]
["SID08023",null,null,null,null,null,null,null,null,"Elaborar projetos (básicos e/ou executivos), executar obras ou serviços em sistemas de abastecimento, visando propor soluções alternativas e a ampliação da rede de distribuição, das demais estruturas de apoio ao abastecimento","Aproveitamento dos recursos hídricos e segurança hídrica",null,"Município","Município","Município",179324.92,null,null,null,null,{"$f":"IF(SUM(PAPI20_22_23[[#This Row],[Recurso financeiro estimado no ano\n(R$) - Cobrança Estadual]:[Recurso financeiro estimado no ano (R$) - Outras]]) >0,SUM(PAPI20_22_23[[#This Row],[Recurso financeiro estimado no ano\n(R$) - Cobrança Estadual]:[Recurso financeiro estimado no ano (R$) - Outras]]),\"\")","v":179324.92}]
["SID06023",null,null,null,null,null,null,null,null,"Elaborar projetos (básicos e/ou executivos), serviços ou obras para contenção de inundações, alagamentos, inclusive por técnicas de infiltração e armazenamento; e regularizações de descargas e dispositivos de lançamento de drenagem"," Contenção de inundações, alagamentos e regularizações de descargas na UGRHI",null,"Município","Município","Município",null,1113141.6499999999,null,null,null,{"$f":"IF(SUM(PAPI20_22_23[[#This Row],[Recurso financeiro estimado no ano\n(R$) - Cobrança Estadual]:[Recurso financeiro estimado no ano (R$) - Outras]]) >0,SUM(PAPI20_22_23[[#This Row],[Recurso financeiro estimado no ano\n(R$) - Cobrança Estadual]:[Recurso financeiro estimado no ano (R$) - Outras]]),\"\")","v":1113141.6499999999}]
[null,null,null,null,null,null,null,null,null,null,null,null,null,null,null,null,null,null,null,null,{"$f":"IF(SUM(PAPI20_22_23[[#This Row],[Recurso financeiro estimado no ano\n(R$) - Cobrança Estadual]:[Recurso financeiro estimado no ano (R$) - Outras]]) >0,SUM(PAPI20_22_23[[#This Row],[Recurso financeiro estimado no ano\n(R$) - Cobrança Estadual]:[Recurso financeiro estimado no ano (R$) - Outras]]),\"\")","v":""}]
[null,null,null,null,null,null,null,null,null,null,null,null,null,null,null,null,null,null,null,null,{"$f":"IF(SUM(PAPI20_22_23[[#This Row],[Recurso financeiro estimado no ano\n(R$) - Cobrança Estadual]:[Recurso financeiro estimado no ano (R$) - Outras]]) >0,SUM(PAPI20_22_23[[#This Row],[Recurso financeiro estimado no ano\n(R$) - Cobrança Estadual]:[Recurso financeiro estimado no ano (R$) - Outras]]),\"\")","v":""}]
[null,null,null,null,null,null,null,null,null,null,null,null,null,null,null,null,null,null,null,null,{"$f":"IF(SUM(PAPI20_22_23[[#This Row],[Recurso financeiro estimado no ano\n(R$) - Cobrança Estadual]:[Recurso financeiro estimado no ano (R$) - Outras]]) >0,SUM(PAPI20_22_23[[#This Row],[Recurso financeiro estimado no ano\n(R$) - Cobrança Estadual]:[Recurso financeiro estimado no ano (R$) - Outras]]),\"\")","v":""}]
[null,null,null,null,null,null,null,null,null,null,null,null,null,null,null,null,null,null,null,null,{"$f":"IF(SUM(PAPI20_22_23[[#This Row],[Recurso financeiro estimado no ano\n(R$) - Cobrança Estadual]:[Recurso financeiro estimado no ano (R$) - Outras]]) >0,SUM(PAPI20_22_23[[#This Row],[Recurso financeiro estimado no ano\n(R$) - Cobrança Estadual]:[Recurso financeiro estimado no ano (R$) - Outras]]),\"\")","v":""}]
[null,null,null,null,null,null,null,null,null,null,null,null,null,null,null,null,null,null,null,null,{"$f":"IF(SUM(PAPI20_22_23[[#This Row],[Recurso financeiro estimado no ano\n(R$) - Cobrança Estadual]:[Recurso financeiro estimado no ano (R$) - Outras]]) >0,SUM(PAPI20_22_23[[#This Row],[Recurso financeiro estimado no ano\n(R$) - Cobrança Estadual]:[Recurso financeiro estimado no ano (R$) - Outras]]),\"\")","v":""}]
[null,null,null,null,null,null,null,null,null,null,null,null,null,null,null,null,null,null,null,null,{"$f":"IF(SUM(PAPI20_22_23[[#This Row],[Recurso financeiro estimado no ano\n(R$) - Cobrança Estadual]:[Recurso financeiro estimado no ano (R$) - Outras]]) >0,SUM(PAPI20_22_23[[#This Row],[Recurso financeiro estimado no ano\n(R$) - Cobrança Estadual]:[Recurso financeiro estimado no ano (R$) - Outras]]),\"\")","v":""}]
[null,null,null,null,null,null,null,null,null,null,null,null,null,null,null,null,null,null,null,null,{"$f":"IF(SUM(PAPI20_22_23[[#This Row],[Recurso financeiro estimado no ano\n(R$) - Cobrança Estadual]:[Recurso financeiro estimado no ano (R$) - Outras]]) >0,SUM(PAPI20_22_23[[#This Row],[Recurso financeiro estimado no ano\n(R$) - Cobrança Estadual]:[Recurso financeiro estimado no ano (R$) - Outras]]),\"\")","v":""}]
[null,null,null,null,null,null,null,null,null,null,null,null,null,null,null,null,null,null,null,null,{"$f":"IF(SUM(PAPI20_22_23[[#This Row],[Recurso financeiro estimado no ano\n(R$) - Cobrança Estadual]:[Recurso financeiro estimado no ano (R$) - Outras]]) >0,SUM(PAPI20_22_23[[#This Row],[Recurso financeiro estimado no ano\n(R$) - Cobrança Estadual]:[Recurso financeiro estimado no ano (R$) - Outras]]),\"\")","v":""}]
[null,null,null,null,null,null,null,null,null,null,null,null,null,null,null,null,null,null,null,null,{"$f":"IF(SUM(PAPI20_22_23[[#This Row],[Recurso financeiro estimado no ano\n(R$) - Cobrança Estadual]:[Recurso financeiro estimado no ano (R$) - Outras]]) >0,SUM(PAPI20_22_23[[#This Row],[Recurso financeiro estimado no ano\n(R$) - Cobrança Estadual]:[Recurso financeiro estimado no ano (R$) - Outras]]),\"\")","v":""}]
[null,null,null,null,null,null,null,null,null,null,null,null,null,null,null,null,null,null,null,null,{"$f":"IF(SUM(PAPI20_22_23[[#This Row],[Recurso financeiro estimado no ano\n(R$) - Cobrança Estadual]:[Recurso financeiro estimado no ano (R$) - Outras]]) >0,SUM(PAPI20_22_23[[#This Row],[Recurso financeiro estimado no ano\n(R$) - Cobrança Estadual]:[Recurso financeiro estimado no ano (R$) - Outras]]),\"\")","v":""}]
[null,null,null,null,null,null,null,null,null,null,null,null,null,null,null,null,null,null,null,null,{"$f":"IF(SUM(PAPI20_22_23[[#This Row],[Recurso financeiro estimado no ano\n(R$) - Cobrança Estadual]:[Recurso financeiro estimado no ano (R$) - Outras]]) >0,SUM(PAPI20_22_23[[#This Row],[Recurso financeiro estimado no ano\n(R$) - Cobrança Estadual]:[Recurso financeiro estimado no ano (R$) - Outras]]),\"\")","v":""}]
[null,null,null,null,null,null,null,null,null,null,null,null,null,null,null,null,null,null,null,null,{"$f":"IF(SUM(PAPI20_22_23[[#This Row],[Recurso financeiro estimado no ano\n(R$) - Cobrança Estadual]:[Recurso financeiro estimado no ano (R$) - Outras]]) >0,SUM(PAPI20_22_23[[#This Row],[Recurso financeiro estimado no ano\n(R$) - Cobrança Estadual]:[Recurso financeiro estimado no ano (R$) - Outras]]),\"\")","v":""}]
[null,null,null,null,null,null,null,null,null,null,null,null,null,null,null,null,null,null,null,null,{"$f":"IF(SUM(PAPI20_22_23[[#This Row],[Recurso financeiro estimado no ano\n(R$) - Cobrança Estadual]:[Recurso financeiro estimado no ano (R$) - Outras]]) >0,SUM(PAPI20_22_23[[#This Row],[Recurso financeiro estimado no ano\n(R$) - Cobrança Estadual]:[Recurso financeiro estimado no ano (R$) - Outras]]),\"\")","v":""}]
[null,null,null,null,null,null,null,null,null,null,null,null,null,null,null,null,null,null,null,null,{"$f":"IF(SUM(PAPI20_22_23[[#This Row],[Recurso financeiro estimado no ano\n(R$) - Cobrança Estadual]:[Recurso financeiro estimado no ano (R$) - Outras]]) >0,SUM(PAPI20_22_23[[#This Row],[Recurso financeiro estimado no ano\n(R$) - Cobrança Estadual]:[Recurso financeiro estimado no ano (R$) - Outras]]),\"\")","v":""}]
[null,null,null,null,null,null,null,null,null,null,null,null,null,null,null,null,null,null,null,null,{"$f":"IF(SUM(PAPI20_22_23[[#This Row],[Recurso financeiro estimado no ano\n(R$) - Cobrança Estadual]:[Recurso financeiro estimado no ano (R$) - Outras]]) >0,SUM(PAPI20_22_23[[#This Row],[Recurso financeiro estimado no ano\n(R$) - Cobrança Estadual]:[Recurso financeiro estimado no ano (R$) - Outras]]),\"\")","v":""}]
[null,null,null,null,null,null,null,null,null,null,null,null,null,null,null,null,null,null,null,null,{"$f":"IF(SUM(PAPI20_22_23[[#This Row],[Recurso financeiro estimado no ano\n(R$) - Cobrança Estadual]:[Recurso financeiro estimado no ano (R$) - Outras]]) >0,SUM(PAPI20_22_23[[#This Row],[Recurso financeiro estimado no ano\n(R$) - Cobrança Estadual]:[Recurso financeiro estimado no ano (R$) - Outras]]),\"\")","v":""}]
[null,null,null,null,null,null,null,null,null,null,null,null,null,null,null,null,null,null,null,null,{"$f":"IF(SUM(PAPI20_22_23[[#This Row],[Recurso financeiro estimado no ano\n(R$) - Cobrança Estadual]:[Recurso financeiro estimado no ano (R$) - Outras]]) >0,SUM(PAPI20_22_23[[#This Row],[Recurso financeiro estimado no ano\n(R$) - Cobrança Estadual]:[Recurso financeiro estimado no ano (R$) - Outras]]),\"\")","v":""}]
[null,null,null,null,null,null,null,null,null,null,null,null,null,null,null,null,null,null,null,null,{"$f":"IF(SUM(PAPI20_22_23[[#This Row],[Recurso financeiro estimado no ano\n(R$) - Cobrança Estadual]:[Recurso financeiro estimado no ano (R$) - Outras]]) >0,SUM(PAPI20_22_23[[#This Row],[Recurso financeiro estimado no ano\n(R$) - Cobrança Estadual]:[Recurso financeiro estimado no ano (R$) - Outras]]),\"\")","v":""}]
[null,null,null,null,null,null,null,null,null,null,null,null,null,null,null,null,null,null,null,null,{"$f":"IF(SUM(PAPI20_22_23[[#This Row],[Recurso financeiro estimado no ano\n(R$) - Cobrança Estadual]:[Recurso financeiro estimado no ano (R$) - Outras]]) >0,SUM(PAPI20_22_23[[#This Row],[Recurso financeiro estimado no ano\n(R$) - Cobrança Estadual]:[Recurso financeiro estimado no ano (R$) - Outras]]),\"\")","v":""}]
[null,null,null,null,null,null,null,null,null,null,null,null,null,null,null,null,null,null,null,null,{"$f":"IF(SUM(PAPI20_22_23[[#This Row],[Recurso financeiro estimado no ano\n(R$) - Cobrança Estadual]:[Recurso financeiro estimado no ano (R$) - Outras]]) >0,SUM(PAPI20_22_23[[#This Row],[Recurso financeiro estimado no ano\n(R$) - Cobrança Estadual]:[Recurso financeiro estimado no ano (R$) - Outras]]),\"\")","v":""}]
[null,null,null,null,null,null,null,null,null,null,null,null,null,null,null,null,null,null,null,null,{"$f":"IF(SUM(PAPI20_22_23[[#This Row],[Recurso financeiro estimado no ano\n(R$) - Cobrança Estadual]:[Recurso financeiro estimado no ano (R$) - Outras]]) >0,SUM(PAPI20_22_23[[#This Row],[Recurso financeiro estimado no ano\n(R$) - Cobrança Estadual]:[Recurso financeiro estimado no ano (R$) - Outras]]),\"\")","v":""}]
[null,null,null,null,null,null,null,null,null,null,null,null,null,null,null,null,null,null,null,null,{"$f":"IF(SUM(PAPI20_22_23[[#This Row],[Recurso financeiro estimado no ano\n(R$) - Cobrança Estadual]:[Recurso financeiro estimado no ano (R$) - Outras]]) >0,SUM(PAPI20_22_23[[#This Row],[Recurso financeiro estimado no ano\n(R$) - Cobrança Estadual]:[Recurso financeiro estimado no ano (R$) - Outras]]),\"\")","v":""}]
[null,null,null,null,null,null,null,null,null,null,null,null,null,null,null,null,null,null,null,null,{"$f":"IF(SUM(PAPI20_22_23[[#This Row],[Recurso financeiro estimado no ano\n(R$) - Cobrança Estadual]:[Recurso financeiro estimado no ano (R$) - Outras]]) >0,SUM(PAPI20_22_23[[#This Row],[Recurso financeiro estimado no ano\n(R$) - Cobrança Estadual]:[Recurso financeiro estimado no ano (R$) - Outras]]),\"\")","v":""}]
[null,null,null,null,null,null,null,null,null,null,null,null,null,null,null,null,null,null,null,null,{"$f":"IF(SUM(PAPI20_22_23[[#This Row],[Recurso financeiro estimado no ano\n(R$) - Cobrança Estadual]:[Recurso financeiro estimado no ano (R$) - Outras]]) >0,SUM(PAPI20_22_23[[#This Row],[Recurso financeiro estimado no ano\n(R$) - Cobrança Estadual]:[Recurso financeiro estimado no ano (R$) - Outras]]),\"\")","v":""}]
[null,null,null,null,null,null,null,null,null,null,null,null,null,null,null,null,null,null,null,null,{"$f":"IF(SUM(PAPI20_22_23[[#This Row],[Recurso financeiro estimado no ano\n(R$) - Cobrança Estadual]:[Recurso financeiro estimado no ano (R$) - Outras]]) >0,SUM(PAPI20_22_23[[#This Row],[Recurso financeiro estimado no ano\n(R$) - Cobrança Estadual]:[Recurso financeiro estimado no ano (R$) - Outras]]),\"\")","v":""}]
[null,null,null,null,null,null,null,null,null,null,null,null,null,null,null,null,null,null,null,null,{"$f":"IF(SUM(PAPI20_22_23[[#This Row],[Recurso financeiro estimado no ano\n(R$) - Cobrança Estadual]:[Recurso financeiro estimado no ano (R$) - Outras]]) >0,SUM(PAPI20_22_23[[#This Row],[Recurso financeiro estimado no ano\n(R$) - Cobrança Estadual]:[Recurso financeiro estimado no ano (R$) - Outras]]),\"\")","v":""}]
[null,null,null,null,null,null,null,null,null,null,null,null,null,null,null,null,null,null,null,null,{"$f":"IF(SUM(PAPI20_22_23[[#This Row],[Recurso financeiro estimado no ano\n(R$) - Cobrança Estadual]:[Recurso financeiro estimado no ano (R$) - Outras]]) >0,SUM(PAPI20_22_23[[#This Row],[Recurso financeiro estimado no ano\n(R$) - Cobrança Estadual]:[Recurso financeiro estimado no ano (R$) - Outras]]),\"\")","v":""}]
[null,null,null,null,null,null,null,null,null,null,null,null,null,null,null,null,null,null,null,null,{"$f":"IF(SUM(PAPI20_22_23[[#This Row],[Recurso financeiro estimado no ano\n(R$) - Cobrança Estadual]:[Recurso financeiro estimado no ano (R$) - Outras]]) >0,SUM(PAPI20_22_23[[#This Row],[Recurso financeiro estimado no ano\n(R$) - Cobrança Estadual]:[Recurso financeiro estimado no ano (R$) - Outras]]),\"\")","v":""}]
[null,null,null,null,null,null,null,null,null,null,null,null,null,null,null,null,null,null,null,null,{"$f":"IF(SUM(PAPI20_22_23[[#This Row],[Recurso financeiro estimado no ano\n(R$) - Cobrança Estadual]:[Recurso financeiro estimado no ano (R$) - Outras]]) >0,SUM(PAPI20_22_23[[#This Row],[Recurso financeiro estimado no ano\n(R$) - Cobrança Estadual]:[Recurso financeiro estimado no ano (R$) - Outras]]),\"\")","v":""}]
[null,null,null,null,null,null,null,null,null,null,null,null,null,null,null,null,null,null,null,null,{"$f":"IF(SUM(PAPI20_22_23[[#This Row],[Recurso financeiro estimado no ano\n(R$) - Cobrança Estadual]:[Recurso financeiro estimado no ano (R$) - Outras]]) >0,SUM(PAPI20_22_23[[#This Row],[Recurso financeiro estimado no ano\n(R$) - Cobrança Estadual]:[Recurso financeiro estimado no ano (R$) - Outras]]),\"\")","v":""}]
[null,null,null,null,null,null,null,null,null,null,null,null,null,null,null,null,null,null,null,null,{"$f":"IF(SUM(PAPI20_22_23[[#This Row],[Recurso financeiro estimado no ano\n(R$) - Cobrança Estadual]:[Recurso financeiro estimado no ano (R$) - Outras]]) >0,SUM(PAPI20_22_23[[#This Row],[Recurso financeiro estimado no ano\n(R$) - Cobrança Estadual]:[Recurso financeiro estimado no ano (R$) - Outras]]),\"\")","v":""}]
[null,null,null,null,null,null,null,null,null,null,null,null,null,null,null,null,null,null,null,null,{"$f":"IF(SUM(PAPI20_22_23[[#This Row],[Recurso financeiro estimado no ano\n(R$) - Cobrança Estadual]:[Recurso financeiro estimado no ano (R$) - Outras]]) >0,SUM(PAPI20_22_23[[#This Row],[Recurso financeiro estimado no ano\n(R$) - Cobrança Estadual]:[Recurso financeiro estimado no ano (R$) - Outras]]),\"\")","v":""}]

{"sheet":"Identificação das ações 24-27","index":1,"n_rows":48,"n_cols":13,"rows_kept":48,"cut":false,"hidden":false,"merged":[]}
["ID Ação","Descrição da ação","SubPDC","Prioridade do PDC","É (ou será)  empreendimento FEHIDRO?","Requer recursos financeiros?","Quantidade de fontes de recursos ","Segmento do executor","Área de abrangência","Detalhamento da área de abrangência","Início estimado da ação","Fim estimado","Observação Geral \n\nO cronograma de ínico das acoes foi estabelecido considerando as prioridades, os limites financeiros anuais previstos para indicacao de projetos FEHIDRO e habilitação  tomadores / executores participantes do Processo de Indicação de Emp"]
["SM-01-2027","T.1.1.1. Elaboração de mapa de uso e ocupação do solo com foco na conservação, proteção, recuperação ou uso dos recursos hídricos para os município de São Bento do Sapucaí.","1.1 - Legislação","PDC 1 e 2","Sim","Sim",1,"Sociedade Civil","Município","Município \nSão Bento do Sapucaí","2024-05-01","2025-12-01"]
["SM-02-2027","T.1.1.1. Elaboração de mapa de uso e ocupação do solo com foco na conservação, proteção, recuperação ou uso dos recursos hídricos para os município de Santo Antônio do Pinhal.","1.1 - Legislação","PDC 1 e 2","Sim","Sim",1,"Sociedade Civil","Município","Município \nSanto Antonio do Pinhal","2024-05-01","2025-12-01"]
["SM-03-2027","T.1.1.1. Elaboração de mapa de uso e ocupação do solo com foco na conservação, proteção, recuperação ou uso dos recursos hídricos para os município de Campos Jordao","1.1 - Legislação","PDC 1 e 2","Sim","Sim",1,"Sociedade Civil","Município","Município \nSanto Antonio do Pinhal","2024-05-01","2025-12-01"]
["SM-04-2027","T.1.2.2 . Diagnóstico qualitativo e/ou quantitativo de recursos hídricos superficiais e/ou subterrâneos na sub-bacia Sapucaí Guaçu.","1.2 - Planejamento","PDC 1 e 2","Sim","Sim",1,"Sociedade Civil","Sub-bacia","Sub-bacia do Rio Sapucaí Guaçu","2024-05-01","2025-12-01"]
["SM-05-2026","T.1.2.6 . Estudo, levantamento ou diagnóstico de saneamento básico e de abastecimento de água para os município de Campos de Jordao em comunidades afastado do centro urbano.(a definir: Matadouro,Melos,Campista,Descansópolis, Paque Ferradura )","1.2 - Planejamento","PDC 1 e 2","Sim","Sim",1,"Sociedade Civil","Área rural","Município \nSanto Antonio do Pinhal","2024-09-01","2025-12-01"]
["SM-06-2025","T.1.2.6 . Estudo, levantamento ou diagnóstico de saneamento básico e de abastecimento de água para os município de Santo Antônio do Pinhal com foco nas comunidades da área rural.","1.2 - Planejamento","PDC 1 e 2","Sim","Sim",1,"Sociedade Civil","Área rural","Município \nSanto Antonio do Pinhal","2024-09-01","2025-12-01"]
["SM-07-2024","T.1.2.6 . Estudo, levantamento ou diagnóstico de saneamento básico e de abastecimento de água para os município de São Bento do Sapucaí com foco nas comunidades da área rural.","1.2 - Planejamento","PDC 1 e 2","Sim","Sim",1,"Sociedade Civil","Área rural","Município \nSão Bento do Sapucaí","2024-09-01","2025-12-01"]
["SM-08-2025","T.1.2.19. Plano de drenagem para o município de Campos do Jordão","1.2 - Planejamento","PDC 1 e 2","Sim","Sim",1,"Município e Sociedade Civil","Município","Muncípio de Campos do Jordão","2025-05-01","2026-12-01"]
["SM-09-2024","T.1.2.19. Plano de drenagem para o município de São Bento do Sapucaí","1.2 - Planejamento","PDC 1 e 2","Sim","Sim",1,"Município e Sociedade Civil","Município","Município de São Bento do Sapucaí","2024-05-01","2025-12-01"]
["SM-10-2026","T.1.2.19. Plano de drenagem para o município de Santo Antonio do Pinhal","1.2 - Planejamento","PDC 1 e 2","Sim","Sim",1,"Município e Sociedade Civil","Município","Município de Santo Antonio do Pinhal","2026-05-01","2027-12-01"]
["SM-11-2026","T.1.2.14. Mapeamento de áreas suscetíveis a processos erosivos e deslizamentos","1.2 - Planejamento","PDC 1 e 2","Sim","Sim",1,"Município e Sociedade Civil","Município","Muncípio de Campos do Jordão","2026-05-01","2027-12-01"]
["SM-12-2027","T.1.2.24. Plano diretor para a prevenção e contenção de processos erosivos","1.2 - Planejamento","PDC 1 e 2","Sim","Sim",1,"Município e Sociedade Civil","Município","Muncípio de Campos do Jordão","2027-05-01","2027-12-01"]
["SM-13-2026","T.2.2.1. Desenvolvimento, implantação, operação, manutenção e atualização de sistema de fiscalização de outorgas de direito de uso de recursos hídricos.","2.2 - Outorga","PDC 1 e 2","Sim","Sim",1,"Sociedade Civil","UGRHi","UGRHI-1","2026-03-01","2027-12-01"]
["SM-14-2024","T.2.3.3. Desenvolvimento ou atualização de cadastro específico para cobrança pelo uso dos recursos hídricos","2.3 - Cobrança","PDC 1 e 2","Sim","Sim",1,"Sociedade Civil","UGRHi","UGRHI-1","2024-09-01","2025-12-01"]
["SM-15-2025","T.3.1.3. Projeto (básico e/ou executivos) de reformas, melhorias ou obras localizadas (EEE-Estação Elevatória de Esgoto e/ou ETE-Estação de tratamento de Esgoto) em Santo Antonio do Pinhal.","3.1 - Efluentes","Prioritário","Sim","Sim",1,"Município","Área rural","Município de Santo Antonio do Pinhal / a definir","2025-05-01","2026-12-01"]
["SM-16-2025","T.3.1.3. Projeto (básico e/ou executivos) de reformas, melhorias ou obras localizadas (EEE-Estação Elevatória de Esgoto e/ou ETE-Estação de tratamento de Esgoto) em Sao Bento do Sapucaí.","3.1 - Efluentes","Prioritário","Sim","Sim",1,"Município","Área rural","Município de São Bento do Sapucaí / a definir","2025-05-01","2026-12-01"]
["SM-17-2026","T.3.1.4. Execução de reformas, melhorias ou obras de EEE e/ou ETE em Santo Antonio do Pinhal.","3.1 - Efluentes","Prioritário","Sim","Sim",1,"Município","Área rural","Município de Santo Antonio do Pinhal / a definir","2026-05-01","2027-12-01"]
["SM-18-2026","T.3.1.4. Execução de reformas, melhorias ou obras de EEE e/ou ETE em São Bento do Sapucaí","3.1 - Efluentes","Prioritário","Sim","Sim",1,"Município","Área rural","Município de São Bento do Sapucaí / a definir","2026-05-01","2027-12-01"]
["SM-19-2025","T.4.1.3. Projetos (básicos e/ou executivos) para  proteção e/ou contenção de margens de curso d´água no município de Campos do Jordão","4.1 - Controle erosão","Prioritário","Sim","Sim",1,"Município","Área rural","Município de Campos do Jordão / a definir","2025-05-01","2026-12-01"]
["SM-20-2027","T.4.1.4. Obras/serviços de proteção e/ou contenção de margens de curso d´água no município de Campos do Jordão","4.1 - Controle erosão","Prioritário","Sim","Sim",1,"Município","Área urbana","Município de Campos do Jordão / a definir","2027-05-01","2028-12-01"]
["SM-21-2025","T.4.1.4. Obras/serviços de proteção e/ou contenção de margens de curso d´água no município de São Bento do Sapucaí","4.1 - Controle erosão","Prioritário","Sim","Sim",1,"Município","Área urbana","Município de São Bento do Sapucaí / a definir","2025-05-01","2026-12-01"]
["SM-22-2024","T.4.1.4. Obras/serviços de proteção e/ou contenção de margens de curso d´água no município de Santo Antonio do Pinhal","4.1 - Controle erosão","Prioritário","Sim","Sim",1,"Município","Área urbana","Município de Santo Antonio do Pinhal / a definir","2024-05-01","2025-12-01"]
["SM-23-2025","T.4.2.13. Projeto executivo de Pagamento por Serviços Ambientais relacionados à água - município de São Bento do Sapucaí.","4.2 - Soluções baseadas Natureza","Prioritário","Sim","Sim",1,"Sociedade Civil","Área rural","Município de São Bento do Sapucaí","2025-05-01","2026-12-01"]
["SM-24-2027","T.4.2.13. Projeto executivo de Pagamento por Serviços Ambientais relacionados à água - município de Santo Antonio do Pinhal.","4.2 - Soluções baseadas Natureza","Prioritário","Sim","Sim",1,"Sociedade Civil","Área rural","Município de Santo Antonio do Pinhal","2027-05-01","2028-12-01"]
["SM-25-2027","T.7.1.1. Projetos (básicos e/ou executivos) de microdrenagem (sarjetas, guias, bocas de lobo, poços de visita, galerias, pavimentação com material drenante entre outros) no município de Campos do Jordão.","7.1 - Drenagem","Prioritário","Sim","Sim",1,"Município","Área urbana","Município de Campos do Jordão / a definir","2027-05-01","2028-12-01"]
["SM-26-2024","T.7.1.3. Projetos (básicos e/ou executivos) de macrodrenagem (canalizações, retificações, travessias entre outros) no município de Campos do Jordão.","7.1 - Drenagem","Prioritário","Sim","Sim",1,"Município","Área urbana","Município de Campos do Jordão / a definir","2024-05-01","2025-12-01"]
["SM-27-2026","T.7.1.4. Obras/serviços de macrodrenagem (canalizações, retificações, travessias entre outros) no município de Campos do Jordão","7.1 - Drenagem","Prioritário","Sim","Sim",1,"Município","Área urbana","Município de Campos do Jordão / a definir","2026-05-01","2027-12-01"]
["SM-28-2027","T.7.1.2. Obras/serviços de microdrenagem (sarjetas, guias, bocas de lobo, poços de visita, galerias, pavimentação com material drenante entre outros) no município de São Bento do Sapucaí.","7.1 - Drenagem","Prioritário","Sim","Sim",1,"Município","Área urbana","Município de São Bento do Sapucaí / a definir","2027-05-01","2028-12-01"]
["SM-29-2027","T.7.1.2. Obras/serviços de microdrenagem (sarjetas, guias, bocas de lobo, poços de visita, galerias, pavimentação com material drenante entre outros) no município de Santo Antonio do Pinhal.","7.1 - Drenagem","Prioritário","Sim","Sim",1,"Município","Área urbana","Município de Santo Antonio do Pinhal / a definir","2027-05-01","2028-12-01"]
["SM-30-2024","T.8.3.1. Campanha educativa voltada para a conservação e gestão dos recursos hídricos","8.3 - Comunicação","Não prioritário","Sim","Sim",1,"Sociedade Civil","Município","Municípios de Santo Antonio do Pinhal e Sào Bento do Sapucaí","2024-09-01","2025-12-01"]
["SM-31-2024","T.8.3.2. Serviços afetos à elaboração e divulgação de instrumentos de comunicação social","8.3 - Comunicação","Não prioritário","Sim","Sim",1,"Sociedade Civil","UGRHi","UGRHI-1","2024-05-01","2026-12-01"]
["SM-32-2024","1.2.19 Revisão do Plano de Gestão Integrada de Resíduos sólidos de Santo Antonio do Pinhal.","1.2 - Planejamento","PDC 1 e 2","Sim","Sim",1,"Sociedade Civil","Município","Município de Santo Antonio do Pinhal"]
["SM-33-2024","1.2.19 Revisão do Plano de Gestão Integrada de Resíduos sólidos de São Bento do Sapucaí","1.2 - Planejamento","PDC 1 e 2","Sim","Sim",1,"Sociedade Civil","Município","Município \nSão Bento do Sapucaí"]
["SM-34-2024","T.4.2.13. Projeto executivo de Pagamento por Serviços Ambientais relacionados à água ","4.2 - Soluções baseadas Natureza","Prioritário","Sim","Sim",1,"Sociedade Civil","Sub-bacia","Município de São Bento do Sapucaí / a definir"]
["SM-35-2025","T.1.2.11. Estudo, levantamento, diagnóstico para subsidiar projetos de PSA ","1.2 - Planejamento","PDC 1 e 2","Sim","Sim",1,"Sociedade Civil","Sub-bacia","Município de São Bento do Sapucaí / a definir"]
["SM-36-2026","T.1.2.16 Planejamento territorial com foco na conservação, proteção, recuperação ou uso dos recur-sos hídricos -Sao Bento do Sapucai","1.2 - Planejamento","PDC 1 e 2","Sim","Sim",1,"Sociedade Civil","Município","Município \nSão Bento do Sapucaí"]
["SM-37-2026","T.1.2.16 Planejamento territorial com foco na conservação, proteção, recuperação ou uso dos recur-sos hídricos -Santo Antonio do Pinhal","1.2 - Planejamento","PDC 1 e 2","Sim","Sim",1,"Sociedade Civil","Município","Município de Santo Antonio do Pinhal"]
["SM-38-2025","T.3.2.1. Projetos (básicos e/ou executivos) de recuperação de áreas contaminadas ","3.3 - Resíduos","Prioritário","Sim","Sim",1,"Sociedade Civil","Área urbana","Município \nSão Bento do Sapucaí / cemiterio"]
["SM-39-2026","T.3.3.1 – Projeto ( básico ou executivo) de aterro sanitário para disposição de resíduos solidos domiciliares (continuidade Revisão Plano de Resíduos Sólidos São Bento do Sapucaí)","3.3 - Resíduos","Prioritário","Sim","Sim",1,"Município e Sociedade Civil","Município","Município \nSão Bento do Sapucaí"]
["SM-40-2027","T.3.3.1 – Projeto ( básico ou executivo) de aterro sanitário para disposição de resíduos solidos domiciliares (continuidade Revisão Plano de Resíduos Sólidos - Santo Antonio do Pinhal)","3.3 - Resíduos","Prioritário","Sim","Sim",1,"Município e Sociedade Civil","Município","Município de Santo Antonio do Pinhal"]
["SM-41-2027","T.3.3.4 – Implantação de unidade de tratamento de residuos sólidos – Sao Bento do Sapucaí (compostagem, reciclagem ou incineração) associado ou não a undade de transbordo","3.3 - Resíduos","Prioritário","Sim","Sim",1,"Município","Município","Município \nSão Bento do Sapucaí"]
["SM-42-2027","T.3.3.4 – Implantação de unidade de tratamento de residuos sólidos – Santo Antonio do Pinhal (compostagem, reciclagem ou incineração) associado ou não a undade de transbordo","3.3 - Resíduos","Prioritário","Sim","Sim",1,"Município","Município","Município de Santo Antonio do Pinhal"]
["SM-43-2026","T.4.1.5 Projeto ( Básico ou executivo) de desassoreamento de curso dágua - Sao Bento do Sapucaí","4.1 - Controle erosão","Prioritário","Sim","Sim",1,"Município","Corpo hídrico"]
["SM-44-2026","T.4.1.5 Projeto ( Básico ou executivo) de desassoreamento de curso dágua - Santo Antonio do Pinhal","4.1 - Controle erosão","Prioritário","Sim","Sim",1,"Município","Corpo hídrico","Município de Santo Antonio do Pinhal"]
["SM-45-2025","T.4.2.11 Projeto Executivo de aumento de áreas permeáveis e/ou redução de escoamento superficial por meio de implantacao de estrutura verde - parque linear","4.2 - Soluções baseadas Natureza","Prioritário","Sim","Sim",1,"Município e Sociedade Civil","Região Hidrográfica","Município \nSão Bento do Sapucaí"]
["SM-46-2025","T.8.3.1. Campanha educativa voltada para a conservação e gestão dos recursos hídricos - continuidade Plano Educação Ambiental","8.2 - Educação","Não prioritário","Sim","Sim",1,"Sociedade Civil","UGRHi","UGRHI-1"]
["SM-47-2024","T.1.2.2 . Diagnóstico qualitativo e/ou quantitativo de recursos hídricos superficiais e/ou subterrâneos nas sub bacias Perdizes,Bau,Serrano e Prata","1.2 - Planejamento","PDC 1 e 2","Sim","Sim",1,"Sociedade Civil","Sub-bacia","Sub Bacia Sapucai Guacu"]

{"sheet":"Acompanhamento das metas 24-27","index":2,"n_rows":51,"n_cols":12,"rows_kept":51,"cut":false,"hidden":false,"merged":[]}
["ID","Descrição da ação","Meta do quadriênio","Meta 2024","% de execução física da meta (2024)","Meta 2025","% de execução física da meta (2025)","Meta 2026","% de execução física da meta (2026)","Meta 2027","% de execução física da meta (2027)","Observações"]
[{"$f":"IF(INDEX(IdentAcoes[],,1)=0,\"\",(INDEX(IdentAcoes[],,1)))","v":"SM-01-2027"},{"$f":"IF(INDEX(IdentAcoes[],,4)=0,\"\",(INDEX(IdentAcoes[],,2)))","v":"T.1.1.1. Elaboração de mapa de uso e ocupação do solo com foco na conservação, proteção, recuperação ou uso dos recursos hídricos para os município de São Bento do Sapucaí."},"Atualização da legislação de zoneamento dos Município de São Bento do Sapucaí.","Indicação do empreendimento FEHIDRO",25,null,null,null,null,"Atualizar Legislação de Zoneamento do \nmunicípio de São Bento do Sapucaí"]
["SM-02-2027","T.1.1.1. Elaboração de mapa de uso e ocupação do solo com foco na conservação, proteção, recuperação ou uso dos recursos hídricos para os município de Santo Antônio do Pinhal.","Atualização da legislação de zoneamento dos Município de Santo Antonio do Pinhal.","Indicação do empreendimento FEHIDRO",25,null,null,null,null,"Atualizar Legislação de Zoneamento do \nmunicípio de Santo Antonio do Pinhal"]
["SM-03-2027","T.1.1.1. Elaboração de mapa de uso e ocupação do solo com foco na conservação, proteção, recuperação ou uso dos recursos hídricos para os município de Campos Jordao","Atualização da legislação de zoneamento dos Município Campos Jordao","Indicação do empreendimento FEHIDRO",25,null,null,null,null,"Atualizar Legislação de Zoneamento do \nmunicípio de Campos do Jordão"]
["SM-04-2027","T.1.2.2 . Diagnóstico qualitativo e/ou quantitativo de recursos hídricos superficiais e/ou subterrâneos na sub-bacia Sapucaí Guaçu.","Obter a Análise da Situação dos recursos hídricos da Sub Bacia do Rio Sapucaí Guaçu para planejamento de futuras ações e investimentos na Sub Bacia.","Planejada para 2027",null,null,null,null,null,"Diagnóstico da Situação dos Recursos Hídricos\ndas Sub Bacias dos Ridos Sapucaí Guaçu ,Rio da Prata e Rio Sapucaí Mirim e Plano de Ações \npara conservação dos mananciais."]
["SM-05-2026","T.1.2.6 . Estudo, levantamento ou diagnóstico de saneamento básico e de abastecimento de água para os município de Campos de Jordao em comunidades afastado do centro urbano.(a definir: Matadouro,Melos,Campista,Descansópolis, Paque Ferradura )","Obter dianóstico / situação do saneamento básico e abastecimento de água  em comunidades afastadas do centro urbano no município de Campos do Jordao","Acão Cancelada - revisao PAPI dez 2024",0,null,null,"Plano de Saneamento Rural para o município de Campos do Jordão"]
["SM-06-2025","T.1.2.6 . Estudo, levantamento ou diagnóstico de saneamento básico e de abastecimento de água para os município de Santo Antônio do Pinhal com foco nas comunidades da área rural.","Obter dianóstico / situação do saneamento básico e abastecimento de água na área rural de Santo Antonio do Pinhal para planejamento de ações e investimentos no município de Santo Antonio do Pinhal.","Acão Cancelada - revisao PAPI dez 2024",0,"Plano de Saneamento Básico e abastecimento\nde Água para o município de Santo Antonio \ndo Pinhal"]
["SM-07-2024","T.1.2.6 . Estudo, levantamento ou diagnóstico de saneamento básico e de abastecimento de água para os município de São Bento do Sapucaí com foco nas comunidades da área rural.","Obter dianóstico / situação do saneamento básico e abastecimento de água na área rural de São Bento do Sapucaí para planejamento de ações e investimentos no município de São Bento do Sapucaí.","Acão Cancelada - revisao PAPI dez 2024",0]
["SM-08-2025","T.1.2.19. Plano de drenagem para o município de Campos do Jordão","Elaborar a revisão do Plano de Drenagem do muncípio de Campos do Jordão","planejada para 2025",0,"Plano de Macro Drenagem do município de \nCampos do Jordão"]
["SM-09-2024","T.1.2.19. Plano de drenagem para o município de São Bento do Sapucaí","Elaborar a revisão do Plano de Drenagem do muncípio de São Bento do Sapucaí","Indicação do empreendimento FEHIDRO",25]
["SM-10-2026","T.1.2.19. Plano de drenagem para o município de Santo Antonio do Pinhal","Elaborar a revisão do Plano de Drenagem do muncípio de Santo Antonio do Pinhal","Indicação do empreendimento FEHIDRO",25,null,null,"Plano de Macro Drenagem do município de \nSanto Antnio do Pinhal"]
["SM-11-2026","T.1.2.14. Mapeamento de áreas suscetíveis a processos erosivos e deslizamentos","Elaborar o mapeamento de áreas suscetíveis a processos erosivos e deslizamentos no município de Campos do Jordão","planejada para 2026",0,null,null,"Relatório de Diagnóstico e mapeamento de áreas \nsuscetíveis a processos erosivos e deslizamentos no muncípio de Campos do Jordão"]
["SM-12-2027","T.1.2.24. Plano diretor para a prevenção e contenção de processos erosivos","Elaborar o Plano Diretor para prevenção e conteção de  processos erosivos no município de Campos do Jordão","planejada para 2027",0,null,null,null,null,"Plano Diretor para prevenção e contenção de\nprocessos erosivos para o município de \nCampos do Jordão"]
["SM-13-2026","T.2.2.1. Desenvolvimento, implantação, operação, manutenção e atualização de sistema de fiscalização de outorgas de direito de uso de recursos hídricos.","Atualização e melhorias do atual sistema de fiscalização de outorgas de direito de uso de recursos hídricos na UGRHI-1","planejada para 2026",0,null,null,"Melhoria no processo de\n fiscalização de outorgas de direito de uso de \nrecursos hídricos na UGRHi-1 visando reduzir \no número de usuários não outorgados."]
["SM-14-2024","T.2.3.3. Desenvolvimento ou atualização de cadastro específico para cobrança pelo uso dos recursos hídricos","Atualização do cadastro de cobrança de água para os Usuários da UGRHI-1 e identificação de captações não outorgadas.","replanejada para 2025",0]
["SM-15-2025","T.3.1.3. Projeto (básico e/ou executivos) de reformas, melhorias ou obras localizadas (EEE-Estação Elevatória de Esgoto e/ou ETE-Estação de tratamento de Esgoto) em Santo Antonio do Pinhal.","Elaborar projeto de 1 ETE em bairro rural de Santo Antonio do Pinhal","Acão Cancelada - revisao PAPI dez 2024",0,"Projeto básico de 1 ETE em bairro rural do\nmunicípio de Santo Antonio do Pinhal"]
["SM-16-2025","T.3.1.3. Projeto (básico e/ou executivos) de reformas, melhorias ou obras localizadas (EEE-Estação Elevatória de Esgoto e/ou ETE-Estação de tratamento de Esgoto) em Sao Bento do Sapucaí.","Elaborar projeto de 1 ETE em bairro rural de São Bento do Sapucaí","Acão Cancelada - revisao PAPI dez 2024",0,"Projeto básico de 1 ETE em bairro rural do\nmunicípio de São Bento do Sapucaí"]
["SM-17-2026","T.3.1.4. Execução de reformas, melhorias ou obras de EEE e/ou ETE em Santo Antonio do Pinhal.","Implantar 1 ETE em bairro rural de Santo Antonio do Pinhal","Acão Cancelada - revisao PAPI dez 2024",0,null,null,"Implantar 1 ETE em bairro rural do município \nde Santo Antonio do Pinhal"]
["SM-18-2026","T.3.1.4. Execução de reformas, melhorias ou obras de EEE e/ou ETE em São Bento do Sapucaí","Implantar 1 ETE em bairro rural de São Bento do Sapucaí","Acão Cancelada - revisao PAPI dez 2024",0,null,null,"Implantar 1 ETE em bairro rural do município \nde São Bento do Sapucaí"]
["SM-19-2025","T.4.1.3. Projetos (básicos e/ou executivos) para  proteção e/ou contenção de margens de curso d´água no município de Campos do Jordão","Elaborar projeto de proteção e/ou contenção de curso 'dagua no município de Campos do Jordão","planejada para 2025",0,"Elaborar projeto de proteção e/ou contenção\n de curso 'dagua no município de\n Campos do Jordão"]
["SM-20-2027","T.4.1.4. Obras/serviços de proteção e/ou contenção de margens de curso d´água no município de Campos do Jordão","Realizar uma obra / serviço de proteção e/ou contenção de margens de curso dágua no município de Campos do Jordão","planejada para 2027",0,null,null,null,null,"Realizar uma obra / serviço de proteção e/ou \ncontenção de margens de curso dágua no\n município de Campos do Jordão"]
["SM-21-2025","T.4.1.4. Obras/serviços de proteção e/ou contenção de margens de curso d´água no município de São Bento do Sapucaí","Realizar uma obra / serviço de proteção e/ou contenção de margens de curso dágua no município de São Bento do Sapucaí","planejada para 2025",0,"Realizar uma obra / serviço de proteção e/ou\n contenção de margens de curso dágua no \nmunicípio de São Bento do Sapucaí"]
["SM-22-2024","T.4.1.4. Obras/serviços de proteção e/ou contenção de margens de curso d´água no município de Santo Antonio do Pinhal","Realizar uma obra / serviço de proteção e/ou contenção de margens de curso dágua no município de Santo Antonio do Pinhal","Indicação do empreendimento FEHIDRO",25]
["SM-23-2025","T.4.2.13. Projeto executivo de Pagamento por Serviços Ambientais relacionados à água - município de São Bento do Sapucaí.","Elaborar um projeto executivo PSA no município de São Bento do Sapucaí","planejada para 2025",0]
["SM-24-2027","T.4.2.13. Projeto executivo de Pagamento por Serviços Ambientais relacionados à água - município de Santo Antonio do Pinhal.","Elaborar um projeto executivo PSA no município de Santo Antonio do Pinhal","planejada para 2027",0,null,null,null,null,"Elaborar um projeto executivo PSA no \nmunicípio de Santo Antonio do Pinhal"]
["SM-25-2027","T.7.1.1. Projetos (básicos e/ou executivos) de microdrenagem (sarjetas, guias, bocas de lobo, poços de visita, galerias, pavimentação com material drenante entre outros) no município de Campos do Jordão.","Elaborar 1 Projeto básico ou executivo de microdrenagem no Município de São Bento do Sapucaí","planejada para 2027",0,null,null,null,null,"Elaborar 1 Projeto básico ou executivo de \nmicrodrenagem no Município de São Bento\n do Sapucaí"]
["SM-26-2024","T.7.1.3. Projetos (básicos e/ou executivos) de macrodrenagem (canalizações, retificações, travessias entre outros) no município de Campos do Jordão.","Elaborar 1 Projeto básico ou executivo de macrodrenagem no Município de Campos do Jordão.","Indicação do empreendimento FEHIDRO",0]
["SM-27-2026","T.7.1.4. Obras/serviços de macrodrenagem (canalizações, retificações, travessias entre outros) no município de Campos do Jordão","Elaborar 1 obra ou serviço de macrodrenagem no município de Campos do Jordão","planejada para 2026",0,null,null,"Elaborar 1 obra ou serviço de macrodrenagem \nno município de Campos do Jordão"]
["SM-28-2027","T.7.1.2. Obras/serviços de microdrenagem (sarjetas, guias, bocas de lobo, poços de visita, galerias, pavimentação com material drenante entre outros) no município de São Bento do Sapucaí.","Elaborar 1 obra ou serviço de microdrenagem no município de São Bento do Sapucaí.","planejada para 2027",0,null,null,null,null,"Elaborar 1 obra ou serviço de microdrenagem\n no município de São Bento do Sapucaí."]
["SM-29-2027","T.7.1.2. Obras/serviços de microdrenagem (sarjetas, guias, bocas de lobo, poços de visita, galerias, pavimentação com material drenante entre outros) no município de Santo Antonio do Pinhal.","Elaborar 1 obra ou serviço de microdrenagem no município de Santo Antonio do Pinhal","planejada para 2027",0,null,null,null,null,"Elaborar 1 obra ou serviço de microdrenagem \nno município de Santo Antonio do Pinhal"]
["SM-30-2024","T.8.3.1. Campanha educativa voltada para a conservação e gestão dos recursos hídricos","Elaborar campanha educativa voltada a tratamento de resíduos sólidos nos municípios de Santo Antonio do Pinhal e Sao Bento do Sapucaí","Indicação do empreendimento FEHIDRO",25]
["SM-31-2024","T.8.3.2. Serviços afetos à elaboração e divulgação de instrumentos de comunicação social","Implementar as atividades de comunicação social e educação ambiental do CBH-SM  de forma contínua anualmente.","Indicação do empreendimento FEHIDRO",25]
["SM-32-2024","1.2.19 Revisão do Plano de Gestão Integrada de Resíduos sólidos de Santo Antonio do Pinhal.","Atualizar o Plano de Residos Sólidos no município de Santo Antonio do Pinhal.","Indicação do empreendimento FEHIDRO",25]
["SM-33-2024","1.2.19 Revisão do Plano de Gestão Integrada de Resíduos sólidos de São Bento do Sapucaí","Atualizar o Plano de Residos Sólidos no município de São Bento do Sapucai.","Indicação do empreendimento FEHIDRO",25]
["SM-34-2024","T.4.2.13. Projeto executivo de Pagamento por Serviços Ambientais relacionados à água ","Obter Diagnostico, Estudos, Recuperação e Proteção da Bacia do Ribeirão Serrano – São Bento do Sapucaí","Indicação do empreendimento FEHIDRO",25]
["SM-35-2025","T.1.2.11. Estudo, levantamento, diagnóstico para subsidiar projetos de PSA ","Subsidiar PSA – cadastramento das propriedades rurais interessadas em projetos melhorias ambientais.","planejada para 2025",0]
["SM-36-2026","T.1.2.16 Planejamento territorial com foco na conservação, proteção, recuperação ou uso dos recur-sos hídricos -Sao Bento do Sapucai","Planejamento territorial – (continuidade do mapa de uso e ocupação do solo)","planejada para 2026",0]
["SM-37-2026","T.1.2.16 Planejamento territorial com foco na conservação, proteção, recuperação ou uso dos recur-sos hídricos -Santo Antonio do Pinhal","Planejamento territorial – (continuidade do mapa de uso e ocupação do solo)","planejada para 2026",0]
["SM-38-2025","T.3.2.1. Projetos (básicos e/ou executivos) de recuperação de áreas contaminadas ","áreas contaminadas – poluição difusa – cemitério São Bento do Sapucai – 2025","planejada para 2025",0]
["SM-39-2026","T.3.3.1 – Projeto ( básico ou executivo) de aterro sanitário para disposição de resíduos solidos domiciliares (continuidade Revisão Plano de Resíduos Sólidos São Bento do Sapucaí)","Projeto inicial de aterro sanitário para disposição de resíduos solidos domiciliares (continuidade Revisão Plano de Resíduos Sólidos) - São Bento do Sapucaí","planejada para 2026",0]
["SM-40-2027","T.3.3.1 – Projeto ( básico ou executivo) de aterro sanitário para disposição de resíduos solidos domiciliares (continuidade Revisão Plano de Resíduos Sólidos - Santo Antonio do Pinhal)","Projeto inicial de aterro sanitário para disposição de resíduos solidos domiciliares (continuidade Revisão Plano de Resíduos Sólidos)-Santo Antonio do Pinhal","planejada para 2027",0]
["SM-41-2027","T.3.3.4 – Implantação de unidade de tratamento de residuos sólidos – Sao Bento do Sapucaí (compostagem, reciclagem ou incineração) associado ou não a undade de transbordo","Implantação de aterro sanitário, ecoponto e PEV – Ponto de Entrega Voluntária – (continuidade Revisão Plano de Resíduos Sólidos) - São Bento do Sapucaí","planejada para 2027",0]
["SM-42-2027","T.3.3.4 – Implantação de unidade de tratamento de residuos sólidos – Santo Antonio do Pinhal (compostagem, reciclagem ou incineração) associado ou não a undade de transbordo","Implantação de aterro sanitário, ecoponto e PEV – Ponto de Entrega Voluntária – (continuidade Revisão Plano de Resíduos Sólidos) - Santo Antonio do Pinhal","planejada para 2027",0]
["SM-43-2026","T.4.1.5 Projeto ( Básico ou executivo) de desassoreamento de curso dágua - Sao Bento do Sapucaí","Controle de processos erosivos - Proteção margens – (continuidade do macrodrenagem) - São Bento do Sapucaí","planejada para 2026",0]
["SM-44-2026","T.4.1.5 Projeto ( Básico ou executivo) de desassoreamento de curso dágua - Santo Antonio do Pinhal","Controle de processos erosivos - Proteção margens – (continuidade do macrodrenagem) - Santo Antonio do Pinhal","planejada para 2026",0]
["SM-45-2025","T.4.2.11 Projeto Executivo de aumento de áreas permeáveis e/ou redução de escoamento superficial por meio de implantacao de estrutura verde - parque linear","Implantação de parque linear , bosque urbano em São Bento do Sapucaí","planejada para 2025",0]
["SM-46-2025","T.8.3.1. Campanha educativa voltada para a conservação e gestão dos recursos hídricos - continuidade Plano Educação Ambiental","Realizar campanha educativa na gestão de recursos hídricos - continuidade e ações do Projeto  Plano de Educação Ambiental - Caminho das Águas","planejada para 2025",0]
["SM-47-2024","T.1.2.2 . Diagnóstico qualitativo e/ou quantitativo de recursos hídricos superficiais e/ou subterrâneos nas sub bacias Perdizes,Bau,Serrano e Prata","Caracterização da Vulnerabilidade Ambiental das Nascentes, e Diagnóstico dos Recursos Hidricos das Sub-Bacias de Perdizes, Baú, Serrano e Prata da Bacia Hidrográfica da Serra da Mantiqueira – UGRHI 1 ","Indicação do empreendimento FEHIDRO",25]
["",""]
["",""]
["",""]

{"sheet":"Acomp. financeiro  24-27","index":3,"n_rows":50,"n_cols":17,"rows_kept":50,"cut":false,"hidden":false,"merged":[]}
["id_ação_Fonte_oculta","ID Ação","Descrição da ação","Fonte","R$  Planejado (2024)","R$  Disponibilizado (2024)","R$  Executado (2024)","R$  Planejado (2025)","R$  Disponibilizado (2025)","R$  Executado (2025)","R$  Planejado (2026)","R$  Disponibilizado (2026)","R$  Executado (2026)","R$  Planejado (2027)","R$  Disponibilizado (2027)","R$  Executado (2027)","Observações sobre execução financeira da meta"]
[{"$f":"Financeiro[[#This Row],[ID Ação]]&Financeiro[[#This Row],[Fonte]]","v":"SM-01-2027FEHIDRO - CFURH"},{"$f":"IFERROR(INDEX(IdentAcoes[ID Ação],MATCH(0,INDEX(--(COUNTIF(B$1:B1,IdentAcoes[ID Ação])=IdentAcoes[[Quantidade de fontes de recursos ]]),0),0)),\"\")","v":"SM-01-2027"},{"$f":"IFERROR(INDEX(IdentAcoes[Descrição da ação],MATCH(0,INDEX(--(COUNTIF(C$1:C1,IdentAcoes[Descrição da ação])=IdentAcoes[[Quantidade de fontes de recursos ]]),0),0)),\"\")","v":"T.1.1.1. Elaboração de mapa de uso e ocupação do solo com foco na conservação, proteção, recuperação ou uso dos recursos hídricos para os município de São Bento do Sapucaí."},"FEHIDRO - CFURH",160000,159816.28,0,0,0,0,0,0,0,0,0,0]
[{"$f":"Financeiro[[#This Row],[ID Ação]]&Financeiro[[#This Row],[Fonte]]","v":"SM-02-2027FEHIDRO - CFURH"},{"$f":"IFERROR(INDEX(IdentAcoes[ID Ação],MATCH(0,INDEX(--(COUNTIF(B$1:B2,IdentAcoes[ID Ação])=IdentAcoes[[Quantidade de fontes de recursos ]]),0),0)),\"\")","v":"SM-02-2027"},{"$f":"IFERROR(INDEX(IdentAcoes[Descrição da ação],MATCH(0,INDEX(--(COUNTIF(C$1:C2,IdentAcoes[Descrição da ação])=IdentAcoes[[Quantidade de fontes de recursos ]]),0),0)),\"\")","v":"T.1.1.1. Elaboração de mapa de uso e ocupação do solo com foco na conservação, proteção, recuperação ou uso dos recursos hídricos para os município de Santo Antônio do Pinhal."},"FEHIDRO - CFURH",160000,159816.28,0,0,0,0,0,0,0,0,0,0,0]
[{"$f":"Financeiro[[#This Row],[ID Ação]]&Financeiro[[#This Row],[Fonte]]","v":"SM-03-2027FEHIDRO - CFURH"},{"$f":"IFERROR(INDEX(IdentAcoes[ID Ação],MATCH(0,INDEX(--(COUNTIF(B$1:B3,IdentAcoes[ID Ação])=IdentAcoes[[Quantidade de fontes de recursos ]]),0),0)),\"\")","v":"SM-03-2027"},{"$f":"IFERROR(INDEX(IdentAcoes[Descrição da ação],MATCH(0,INDEX(--(COUNTIF(C$1:C3,IdentAcoes[Descrição da ação])=IdentAcoes[[Quantidade de fontes de recursos ]]),0),0)),\"\")","v":"T.1.1.1. Elaboração de mapa de uso e ocupação do solo com foco na conservação, proteção, recuperação ou uso dos recursos hídricos para os município de Campos Jordao"},"FEHIDRO - CFURH",160000,159816.28,0,0,0,0,0,0,0,0,0,0,0]
[{"$f":"Financeiro[[#This Row],[ID Ação]]&Financeiro[[#This Row],[Fonte]]","v":"SM-04-2027FEHIDRO - CFURH"},{"$f":"IFERROR(INDEX(IdentAcoes[ID Ação],MATCH(0,INDEX(--(COUNTIF(B$1:B4,IdentAcoes[ID Ação])=IdentAcoes[[Quantidade de fontes de recursos ]]),0),0)),\"\")","v":"SM-04-2027"},{"$f":"IFERROR(INDEX(IdentAcoes[Descrição da ação],MATCH(0,INDEX(--(COUNTIF(C$1:C4,IdentAcoes[Descrição da ação])=IdentAcoes[[Quantidade de fontes de recursos ]]),0),0)),\"\")","v":"T.1.2.2 . Diagnóstico qualitativo e/ou quantitativo de recursos hídricos superficiais e/ou subterrâneos na sub-bacia Sapucaí Guaçu."},"FEHIDRO - CFURH",0,0,0,0,0,0,0,0,0,200000,0,0]
[{"$f":"Financeiro[[#This Row],[ID Ação]]&Financeiro[[#This Row],[Fonte]]","v":"SM-05-2026FEHIDRO - Cobrança estadual"},{"$f":"IFERROR(INDEX(IdentAcoes[ID Ação],MATCH(0,INDEX(--(COUNTIF(B$1:B5,IdentAcoes[ID Ação])=IdentAcoes[[Quantidade de fontes de recursos ]]),0),0)),\"\")","v":"SM-05-2026"},{"$f":"IFERROR(INDEX(IdentAcoes[Descrição da ação],MATCH(0,INDEX(--(COUNTIF(C$1:C5,IdentAcoes[Descrição da ação])=IdentAcoes[[Quantidade de fontes de recursos ]]),0),0)),\"\")","v":"T.1.2.6 . Estudo, levantamento ou diagnóstico de saneamento básico e de abastecimento de água para os município de Campos de Jordao em comunidades afastado do centro urbano.(a definir: Matadouro,Melos,Campista,Descansópolis, Paque Ferradura )"},"FEHIDRO - Cobrança estadual",0,0,null,0,null,null,0,0,0,0]
[{"$f":"Financeiro[[#This Row],[ID Ação]]&Financeiro[[#This Row],[Fonte]]","v":"SM-06-2025FEHIDRO - CFURH"},{"$f":"IFERROR(INDEX(IdentAcoes[ID Ação],MATCH(0,INDEX(--(COUNTIF(B$1:B6,IdentAcoes[ID Ação])=IdentAcoes[[Quantidade de fontes de recursos ]]),0),0)),\"\")","v":"SM-06-2025"},{"$f":"IFERROR(INDEX(IdentAcoes[Descrição da ação],MATCH(0,INDEX(--(COUNTIF(C$1:C6,IdentAcoes[Descrição da ação])=IdentAcoes[[Quantidade de fontes de recursos ]]),0),0)),\"\")","v":"T.1.2.6 . Estudo, levantamento ou diagnóstico de saneamento básico e de abastecimento de água para os município de Santo Antônio do Pinhal com foco nas comunidades da área rural."},"FEHIDRO - CFURH",0,0,null,0,null,null,0,null,null,0]
[{"$f":"Financeiro[[#This Row],[ID Ação]]&Financeiro[[#This Row],[Fonte]]","v":"SM-07-2024FEHIDRO - CFURH"},{"$f":"IFERROR(INDEX(IdentAcoes[ID Ação],MATCH(0,INDEX(--(COUNTIF(B$1:B7,IdentAcoes[ID Ação])=IdentAcoes[[Quantidade de fontes de recursos ]]),0),0)),\"\")","v":"SM-07-2024"},{"$f":"IFERROR(INDEX(IdentAcoes[Descrição da ação],MATCH(0,INDEX(--(COUNTIF(C$1:C7,IdentAcoes[Descrição da ação])=IdentAcoes[[Quantidade de fontes de recursos ]]),0),0)),\"\")","v":"T.1.2.6 . Estudo, levantamento ou diagnóstico de saneamento básico e de abastecimento de água para os município de São Bento do Sapucaí com foco nas comunidades da área rural."},"FEHIDRO - CFURH",0,0,null,0,null,null,0,null,null,0]
[{"$f":"Financeiro[[#This Row],[ID Ação]]&Financeiro[[#This Row],[Fonte]]","v":"SM-08-2025FEHIDRO - Cobrança estadual"},{"$f":"IFERROR(INDEX(IdentAcoes[ID Ação],MATCH(0,INDEX(--(COUNTIF(B$1:B8,IdentAcoes[ID Ação])=IdentAcoes[[Quantidade de fontes de recursos ]]),0),0)),\"\")","v":"SM-08-2025"},{"$f":"IFERROR(INDEX(IdentAcoes[Descrição da ação],MATCH(0,INDEX(--(COUNTIF(C$1:C8,IdentAcoes[Descrição da ação])=IdentAcoes[[Quantidade de fontes de recursos ]]),0),0)),\"\")","v":"T.1.2.19. Plano de drenagem para o município de Campos do Jordão"},"FEHIDRO - Cobrança estadual",0,0,null,250000,null,null,0,null,null,0]
[{"$f":"Financeiro[[#This Row],[ID Ação]]&Financeiro[[#This Row],[Fonte]]","v":"SM-09-2024FEHIDRO - CFURH"},{"$f":"IFERROR(INDEX(IdentAcoes[ID Ação],MATCH(0,INDEX(--(COUNTIF(B$1:B9,IdentAcoes[ID Ação])=IdentAcoes[[Quantidade de fontes de recursos ]]),0),0)),\"\")","v":"SM-09-2024"},{"$f":"IFERROR(INDEX(IdentAcoes[Descrição da ação],MATCH(0,INDEX(--(COUNTIF(C$1:C9,IdentAcoes[Descrição da ação])=IdentAcoes[[Quantidade de fontes de recursos ]]),0),0)),\"\")","v":"T.1.2.19. Plano de drenagem para o município de São Bento do Sapucaí"},"FEHIDRO - CFURH",160000,151999.12,null,0,null,null,0,null,null,0]
[{"$f":"Financeiro[[#This Row],[ID Ação]]&Financeiro[[#This Row],[Fonte]]","v":"SM-10-2026FEHIDRO - CFURH"},{"$f":"IFERROR(INDEX(IdentAcoes[ID Ação],MATCH(0,INDEX(--(COUNTIF(B$1:B10,IdentAcoes[ID Ação])=IdentAcoes[[Quantidade de fontes de recursos ]]),0),0)),\"\")","v":"SM-10-2026"},{"$f":"IFERROR(INDEX(IdentAcoes[Descrição da ação],MATCH(0,INDEX(--(COUNTIF(C$1:C10,IdentAcoes[Descrição da ação])=IdentAcoes[[Quantidade de fontes de recursos ]]),0),0)),\"\")","v":"T.1.2.19. Plano de drenagem para o município de Santo Antonio do Pinhal"},"FEHIDRO - CFURH",160000,197313.1,null,0,null,null,0,null,null,0]
[{"$f":"Financeiro[[#This Row],[ID Ação]]&Financeiro[[#This Row],[Fonte]]","v":"SM-11-2026FEHIDRO - CFURH"},{"$f":"IFERROR(INDEX(IdentAcoes[ID Ação],MATCH(0,INDEX(--(COUNTIF(B$1:B11,IdentAcoes[ID Ação])=IdentAcoes[[Quantidade de fontes de recursos ]]),0),0)),\"\")","v":"SM-11-2026"},{"$f":"IFERROR(INDEX(IdentAcoes[Descrição da ação],MATCH(0,INDEX(--(COUNTIF(C$1:C11,IdentAcoes[Descrição da ação])=IdentAcoes[[Quantidade de fontes de recursos ]]),0),0)),\"\")","v":"T.1.2.14. Mapeamento de áreas suscetíveis a processos erosivos e deslizamentos"},"FEHIDRO - CFURH",0,0,null,160000,null,null,0,null,null,0]
[{"$f":"Financeiro[[#This Row],[ID Ação]]&Financeiro[[#This Row],[Fonte]]","v":"SM-12-2027FEHIDRO - CFURH"},{"$f":"IFERROR(INDEX(IdentAcoes[ID Ação],MATCH(0,INDEX(--(COUNTIF(B$1:B12,IdentAcoes[ID Ação])=IdentAcoes[[Quantidade de fontes de recursos ]]),0),0)),\"\")","v":"SM-12-2027"},{"$f":"IFERROR(INDEX(IdentAcoes[Descrição da ação],MATCH(0,INDEX(--(COUNTIF(C$1:C12,IdentAcoes[Descrição da ação])=IdentAcoes[[Quantidade de fontes de recursos ]]),0),0)),\"\")","v":"T.1.2.24. Plano diretor para a prevenção e contenção de processos erosivos"},"FEHIDRO - CFURH",0,0,null,0,null,null,0,null,null,200000]
[{"$f":"Financeiro[[#This Row],[ID Ação]]&Financeiro[[#This Row],[Fonte]]","v":"SM-13-2026FEHIDRO - CFURH"},{"$f":"IFERROR(INDEX(IdentAcoes[ID Ação],MATCH(0,INDEX(--(COUNTIF(B$1:B13,IdentAcoes[ID Ação])=IdentAcoes[[Quantidade de fontes de recursos ]]),0),0)),\"\")","v":"SM-13-2026"},{"$f":"IFERROR(INDEX(IdentAcoes[Descrição da ação],MATCH(0,INDEX(--(COUNTIF(C$1:C13,IdentAcoes[Descrição da ação])=IdentAcoes[[Quantidade de fontes de recursos ]]),0),0)),\"\")","v":"T.2.2.1. Desenvolvimento, implantação, operação, manutenção e atualização de sistema de fiscalização de outorgas de direito de uso de recursos hídricos."},"FEHIDRO - CFURH",0,0,null,0,null,null,250000,null,null,0]
[{"$f":"Financeiro[[#This Row],[ID Ação]]&Financeiro[[#This Row],[Fonte]]","v":"SM-14-2024FEHIDRO - Cobrança estadual"},{"$f":"IFERROR(INDEX(IdentAcoes[ID Ação],MATCH(0,INDEX(--(COUNTIF(B$1:B14,IdentAcoes[ID Ação])=IdentAcoes[[Quantidade de fontes de recursos ]]),0),0)),\"\")","v":"SM-14-2024"},{"$f":"IFERROR(INDEX(IdentAcoes[Descrição da ação],MATCH(0,INDEX(--(COUNTIF(C$1:C14,IdentAcoes[Descrição da ação])=IdentAcoes[[Quantidade de fontes de recursos ]]),0),0)),\"\")","v":"T.2.3.3. Desenvolvimento ou atualização de cadastro específico para cobrança pelo uso dos recursos hídricos"},"FEHIDRO - Cobrança estadual",0,0,null,220000,null,null,0,null,null,0]
[{"$f":"Financeiro[[#This Row],[ID Ação]]&Financeiro[[#This Row],[Fonte]]","v":"SM-15-2025FEHIDRO - CFURH"},{"$f":"IFERROR(INDEX(IdentAcoes[ID Ação],MATCH(0,INDEX(--(COUNTIF(B$1:B15,IdentAcoes[ID Ação])=IdentAcoes[[Quantidade de fontes de recursos ]]),0),0)),\"\")","v":"SM-15-2025"},{"$f":"IFERROR(INDEX(IdentAcoes[Descrição da ação],MATCH(0,INDEX(--(COUNTIF(C$1:C15,IdentAcoes[Descrição da ação])=IdentAcoes[[Quantidade de fontes de recursos ]]),0),0)),\"\")","v":"T.3.1.3. Projeto (básico e/ou executivos) de reformas, melhorias ou obras localizadas (EEE-Estação Elevatória de Esgoto e/ou ETE-Estação de tratamento de Esgoto) em Santo Antonio do Pinhal."},"FEHIDRO - CFURH",0,0,null,0,null,null,0,null,null,0]
[{"$f":"Financeiro[[#This Row],[ID Ação]]&Financeiro[[#This Row],[Fonte]]","v":"SM-16-2025FEHIDRO - CFURH"},{"$f":"IFERROR(INDEX(IdentAcoes[ID Ação],MATCH(0,INDEX(--(COUNTIF(B$1:B16,IdentAcoes[ID Ação])=IdentAcoes[[Quantidade de fontes de recursos ]]),0),0)),\"\")","v":"SM-16-2025"},{"$f":"IFERROR(INDEX(IdentAcoes[Descrição da ação],MATCH(0,INDEX(--(COUNTIF(C$1:C16,IdentAcoes[Descrição da ação])=IdentAcoes[[Quantidade de fontes de recursos ]]),0),0)),\"\")","v":"T.3.1.3. Projeto (básico e/ou executivos) de reformas, melhorias ou obras localizadas (EEE-Estação Elevatória de Esgoto e/ou ETE-Estação de tratamento de Esgoto) em Sao Bento do Sapucaí."},"FEHIDRO - CFURH",0,0,null,0,null,null,0,null,null,0]
[{"$f":"Financeiro[[#This Row],[ID Ação]]&Financeiro[[#This Row],[Fonte]]","v":"SM-17-2026FEHIDRO - CFURH"},{"$f":"IFERROR(INDEX(IdentAcoes[ID Ação],MATCH(0,INDEX(--(COUNTIF(B$1:B17,IdentAcoes[ID Ação])=IdentAcoes[[Quantidade de fontes de recursos ]]),0),0)),\"\")","v":"SM-17-2026"},{"$f":"IFERROR(INDEX(IdentAcoes[Descrição da ação],MATCH(0,INDEX(--(COUNTIF(C$1:C17,IdentAcoes[Descrição da ação])=IdentAcoes[[Quantidade de fontes de recursos ]]),0),0)),\"\")","v":"T.3.1.4. Execução de reformas, melhorias ou obras de EEE e/ou ETE em Santo Antonio do Pinhal."},"FEHIDRO - CFURH",0,0,null,0,null,null,0,null,null,0]
[{"$f":"Financeiro[[#This Row],[ID Ação]]&Financeiro[[#This Row],[Fonte]]","v":"SM-18-2026FEHIDRO - CFURH"},{"$f":"IFERROR(INDEX(IdentAcoes[ID Ação],MATCH(0,INDEX(--(COUNTIF(B$1:B18,IdentAcoes[ID Ação])=IdentAcoes[[Quantidade de fontes de recursos ]]),0),0)),\"\")","v":"SM-18-2026"},{"$f":"IFERROR(INDEX(IdentAcoes[Descrição da ação],MATCH(0,INDEX(--(COUNTIF(C$1:C18,IdentAcoes[Descrição da ação])=IdentAcoes[[Quantidade de fontes de recursos ]]),0),0)),\"\")","v":"T.3.1.4. Execução de reformas, melhorias ou obras de EEE e/ou ETE em São Bento do Sapucaí"},"FEHIDRO - CFURH",0,0,null,0,null,null,0,null,null,0]
[{"$f":"Financeiro[[#This Row],[ID Ação]]&Financeiro[[#This Row],[Fonte]]","v":"SM-19-2025FEHIDRO - CFURH"},{"$f":"IFERROR(INDEX(IdentAcoes[ID Ação],MATCH(0,INDEX(--(COUNTIF(B$1:B19,IdentAcoes[ID Ação])=IdentAcoes[[Quantidade de fontes de recursos ]]),0),0)),\"\")","v":"SM-19-2025"},{"$f":"IFERROR(INDEX(IdentAcoes[Descrição da ação],MATCH(0,INDEX(--(COUNTIF(C$1:C19,IdentAcoes[Descrição da ação])=IdentAcoes[[Quantidade de fontes de recursos ]]),0),0)),\"\")","v":"T.4.1.3. Projetos (básicos e/ou executivos) para  proteção e/ou contenção de margens de curso d´água no município de Campos do Jordão"},"FEHIDRO - CFURH",0,0,null,300000,null,null,0,null,null,0]
[{"$f":"Financeiro[[#This Row],[ID Ação]]&Financeiro[[#This Row],[Fonte]]","v":"SM-20-2027FEHIDRO - Cobrança estadual"},{"$f":"IFERROR(INDEX(IdentAcoes[ID Ação],MATCH(0,INDEX(--(COUNTIF(B$1:B20,IdentAcoes[ID Ação])=IdentAcoes[[Quantidade de fontes de recursos ]]),0),0)),\"\")","v":"SM-20-2027"},{"$f":"IFERROR(INDEX(IdentAcoes[Descrição da ação],MATCH(0,INDEX(--(COUNTIF(C$1:C20,IdentAcoes[Descrição da ação])=IdentAcoes[[Quantidade de fontes de recursos ]]),0),0)),\"\")","v":"T.4.1.4. Obras/serviços de proteção e/ou contenção de margens de curso d´água no município de Campos do Jordão"},"FEHIDRO - Cobrança estadual",0,0,null,0,null,null,0,null,null,450000]
[{"$f":"Financeiro[[#This Row],[ID Ação]]&Financeiro[[#This Row],[Fonte]]","v":"SM-21-2025FEHIDRO - CFURH"},{"$f":"IFERROR(INDEX(IdentAcoes[ID Ação],MATCH(0,INDEX(--(COUNTIF(B$1:B21,IdentAcoes[ID Ação])=IdentAcoes[[Quantidade de fontes de recursos ]]),0),0)),\"\")","v":"SM-21-2025"},{"$f":"IFERROR(INDEX(IdentAcoes[Descrição da ação],MATCH(0,INDEX(--(COUNTIF(C$1:C21,IdentAcoes[Descrição da ação])=IdentAcoes[[Quantidade de fontes de recursos ]]),0),0)),\"\")","v":"T.4.1.4. Obras/serviços de proteção e/ou contenção de margens de curso d´água no município de São Bento do Sapucaí"},"FEHIDRO - CFURH",0,0,null,0,null,null,0,null,null,500000]
[{"$f":"Financeiro[[#This Row],[ID Ação]]&Financeiro[[#This Row],[Fonte]]","v":"SM-22-2024FEHIDRO - CFURH"},{"$f":"IFERROR(INDEX(IdentAcoes[ID Ação],MATCH(0,INDEX(--(COUNTIF(B$1:B22,IdentAcoes[ID Ação])=IdentAcoes[[Quantidade de fontes de recursos ]]),0),0)),\"\")","v":"SM-22-2024"},{"$f":"IFERROR(INDEX(IdentAcoes[Descrição da ação],MATCH(0,INDEX(--(COUNTIF(C$1:C22,IdentAcoes[Descrição da ação])=IdentAcoes[[Quantidade de fontes de recursos ]]),0),0)),\"\")","v":"T.4.1.4. Obras/serviços de proteção e/ou contenção de margens de curso d´água no município de Santo Antonio do Pinhal"},"FEHIDRO - CFURH",350000,278395,null,0,null,null,0,null,null,0]
[{"$f":"Financeiro[[#This Row],[ID Ação]]&Financeiro[[#This Row],[Fonte]]","v":"SM-23-2025FEHIDRO - CFURH"},{"$f":"IFERROR(INDEX(IdentAcoes[ID Ação],MATCH(0,INDEX(--(COUNTIF(B$1:B23,IdentAcoes[ID Ação])=IdentAcoes[[Quantidade de fontes de recursos ]]),0),0)),\"\")","v":"SM-23-2025"},{"$f":"IFERROR(INDEX(IdentAcoes[Descrição da ação],MATCH(0,INDEX(--(COUNTIF(C$1:C23,IdentAcoes[Descrição da ação])=IdentAcoes[[Quantidade de fontes de recursos ]]),0),0)),\"\")","v":"T.4.2.13. Projeto executivo de Pagamento por Serviços Ambientais relacionados à água - município de São Bento do Sapucaí."},"FEHIDRO - CFURH",0,0,null,200000,null,null,0,null,null,0]
[{"$f":"Financeiro[[#This Row],[ID Ação]]&Financeiro[[#This Row],[Fonte]]","v":"SM-24-2027FEHIDRO - CFURH"},{"$f":"IFERROR(INDEX(IdentAcoes[ID Ação],MATCH(0,INDEX(--(COUNTIF(B$1:B24,IdentAcoes[ID Ação])=IdentAcoes[[Quantidade de fontes de recursos ]]),0),0)),\"\")","v":"SM-24-2027"},{"$f":"IFERROR(INDEX(IdentAcoes[Descrição da ação],MATCH(0,INDEX(--(COUNTIF(C$1:C24,IdentAcoes[Descrição da ação])=IdentAcoes[[Quantidade de fontes de recursos ]]),0),0)),\"\")","v":"T.4.2.13. Projeto executivo de Pagamento por Serviços Ambientais relacionados à água - município de Santo Antonio do Pinhal."},"FEHIDRO - CFURH",0,0,null,0,null,null,200000,null,null,0]
[{"$f":"Financeiro[[#This Row],[ID Ação]]&Financeiro[[#This Row],[Fonte]]","v":"SM-25-2027FEHIDRO - CFURH"},{"$f":"IFERROR(INDEX(IdentAcoes[ID Ação],MATCH(0,INDEX(--(COUNTIF(B$1:B25,IdentAcoes[ID Ação])=IdentAcoes[[Quantidade de fontes de recursos ]]),0),0)),\"\")","v":"SM-25-2027"},{"$f":"IFERROR(INDEX(IdentAcoes[Descrição da ação],MATCH(0,INDEX(--(COUNTIF(C$1:C25,IdentAcoes[Descrição da ação])=IdentAcoes[[Quantidade de fontes de recursos ]]),0),0)),\"\")","v":"T.7.1.1. Projetos (básicos e/ou executivos) de microdrenagem (sarjetas, guias, bocas de lobo, poços de visita, galerias, pavimentação com material drenante entre outros) no município de Campos do Jordão."},"FEHIDRO - CFURH",0,0,null,0,null,null,300000,null,null,300000]
[{"$f":"Financeiro[[#This Row],[ID Ação]]&Financeiro[[#This Row],[Fonte]]","v":"SM-26-2024FEHIDRO - CFURH"},{"$f":"IFERROR(INDEX(IdentAcoes[ID Ação],MATCH(0,INDEX(--(COUNTIF(B$1:B26,IdentAcoes[ID Ação])=IdentAcoes[[Quantidade de fontes de recursos ]]),0),0)),\"\")","v":"SM-26-2024"},{"$f":"IFERROR(INDEX(IdentAcoes[Descrição da ação],MATCH(0,INDEX(--(COUNTIF(C$1:C26,IdentAcoes[Descrição da ação])=IdentAcoes[[Quantidade de fontes de recursos ]]),0),0)),\"\")","v":"T.7.1.3. Projetos (básicos e/ou executivos) de macrodrenagem (canalizações, retificações, travessias entre outros) no município de Campos do Jordão."},"FEHIDRO - CFURH",450000,531819.72,null,0,null,null,0,null,null,0]
[{"$f":"Financeiro[[#This Row],[ID Ação]]&Financeiro[[#This Row],[Fonte]]","v":"SM-27-2026FEHIDRO - CFURH"},{"$f":"IFERROR(INDEX(IdentAcoes[ID Ação],MATCH(0,INDEX(--(COUNTIF(B$1:B27,IdentAcoes[ID Ação])=IdentAcoes[[Quantidade de fontes de recursos ]]),0),0)),\"\")","v":"SM-27-2026"},{"$f":"IFERROR(INDEX(IdentAcoes[Descrição da ação],MATCH(0,INDEX(--(COUNTIF(C$1:C27,IdentAcoes[Descrição da ação])=IdentAcoes[[Quantidade de fontes de recursos ]]),0),0)),\"\")","v":"T.7.1.4. Obras/serviços de macrodrenagem (canalizações, retificações, travessias entre outros) no município de Campos do Jordão"},"FEHIDRO - CFURH",0,0,null,400000,null,null,0,null,null,0]
[{"$f":"Financeiro[[#This Row],[ID Ação]]&Financeiro[[#This Row],[Fonte]]","v":"SM-28-2027FEHIDRO - CFURH"},{"$f":"IFERROR(INDEX(IdentAcoes[ID Ação],MATCH(0,INDEX(--(COUNTIF(B$1:B28,IdentAcoes[ID Ação])=IdentAcoes[[Quantidade de fontes de recursos ]]),0),0)),\"\")","v":"SM-28-2027"},{"$f":"IFERROR(INDEX(IdentAcoes[Descrição da ação],MATCH(0,INDEX(--(COUNTIF(C$1:C28,IdentAcoes[Descrição da ação])=IdentAcoes[[Quantidade de fontes de recursos ]]),0),0)),\"\")","v":"T.7.1.2. Obras/serviços de microdrenagem (sarjetas, guias, bocas de lobo, poços de visita, galerias, pavimentação com material drenante entre outros) no município de São Bento do Sapucaí."},"FEHIDRO - CFURH",0,0,null,0,null,null,300000,null,null,0]
[{"$f":"Financeiro[[#This Row],[ID Ação]]&Financeiro[[#This Row],[Fonte]]","v":"SM-29-2027FEHIDRO - CFURH"},{"$f":"IFERROR(INDEX(IdentAcoes[ID Ação],MATCH(0,INDEX(--(COUNTIF(B$1:B29,IdentAcoes[ID Ação])=IdentAcoes[[Quantidade de fontes de recursos ]]),0),0)),\"\")","v":"SM-29-2027"},{"$f":"IFERROR(INDEX(IdentAcoes[Descrição da ação],MATCH(0,INDEX(--(COUNTIF(C$1:C29,IdentAcoes[Descrição da ação])=IdentAcoes[[Quantidade de fontes de recursos ]]),0),0)),\"\")","v":"T.7.1.2. Obras/serviços de microdrenagem (sarjetas, guias, bocas de lobo, poços de visita, galerias, pavimentação com material drenante entre outros) no município de Santo Antonio do Pinhal."},"FEHIDRO - CFURH",0,0,null,0,null,null,300000,null,null,0]
[{"$f":"Financeiro[[#This Row],[ID Ação]]&Financeiro[[#This Row],[Fonte]]","v":"SM-30-2024FEHIDRO - CFURH"},{"$f":"IFERROR(INDEX(IdentAcoes[ID Ação],MATCH(0,INDEX(--(COUNTIF(B$1:B30,IdentAcoes[ID Ação])=IdentAcoes[[Quantidade de fontes de recursos ]]),0),0)),\"\")","v":"SM-30-2024"},{"$f":"IFERROR(INDEX(IdentAcoes[Descrição da ação],MATCH(0,INDEX(--(COUNTIF(C$1:C30,IdentAcoes[Descrição da ação])=IdentAcoes[[Quantidade de fontes de recursos ]]),0),0)),\"\")","v":"T.8.3.1. Campanha educativa voltada para a conservação e gestão dos recursos hídricos"},"FEHIDRO - CFURH",180000,371999.96,null,0,null,null,0,null,null,0]
[{"$f":"Financeiro[[#This Row],[ID Ação]]&Financeiro[[#This Row],[Fonte]]","v":"SM-31-2024FEHIDRO - CFURH"},{"$f":"IFERROR(INDEX(IdentAcoes[ID Ação],MATCH(0,INDEX(--(COUNTIF(B$1:B31,IdentAcoes[ID Ação])=IdentAcoes[[Quantidade de fontes de recursos ]]),0),0)),\"\")","v":"SM-31-2024"},{"$f":"IFERROR(INDEX(IdentAcoes[Descrição da ação],MATCH(0,INDEX(--(COUNTIF(C$1:C31,IdentAcoes[Descrição da ação])=IdentAcoes[[Quantidade de fontes de recursos ]]),0),0)),\"\")","v":"T.8.3.2. Serviços afetos à elaboração e divulgação de instrumentos de comunicação social"},"FEHIDRO - CFURH",180000,324790,null,0,null,null,0,null,null,350000]
[{"$f":"Financeiro[[#This Row],[ID Ação]]&Financeiro[[#This Row],[Fonte]]","v":"SM-32-2024FEHIDRO - CFURH"},{"$f":"IFERROR(INDEX(IdentAcoes[ID Ação],MATCH(0,INDEX(--(COUNTIF(B$1:B32,IdentAcoes[ID Ação])=IdentAcoes[[Quantidade de fontes de recursos ]]),0),0)),\"\")","v":"SM-32-2024"},{"$f":"IFERROR(INDEX(IdentAcoes[Descrição da ação],MATCH(0,INDEX(--(COUNTIF(C$1:C32,IdentAcoes[Descrição da ação])=IdentAcoes[[Quantidade de fontes de recursos ]]),0),0)),\"\")","v":"1.2.19 Revisão do Plano de Gestão Integrada de Resíduos sólidos de Santo Antonio do Pinhal."},"FEHIDRO - CFURH",0,199865.56,null,0,null,null,0,null,null,0]
[{"$f":"Financeiro[[#This Row],[ID Ação]]&Financeiro[[#This Row],[Fonte]]","v":"SM-33-2024FEHIDRO - CFURH"},{"$f":"IFERROR(INDEX(IdentAcoes[ID Ação],MATCH(0,INDEX(--(COUNTIF(B$1:B33,IdentAcoes[ID Ação])=IdentAcoes[[Quantidade de fontes de recursos ]]),0),0)),\"\")","v":"SM-33-2024"},{"$f":"IFERROR(INDEX(IdentAcoes[Descrição da ação],MATCH(0,INDEX(--(COUNTIF(C$1:C33,IdentAcoes[Descrição da ação])=IdentAcoes[[Quantidade de fontes de recursos ]]),0),0)),\"\")","v":"1.2.19 Revisão do Plano de Gestão Integrada de Resíduos sólidos de São Bento do Sapucaí"},"FEHIDRO - CFURH",0,199865.56,null,0,null,null,0,null,null,0]
[{"$f":"Financeiro[[#This Row],[ID Ação]]&Financeiro[[#This Row],[Fonte]]","v":"SM-34-2024FEHIDRO - CFURH"},{"$f":"IFERROR(INDEX(IdentAcoes[ID Ação],MATCH(0,INDEX(--(COUNTIF(B$1:B34,IdentAcoes[ID Ação])=IdentAcoes[[Quantidade de fontes de recursos ]]),0),0)),\"\")","v":"SM-34-2024"},{"$f":"IFERROR(INDEX(IdentAcoes[Descrição da ação],MATCH(0,INDEX(--(COUNTIF(C$1:C34,IdentAcoes[Descrição da ação])=IdentAcoes[[Quantidade de fontes de recursos ]]),0),0)),\"\")","v":"T.4.2.13. Projeto executivo de Pagamento por Serviços Ambientais relacionados à água "},"FEHIDRO - CFURH",0,195807.08,null,0,null,null,0,null,null,0]
[{"$f":"Financeiro[[#This Row],[ID Ação]]&Financeiro[[#This Row],[Fonte]]","v":"SM-35-2025FEHIDRO - CFURH"},{"$f":"IFERROR(INDEX(IdentAcoes[ID Ação],MATCH(0,INDEX(--(COUNTIF(B$1:B35,IdentAcoes[ID Ação])=IdentAcoes[[Quantidade de fontes de recursos ]]),0),0)),\"\")","v":"SM-35-2025"},{"$f":"IFERROR(INDEX(IdentAcoes[Descrição da ação],MATCH(0,INDEX(--(COUNTIF(C$1:C35,IdentAcoes[Descrição da ação])=IdentAcoes[[Quantidade de fontes de recursos ]]),0),0)),\"\")","v":"T.1.2.11. Estudo, levantamento, diagnóstico para subsidiar projetos de PSA "},"FEHIDRO - CFURH",0,0,null,200000,null,null,0,null,null,0]
[{"$f":"Financeiro[[#This Row],[ID Ação]]&Financeiro[[#This Row],[Fonte]]","v":"SM-36-2026FEHIDRO - CFURH"},{"$f":"IFERROR(INDEX(IdentAcoes[ID Ação],MATCH(0,INDEX(--(COUNTIF(B$1:B36,IdentAcoes[ID Ação])=IdentAcoes[[Quantidade de fontes de recursos ]]),0),0)),\"\")","v":"SM-36-2026"},{"$f":"IFERROR(INDEX(IdentAcoes[Descrição da ação],MATCH(0,INDEX(--(COUNTIF(C$1:C36,IdentAcoes[Descrição da ação])=IdentAcoes[[Quantidade de fontes de recursos ]]),0),0)),\"\")","v":"T.1.2.16 Planejamento territorial com foco na conservação, proteção, recuperação ou uso dos recur-sos hídricos -Sao Bento do Sapucai"},"FEHIDRO - CFURH",0,0,null,0,null,null,300000,null,null,0]
[{"$f":"Financeiro[[#This Row],[ID Ação]]&Financeiro[[#This Row],[Fonte]]","v":"SM-37-2026FEHIDRO - CFURH"},{"$f":"IFERROR(INDEX(IdentAcoes[ID Ação],MATCH(0,INDEX(--(COUNTIF(B$1:B37,IdentAcoes[ID Ação])=IdentAcoes[[Quantidade de fontes de recursos ]]),0),0)),\"\")","v":"SM-37-2026"},{"$f":"IFERROR(INDEX(IdentAcoes[Descrição da ação],MATCH(0,INDEX(--(COUNTIF(C$1:C37,IdentAcoes[Descrição da ação])=IdentAcoes[[Quantidade de fontes de recursos ]]),0),0)),\"\")","v":"T.1.2.16 Planejamento territorial com foco na conservação, proteção, recuperação ou uso dos recur-sos hídricos -Santo Antonio do Pinhal"},"FEHIDRO - CFURH",0,0,null,0,null,null,300000,null,null,0]
[{"$f":"Financeiro[[#This Row],[ID Ação]]&Financeiro[[#This Row],[Fonte]]","v":"SM-38-2025FEHIDRO - CFURH"},{"$f":"IFERROR(INDEX(IdentAcoes[ID Ação],MATCH(0,INDEX(--(COUNTIF(B$1:B38,IdentAcoes[ID Ação])=IdentAcoes[[Quantidade de fontes de recursos ]]),0),0)),\"\")","v":"SM-38-2025"},{"$f":"IFERROR(INDEX(IdentAcoes[Descrição da ação],MATCH(0,INDEX(--(COUNTIF(C$1:C38,IdentAcoes[Descrição da ação])=IdentAcoes[[Quantidade de fontes de recursos ]]),0),0)),\"\")","v":"T.3.2.1. Projetos (básicos e/ou executivos) de recuperação de áreas contaminadas "},"FEHIDRO - CFURH",0,0,null,150000,null,null,0,null,null,0]
[{"$f":"Financeiro[[#This Row],[ID Ação]]&Financeiro[[#This Row],[Fonte]]","v":"SM-39-2026FEHIDRO - CFURH"},{"$f":"IFERROR(INDEX(IdentAcoes[ID Ação],MATCH(0,INDEX(--(COUNTIF(B$1:B39,IdentAcoes[ID Ação])=IdentAcoes[[Quantidade de fontes de recursos ]]),0),0)),\"\")","v":"SM-39-2026"},{"$f":"IFERROR(INDEX(IdentAcoes[Descrição da ação],MATCH(0,INDEX(--(COUNTIF(C$1:C39,IdentAcoes[Descrição da ação])=IdentAcoes[[Quantidade de fontes de recursos ]]),0),0)),\"\")","v":"T.3.3.1 – Projeto ( básico ou executivo) de aterro sanitário para disposição de resíduos solidos domiciliares (continuidade Revisão Plano de Resíduos Sólidos São Bento do Sapucaí)"},"FEHIDRO - CFURH",0,0,null,0,null,null,100000,null,null,0]
[{"$f":"Financeiro[[#This Row],[ID Ação]]&Financeiro[[#This Row],[Fonte]]","v":"SM-40-2027FEHIDRO - CFURH"},{"$f":"IFERROR(INDEX(IdentAcoes[ID Ação],MATCH(0,INDEX(--(COUNTIF(B$1:B40,IdentAcoes[ID Ação])=IdentAcoes[[Quantidade de fontes de recursos ]]),0),0)),\"\")","v":"SM-40-2027"},{"$f":"IFERROR(INDEX(IdentAcoes[Descrição da ação],MATCH(0,INDEX(--(COUNTIF(C$1:C40,IdentAcoes[Descrição da ação])=IdentAcoes[[Quantidade de fontes de recursos ]]),0),0)),\"\")","v":"T.3.3.1 – Projeto ( básico ou executivo) de aterro sanitário para disposição de resíduos solidos domiciliares (continuidade Revisão Plano de Resíduos Sólidos - Santo Antonio do Pinhal)"},"FEHIDRO - CFURH",0,0,null,0,null,null,0,null,null,100000]
[{"$f":"Financeiro[[#This Row],[ID Ação]]&Financeiro[[#This Row],[Fonte]]","v":"SM-41-2027FEHIDRO - CFURH"},{"$f":"IFERROR(INDEX(IdentAcoes[ID Ação],MATCH(0,INDEX(--(COUNTIF(B$1:B41,IdentAcoes[ID Ação])=IdentAcoes[[Quantidade de fontes de recursos ]]),0),0)),\"\")","v":"SM-41-2027"},{"$f":"IFERROR(INDEX(IdentAcoes[Descrição da ação],MATCH(0,INDEX(--(COUNTIF(C$1:C41,IdentAcoes[Descrição da ação])=IdentAcoes[[Quantidade de fontes de recursos ]]),0),0)),\"\")","v":"T.3.3.4 – Implantação de unidade de tratamento de residuos sólidos – Sao Bento do Sapucaí (compostagem, reciclagem ou incineração) associado ou não a undade de transbordo"},"FEHIDRO - CFURH",0,0,null,0,null,null,0,null,null,200000]
[{"$f":"Financeiro[[#This Row],[ID Ação]]&Financeiro[[#This Row],[Fonte]]","v":"SM-42-2027FEHIDRO - CFURH"},{"$f":"IFERROR(INDEX(IdentAcoes[ID Ação],MATCH(0,INDEX(--(COUNTIF(B$1:B42,IdentAcoes[ID Ação])=IdentAcoes[[Quantidade de fontes de recursos ]]),0),0)),\"\")","v":"SM-42-2027"},{"$f":"IFERROR(INDEX(IdentAcoes[Descrição da ação],MATCH(0,INDEX(--(COUNTIF(C$1:C42,IdentAcoes[Descrição da ação])=IdentAcoes[[Quantidade de fontes de recursos ]]),0),0)),\"\")","v":"T.3.3.4 – Implantação de unidade de tratamento de residuos sólidos – Santo Antonio do Pinhal (compostagem, reciclagem ou incineração) associado ou não a undade de transbordo"},"FEHIDRO - CFURH",0,0,null,0,null,null,0,null,null,200000]
[{"$f":"Financeiro[[#This Row],[ID Ação]]&Financeiro[[#This Row],[Fonte]]","v":"SM-43-2026FEHIDRO - CFURH"},{"$f":"IFERROR(INDEX(IdentAcoes[ID Ação],MATCH(0,INDEX(--(COUNTIF(B$1:B43,IdentAcoes[ID Ação])=IdentAcoes[[Quantidade de fontes de recursos ]]),0),0)),\"\")","v":"SM-43-2026"},{"$f":"IFERROR(INDEX(IdentAcoes[Descrição da ação],MATCH(0,INDEX(--(COUNTIF(C$1:C43,IdentAcoes[Descrição da ação])=IdentAcoes[[Quantidade de fontes de recursos ]]),0),0)),\"\")","v":"T.4.1.5 Projeto ( Básico ou executivo) de desassoreamento de curso dágua - Sao Bento do Sapucaí"},"FEHIDRO - CFURH",0,0,null,0,null,null,150000,null,null,0]
[{"$f":"Financeiro[[#This Row],[ID Ação]]&Financeiro[[#This Row],[Fonte]]","v":"SM-44-2026FEHIDRO - CFURH"},{"$f":"IFERROR(INDEX(IdentAcoes[ID Ação],MATCH(0,INDEX(--(COUNTIF(B$1:B44,IdentAcoes[ID Ação])=IdentAcoes[[Quantidade de fontes de recursos ]]),0),0)),\"\")","v":"SM-44-2026"},{"$f":"IFERROR(INDEX(IdentAcoes[Descrição da ação],MATCH(0,INDEX(--(COUNTIF(C$1:C44,IdentAcoes[Descrição da ação])=IdentAcoes[[Quantidade de fontes de recursos ]]),0),0)),\"\")","v":"T.4.1.5 Projeto ( Básico ou executivo) de desassoreamento de curso dágua - Santo Antonio do Pinhal"},"FEHIDRO - CFURH",0,0,null,0,null,null,150000,null,null,0]
[{"$f":"Financeiro[[#This Row],[ID Ação]]&Financeiro[[#This Row],[Fonte]]","v":"SM-45-2025FEHIDRO - CFURH"},{"$f":"IFERROR(INDEX(IdentAcoes[ID Ação],MATCH(0,INDEX(--(COUNTIF(B$1:B45,IdentAcoes[ID Ação])=IdentAcoes[[Quantidade de fontes de recursos ]]),0),0)),\"\")","v":"SM-45-2025"},{"$f":"IFERROR(INDEX(IdentAcoes[Descrição da ação],MATCH(0,INDEX(--(COUNTIF(C$1:C45,IdentAcoes[Descrição da ação])=IdentAcoes[[Quantidade de fontes de recursos ]]),0),0)),\"\")","v":"T.4.2.11 Projeto Executivo de aumento de áreas permeáveis e/ou redução de escoamento superficial por meio de implantacao de estrutura verde - parque linear"},"FEHIDRO - CFURH",0,0,null,150000,null,null,0,null,null,0]
[{"$f":"Financeiro[[#This Row],[ID Ação]]&Financeiro[[#This Row],[Fonte]]","v":"SM-46-2025FEHIDRO - CFURH"},{"$f":"IFERROR(INDEX(IdentAcoes[ID Ação],MATCH(0,INDEX(--(COUNTIF(B$1:B46,IdentAcoes[ID Ação])=IdentAcoes[[Quantidade de fontes de recursos ]]),0),0)),\"\")","v":"SM-46-2025"},{"$f":"IFERROR(INDEX(IdentAcoes[Descrição da ação],MATCH(0,INDEX(--(COUNTIF(C$1:C46,IdentAcoes[Descrição da ação])=IdentAcoes[[Quantidade de fontes de recursos ]]),0),0)),\"\")","v":"T.8.3.1. Campanha educativa voltada para a conservação e gestão dos recursos hídricos - continuidade Plano Educação Ambiental"},"FEHIDRO - CFURH",0,0,null,300000,null,null,0,null,null,0]
[{"$f":"Financeiro[[#This Row],[ID Ação]]&Financeiro[[#This Row],[Fonte]]","v":"SM-47-2024FEHIDRO - Cobrança estadual"},{"$f":"IFERROR(INDEX(IdentAcoes[ID Ação],MATCH(0,INDEX(--(COUNTIF(B$1:B47,IdentAcoes[ID Ação])=IdentAcoes[[Quantidade de fontes de recursos ]]),0),0)),\"\")","v":"SM-47-2024"},{"$f":"IFERROR(INDEX(IdentAcoes[Descrição da ação],MATCH(0,INDEX(--(COUNTIF(C$1:C47,IdentAcoes[Descrição da ação])=IdentAcoes[[Quantidade de fontes de recursos ]]),0),0)),\"\")","v":"T.1.2.2 . Diagnóstico qualitativo e/ou quantitativo de recursos hídricos superficiais e/ou subterrâneos nas sub bacias Perdizes,Bau,Serrano e Prata"},"FEHIDRO - Cobrança estadual",0,321500,null,0,null,null,0,null,null,0]
[{"$f":"Financeiro[[#This Row],[ID Ação]]&Financeiro[[#This Row],[Fonte]]","v":""},{"$f":"IFERROR(INDEX(IdentAcoes[ID Ação],MATCH(0,INDEX(--(COUNTIF(B$1:B48,IdentAcoes[ID Ação])=IdentAcoes[[Quantidade de fontes de recursos ]]),0),0)),\"\")","v":""},{"$f":"IFERROR(INDEX(IdentAcoes[Descrição da ação],MATCH(0,INDEX(--(COUNTIF(C$1:C48,IdentAcoes[Descrição da ação])=IdentAcoes[[Quantidade de fontes de recursos ]]),0),0)),\"\")","v":""}]
[{"$f":"Financeiro[[#This Row],[ID Ação]]&Financeiro[[#This Row],[Fonte]]","v":""},{"$f":"IFERROR(INDEX(IdentAcoes[ID Ação],MATCH(0,INDEX(--(COUNTIF(B$1:B49,IdentAcoes[ID Ação])=IdentAcoes[[Quantidade de fontes de recursos ]]),0),0)),\"\")","v":""},{"$f":"IFERROR(INDEX(IdentAcoes[Descrição da ação],MATCH(0,INDEX(--(COUNTIF(C$1:C49,IdentAcoes[Descrição da ação])=IdentAcoes[[Quantidade de fontes de recursos ]]),0),0)),\"\")","v":""}]

{"sheet":"PAPI 2024-2027","index":4,"n_rows":51,"n_cols":15,"rows_kept":51,"cut":false,"hidden":false,"merged":[]}
[null,null,null,null,null,null,"R$ Planejado"]
["id_ação_Fonte_oculta","ID Ação","Descrição da ação","Meta","Fonte","SubPDC",2024,2025,2026,2027,"Total","Prioridade do PDC","Segmento do executor","Área de abrangência","Nome da área de abrangência"]
[{"$f":"IF(INDEX(Financeiro[],,1)=0,\"\",(INDEX(Financeiro[],,1)))","v":"SM-01-2027FEHIDRO - CFURH"},{"$f":"IF(INDEX(Financeiro[],,2)=0,\"\",(INDEX(Financeiro[],,2)))","v":"SM-01-2027"},{"$f":"INDEX(Financeiro[Descrição da ação],MATCH(B3,Financeiro[ID Ação], 0))","v":"T.1.1.1. Elaboração de mapa de uso e ocupação do solo com foco na conservação, proteção, recuperação ou uso dos recursos hídricos para os município de São Bento do Sapucaí."},{"$f":"IF(INDEX('Acompanhamento das metas 24-27'!$C$2:$C$50,MATCH(B3,'Acompanhamento das metas 24-27'!$A$2:$A$50,0))<>0,INDEX('Acompanhamento das metas 24-27'!$C$2:$C$50,MATCH(B3,'Acompanhamento das metas 24-27'!$A$2:$A$50,0)),\"\")","v":"Atualização da legislação de zoneamento dos Município de São Bento do Sapucaí."},{"$f":"IF(VLOOKUP(A3,Financeiro[[id_ação_Fonte_oculta]:[R$  Executado (2027)]],4,FALSE)=0,\"\",VLOOKUP(A3,Financeiro[[id_ação_Fonte_oculta]:[R$  Executado (2027)]],4,FALSE))","v":"FEHIDRO - CFURH"},{"$f":"IFERROR(INDEX(IdentAcoes[SubPDC],MATCH(B3,IdentAcoes[ID Ação],0)),\"\")","v":"1.1 - Legislação"},{"$f":"IF(VLOOKUP(A3,Financeiro[[id_ação_Fonte_oculta]:[R$  Executado (2027)]],4,FALSE)=0,\"\",VLOOKUP(A3,Financeiro[[id_ação_Fonte_oculta]:[R$  Executado (2027)]],5,FALSE))","v":160000},{"$f":"IF(VLOOKUP(A3,Financeiro[[id_ação_Fonte_oculta]:[R$  Executado (2027)]],4,FALSE)=0,\"\",VLOOKUP(A3,Financeiro[[id_ação_Fonte_oculta]:[R$  Executado (2027)]],8,FALSE))","v":0},{"$f":"IF(VLOOKUP(A3,Financeiro[[id_ação_Fonte_oculta]:[R$  Executado (2027)]],4,FALSE)=0,\"\",VLOOKUP(A3,Financeiro[[id_ação_Fonte_oculta]:[R$  Executado (2027)]],11,FALSE))","v":0},{"$f":"IF(VLOOKUP(A3,Financeiro[[id_ação_Fonte_oculta]:[R$  Executado (2027)]],4,FALSE)=0,\"\",VLOOKUP(A3,Financeiro[[id_ação_Fonte_oculta]:[R$  Executado (2027)]],14,FALSE))","v":0},{"$f":"SUM(G3:J3)","v":160000},{"$f":"IFERROR(INDEX(IdentAcoes[Prioridade do PDC],MATCH($B3,IdentAcoes[ID Ação],0)),\"\")","v":"PDC 1 e 2"},{"$f":"IFERROR(INDEX(IdentAcoes[Segmento do executor],MATCH($B3,IdentAcoes[ID Ação],0)),\"\")","v":"Sociedade Civil"},{"$f":"IFERROR(INDEX(IdentAcoes[Área de abrangência],MATCH($B3,IdentAcoes[ID Ação],0)),\"\")","v":"Município"},{"$f":"IFERROR(INDEX(IdentAcoes[Detalhamento da área de abrangência],MATCH($B3,IdentAcoes[ID Ação],0)),\"\")","v":"Município \nSão Bento do Sapucaí"}]
["SM-02-2027FEHIDRO - CFURH","SM-02-2027",{"$f":"INDEX(Financeiro[Descrição da ação],MATCH(B4,Financeiro[ID Ação], 0))","v":"T.1.1.1. Elaboração de mapa de uso e ocupação do solo com foco na conservação, proteção, recuperação ou uso dos recursos hídricos para os município de Santo Antônio do Pinhal."},{"$f":"IF(INDEX('Acompanhamento das metas 24-27'!$C$2:$C$50,MATCH(B4,'Acompanhamento das metas 24-27'!$A$2:$A$50,0))<>0,INDEX('Acompanhamento das metas 24-27'!$C$2:$C$50,MATCH(B4,'Acompanhamento das metas 24-27'!$A$2:$A$50,0)),\"\")","v":"Atualização da legislação de zoneamento dos Município de Santo Antonio do Pinhal."},{"$f":"IF(VLOOKUP(A4,Financeiro[[id_ação_Fonte_oculta]:[R$  Executado (2027)]],4,FALSE)=0,\"\",VLOOKUP(A4,Financeiro[[id_ação_Fonte_oculta]:[R$  Executado (2027)]],4,FALSE))","v":"FEHIDRO - CFURH"},{"$f":"IFERROR(INDEX(IdentAcoes[SubPDC],MATCH(B4,IdentAcoes[ID Ação],0)),\"\")","v":"1.1 - Legislação"},{"$f":"IF(VLOOKUP(A4,Financeiro[[id_ação_Fonte_oculta]:[R$  Executado (2027)]],4,FALSE)=0,\"\",VLOOKUP(A4,Financeiro[[id_ação_Fonte_oculta]:[R$  Executado (2027)]],5,FALSE))","v":160000},{"$f":"IF(VLOOKUP(A4,Financeiro[[id_ação_Fonte_oculta]:[R$  Executado (2027)]],4,FALSE)=0,\"\",VLOOKUP(A4,Financeiro[[id_ação_Fonte_oculta]:[R$  Executado (2027)]],8,FALSE))","v":0},{"$f":"IF(VLOOKUP(A4,Financeiro[[id_ação_Fonte_oculta]:[R$  Executado (2027)]],4,FALSE)=0,\"\",VLOOKUP(A4,Financeiro[[id_ação_Fonte_oculta]:[R$  Executado (2027)]],11,FALSE))","v":0},{"$f":"IF(VLOOKUP(A4,Financeiro[[id_ação_Fonte_oculta]:[R$  Executado (2027)]],4,FALSE)=0,\"\",VLOOKUP(A4,Financeiro[[id_ação_Fonte_oculta]:[R$  Executado (2027)]],14,FALSE))","v":0},{"$f":"SUM(G4:J4)","v":160000},{"$f":"IFERROR(INDEX(IdentAcoes[Prioridade do PDC],MATCH(B4,IdentAcoes[ID Ação],0)),\"\")","v":"PDC 1 e 2"},{"$f":"IFERROR(INDEX(IdentAcoes[Segmento do executor],MATCH($B4,IdentAcoes[ID Ação],0)),\"\")","v":"Sociedade Civil"},{"$f":"IFERROR(INDEX(IdentAcoes[Área de abrangência],MATCH($B4,IdentAcoes[ID Ação],0)),\"\")","v":"Município"},{"$f":"IFERROR(INDEX(IdentAcoes[Detalhamento da área de abrangência],MATCH($B4,IdentAcoes[ID Ação],0)),\"\")","v":"Município \nSanto Antonio do Pinhal"}]
["SM-03-2027FEHIDRO - CFURH","SM-03-2027",{"$f":"INDEX(Financeiro[Descrição da ação],MATCH(B5,Financeiro[ID Ação], 0))","v":"T.1.1.1. Elaboração de mapa de uso e ocupação do solo com foco na conservação, proteção, recuperação ou uso dos recursos hídricos para os município de Campos Jordao"},{"$f":"IF(INDEX('Acompanhamento das metas 24-27'!$C$2:$C$50,MATCH(B5,'Acompanhamento das metas 24-27'!$A$2:$A$50,0))<>0,INDEX('Acompanhamento das metas 24-27'!$C$2:$C$50,MATCH(B5,'Acompanhamento das metas 24-27'!$A$2:$A$50,0)),\"\")","v":"Atualização da legislação de zoneamento dos Município Campos Jordao"},{"$f":"IF(VLOOKUP(A5,Financeiro[[id_ação_Fonte_oculta]:[R$  Executado (2027)]],4,FALSE)=0,\"\",VLOOKUP(A5,Financeiro[[id_ação_Fonte_oculta]:[R$  Executado (2027)]],4,FALSE))","v":"FEHIDRO - CFURH"},{"$f":"IFERROR(INDEX(IdentAcoes[SubPDC],MATCH(B5,IdentAcoes[ID Ação],0)),\"\")","v":"1.1 - Legislação"},{"$f":"IF(VLOOKUP(A5,Financeiro[[id_ação_Fonte_oculta]:[R$  Executado (2027)]],4,FALSE)=0,\"\",VLOOKUP(A5,Financeiro[[id_ação_Fonte_oculta]:[R$  Executado (2027)]],5,FALSE))","v":160000},{"$f":"IF(VLOOKUP(A5,Financeiro[[id_ação_Fonte_oculta]:[R$  Executado (2027)]],4,FALSE)=0,\"\",VLOOKUP(A5,Financeiro[[id_ação_Fonte_oculta]:[R$  Executado (2027)]],8,FALSE))","v":0},{"$f":"IF(VLOOKUP(A5,Financeiro[[id_ação_Fonte_oculta]:[R$  Executado (2027)]],4,FALSE)=0,\"\",VLOOKUP(A5,Financeiro[[id_ação_Fonte_oculta]:[R$  Executado (2027)]],11,FALSE))","v":0},{"$f":"IF(VLOOKUP(A5,Financeiro[[id_ação_Fonte_oculta]:[R$  Executado (2027)]],4,FALSE)=0,\"\",VLOOKUP(A5,Financeiro[[id_ação_Fonte_oculta]:[R$  Executado (2027)]],14,FALSE))","v":0},160000,{"$f":"IFERROR(INDEX(IdentAcoes[Prioridade do PDC],MATCH(B5,IdentAcoes[ID Ação],0)),\"\")","v":"PDC 1 e 2"},{"$f":"IFERROR(INDEX(IdentAcoes[Segmento do executor],MATCH($B5,IdentAcoes[ID Ação],0)),\"\")","v":"Sociedade Civil"},{"$f":"IFERROR(INDEX(IdentAcoes[Área de abrangência],MATCH($B5,IdentAcoes[ID Ação],0)),\"\")","v":"Município"},{"$f":"IFERROR(INDEX(IdentAcoes[Detalhamento da área de abrangência],MATCH($B5,IdentAcoes[ID Ação],0)),\"\")","v":"Município \nSanto Antonio do Pinhal"}]
["SM-04-2027FEHIDRO - CFURH","SM-04-2027",{"$f":"INDEX(Financeiro[Descrição da ação],MATCH(B6,Financeiro[ID Ação], 0))","v":"T.1.2.2 . Diagnóstico qualitativo e/ou quantitativo de recursos hídricos superficiais e/ou subterrâneos na sub-bacia Sapucaí Guaçu."},{"$f":"IF(INDEX('Acompanhamento das metas 24-27'!$C$2:$C$50,MATCH(B6,'Acompanhamento das metas 24-27'!$A$2:$A$50,0))<>0,INDEX('Acompanhamento das metas 24-27'!$C$2:$C$50,MATCH(B6,'Acompanhamento das metas 24-27'!$A$2:$A$50,0)),\"\")","v":"Obter a Análise da Situação dos recursos hídricos da Sub Bacia do Rio Sapucaí Guaçu para planejamento de futuras ações e investimentos na Sub Bacia."},{"$f":"IF(VLOOKUP(A6,Financeiro[[id_ação_Fonte_oculta]:[R$  Executado (2027)]],4,FALSE)=0,\"\",VLOOKUP(A6,Financeiro[[id_ação_Fonte_oculta]:[R$  Executado (2027)]],4,FALSE))","v":"FEHIDRO - CFURH"},{"$f":"IFERROR(INDEX(IdentAcoes[SubPDC],MATCH(B6,IdentAcoes[ID Ação],0)),\"\")","v":"1.2 - Planejamento"},{"$f":"IF(VLOOKUP(A6,Financeiro[[id_ação_Fonte_oculta]:[R$  Executado (2027)]],4,FALSE)=0,\"\",VLOOKUP(A6,Financeiro[[id_ação_Fonte_oculta]:[R$  Executado (2027)]],5,FALSE))","v":0},{"$f":"IF(VLOOKUP(A6,Financeiro[[id_ação_Fonte_oculta]:[R$  Executado (2027)]],4,FALSE)=0,\"\",VLOOKUP(A6,Financeiro[[id_ação_Fonte_oculta]:[R$  Executado (2027)]],8,FALSE))","v":0},{"$f":"IF(VLOOKUP(A6,Financeiro[[id_ação_Fonte_oculta]:[R$  Executado (2027)]],4,FALSE)=0,\"\",VLOOKUP(A6,Financeiro[[id_ação_Fonte_oculta]:[R$  Executado (2027)]],11,FALSE))","v":0},{"$f":"IF(VLOOKUP(A6,Financeiro[[id_ação_Fonte_oculta]:[R$  Executado (2027)]],4,FALSE)=0,\"\",VLOOKUP(A6,Financeiro[[id_ação_Fonte_oculta]:[R$  Executado (2027)]],14,FALSE))","v":200000},200000,{"$f":"IFERROR(INDEX(IdentAcoes[Prioridade do PDC],MATCH(B6,IdentAcoes[ID Ação],0)),\"\")","v":"PDC 1 e 2"},{"$f":"IFERROR(INDEX(IdentAcoes[Segmento do executor],MATCH($B6,IdentAcoes[ID Ação],0)),\"\")","v":"Sociedade Civil"},{"$f":"IFERROR(INDEX(IdentAcoes[Área de abrangência],MATCH($B6,IdentAcoes[ID Ação],0)),\"\")","v":"Sub-bacia"},{"$f":"IFERROR(INDEX(IdentAcoes[Detalhamento da área de abrangência],MATCH($B6,IdentAcoes[ID Ação],0)),\"\")","v":"Sub-bacia do Rio Sapucaí Guaçu"}]
["SM-05-2026FEHIDRO - Cobrança estadual","SM-05-2026",{"$f":"INDEX(Financeiro[Descrição da ação],MATCH(B7,Financeiro[ID Ação], 0))","v":"T.1.2.6 . Estudo, levantamento ou diagnóstico de saneamento básico e de abastecimento de água para os município de Campos de Jordao em comunidades afastado do centro urbano.(a definir: Matadouro,Melos,Campista,Descansópolis, Paque Ferradura )"},{"$f":"IF(INDEX('Acompanhamento das metas 24-27'!$C$2:$C$50,MATCH(B7,'Acompanhamento das metas 24-27'!$A$2:$A$50,0))<>0,INDEX('Acompanhamento das metas 24-27'!$C$2:$C$50,MATCH(B7,'Acompanhamento das metas 24-27'!$A$2:$A$50,0)),\"\")","v":"Obter dianóstico / situação do saneamento básico e abastecimento de água  em comunidades afastadas do centro urbano no município de Campos do Jordao"},{"$f":"IF(VLOOKUP(A7,Financeiro[[id_ação_Fonte_oculta]:[R$  Executado (2027)]],4,FALSE)=0,\"\",VLOOKUP(A7,Financeiro[[id_ação_Fonte_oculta]:[R$  Executado (2027)]],4,FALSE))","v":"FEHIDRO - Cobrança estadual"},{"$f":"IFERROR(INDEX(IdentAcoes[SubPDC],MATCH(B7,IdentAcoes[ID Ação],0)),\"\")","v":"1.2 - Planejamento"},{"$f":"IF(VLOOKUP(A7,Financeiro[[id_ação_Fonte_oculta]:[R$  Executado (2027)]],4,FALSE)=0,\"\",VLOOKUP(A7,Financeiro[[id_ação_Fonte_oculta]:[R$  Executado (2027)]],5,FALSE))","v":0},{"$f":"IF(VLOOKUP(A7,Financeiro[[id_ação_Fonte_oculta]:[R$  Executado (2027)]],4,FALSE)=0,\"\",VLOOKUP(A7,Financeiro[[id_ação_Fonte_oculta]:[R$  Executado (2027)]],8,FALSE))","v":0},{"$f":"IF(VLOOKUP(A7,Financeiro[[id_ação_Fonte_oculta]:[R$  Executado (2027)]],4,FALSE)=0,\"\",VLOOKUP(A7,Financeiro[[id_ação_Fonte_oculta]:[R$  Executado (2027)]],11,FALSE))","v":0},{"$f":"IF(VLOOKUP(A7,Financeiro[[id_ação_Fonte_oculta]:[R$  Executado (2027)]],4,FALSE)=0,\"\",VLOOKUP(A7,Financeiro[[id_ação_Fonte_oculta]:[R$  Executado (2027)]],14,FALSE))","v":0},0,{"$f":"IFERROR(INDEX(IdentAcoes[Prioridade do PDC],MATCH(B7,IdentAcoes[ID Ação],0)),\"\")","v":"PDC 1 e 2"},{"$f":"IFERROR(INDEX(IdentAcoes[Segmento do executor],MATCH($B7,IdentAcoes[ID Ação],0)),\"\")","v":"Sociedade Civil"},{"$f":"IFERROR(INDEX(IdentAcoes[Área de abrangência],MATCH($B7,IdentAcoes[ID Ação],0)),\"\")","v":"Área rural"},{"$f":"IFERROR(INDEX(IdentAcoes[Detalhamento da área de abrangência],MATCH($B7,IdentAcoes[ID Ação],0)),\"\")","v":"Município \nSanto Antonio do Pinhal"}]
["SM-06-2025FEHIDRO - CFURH","SM-06-2025",{"$f":"INDEX(Financeiro[Descrição da ação],MATCH(B8,Financeiro[ID Ação], 0))","v":"T.1.2.6 . Estudo, levantamento ou diagnóstico de saneamento básico e de abastecimento de água para os município de Santo Antônio do Pinhal com foco nas comunidades da área rural."},{"$f":"IF(INDEX('Acompanhamento das metas 24-27'!$C$2:$C$50,MATCH(B8,'Acompanhamento das metas 24-27'!$A$2:$A$50,0))<>0,INDEX('Acompanhamento das metas 24-27'!$C$2:$C$50,MATCH(B8,'Acompanhamento das metas 24-27'!$A$2:$A$50,0)),\"\")","v":"Obter dianóstico / situação do saneamento básico e abastecimento de água na área rural de Santo Antonio do Pinhal para planejamento de ações e investimentos no município de Santo Antonio do Pinhal."},{"$f":"IF(VLOOKUP(A8,Financeiro[[id_ação_Fonte_oculta]:[R$  Executado (2027)]],4,FALSE)=0,\"\",VLOOKUP(A8,Financeiro[[id_ação_Fonte_oculta]:[R$  Executado (2027)]],4,FALSE))","v":"FEHIDRO - CFURH"},{"$f":"IFERROR(INDEX(IdentAcoes[SubPDC],MATCH(B8,IdentAcoes[ID Ação],0)),\"\")","v":"1.2 - Planejamento"},{"$f":"IF(VLOOKUP(A8,Financeiro[[id_ação_Fonte_oculta]:[R$  Executado (2027)]],4,FALSE)=0,\"\",VLOOKUP(A8,Financeiro[[id_ação_Fonte_oculta]:[R$  Executado (2027)]],5,FALSE))","v":0},{"$f":"IF(VLOOKUP(A8,Financeiro[[id_ação_Fonte_oculta]:[R$  Executado (2027)]],4,FALSE)=0,\"\",VLOOKUP(A8,Financeiro[[id_ação_Fonte_oculta]:[R$  Executado (2027)]],8,FALSE))","v":0},{"$f":"IF(VLOOKUP(A8,Financeiro[[id_ação_Fonte_oculta]:[R$  Executado (2027)]],4,FALSE)=0,\"\",VLOOKUP(A8,Financeiro[[id_ação_Fonte_oculta]:[R$  Executado (2027)]],11,FALSE))","v":0},{"$f":"IF(VLOOKUP(A8,Financeiro[[id_ação_Fonte_oculta]:[R$  Executado (2027)]],4,FALSE)=0,\"\",VLOOKUP(A8,Financeiro[[id_ação_Fonte_oculta]:[R$  Executado (2027)]],14,FALSE))","v":0},0,{"$f":"IFERROR(INDEX(IdentAcoes[Prioridade do PDC],MATCH(B8,IdentAcoes[ID Ação],0)),\"\")","v":"PDC 1 e 2"},{"$f":"IFERROR(INDEX(IdentAcoes[Segmento do executor],MATCH($B8,IdentAcoes[ID Ação],0)),\"\")","v":"Sociedade Civil"},{"$f":"IFERROR(INDEX(IdentAcoes[Área de abrangência],MATCH($B8,IdentAcoes[ID Ação],0)),\"\")","v":"Área rural"},{"$f":"IFERROR(INDEX(IdentAcoes[Detalhamento da área de abrangência],MATCH($B8,IdentAcoes[ID Ação],0)),\"\")","v":"Município \nSanto Antonio do Pinhal"}]
["SM-07-2024FEHIDRO - CFURH","SM-07-2024",{"$f":"INDEX(Financeiro[Descrição da ação],MATCH(B9,Financeiro[ID Ação], 0))","v":"T.1.2.6 . Estudo, levantamento ou diagnóstico de saneamento básico e de abastecimento de água para os município de São Bento do Sapucaí com foco nas comunidades da área rural."},{"$f":"IF(INDEX('Acompanhamento das metas 24-27'!$C$2:$C$50,MATCH(B9,'Acompanhamento das metas 24-27'!$A$2:$A$50,0))<>0,INDEX('Acompanhamento das metas 24-27'!$C$2:$C$50,MATCH(B9,'Acompanhamento das metas 24-27'!$A$2:$A$50,0)),\"\")","v":"Obter dianóstico / situação do saneamento básico e abastecimento de água na área rural de São Bento do Sapucaí para planejamento de ações e investimentos no município de São Bento do Sapucaí."},{"$f":"IF(VLOOKUP(A9,Financeiro[[id_ação_Fonte_oculta]:[R$  Executado (2027)]],4,FALSE)=0,\"\",VLOOKUP(A9,Financeiro[[id_ação_Fonte_oculta]:[R$  Executado (2027)]],4,FALSE))","v":"FEHIDRO - CFURH"},{"$f":"IFERROR(INDEX(IdentAcoes[SubPDC],MATCH(B9,IdentAcoes[ID Ação],0)),\"\")","v":"1.2 - Planejamento"},{"$f":"IF(VLOOKUP(A9,Financeiro[[id_ação_Fonte_oculta]:[R$  Executado (2027)]],4,FALSE)=0,\"\",VLOOKUP(A9,Financeiro[[id_ação_Fonte_oculta]:[R$  Executado (2027)]],5,FALSE))","v":0},{"$f":"IF(VLOOKUP(A9,Financeiro[[id_ação_Fonte_oculta]:[R$  Executado (2027)]],4,FALSE)=0,\"\",VLOOKUP(A9,Financeiro[[id_ação_Fonte_oculta]:[R$  Executado (2027)]],8,FALSE))","v":0},{"$f":"IF(VLOOKUP(A9,Financeiro[[id_ação_Fonte_oculta]:[R$  Executado (2027)]],4,FALSE)=0,\"\",VLOOKUP(A9,Financeiro[[id_ação_Fonte_oculta]:[R$  Executado (2027)]],11,FALSE))","v":0},{"$f":"IF(VLOOKUP(A9,Financeiro[[id_ação_Fonte_oculta]:[R$  Executado (2027)]],4,FALSE)=0,\"\",VLOOKUP(A9,Financeiro[[id_ação_Fonte_oculta]:[R$  Executado (2027)]],14,FALSE))","v":0},0,{"$f":"IFERROR(INDEX(IdentAcoes[Prioridade do PDC],MATCH(B9,IdentAcoes[ID Ação],0)),\"\")","v":"PDC 1 e 2"},{"$f":"IFERROR(INDEX(IdentAcoes[Segmento do executor],MATCH($B9,IdentAcoes[ID Ação],0)),\"\")","v":"Sociedade Civil"},{"$f":"IFERROR(INDEX(IdentAcoes[Área de abrangência],MATCH($B9,IdentAcoes[ID Ação],0)),\"\")","v":"Área rural"},{"$f":"IFERROR(INDEX(IdentAcoes[Detalhamento da área de abrangência],MATCH($B9,IdentAcoes[ID Ação],0)),\"\")","v":"Município \nSão Bento do Sapucaí"}]
["SM-08-2025FEHIDRO - Cobrança estadual","SM-08-2025",{"$f":"INDEX(Financeiro[Descrição da ação],MATCH(B10,Financeiro[ID Ação], 0))","v":"T.1.2.19. Plano de drenagem para o município de Campos do Jordão"},{"$f":"IF(INDEX('Acompanhamento das metas 24-27'!$C$2:$C$50,MATCH(B10,'Acompanhamento das metas 24-27'!$A$2:$A$50,0))<>0,INDEX('Acompanhamento das metas 24-27'!$C$2:$C$50,MATCH(B10,'Acompanhamento das metas 24-27'!$A$2:$A$50,0)),\"\")","v":"Elaborar a revisão do Plano de Drenagem do muncípio de Campos do Jordão"},{"$f":"IF(VLOOKUP(A10,Financeiro[[id_ação_Fonte_oculta]:[R$  Executado (2027)]],4,FALSE)=0,\"\",VLOOKUP(A10,Financeiro[[id_ação_Fonte_oculta]:[R$  Executado (2027)]],4,FALSE))","v":"FEHIDRO - Cobrança estadual"},{"$f":"IFERROR(INDEX(IdentAcoes[SubPDC],MATCH(B10,IdentAcoes[ID Ação],0)),\"\")","v":"1.2 - Planejamento"},{"$f":"IF(VLOOKUP(A10,Financeiro[[id_ação_Fonte_oculta]:[R$  Executado (2027)]],4,FALSE)=0,\"\",VLOOKUP(A10,Financeiro[[id_ação_Fonte_oculta]:[R$  Executado (2027)]],5,FALSE))","v":0},{"$f":"IF(VLOOKUP(A10,Financeiro[[id_ação_Fonte_oculta]:[R$  Executado (2027)]],4,FALSE)=0,\"\",VLOOKUP(A10,Financeiro[[id_ação_Fonte_oculta]:[R$  Executado (2027)]],8,FALSE))","v":250000},{"$f":"IF(VLOOKUP(A10,Financeiro[[id_ação_Fonte_oculta]:[R$  Executado (2027)]],4,FALSE)=0,\"\",VLOOKUP(A10,Financeiro[[id_ação_Fonte_oculta]:[R$  Executado (2027)]],11,FALSE))","v":0},{"$f":"IF(VLOOKUP(A10,Financeiro[[id_ação_Fonte_oculta]:[R$  Executado (2027)]],4,FALSE)=0,\"\",VLOOKUP(A10,Financeiro[[id_ação_Fonte_oculta]:[R$  Executado (2027)]],14,FALSE))","v":0},250000,{"$f":"IFERROR(INDEX(IdentAcoes[Prioridade do PDC],MATCH(B10,IdentAcoes[ID Ação],0)),\"\")","v":"PDC 1 e 2"},{"$f":"IFERROR(INDEX(IdentAcoes[Segmento do executor],MATCH($B10,IdentAcoes[ID Ação],0)),\"\")","v":"Município e Sociedade Civil"},{"$f":"IFERROR(INDEX(IdentAcoes[Área de abrangência],MATCH($B10,IdentAcoes[ID Ação],0)),\"\")","v":"Município"},{"$f":"IFERROR(INDEX(IdentAcoes[Detalhamento da área de abrangência],MATCH($B10,IdentAcoes[ID Ação],0)),\"\")","v":"Muncípio de Campos do Jordão"}]
["SM-09-2024FEHIDRO - CFURH","SM-09-2024",{"$f":"INDEX(Financeiro[Descrição da ação],MATCH(B11,Financeiro[ID Ação], 0))","v":"T.1.2.19. Plano de drenagem para o município de São Bento do Sapucaí"},{"$f":"IF(INDEX('Acompanhamento das metas 24-27'!$C$2:$C$50,MATCH(B11,'Acompanhamento das metas 24-27'!$A$2:$A$50,0))<>0,INDEX('Acompanhamento das metas 24-27'!$C$2:$C$50,MATCH(B11,'Acompanhamento das metas 24-27'!$A$2:$A$50,0)),\"\")","v":"Elaborar a revisão do Plano de Drenagem do muncípio de São Bento do Sapucaí"},{"$f":"IF(VLOOKUP(A11,Financeiro[[id_ação_Fonte_oculta]:[R$  Executado (2027)]],4,FALSE)=0,\"\",VLOOKUP(A11,Financeiro[[id_ação_Fonte_oculta]:[R$  Executado (2027)]],4,FALSE))","v":"FEHIDRO - CFURH"},{"$f":"IFERROR(INDEX(IdentAcoes[SubPDC],MATCH(B11,IdentAcoes[ID Ação],0)),\"\")","v":"1.2 - Planejamento"},{"$f":"IF(VLOOKUP(A11,Financeiro[[id_ação_Fonte_oculta]:[R$  Executado (2027)]],4,FALSE)=0,\"\",VLOOKUP(A11,Financeiro[[id_ação_Fonte_oculta]:[R$  Executado (2027)]],5,FALSE))","v":160000},{"$f":"IF(VLOOKUP(A11,Financeiro[[id_ação_Fonte_oculta]:[R$  Executado (2027)]],4,FALSE)=0,\"\",VLOOKUP(A11,Financeiro[[id_ação_Fonte_oculta]:[R$  Executado (2027)]],8,FALSE))","v":0},{"$f":"IF(VLOOKUP(A11,Financeiro[[id_ação_Fonte_oculta]:[R$  Executado (2027)]],4,FALSE)=0,\"\",VLOOKUP(A11,Financeiro[[id_ação_Fonte_oculta]:[R$  Executado (2027)]],11,FALSE))","v":0},{"$f":"IF(VLOOKUP(A11,Financeiro[[id_ação_Fonte_oculta]:[R$  Executado (2027)]],4,FALSE)=0,\"\",VLOOKUP(A11,Financeiro[[id_ação_Fonte_oculta]:[R$  Executado (2027)]],14,FALSE))","v":0},160000,{"$f":"IFERROR(INDEX(IdentAcoes[Prioridade do PDC],MATCH(B11,IdentAcoes[ID Ação],0)),\"\")","v":"PDC 1 e 2"},{"$f":"IFERROR(INDEX(IdentAcoes[Segmento do executor],MATCH($B11,IdentAcoes[ID Ação],0)),\"\")","v":"Município e Sociedade Civil"},{"$f":"IFERROR(INDEX(IdentAcoes[Área de abrangência],MATCH($B11,IdentAcoes[ID Ação],0)),\"\")","v":"Município"},{"$f":"IFERROR(INDEX(IdentAcoes[Detalhamento da área de abrangência],MATCH($B11,IdentAcoes[ID Ação],0)),\"\")","v":"Município de São Bento do Sapucaí"}]
["SM-10-2026FEHIDRO - CFURH","SM-10-2026",{"$f":"INDEX(Financeiro[Descrição da ação],MATCH(B12,Financeiro[ID Ação], 0))","v":"T.1.2.19. Plano de drenagem para o município de Santo Antonio do Pinhal"},{"$f":"IF(INDEX('Acompanhamento das metas 24-27'!$C$2:$C$50,MATCH(B12,'Acompanhamento das metas 24-27'!$A$2:$A$50,0))<>0,INDEX('Acompanhamento das metas 24-27'!$C$2:$C$50,MATCH(B12,'Acompanhamento das metas 24-27'!$A$2:$A$50,0)),\"\")","v":"Elaborar a revisão do Plano de Drenagem do muncípio de Santo Antonio do Pinhal"},{"$f":"IF(VLOOKUP(A12,Financeiro[[id_ação_Fonte_oculta]:[R$  Executado (2027)]],4,FALSE)=0,\"\",VLOOKUP(A12,Financeiro[[id_ação_Fonte_oculta]:[R$  Executado (2027)]],4,FALSE))","v":"FEHIDRO - CFURH"},{"$f":"IFERROR(INDEX(IdentAcoes[SubPDC],MATCH(B12,IdentAcoes[ID Ação],0)),\"\")","v":"1.2 - Planejamento"},{"$f":"IF(VLOOKUP(A12,Financeiro[[id_ação_Fonte_oculta]:[R$  Executado (2027)]],4,FALSE)=0,\"\",VLOOKUP(A12,Financeiro[[id_ação_Fonte_oculta]:[R$  Executado (2027)]],5,FALSE))","v":160000},{"$f":"IF(VLOOKUP(A12,Financeiro[[id_ação_Fonte_oculta]:[R$  Executado (2027)]],4,FALSE)=0,\"\",VLOOKUP(A12,Financeiro[[id_ação_Fonte_oculta]:[R$  Executado (2027)]],8,FALSE))","v":0},{"$f":"IF(VLOOKUP(A12,Financeiro[[id_ação_Fonte_oculta]:[R$  Executado (2027)]],4,FALSE)=0,\"\",VLOOKUP(A12,Financeiro[[id_ação_Fonte_oculta]:[R$  Executado (2027)]],11,FALSE))","v":0},{"$f":"IF(VLOOKUP(A12,Financeiro[[id_ação_Fonte_oculta]:[R$  Executado (2027)]],4,FALSE)=0,\"\",VLOOKUP(A12,Financeiro[[id_ação_Fonte_oculta]:[R$  Executado (2027)]],14,FALSE))","v":0},160000,{"$f":"IFERROR(INDEX(IdentAcoes[Prioridade do PDC],MATCH(B12,IdentAcoes[ID Ação],0)),\"\")","v":"PDC 1 e 2"},{"$f":"IFERROR(INDEX(IdentAcoes[Segmento do executor],MATCH($B12,IdentAcoes[ID Ação],0)),\"\")","v":"Município e Sociedade Civil"},{"$f":"IFERROR(INDEX(IdentAcoes[Área de abrangência],MATCH($B12,IdentAcoes[ID Ação],0)),\"\")","v":"Município"},{"$f":"IFERROR(INDEX(IdentAcoes[Detalhamento da área de abrangência],MATCH($B12,IdentAcoes[ID Ação],0)),\"\")","v":"Município de Santo Antonio do Pinhal"}]
["SM-11-2026FEHIDRO - CFURH","SM-11-2026",{"$f":"INDEX(Financeiro[Descrição da ação],MATCH(B13,Financeiro[ID Ação], 0))","v":"T.1.2.14. Mapeamento de áreas suscetíveis a processos erosivos e deslizamentos"},{"$f":"IF(INDEX('Acompanhamento das metas 24-27'!$C$2:$C$50,MATCH(B13,'Acompanhamento das metas 24-27'!$A$2:$A$50,0))<>0,INDEX('Acompanhamento das metas 24-27'!$C$2:$C$50,MATCH(B13,'Acompanhamento das metas 24-27'!$A$2:$A$50,0)),\"\")","v":"Elaborar o mapeamento de áreas suscetíveis a processos erosivos e deslizamentos no município de Campos do Jordão"},{"$f":"IF(VLOOKUP(A13,Financeiro[[id_ação_Fonte_oculta]:[R$  Executado (2027)]],4,FALSE)=0,\"\",VLOOKUP(A13,Financeiro[[id_ação_Fonte_oculta]:[R$  Executado (2027)]],4,FALSE))","v":"FEHIDRO - CFURH"},{"$f":"IFERROR(INDEX(IdentAcoes[SubPDC],MATCH(B13,IdentAcoes[ID Ação],0)),\"\")","v":"1.2 - Planejamento"},{"$f":"IF(VLOOKUP(A13,Financeiro[[id_ação_Fonte_oculta]:[R$  Executado (2027)]],4,FALSE)=0,\"\",VLOOKUP(A13,Financeiro[[id_ação_Fonte_oculta]:[R$  Executado (2027)]],5,FALSE))","v":0},{"$f":"IF(VLOOKUP(A13,Financeiro[[id_ação_Fonte_oculta]:[R$  Executado (2027)]],4,FALSE)=0,\"\",VLOOKUP(A13,Financeiro[[id_ação_Fonte_oculta]:[R$  Executado (2027)]],8,FALSE))","v":160000},{"$f":"IF(VLOOKUP(A13,Financeiro[[id_ação_Fonte_oculta]:[R$  Executado (2027)]],4,FALSE)=0,\"\",VLOOKUP(A13,Financeiro[[id_ação_Fonte_oculta]:[R$  Executado (2027)]],11,FALSE))","v":0},{"$f":"IF(VLOOKUP(A13,Financeiro[[id_ação_Fonte_oculta]:[R$  Executado (2027)]],4,FALSE)=0,\"\",VLOOKUP(A13,Financeiro[[id_ação_Fonte_oculta]:[R$  Executado (2027)]],14,FALSE))","v":0},160000,{"$f":"IFERROR(INDEX(IdentAcoes[Prioridade do PDC],MATCH(B13,IdentAcoes[ID Ação],0)),\"\")","v":"PDC 1 e 2"},{"$f":"IFERROR(INDEX(IdentAcoes[Segmento do executor],MATCH($B13,IdentAcoes[ID Ação],0)),\"\")","v":"Município e Sociedade Civil"},{"$f":"IFERROR(INDEX(IdentAcoes[Área de abrangência],MATCH($B13,IdentAcoes[ID Ação],0)),\"\")","v":"Município"},{"$f":"IFERROR(INDEX(IdentAcoes[Detalhamento da área de abrangência],MATCH($B13,IdentAcoes[ID Ação],0)),\"\")","v":"Muncípio de Campos do Jordão"}]
["SM-12-2027FEHIDRO - CFURH","SM-12-2027",{"$f":"INDEX(Financeiro[Descrição da ação],MATCH(B14,Financeiro[ID Ação], 0))","v":"T.1.2.24. Plano diretor para a prevenção e contenção de processos erosivos"},{"$f":"IF(INDEX('Acompanhamento das metas 24-27'!$C$2:$C$50,MATCH(B14,'Acompanhamento das metas 24-27'!$A$2:$A$50,0))<>0,INDEX('Acompanhamento das metas 24-27'!$C$2:$C$50,MATCH(B14,'Acompanhamento das metas 24-27'!$A$2:$A$50,0)),\"\")","v":"Elaborar o Plano Diretor para prevenção e conteção de  processos erosivos no município de Campos do Jordão"},{"$f":"IF(VLOOKUP(A14,Financeiro[[id_ação_Fonte_oculta]:[R$  Executado (2027)]],4,FALSE)=0,\"\",VLOOKUP(A14,Financeiro[[id_ação_Fonte_oculta]:[R$  Executado (2027)]],4,FALSE))","v":"FEHIDRO - CFURH"},{"$f":"IFERROR(INDEX(IdentAcoes[SubPDC],MATCH(B14,IdentAcoes[ID Ação],0)),\"\")","v":"1.2 - Planejamento"},{"$f":"IF(VLOOKUP(A14,Financeiro[[id_ação_Fonte_oculta]:[R$  Executado (2027)]],4,FALSE)=0,\"\",VLOOKUP(A14,Financeiro[[id_ação_Fonte_oculta]:[R$  Executado (2027)]],5,FALSE))","v":0},{"$f":"IF(VLOOKUP(A14,Financeiro[[id_ação_Fonte_oculta]:[R$  Executado (2027)]],4,FALSE)=0,\"\",VLOOKUP(A14,Financeiro[[id_ação_Fonte_oculta]:[R$  Executado (2027)]],8,FALSE))","v":0},{"$f":"IF(VLOOKUP(A14,Financeiro[[id_ação_Fonte_oculta]:[R$  Executado (2027)]],4,FALSE)=0,\"\",VLOOKUP(A14,Financeiro[[id_ação_Fonte_oculta]:[R$  Executado (2027)]],11,FALSE))","v":0},{"$f":"IF(VLOOKUP(A14,Financeiro[[id_ação_Fonte_oculta]:[R$  Executado (2027)]],4,FALSE)=0,\"\",VLOOKUP(A14,Financeiro[[id_ação_Fonte_oculta]:[R$  Executado (2027)]],14,FALSE))","v":200000},200000,{"$f":"IFERROR(INDEX(IdentAcoes[Prioridade do PDC],MATCH(B14,IdentAcoes[ID Ação],0)),\"\")","v":"PDC 1 e 2"},{"$f":"IFERROR(INDEX(IdentAcoes[Segmento do executor],MATCH($B14,IdentAcoes[ID Ação],0)),\"\")","v":"Município e Sociedade Civil"},{"$f":"IFERROR(INDEX(IdentAcoes[Área de abrangência],MATCH($B14,IdentAcoes[ID Ação],0)),\"\")","v":"Município"},{"$f":"IFERROR(INDEX(IdentAcoes[Detalhamento da área de abrangência],MATCH($B14,IdentAcoes[ID Ação],0)),\"\")","v":"Muncípio de Campos do Jordão"}]
["SM-13-2026FEHIDRO - CFURH","SM-13-2026",{"$f":"INDEX(Financeiro[Descrição da ação],MATCH(B15,Financeiro[ID Ação], 0))","v":"T.2.2.1. Desenvolvimento, implantação, operação, manutenção e atualização de sistema de fiscalização de outorgas de direito de uso de recursos hídricos."},{"$f":"IF(INDEX('Acompanhamento das metas 24-27'!$C$2:$C$50,MATCH(B15,'Acompanhamento das metas 24-27'!$A$2:$A$50,0))<>0,INDEX('Acompanhamento das metas 24-27'!$C$2:$C$50,MATCH(B15,'Acompanhamento das metas 24-27'!$A$2:$A$50,0)),\"\")","v":"Atualização e melhorias do atual sistema de fiscalização de outorgas de direito de uso de recursos hídricos na UGRHI-1"},{"$f":"IF(VLOOKUP(A15,Financeiro[[id_ação_Fonte_oculta]:[R$  Executado (2027)]],4,FALSE)=0,\"\",VLOOKUP(A15,Financeiro[[id_ação_Fonte_oculta]:[R$  Executado (2027)]],4,FALSE))","v":"FEHIDRO - CFURH"},{"$f":"IFERROR(INDEX(IdentAcoes[SubPDC],MATCH(B15,IdentAcoes[ID Ação],0)),\"\")","v":"2.2 - Outorga"},{"$f":"IF(VLOOKUP(A15,Financeiro[[id_ação_Fonte_oculta]:[R$  Executado (2027)]],4,FALSE)=0,\"\",VLOOKUP(A15,Financeiro[[id_ação_Fonte_oculta]:[R$  Executado (2027)]],5,FALSE))","v":0},{"$f":"IF(VLOOKUP(A15,Financeiro[[id_ação_Fonte_oculta]:[R$  Executado (2027)]],4,FALSE)=0,\"\",VLOOKUP(A15,Financeiro[[id_ação_Fonte_oculta]:[R$  Executado (2027)]],8,FALSE))","v":0},{"$f":"IF(VLOOKUP(A15,Financeiro[[id_ação_Fonte_oculta]:[R$  Executado (2027)]],4,FALSE)=0,\"\",VLOOKUP(A15,Financeiro[[id_ação_Fonte_oculta]:[R$  Executado (2027)]],11,FALSE))","v":250000},{"$f":"IF(VLOOKUP(A15,Financeiro[[id_ação_Fonte_oculta]:[R$  Executado (2027)]],4,FALSE)=0,\"\",VLOOKUP(A15,Financeiro[[id_ação_Fonte_oculta]:[R$  Executado (2027)]],14,FALSE))","v":0},250000,{"$f":"IFERROR(INDEX(IdentAcoes[Prioridade do PDC],MATCH(B15,IdentAcoes[ID Ação],0)),\"\")","v":"PDC 1 e 2"},{"$f":"IFERROR(INDEX(IdentAcoes[Segmento do executor],MATCH($B15,IdentAcoes[ID Ação],0)),\"\")","v":"Sociedade Civil"},{"$f":"IFERROR(INDEX(IdentAcoes[Área de abrangência],MATCH($B15,IdentAcoes[ID Ação],0)),\"\")","v":"UGRHi"},{"$f":"IFERROR(INDEX(IdentAcoes[Detalhamento da área de abrangência],MATCH($B15,IdentAcoes[ID Ação],0)),\"\")","v":"UGRHI-1"}]
["SM-14-2024FEHIDRO - Cobrança estadual","SM-14-2024",{"$f":"INDEX(Financeiro[Descrição da ação],MATCH(B16,Financeiro[ID Ação], 0))","v":"T.2.3.3. Desenvolvimento ou atualização de cadastro específico para cobrança pelo uso dos recursos hídricos"},{"$f":"IF(INDEX('Acompanhamento das metas 24-27'!$C$2:$C$50,MATCH(B16,'Acompanhamento das metas 24-27'!$A$2:$A$50,0))<>0,INDEX('Acompanhamento das metas 24-27'!$C$2:$C$50,MATCH(B16,'Acompanhamento das metas 24-27'!$A$2:$A$50,0)),\"\")","v":"Atualização do cadastro de cobrança de água para os Usuários da UGRHI-1 e identificação de captações não outorgadas."},{"$f":"IF(VLOOKUP(A16,Financeiro[[id_ação_Fonte_oculta]:[R$  Executado (2027)]],4,FALSE)=0,\"\",VLOOKUP(A16,Financeiro[[id_ação_Fonte_oculta]:[R$  Executado (2027)]],4,FALSE))","v":"FEHIDRO - Cobrança estadual"},{"$f":"IFERROR(INDEX(IdentAcoes[SubPDC],MATCH(B16,IdentAcoes[ID Ação],0)),\"\")","v":"2.3 - Cobrança"},{"$f":"IF(VLOOKUP(A16,Financeiro[[id_ação_Fonte_oculta]:[R$  Executado (2027)]],4,FALSE)=0,\"\",VLOOKUP(A16,Financeiro[[id_ação_Fonte_oculta]:[R$  Executado (2027)]],5,FALSE))","v":0},{"$f":"IF(VLOOKUP(A16,Financeiro[[id_ação_Fonte_oculta]:[R$  Executado (2027)]],4,FALSE)=0,\"\",VLOOKUP(A16,Financeiro[[id_ação_Fonte_oculta]:[R$  Executado (2027)]],8,FALSE))","v":220000},{"$f":"IF(VLOOKUP(A16,Financeiro[[id_ação_Fonte_oculta]:[R$  Executado (2027)]],4,FALSE)=0,\"\",VLOOKUP(A16,Financeiro[[id_ação_Fonte_oculta]:[R$  Executado (2027)]],11,FALSE))","v":0},{"$f":"IF(VLOOKUP(A16,Financeiro[[id_ação_Fonte_oculta]:[R$  Executado (2027)]],4,FALSE)=0,\"\",VLOOKUP(A16,Financeiro[[id_ação_Fonte_oculta]:[R$  Executado (2027)]],14,FALSE))","v":0},220000,{"$f":"IFERROR(INDEX(IdentAcoes[Prioridade do PDC],MATCH(B16,IdentAcoes[ID Ação],0)),\"\")","v":"PDC 1 e 2"},{"$f":"IFERROR(INDEX(IdentAcoes[Segmento do executor],MATCH($B16,IdentAcoes[ID Ação],0)),\"\")","v":"Sociedade Civil"},{"$f":"IFERROR(INDEX(IdentAcoes[Área de abrangência],MATCH($B16,IdentAcoes[ID Ação],0)),\"\")","v":"UGRHi"},{"$f":"IFERROR(INDEX(IdentAcoes[Detalhamento da área de abrangência],MATCH($B16,IdentAcoes[ID Ação],0)),\"\")","v":"UGRHI-1"}]
["SM-15-2025FEHIDRO - CFURH","SM-15-2025",{"$f":"INDEX(Financeiro[Descrição da ação],MATCH(B17,Financeiro[ID Ação], 0))","v":"T.3.1.3. Projeto (básico e/ou executivos) de reformas, melhorias ou obras localizadas (EEE-Estação Elevatória de Esgoto e/ou ETE-Estação de tratamento de Esgoto) em Santo Antonio do Pinhal."},{"$f":"IF(INDEX('Acompanhamento das metas 24-27'!$C$2:$C$50,MATCH(B17,'Acompanhamento das metas 24-27'!$A$2:$A$50,0))<>0,INDEX('Acompanhamento das metas 24-27'!$C$2:$C$50,MATCH(B17,'Acompanhamento das metas 24-27'!$A$2:$A$50,0)),\"\")","v":"Elaborar projeto de 1 ETE em bairro rural de Santo Antonio do Pinhal"},{"$f":"IF(VLOOKUP(A17,Financeiro[[id_ação_Fonte_oculta]:[R$  Executado (2027)]],4,FALSE)=0,\"\",VLOOKUP(A17,Financeiro[[id_ação_Fonte_oculta]:[R$  Executado (2027)]],4,FALSE))","v":"FEHIDRO - CFURH"},{"$f":"IFERROR(INDEX(IdentAcoes[SubPDC],MATCH(B17,IdentAcoes[ID Ação],0)),\"\")","v":"3.1 - Efluentes"},{"$f":"IF(VLOOKUP(A17,Financeiro[[id_ação_Fonte_oculta]:[R$  Executado (2027)]],4,FALSE)=0,\"\",VLOOKUP(A17,Financeiro[[id_ação_Fonte_oculta]:[R$  Executado (2027)]],5,FALSE))","v":0},{"$f":"IF(VLOOKUP(A17,Financeiro[[id_ação_Fonte_oculta]:[R$  Executado (2027)]],4,FALSE)=0,\"\",VLOOKUP(A17,Financeiro[[id_ação_Fonte_oculta]:[R$  Executado (2027)]],8,FALSE))","v":0},{"$f":"IF(VLOOKUP(A17,Financeiro[[id_ação_Fonte_oculta]:[R$  Executado (2027)]],4,FALSE)=0,\"\",VLOOKUP(A17,Financeiro[[id_ação_Fonte_oculta]:[R$  Executado (2027)]],11,FALSE))","v":0},{"$f":"IF(VLOOKUP(A17,Financeiro[[id_ação_Fonte_oculta]:[R$  Executado (2027)]],4,FALSE)=0,\"\",VLOOKUP(A17,Financeiro[[id_ação_Fonte_oculta]:[R$  Executado (2027)]],14,FALSE))","v":0},0,{"$f":"IFERROR(INDEX(IdentAcoes[Prioridade do PDC],MATCH(B17,IdentAcoes[ID Ação],0)),\"\")","v":"Prioritário"},{"$f":"IFERROR(INDEX(IdentAcoes[Segmento do executor],MATCH($B17,IdentAcoes[ID Ação],0)),\"\")","v":"Município"},{"$f":"IFERROR(INDEX(IdentAcoes[Área de abrangência],MATCH($B17,IdentAcoes[ID Ação],0)),\"\")","v":"Área rural"},{"$f":"IFERROR(INDEX(IdentAcoes[Detalhamento da área de abrangência],MATCH($B17,IdentAcoes[ID Ação],0)),\"\")","v":"Município de Santo Antonio do Pinhal / a definir"}]
["SM-16-2025FEHIDRO - CFURH","SM-16-2025",{"$f":"INDEX(Financeiro[Descrição da ação],MATCH(B18,Financeiro[ID Ação], 0))","v":"T.3.1.3. Projeto (básico e/ou executivos) de reformas, melhorias ou obras localizadas (EEE-Estação Elevatória de Esgoto e/ou ETE-Estação de tratamento de Esgoto) em Sao Bento do Sapucaí."},{"$f":"IF(INDEX('Acompanhamento das metas 24-27'!$C$2:$C$50,MATCH(B18,'Acompanhamento das metas 24-27'!$A$2:$A$50,0))<>0,INDEX('Acompanhamento das metas 24-27'!$C$2:$C$50,MATCH(B18,'Acompanhamento das metas 24-27'!$A$2:$A$50,0)),\"\")","v":"Elaborar projeto de 1 ETE em bairro rural de São Bento do Sapucaí"},{"$f":"IF(VLOOKUP(A18,Financeiro[[id_ação_Fonte_oculta]:[R$  Executado (2027)]],4,FALSE)=0,\"\",VLOOKUP(A18,Financeiro[[id_ação_Fonte_oculta]:[R$  Executado (2027)]],4,FALSE))","v":"FEHIDRO - CFURH"},{"$f":"IFERROR(INDEX(IdentAcoes[SubPDC],MATCH(B18,IdentAcoes[ID Ação],0)),\"\")","v":"3.1 - Efluentes"},{"$f":"IF(VLOOKUP(A18,Financeiro[[id_ação_Fonte_oculta]:[R$  Executado (2027)]],4,FALSE)=0,\"\",VLOOKUP(A18,Financeiro[[id_ação_Fonte_oculta]:[R$  Executado (2027)]],5,FALSE))","v":0},{"$f":"IF(VLOOKUP(A18,Financeiro[[id_ação_Fonte_oculta]:[R$  Executado (2027)]],4,FALSE)=0,\"\",VLOOKUP(A18,Financeiro[[id_ação_Fonte_oculta]:[R$  Executado (2027)]],8,FALSE))","v":0},{"$f":"IF(VLOOKUP(A18,Financeiro[[id_ação_Fonte_oculta]:[R$  Executado (2027)]],4,FALSE)=0,\"\",VLOOKUP(A18,Financeiro[[id_ação_Fonte_oculta]:[R$  Executado (2027)]],11,FALSE))","v":0},{"$f":"IF(VLOOKUP(A18,Financeiro[[id_ação_Fonte_oculta]:[R$  Executado (2027)]],4,FALSE)=0,\"\",VLOOKUP(A18,Financeiro[[id_ação_Fonte_oculta]:[R$  Executado (2027)]],14,FALSE))","v":0},0,{"$f":"IFERROR(INDEX(IdentAcoes[Prioridade do PDC],MATCH(B18,IdentAcoes[ID Ação],0)),\"\")","v":"Prioritário"},{"$f":"IFERROR(INDEX(IdentAcoes[Segmento do executor],MATCH($B18,IdentAcoes[ID Ação],0)),\"\")","v":"Município"},{"$f":"IFERROR(INDEX(IdentAcoes[Área de abrangência],MATCH($B18,IdentAcoes[ID Ação],0)),\"\")","v":"Área rural"},{"$f":"IFERROR(INDEX(IdentAcoes[Detalhamento da área de abrangência],MATCH($B18,IdentAcoes[ID Ação],0)),\"\")","v":"Município de São Bento do Sapucaí / a definir"}]
["SM-17-2026FEHIDRO - CFURH","SM-17-2026",{"$f":"INDEX(Financeiro[Descrição da ação],MATCH(B19,Financeiro[ID Ação], 0))","v":"T.3.1.4. Execução de reformas, melhorias ou obras de EEE e/ou ETE em Santo Antonio do Pinhal."},{"$f":"IF(INDEX('Acompanhamento das metas 24-27'!$C$2:$C$50,MATCH(B19,'Acompanhamento das metas 24-27'!$A$2:$A$50,0))<>0,INDEX('Acompanhamento das metas 24-27'!$C$2:$C$50,MATCH(B19,'Acompanhamento das metas 24-27'!$A$2:$A$50,0)),\"\")","v":"Implantar 1 ETE em bairro rural de Santo Antonio do Pinhal"},{"$f":"IF(VLOOKUP(A19,Financeiro[[id_ação_Fonte_oculta]:[R$  Executado (2027)]],4,FALSE)=0,\"\",VLOOKUP(A19,Financeiro[[id_ação_Fonte_oculta]:[R$  Executado (2027)]],4,FALSE))","v":"FEHIDRO - CFURH"},{"$f":"IFERROR(INDEX(IdentAcoes[SubPDC],MATCH(B19,IdentAcoes[ID Ação],0)),\"\")","v":"3.1 - Efluentes"},{"$f":"IF(VLOOKUP(A19,Financeiro[[id_ação_Fonte_oculta]:[R$  Executado (2027)]],4,FALSE)=0,\"\",VLOOKUP(A19,Financeiro[[id_ação_Fonte_oculta]:[R$  Executado (2027)]],5,FALSE))","v":0},{"$f":"IF(VLOOKUP(A19,Financeiro[[id_ação_Fonte_oculta]:[R$  Executado (2027)]],4,FALSE)=0,\"\",VLOOKUP(A19,Financeiro[[id_ação_Fonte_oculta]:[R$  Executado (2027)]],8,FALSE))","v":0},{"$f":"IF(VLOOKUP(A19,Financeiro[[id_ação_Fonte_oculta]:[R$  Executado (2027)]],4,FALSE)=0,\"\",VLOOKUP(A19,Financeiro[[id_ação_Fonte_oculta]:[R$  Executado (2027)]],11,FALSE))","v":0},{"$f":"IF(VLOOKUP(A19,Financeiro[[id_ação_Fonte_oculta]:[R$  Executado (2027)]],4,FALSE)=0,\"\",VLOOKUP(A19,Financeiro[[id_ação_Fonte_oculta]:[R$  Executado (2027)]],14,FALSE))","v":0},0,{"$f":"IFERROR(INDEX(IdentAcoes[Prioridade do PDC],MATCH(B19,IdentAcoes[ID Ação],0)),\"\")","v":"Prioritário"},{"$f":"IFERROR(INDEX(IdentAcoes[Segmento do executor],MATCH($B19,IdentAcoes[ID Ação],0)),\"\")","v":"Município"},{"$f":"IFERROR(INDEX(IdentAcoes[Área de abrangência],MATCH($B19,IdentAcoes[ID Ação],0)),\"\")","v":"Área rural"},{"$f":"IFERROR(INDEX(IdentAcoes[Detalhamento da área de abrangência],MATCH($B19,IdentAcoes[ID Ação],0)),\"\")","v":"Município de Santo Antonio do Pinhal / a definir"}]
["SM-18-2026FEHIDRO - CFURH","SM-18-2026",{"$f":"INDEX(Financeiro[Descrição da ação],MATCH(B20,Financeiro[ID Ação], 0))","v":"T.3.1.4. Execução de reformas, melhorias ou obras de EEE e/ou ETE em São Bento do Sapucaí"},{"$f":"IF(INDEX('Acompanhamento das metas 24-27'!$C$2:$C$50,MATCH(B20,'Acompanhamento das metas 24-27'!$A$2:$A$50,0))<>0,INDEX('Acompanhamento das metas 24-27'!$C$2:$C$50,MATCH(B20,'Acompanhamento das metas 24-27'!$A$2:$A$50,0)),\"\")","v":"Implantar 1 ETE em bairro rural de São Bento do Sapucaí"},{"$f":"IF(VLOOKUP(A20,Financeiro[[id_ação_Fonte_oculta]:[R$  Executado (2027)]],4,FALSE)=0,\"\",VLOOKUP(A20,Financeiro[[id_ação_Fonte_oculta]:[R$  Executado (2027)]],4,FALSE))","v":"FEHIDRO - CFURH"},{"$f":"IFERROR(INDEX(IdentAcoes[SubPDC],MATCH(B20,IdentAcoes[ID Ação],0)),\"\")","v":"3.1 - Efluentes"},{"$f":"IF(VLOOKUP(A20,Financeiro[[id_ação_Fonte_oculta]:[R$  Executado (2027)]],4,FALSE)=0,\"\",VLOOKUP(A20,Financeiro[[id_ação_Fonte_oculta]:[R$  Executado (2027)]],5,FALSE))","v":0},{"$f":"IF(VLOOKUP(A20,Financeiro[[id_ação_Fonte_oculta]:[R$  Executado (2027)]],4,FALSE)=0,\"\",VLOOKUP(A20,Financeiro[[id_ação_Fonte_oculta]:[R$  Executado (2027)]],8,FALSE))","v":0},{"$f":"IF(VLOOKUP(A20,Financeiro[[id_ação_Fonte_oculta]:[R$  Executado (2027)]],4,FALSE)=0,\"\",VLOOKUP(A20,Financeiro[[id_ação_Fonte_oculta]:[R$  Executado (2027)]],11,FALSE))","v":0},{"$f":"IF(VLOOKUP(A20,Financeiro[[id_ação_Fonte_oculta]:[R$  Executado (2027)]],4,FALSE)=0,\"\",VLOOKUP(A20,Financeiro[[id_ação_Fonte_oculta]:[R$  Executado (2027)]],14,FALSE))","v":0},0,{"$f":"IFERROR(INDEX(IdentAcoes[Prioridade do PDC],MATCH(B20,IdentAcoes[ID Ação],0)),\"\")","v":"Prioritário"},{"$f":"IFERROR(INDEX(IdentAcoes[Segmento do executor],MATCH($B20,IdentAcoes[ID Ação],0)),\"\")","v":"Município"},{"$f":"IFERROR(INDEX(IdentAcoes[Área de abrangência],MATCH($B20,IdentAcoes[ID Ação],0)),\"\")","v":"Área rural"},{"$f":"IFERROR(INDEX(IdentAcoes[Detalhamento da área de abrangência],MATCH($B20,IdentAcoes[ID Ação],0)),\"\")","v":"Município de São Bento do Sapucaí / a definir"}]
["SM-19-2025FEHIDRO - CFURH","SM-19-2025",{"$f":"INDEX(Financeiro[Descrição da ação],MATCH(B21,Financeiro[ID Ação], 0))","v":"T.4.1.3. Projetos (básicos e/ou executivos) para  proteção e/ou contenção de margens de curso d´água no município de Campos do Jordão"},{"$f":"IF(INDEX('Acompanhamento das metas 24-27'!$C$2:$C$50,MATCH(B21,'Acompanhamento das metas 24-27'!$A$2:$A$50,0))<>0,INDEX('Acompanhamento das metas 24-27'!$C$2:$C$50,MATCH(B21,'Acompanhamento das metas 24-27'!$A$2:$A$50,0)),\"\")","v":"Elaborar projeto de proteção e/ou contenção de curso 'dagua no município de Campos do Jordão"},{"$f":"IF(VLOOKUP(A21,Financeiro[[id_ação_Fonte_oculta]:[R$  Executado (2027)]],4,FALSE)=0,\"\",VLOOKUP(A21,Financeiro[[id_ação_Fonte_oculta]:[R$  Executado (2027)]],4,FALSE))","v":"FEHIDRO - CFURH"},{"$f":"IFERROR(INDEX(IdentAcoes[SubPDC],MATCH(B21,IdentAcoes[ID Ação],0)),\"\")","v":"4.1 - Controle erosão"},{"$f":"IF(VLOOKUP(A21,Financeiro[[id_ação_Fonte_oculta]:[R$  Executado (2027)]],4,FALSE)=0,\"\",VLOOKUP(A21,Financeiro[[id_ação_Fonte_oculta]:[R$  Executado (2027)]],5,FALSE))","v":0},{"$f":"IF(VLOOKUP(A21,Financeiro[[id_ação_Fonte_oculta]:[R$  Executado (2027)]],4,FALSE)=0,\"\",VLOOKUP(A21,Financeiro[[id_ação_Fonte_oculta]:[R$  Executado (2027)]],8,FALSE))","v":300000},{"$f":"IF(VLOOKUP(A21,Financeiro[[id_ação_Fonte_oculta]:[R$  Executado (2027)]],4,FALSE)=0,\"\",VLOOKUP(A21,Financeiro[[id_ação_Fonte_oculta]:[R$  Executado (2027)]],11,FALSE))","v":0},{"$f":"IF(VLOOKUP(A21,Financeiro[[id_ação_Fonte_oculta]:[R$  Executado (2027)]],4,FALSE)=0,\"\",VLOOKUP(A21,Financeiro[[id_ação_Fonte_oculta]:[R$  Executado (2027)]],14,FALSE))","v":0},300000,{"$f":"IFERROR(INDEX(IdentAcoes[Prioridade do PDC],MATCH(B21,IdentAcoes[ID Ação],0)),\"\")","v":"Prioritário"},{"$f":"IFERROR(INDEX(IdentAcoes[Segmento do executor],MATCH($B21,IdentAcoes[ID Ação],0)),\"\")","v":"Município"},{"$f":"IFERROR(INDEX(IdentAcoes[Área de abrangência],MATCH($B21,IdentAcoes[ID Ação],0)),\"\")","v":"Área rural"},{"$f":"IFERROR(INDEX(IdentAcoes[Detalhamento da área de abrangência],MATCH($B21,IdentAcoes[ID Ação],0)),\"\")","v":"Município de Campos do Jordão / a definir"}]
["SM-20-2027FEHIDRO - Cobrança estadual","SM-20-2027",{"$f":"INDEX(Financeiro[Descrição da ação],MATCH(B22,Financeiro[ID Ação], 0))","v":"T.4.1.4. Obras/serviços de proteção e/ou contenção de margens de curso d´água no município de Campos do Jordão"},{"$f":"IF(INDEX('Acompanhamento das metas 24-27'!$C$2:$C$50,MATCH(B22,'Acompanhamento das metas 24-27'!$A$2:$A$50,0))<>0,INDEX('Acompanhamento das metas 24-27'!$C$2:$C$50,MATCH(B22,'Acompanhamento das metas 24-27'!$A$2:$A$50,0)),\"\")","v":"Realizar uma obra / serviço de proteção e/ou contenção de margens de curso dágua no município de Campos do Jordão"},{"$f":"IF(VLOOKUP(A22,Financeiro[[id_ação_Fonte_oculta]:[R$  Executado (2027)]],4,FALSE)=0,\"\",VLOOKUP(A22,Financeiro[[id_ação_Fonte_oculta]:[R$  Executado (2027)]],4,FALSE))","v":"FEHIDRO - Cobrança estadual"},{"$f":"IFERROR(INDEX(IdentAcoes[SubPDC],MATCH(B22,IdentAcoes[ID Ação],0)),\"\")","v":"4.1 - Controle erosão"},{"$f":"IF(VLOOKUP(A22,Financeiro[[id_ação_Fonte_oculta]:[R$  Executado (2027)]],4,FALSE)=0,\"\",VLOOKUP(A22,Financeiro[[id_ação_Fonte_oculta]:[R$  Executado (2027)]],5,FALSE))","v":0},{"$f":"IF(VLOOKUP(A22,Financeiro[[id_ação_Fonte_oculta]:[R$  Executado (2027)]],4,FALSE)=0,\"\",VLOOKUP(A22,Financeiro[[id_ação_Fonte_oculta]:[R$  Executado (2027)]],8,FALSE))","v":0},{"$f":"IF(VLOOKUP(A22,Financeiro[[id_ação_Fonte_oculta]:[R$  Executado (2027)]],4,FALSE)=0,\"\",VLOOKUP(A22,Financeiro[[id_ação_Fonte_oculta]:[R$  Executado (2027)]],11,FALSE))","v":0},{"$f":"IF(VLOOKUP(A22,Financeiro[[id_ação_Fonte_oculta]:[R$  Executado (2027)]],4,FALSE)=0,\"\",VLOOKUP(A22,Financeiro[[id_ação_Fonte_oculta]:[R$  Executado (2027)]],14,FALSE))","v":450000},450000,{"$f":"IFERROR(INDEX(IdentAcoes[Prioridade do PDC],MATCH(B22,IdentAcoes[ID Ação],0)),\"\")","v":"Prioritário"},{"$f":"IFERROR(INDEX(IdentAcoes[Segmento do executor],MATCH($B22,IdentAcoes[ID Ação],0)),\"\")","v":"Município"},{"$f":"IFERROR(INDEX(IdentAcoes[Área de abrangência],MATCH($B22,IdentAcoes[ID Ação],0)),\"\")","v":"Área urbana"},{"$f":"IFERROR(INDEX(IdentAcoes[Detalhamento da área de abrangência],MATCH($B22,IdentAcoes[ID Ação],0)),\"\")","v":"Município de Campos do Jordão / a definir"}]
["SM-21-2025FEHIDRO - CFURH","SM-21-2025",{"$f":"INDEX(Financeiro[Descrição da ação],MATCH(B23,Financeiro[ID Ação], 0))","v":"T.4.1.4. Obras/serviços de proteção e/ou contenção de margens de curso d´água no município de São Bento do Sapucaí"},{"$f":"IF(INDEX('Acompanhamento das metas 24-27'!$C$2:$C$50,MATCH(B23,'Acompanhamento das metas 24-27'!$A$2:$A$50,0))<>0,INDEX('Acompanhamento das metas 24-27'!$C$2:$C$50,MATCH(B23,'Acompanhamento das metas 24-27'!$A$2:$A$50,0)),\"\")","v":"Realizar uma obra / serviço de proteção e/ou contenção de margens de curso dágua no município de São Bento do Sapucaí"},{"$f":"IF(VLOOKUP(A23,Financeiro[[id_ação_Fonte_oculta]:[R$  Executado (2027)]],4,FALSE)=0,\"\",VLOOKUP(A23,Financeiro[[id_ação_Fonte_oculta]:[R$  Executado (2027)]],4,FALSE))","v":"FEHIDRO - CFURH"},{"$f":"IFERROR(INDEX(IdentAcoes[SubPDC],MATCH(B23,IdentAcoes[ID Ação],0)),\"\")","v":"4.1 - Controle erosão"},{"$f":"IF(VLOOKUP(A23,Financeiro[[id_ação_Fonte_oculta]:[R$  Executado (2027)]],4,FALSE)=0,\"\",VLOOKUP(A23,Financeiro[[id_ação_Fonte_oculta]:[R$  Executado (2027)]],5,FALSE))","v":0},{"$f":"IF(VLOOKUP(A23,Financeiro[[id_ação_Fonte_oculta]:[R$  Executado (2027)]],4,FALSE)=0,\"\",VLOOKUP(A23,Financeiro[[id_ação_Fonte_oculta]:[R$  Executado (2027)]],8,FALSE))","v":0},{"$f":"IF(VLOOKUP(A23,Financeiro[[id_ação_Fonte_oculta]:[R$  Executado (2027)]],4,FALSE)=0,\"\",VLOOKUP(A23,Financeiro[[id_ação_Fonte_oculta]:[R$  Executado (2027)]],11,FALSE))","v":0},{"$f":"IF(VLOOKUP(A23,Financeiro[[id_ação_Fonte_oculta]:[R$  Executado (2027)]],4,FALSE)=0,\"\",VLOOKUP(A23,Financeiro[[id_ação_Fonte_oculta]:[R$  Executado (2027)]],14,FALSE))","v":500000},500000,{"$f":"IFERROR(INDEX(IdentAcoes[Prioridade do PDC],MATCH(B23,IdentAcoes[ID Ação],0)),\"\")","v":"Prioritário"},{"$f":"IFERROR(INDEX(IdentAcoes[Segmento do executor],MATCH($B23,IdentAcoes[ID Ação],0)),\"\")","v":"Município"},{"$f":"IFERROR(INDEX(IdentAcoes[Área de abrangência],MATCH($B23,IdentAcoes[ID Ação],0)),\"\")","v":"Área urbana"},{"$f":"IFERROR(INDEX(IdentAcoes[Detalhamento da área de abrangência],MATCH($B23,IdentAcoes[ID Ação],0)),\"\")","v":"Município de São Bento do Sapucaí / a definir"}]
["SM-22-2024FEHIDRO - CFURH","SM-22-2024",{"$f":"INDEX(Financeiro[Descrição da ação],MATCH(B24,Financeiro[ID Ação], 0))","v":"T.4.1.4. Obras/serviços de proteção e/ou contenção de margens de curso d´água no município de Santo Antonio do Pinhal"},{"$f":"IF(INDEX('Acompanhamento das metas 24-27'!$C$2:$C$50,MATCH(B24,'Acompanhamento das metas 24-27'!$A$2:$A$50,0))<>0,INDEX('Acompanhamento das metas 24-27'!$C$2:$C$50,MATCH(B24,'Acompanhamento das metas 24-27'!$A$2:$A$50,0)),\"\")","v":"Realizar uma obra / serviço de proteção e/ou contenção de margens de curso dágua no município de Santo Antonio do Pinhal"},{"$f":"IF(VLOOKUP(A24,Financeiro[[id_ação_Fonte_oculta]:[R$  Executado (2027)]],4,FALSE)=0,\"\",VLOOKUP(A24,Financeiro[[id_ação_Fonte_oculta]:[R$  Executado (2027)]],4,FALSE))","v":"FEHIDRO - CFURH"},{"$f":"IFERROR(INDEX(IdentAcoes[SubPDC],MATCH(B24,IdentAcoes[ID Ação],0)),\"\")","v":"4.1 - Controle erosão"},{"$f":"IF(VLOOKUP(A24,Financeiro[[id_ação_Fonte_oculta]:[R$  Executado (2027)]],4,FALSE)=0,\"\",VLOOKUP(A24,Financeiro[[id_ação_Fonte_oculta]:[R$  Executado (2027)]],5,FALSE))","v":350000},{"$f":"IF(VLOOKUP(A24,Financeiro[[id_ação_Fonte_oculta]:[R$  Executado (2027)]],4,FALSE)=0,\"\",VLOOKUP(A24,Financeiro[[id_ação_Fonte_oculta]:[R$  Executado (2027)]],8,FALSE))","v":0},{"$f":"IF(VLOOKUP(A24,Financeiro[[id_ação_Fonte_oculta]:[R$  Executado (2027)]],4,FALSE)=0,\"\",VLOOKUP(A24,Financeiro[[id_ação_Fonte_oculta]:[R$  Executado (2027)]],11,FALSE))","v":0},{"$f":"IF(VLOOKUP(A24,Financeiro[[id_ação_Fonte_oculta]:[R$  Executado (2027)]],4,FALSE)=0,\"\",VLOOKUP(A24,Financeiro[[id_ação_Fonte_oculta]:[R$  Executado (2027)]],14,FALSE))","v":0},350000,{"$f":"IFERROR(INDEX(IdentAcoes[Prioridade do PDC],MATCH(B24,IdentAcoes[ID Ação],0)),\"\")","v":"Prioritário"},{"$f":"IFERROR(INDEX(IdentAcoes[Segmento do executor],MATCH($B24,IdentAcoes[ID Ação],0)),\"\")","v":"Município"},{"$f":"IFERROR(INDEX(IdentAcoes[Área de abrangência],MATCH($B24,IdentAcoes[ID Ação],0)),\"\")","v":"Área urbana"},{"$f":"IFERROR(INDEX(IdentAcoes[Detalhamento da área de abrangência],MATCH($B24,IdentAcoes[ID Ação],0)),\"\")","v":"Município de Santo Antonio do Pinhal / a definir"}]
["SM-23-2025FEHIDRO - CFURH","SM-23-2025",{"$f":"INDEX(Financeiro[Descrição da ação],MATCH(B25,Financeiro[ID Ação], 0))","v":"T.4.2.13. Projeto executivo de Pagamento por Serviços Ambientais relacionados à água - município de São Bento do Sapucaí."},{"$f":"IF(INDEX('Acompanhamento das metas 24-27'!$C$2:$C$50,MATCH(B25,'Acompanhamento das metas 24-27'!$A$2:$A$50,0))<>0,INDEX('Acompanhamento das metas 24-27'!$C$2:$C$50,MATCH(B25,'Acompanhamento das metas 24-27'!$A$2:$A$50,0)),\"\")","v":"Elaborar um projeto executivo PSA no município de São Bento do Sapucaí"},{"$f":"IF(VLOOKUP(A25,Financeiro[[id_ação_Fonte_oculta]:[R$  Executado (2027)]],4,FALSE)=0,\"\",VLOOKUP(A25,Financeiro[[id_ação_Fonte_oculta]:[R$  Executado (2027)]],4,FALSE))","v":"FEHIDRO - CFURH"},{"$f":"IFERROR(INDEX(IdentAcoes[SubPDC],MATCH(B25,IdentAcoes[ID Ação],0)),\"\")","v":"4.2 - Soluções baseadas Natureza"},{"$f":"IF(VLOOKUP(A25,Financeiro[[id_ação_Fonte_oculta]:[R$  Executado (2027)]],4,FALSE)=0,\"\",VLOOKUP(A25,Financeiro[[id_ação_Fonte_oculta]:[R$  Executado (2027)]],5,FALSE))","v":0},{"$f":"IF(VLOOKUP(A25,Financeiro[[id_ação_Fonte_oculta]:[R$  Executado (2027)]],4,FALSE)=0,\"\",VLOOKUP(A25,Financeiro[[id_ação_Fonte_oculta]:[R$  Executado (2027)]],8,FALSE))","v":200000},{"$f":"IF(VLOOKUP(A25,Financeiro[[id_ação_Fonte_oculta]:[R$  Executado (2027)]],4,FALSE)=0,\"\",VLOOKUP(A25,Financeiro[[id_ação_Fonte_oculta]:[R$  Executado (2027)]],11,FALSE))","v":0},{"$f":"IF(VLOOKUP(A25,Financeiro[[id_ação_Fonte_oculta]:[R$  Executado (2027)]],4,FALSE)=0,\"\",VLOOKUP(A25,Financeiro[[id_ação_Fonte_oculta]:[R$  Executado (2027)]],14,FALSE))","v":0},200000,{"$f":"IFERROR(INDEX(IdentAcoes[Prioridade do PDC],MATCH(B25,IdentAcoes[ID Ação],0)),\"\")","v":"Prioritário"},{"$f":"IFERROR(INDEX(IdentAcoes[Segmento do executor],MATCH($B25,IdentAcoes[ID Ação],0)),\"\")","v":"Sociedade Civil"},{"$f":"IFERROR(INDEX(IdentAcoes[Área de abrangência],MATCH($B25,IdentAcoes[ID Ação],0)),\"\")","v":"Área rural"},{"$f":"IFERROR(INDEX(IdentAcoes[Detalhamento da área de abrangência],MATCH($B25,IdentAcoes[ID Ação],0)),\"\")","v":"Município de São Bento do Sapucaí"}]
["SM-24-2027FEHIDRO - CFURH","SM-24-2027",{"$f":"INDEX(Financeiro[Descrição da ação],MATCH(B26,Financeiro[ID Ação], 0))","v":"T.4.2.13. Projeto executivo de Pagamento por Serviços Ambientais relacionados à água - município de Santo Antonio do Pinhal."},{"$f":"IF(INDEX('Acompanhamento das metas 24-27'!$C$2:$C$50,MATCH(B26,'Acompanhamento das metas 24-27'!$A$2:$A$50,0))<>0,INDEX('Acompanhamento das metas 24-27'!$C$2:$C$50,MATCH(B26,'Acompanhamento das metas 24-27'!$A$2:$A$50,0)),\"\")","v":"Elaborar um projeto executivo PSA no município de Santo Antonio do Pinhal"},{"$f":"IF(VLOOKUP(A26,Financeiro[[id_ação_Fonte_oculta]:[R$  Executado (2027)]],4,FALSE)=0,\"\",VLOOKUP(A26,Financeiro[[id_ação_Fonte_oculta]:[R$  Executado (2027)]],4,FALSE))","v":"FEHIDRO - CFURH"},{"$f":"IFERROR(INDEX(IdentAcoes[SubPDC],MATCH(B26,IdentAcoes[ID Ação],0)),\"\")","v":"4.2 - Soluções baseadas Natureza"},{"$f":"IF(VLOOKUP(A26,Financeiro[[id_ação_Fonte_oculta]:[R$  Executado (2027)]],4,FALSE)=0,\"\",VLOOKUP(A26,Financeiro[[id_ação_Fonte_oculta]:[R$  Executado (2027)]],5,FALSE))","v":0},{"$f":"IF(VLOOKUP(A26,Financeiro[[id_ação_Fonte_oculta]:[R$  Executado (2027)]],4,FALSE)=0,\"\",VLOOKUP(A26,Financeiro[[id_ação_Fonte_oculta]:[R$  Executado (2027)]],8,FALSE))","v":0},{"$f":"IF(VLOOKUP(A26,Financeiro[[id_ação_Fonte_oculta]:[R$  Executado (2027)]],4,FALSE)=0,\"\",VLOOKUP(A26,Financeiro[[id_ação_Fonte_oculta]:[R$  Executado (2027)]],11,FALSE))","v":200000},{"$f":"IF(VLOOKUP(A26,Financeiro[[id_ação_Fonte_oculta]:[R$  Executado (2027)]],4,FALSE)=0,\"\",VLOOKUP(A26,Financeiro[[id_ação_Fonte_oculta]:[R$  Executado (2027)]],14,FALSE))","v":0},200000,{"$f":"IFERROR(INDEX(IdentAcoes[Prioridade do PDC],MATCH(B26,IdentAcoes[ID Ação],0)),\"\")","v":"Prioritário"},{"$f":"IFERROR(INDEX(IdentAcoes[Segmento do executor],MATCH($B26,IdentAcoes[ID Ação],0)),\"\")","v":"Sociedade Civil"},{"$f":"IFERROR(INDEX(IdentAcoes[Área de abrangência],MATCH($B26,IdentAcoes[ID Ação],0)),\"\")","v":"Área rural"},{"$f":"IFERROR(INDEX(IdentAcoes[Detalhamento da área de abrangência],MATCH($B26,IdentAcoes[ID Ação],0)),\"\")","v":"Município de Santo Antonio do Pinhal"}]
["SM-25-2027FEHIDRO - CFURH","SM-25-2027",{"$f":"INDEX(Financeiro[Descrição da ação],MATCH(B27,Financeiro[ID Ação], 0))","v":"T.7.1.1. Projetos (básicos e/ou executivos) de microdrenagem (sarjetas, guias, bocas de lobo, poços de visita, galerias, pavimentação com material drenante entre outros) no município de Campos do Jordão."},{"$f":"IF(INDEX('Acompanhamento das metas 24-27'!$C$2:$C$50,MATCH(B27,'Acompanhamento das metas 24-27'!$A$2:$A$50,0))<>0,INDEX('Acompanhamento das metas 24-27'!$C$2:$C$50,MATCH(B27,'Acompanhamento das metas 24-27'!$A$2:$A$50,0)),\"\")","v":"Elaborar 1 Projeto básico ou executivo de microdrenagem no Município de São Bento do Sapucaí"},{"$f":"IF(VLOOKUP(A27,Financeiro[[id_ação_Fonte_oculta]:[R$  Executado (2027)]],4,FALSE)=0,\"\",VLOOKUP(A27,Financeiro[[id_ação_Fonte_oculta]:[R$  Executado (2027)]],4,FALSE))","v":"FEHIDRO - CFURH"},{"$f":"IFERROR(INDEX(IdentAcoes[SubPDC],MATCH(B27,IdentAcoes[ID Ação],0)),\"\")","v":"7.1 - Drenagem"},{"$f":"IF(VLOOKUP(A27,Financeiro[[id_ação_Fonte_oculta]:[R$  Executado (2027)]],4,FALSE)=0,\"\",VLOOKUP(A27,Financeiro[[id_ação_Fonte_oculta]:[R$  Executado (2027)]],5,FALSE))","v":0},{"$f":"IF(VLOOKUP(A27,Financeiro[[id_ação_Fonte_oculta]:[R$  Executado (2027)]],4,FALSE)=0,\"\",VLOOKUP(A27,Financeiro[[id_ação_Fonte_oculta]:[R$  Executado (2027)]],8,FALSE))","v":0},{"$f":"IF(VLOOKUP(A27,Financeiro[[id_ação_Fonte_oculta]:[R$  Executado (2027)]],4,FALSE)=0,\"\",VLOOKUP(A27,Financeiro[[id_ação_Fonte_oculta]:[R$  Executado (2027)]],11,FALSE))","v":300000},{"$f":"IF(VLOOKUP(A27,Financeiro[[id_ação_Fonte_oculta]:[R$  Executado (2027)]],4,FALSE)=0,\"\",VLOOKUP(A27,Financeiro[[id_ação_Fonte_oculta]:[R$  Executado (2027)]],14,FALSE))","v":300000},600000,{"$f":"IFERROR(INDEX(IdentAcoes[Prioridade do PDC],MATCH(B27,IdentAcoes[ID Ação],0)),\"\")","v":"Prioritário"},{"$f":"IFERROR(INDEX(IdentAcoes[Segmento do executor],MATCH($B27,IdentAcoes[ID Ação],0)),\"\")","v":"Município"},{"$f":"IFERROR(INDEX(IdentAcoes[Área de abrangência],MATCH($B27,IdentAcoes[ID Ação],0)),\"\")","v":"Área urbana"},{"$f":"IFERROR(INDEX(IdentAcoes[Detalhamento da área de abrangência],MATCH($B27,IdentAcoes[ID Ação],0)),\"\")","v":"Município de Campos do Jordão / a definir"}]
["SM-26-2024FEHIDRO - CFURH","SM-26-2024",{"$f":"INDEX(Financeiro[Descrição da ação],MATCH(B28,Financeiro[ID Ação], 0))","v":"T.7.1.3. Projetos (básicos e/ou executivos) de macrodrenagem (canalizações, retificações, travessias entre outros) no município de Campos do Jordão."},{"$f":"IF(INDEX('Acompanhamento das metas 24-27'!$C$2:$C$50,MATCH(B28,'Acompanhamento das metas 24-27'!$A$2:$A$50,0))<>0,INDEX('Acompanhamento das metas 24-27'!$C$2:$C$50,MATCH(B28,'Acompanhamento das metas 24-27'!$A$2:$A$50,0)),\"\")","v":"Elaborar 1 Projeto básico ou executivo de macrodrenagem no Município de Campos do Jordão."},{"$f":"IF(VLOOKUP(A28,Financeiro[[id_ação_Fonte_oculta]:[R$  Executado (2027)]],4,FALSE)=0,\"\",VLOOKUP(A28,Financeiro[[id_ação_Fonte_oculta]:[R$  Executado (2027)]],4,FALSE))","v":"FEHIDRO - CFURH"},{"$f":"IFERROR(INDEX(IdentAcoes[SubPDC],MATCH(B28,IdentAcoes[ID Ação],0)),\"\")","v":"7.1 - Drenagem"},{"$f":"IF(VLOOKUP(A28,Financeiro[[id_ação_Fonte_oculta]:[R$  Executado (2027)]],4,FALSE)=0,\"\",VLOOKUP(A28,Financeiro[[id_ação_Fonte_oculta]:[R$  Executado (2027)]],5,FALSE))","v":450000},{"$f":"IF(VLOOKUP(A28,Financeiro[[id_ação_Fonte_oculta]:[R$  Executado (2027)]],4,FALSE)=0,\"\",VLOOKUP(A28,Financeiro[[id_ação_Fonte_oculta]:[R$  Executado (2027)]],8,FALSE))","v":0},{"$f":"IF(VLOOKUP(A28,Financeiro[[id_ação_Fonte_oculta]:[R$  Executado (2027)]],4,FALSE)=0,\"\",VLOOKUP(A28,Financeiro[[id_ação_Fonte_oculta]:[R$  Executado (2027)]],11,FALSE))","v":0},{"$f":"IF(VLOOKUP(A28,Financeiro[[id_ação_Fonte_oculta]:[R$  Executado (2027)]],4,FALSE)=0,\"\",VLOOKUP(A28,Financeiro[[id_ação_Fonte_oculta]:[R$  Executado (2027)]],14,FALSE))","v":0},450000,{"$f":"IFERROR(INDEX(IdentAcoes[Prioridade do PDC],MATCH(B28,IdentAcoes[ID Ação],0)),\"\")","v":"Prioritário"},{"$f":"IFERROR(INDEX(IdentAcoes[Segmento do executor],MATCH($B28,IdentAcoes[ID Ação],0)),\"\")","v":"Município"},{"$f":"IFERROR(INDEX(IdentAcoes[Área de abrangência],MATCH($B28,IdentAcoes[ID Ação],0)),\"\")","v":"Área urbana"},{"$f":"IFERROR(INDEX(IdentAcoes[Detalhamento da área de abrangência],MATCH($B28,IdentAcoes[ID Ação],0)),\"\")","v":"Município de Campos do Jordão / a definir"}]
["SM-27-2026FEHIDRO - CFURH","SM-27-2026",{"$f":"INDEX(Financeiro[Descrição da ação],MATCH(B29,Financeiro[ID Ação], 0))","v":"T.7.1.4. Obras/serviços de macrodrenagem (canalizações, retificações, travessias entre outros) no município de Campos do Jordão"},{"$f":"IF(INDEX('Acompanhamento das metas 24-27'!$C$2:$C$50,MATCH(B29,'Acompanhamento das metas 24-27'!$A$2:$A$50,0))<>0,INDEX('Acompanhamento das metas 24-27'!$C$2:$C$50,MATCH(B29,'Acompanhamento das metas 24-27'!$A$2:$A$50,0)),\"\")","v":"Elaborar 1 obra ou serviço de macrodrenagem no município de Campos do Jordão"},{"$f":"IF(VLOOKUP(A29,Financeiro[[id_ação_Fonte_oculta]:[R$  Executado (2027)]],4,FALSE)=0,\"\",VLOOKUP(A29,Financeiro[[id_ação_Fonte_oculta]:[R$  Executado (2027)]],4,FALSE))","v":"FEHIDRO - CFURH"},{"$f":"IFERROR(INDEX(IdentAcoes[SubPDC],MATCH(B29,IdentAcoes[ID Ação],0)),\"\")","v":"7.1 - Drenagem"},{"$f":"IF(VLOOKUP(A29,Financeiro[[id_ação_Fonte_oculta]:[R$  Executado (2027)]],4,FALSE)=0,\"\",VLOOKUP(A29,Financeiro[[id_ação_Fonte_oculta]:[R$  Executado (2027)]],5,FALSE))","v":0},{"$f":"IF(VLOOKUP(A29,Financeiro[[id_ação_Fonte_oculta]:[R$  Executado (2027)]],4,FALSE)=0,\"\",VLOOKUP(A29,Financeiro[[id_ação_Fonte_oculta]:[R$  Executado (2027)]],8,FALSE))","v":400000},{"$f":"IF(VLOOKUP(A29,Financeiro[[id_ação_Fonte_oculta]:[R$  Executado (2027)]],4,FALSE)=0,\"\",VLOOKUP(A29,Financeiro[[id_ação_Fonte_oculta]:[R$  Executado (2027)]],11,FALSE))","v":0},{"$f":"IF(VLOOKUP(A29,Financeiro[[id_ação_Fonte_oculta]:[R$  Executado (2027)]],4,FALSE)=0,\"\",VLOOKUP(A29,Financeiro[[id_ação_Fonte_oculta]:[R$  Executado (2027)]],14,FALSE))","v":0},400000,{"$f":"IFERROR(INDEX(IdentAcoes[Prioridade do PDC],MATCH(B29,IdentAcoes[ID Ação],0)),\"\")","v":"Prioritário"},{"$f":"IFERROR(INDEX(IdentAcoes[Segmento do executor],MATCH($B29,IdentAcoes[ID Ação],0)),\"\")","v":"Município"},{"$f":"IFERROR(INDEX(IdentAcoes[Área de abrangência],MATCH($B29,IdentAcoes[ID Ação],0)),\"\")","v":"Área urbana"},{"$f":"IFERROR(INDEX(IdentAcoes[Detalhamento da área de abrangência],MATCH($B29,IdentAcoes[ID Ação],0)),\"\")","v":"Município de Campos do Jordão / a definir"}]
["SM-28-2027FEHIDRO - CFURH","SM-28-2027",{"$f":"INDEX(Financeiro[Descrição da ação],MATCH(B30,Financeiro[ID Ação], 0))","v":"T.7.1.2. Obras/serviços de microdrenagem (sarjetas, guias, bocas de lobo, poços de visita, galerias, pavimentação com material drenante entre outros) no município de São Bento do Sapucaí."},{"$f":"IF(INDEX('Acompanhamento das metas 24-27'!$C$2:$C$50,MATCH(B30,'Acompanhamento das metas 24-27'!$A$2:$A$50,0))<>0,INDEX('Acompanhamento das metas 24-27'!$C$2:$C$50,MATCH(B30,'Acompanhamento das metas 24-27'!$A$2:$A$50,0)),\"\")","v":"Elaborar 1 obra ou serviço de microdrenagem no município de São Bento do Sapucaí."},{"$f":"IF(VLOOKUP(A30,Financeiro[[id_ação_Fonte_oculta]:[R$  Executado (2027)]],4,FALSE)=0,\"\",VLOOKUP(A30,Financeiro[[id_ação_Fonte_oculta]:[R$  Executado (2027)]],4,FALSE))","v":"FEHIDRO - CFURH"},{"$f":"IFERROR(INDEX(IdentAcoes[SubPDC],MATCH(B30,IdentAcoes[ID Ação],0)),\"\")","v":"7.1 - Drenagem"},{"$f":"IF(VLOOKUP(A30,Financeiro[[id_ação_Fonte_oculta]:[R$  Executado (2027)]],4,FALSE)=0,\"\",VLOOKUP(A30,Financeiro[[id_ação_Fonte_oculta]:[R$  Executado (2027)]],5,FALSE))","v":0},{"$f":"IF(VLOOKUP(A30,Financeiro[[id_ação_Fonte_oculta]:[R$  Executado (2027)]],4,FALSE)=0,\"\",VLOOKUP(A30,Financeiro[[id_ação_Fonte_oculta]:[R$  Executado (2027)]],8,FALSE))","v":0},{"$f":"IF(VLOOKUP(A30,Financeiro[[id_ação_Fonte_oculta]:[R$  Executado (2027)]],4,FALSE)=0,\"\",VLOOKUP(A30,Financeiro[[id_ação_Fonte_oculta]:[R$  Executado (2027)]],11,FALSE))","v":300000},{"$f":"IF(VLOOKUP(A30,Financeiro[[id_ação_Fonte_oculta]:[R$  Executado (2027)]],4,FALSE)=0,\"\",VLOOKUP(A30,Financeiro[[id_ação_Fonte_oculta]:[R$  Executado (2027)]],14,FALSE))","v":0},300000,{"$f":"IFERROR(INDEX(IdentAcoes[Prioridade do PDC],MATCH(B30,IdentAcoes[ID Ação],0)),\"\")","v":"Prioritário"},{"$f":"IFERROR(INDEX(IdentAcoes[Segmento do executor],MATCH($B30,IdentAcoes[ID Ação],0)),\"\")","v":"Município"},{"$f":"IFERROR(INDEX(IdentAcoes[Área de abrangência],MATCH($B30,IdentAcoes[ID Ação],0)),\"\")","v":"Área urbana"},{"$f":"IFERROR(INDEX(IdentAcoes[Detalhamento da área de abrangência],MATCH($B30,IdentAcoes[ID Ação],0)),\"\")","v":"Município de São Bento do Sapucaí / a definir"}]
["SM-29-2027FEHIDRO - CFURH","SM-29-2027",{"$f":"INDEX(Financeiro[Descrição da ação],MATCH(B31,Financeiro[ID Ação], 0))","v":"T.7.1.2. Obras/serviços de microdrenagem (sarjetas, guias, bocas de lobo, poços de visita, galerias, pavimentação com material drenante entre outros) no município de Santo Antonio do Pinhal."},{"$f":"IF(INDEX('Acompanhamento das metas 24-27'!$C$2:$C$50,MATCH(B31,'Acompanhamento das metas 24-27'!$A$2:$A$50,0))<>0,INDEX('Acompanhamento das metas 24-27'!$C$2:$C$50,MATCH(B31,'Acompanhamento das metas 24-27'!$A$2:$A$50,0)),\"\")","v":"Elaborar 1 obra ou serviço de microdrenagem no município de Santo Antonio do Pinhal"},{"$f":"IF(VLOOKUP(A31,Financeiro[[id_ação_Fonte_oculta]:[R$  Executado (2027)]],4,FALSE)=0,\"\",VLOOKUP(A31,Financeiro[[id_ação_Fonte_oculta]:[R$  Executado (2027)]],4,FALSE))","v":"FEHIDRO - CFURH"},{"$f":"IFERROR(INDEX(IdentAcoes[SubPDC],MATCH(B31,IdentAcoes[ID Ação],0)),\"\")","v":"7.1 - Drenagem"},{"$f":"IF(VLOOKUP(A31,Financeiro[[id_ação_Fonte_oculta]:[R$  Executado (2027)]],4,FALSE)=0,\"\",VLOOKUP(A31,Financeiro[[id_ação_Fonte_oculta]:[R$  Executado (2027)]],5,FALSE))","v":0},{"$f":"IF(VLOOKUP(A31,Financeiro[[id_ação_Fonte_oculta]:[R$  Executado (2027)]],4,FALSE)=0,\"\",VLOOKUP(A31,Financeiro[[id_ação_Fonte_oculta]:[R$  Executado (2027)]],8,FALSE))","v":0},{"$f":"IF(VLOOKUP(A31,Financeiro[[id_ação_Fonte_oculta]:[R$  Executado (2027)]],4,FALSE)=0,\"\",VLOOKUP(A31,Financeiro[[id_ação_Fonte_oculta]:[R$  Executado (2027)]],11,FALSE))","v":300000},{"$f":"IF(VLOOKUP(A31,Financeiro[[id_ação_Fonte_oculta]:[R$  Executado (2027)]],4,FALSE)=0,\"\",VLOOKUP(A31,Financeiro[[id_ação_Fonte_oculta]:[R$  Executado (2027)]],14,FALSE))","v":0},300000,{"$f":"IFERROR(INDEX(IdentAcoes[Prioridade do PDC],MATCH(B31,IdentAcoes[ID Ação],0)),\"\")","v":"Prioritário"},{"$f":"IFERROR(INDEX(IdentAcoes[Segmento do executor],MATCH($B31,IdentAcoes[ID Ação],0)),\"\")","v":"Município"},{"$f":"IFERROR(INDEX(IdentAcoes[Área de abrangência],MATCH($B31,IdentAcoes[ID Ação],0)),\"\")","v":"Área urbana"},{"$f":"IFERROR(INDEX(IdentAcoes[Detalhamento da área de abrangência],MATCH($B31,IdentAcoes[ID Ação],0)),\"\")","v":"Município de Santo Antonio do Pinhal / a definir"}]
["SM-30-2024FEHIDRO - CFURH","SM-30-2024",{"$f":"INDEX(Financeiro[Descrição da ação],MATCH(B32,Financeiro[ID Ação], 0))","v":"T.8.3.1. Campanha educativa voltada para a conservação e gestão dos recursos hídricos"},{"$f":"IF(INDEX('Acompanhamento das metas 24-27'!$C$2:$C$50,MATCH(B32,'Acompanhamento das metas 24-27'!$A$2:$A$50,0))<>0,INDEX('Acompanhamento das metas 24-27'!$C$2:$C$50,MATCH(B32,'Acompanhamento das metas 24-27'!$A$2:$A$50,0)),\"\")","v":"Elaborar campanha educativa voltada a tratamento de resíduos sólidos nos municípios de Santo Antonio do Pinhal e Sao Bento do Sapucaí"},{"$f":"IF(VLOOKUP(A32,Financeiro[[id_ação_Fonte_oculta]:[R$  Executado (2027)]],4,FALSE)=0,\"\",VLOOKUP(A32,Financeiro[[id_ação_Fonte_oculta]:[R$  Executado (2027)]],4,FALSE))","v":"FEHIDRO - CFURH"},{"$f":"IFERROR(INDEX(IdentAcoes[SubPDC],MATCH(B32,IdentAcoes[ID Ação],0)),\"\")","v":"8.3 - Comunicação"},{"$f":"IF(VLOOKUP(A32,Financeiro[[id_ação_Fonte_oculta]:[R$  Executado (2027)]],4,FALSE)=0,\"\",VLOOKUP(A32,Financeiro[[id_ação_Fonte_oculta]:[R$  Executado (2027)]],5,FALSE))","v":180000},{"$f":"IF(VLOOKUP(A32,Financeiro[[id_ação_Fonte_oculta]:[R$  Executado (2027)]],4,FALSE)=0,\"\",VLOOKUP(A32,Financeiro[[id_ação_Fonte_oculta]:[R$  Executado (2027)]],8,FALSE))","v":0},{"$f":"IF(VLOOKUP(A32,Financeiro[[id_ação_Fonte_oculta]:[R$  Executado (2027)]],4,FALSE)=0,\"\",VLOOKUP(A32,Financeiro[[id_ação_Fonte_oculta]:[R$  Executado (2027)]],11,FALSE))","v":0},{"$f":"IF(VLOOKUP(A32,Financeiro[[id_ação_Fonte_oculta]:[R$  Executado (2027)]],4,FALSE)=0,\"\",VLOOKUP(A32,Financeiro[[id_ação_Fonte_oculta]:[R$  Executado (2027)]],14,FALSE))","v":0},180000,{"$f":"IFERROR(INDEX(IdentAcoes[Prioridade do PDC],MATCH(B32,IdentAcoes[ID Ação],0)),\"\")","v":"Não prioritário"},{"$f":"IFERROR(INDEX(IdentAcoes[Segmento do executor],MATCH($B32,IdentAcoes[ID Ação],0)),\"\")","v":"Sociedade Civil"},{"$f":"IFERROR(INDEX(IdentAcoes[Área de abrangência],MATCH($B32,IdentAcoes[ID Ação],0)),\"\")","v":"Município"},{"$f":"IFERROR(INDEX(IdentAcoes[Detalhamento da área de abrangência],MATCH($B32,IdentAcoes[ID Ação],0)),\"\")","v":"Municípios de Santo Antonio do Pinhal e Sào Bento do Sapucaí"}]
["SM-31-2024FEHIDRO - CFURH","SM-31-2024",{"$f":"INDEX(Financeiro[Descrição da ação],MATCH(B33,Financeiro[ID Ação], 0))","v":"T.8.3.2. Serviços afetos à elaboração e divulgação de instrumentos de comunicação social"},{"$f":"IF(INDEX('Acompanhamento das metas 24-27'!$C$2:$C$50,MATCH(B33,'Acompanhamento das metas 24-27'!$A$2:$A$50,0))<>0,INDEX('Acompanhamento das metas 24-27'!$C$2:$C$50,MATCH(B33,'Acompanhamento das metas 24-27'!$A$2:$A$50,0)),\"\")","v":"Implementar as atividades de comunicação social e educação ambiental do CBH-SM  de forma contínua anualmente."},{"$f":"IF(VLOOKUP(A33,Financeiro[[id_ação_Fonte_oculta]:[R$  Executado (2027)]],4,FALSE)=0,\"\",VLOOKUP(A33,Financeiro[[id_ação_Fonte_oculta]:[R$  Executado (2027)]],4,FALSE))","v":"FEHIDRO - CFURH"},{"$f":"IFERROR(INDEX(IdentAcoes[SubPDC],MATCH(B33,IdentAcoes[ID Ação],0)),\"\")","v":"8.3 - Comunicação"},{"$f":"IF(VLOOKUP(A33,Financeiro[[id_ação_Fonte_oculta]:[R$  Executado (2027)]],4,FALSE)=0,\"\",VLOOKUP(A33,Financeiro[[id_ação_Fonte_oculta]:[R$  Executado (2027)]],5,FALSE))","v":180000},{"$f":"IF(VLOOKUP(A33,Financeiro[[id_ação_Fonte_oculta]:[R$  Executado (2027)]],4,FALSE)=0,\"\",VLOOKUP(A33,Financeiro[[id_ação_Fonte_oculta]:[R$  Executado (2027)]],8,FALSE))","v":0},{"$f":"IF(VLOOKUP(A33,Financeiro[[id_ação_Fonte_oculta]:[R$  Executado (2027)]],4,FALSE)=0,\"\",VLOOKUP(A33,Financeiro[[id_ação_Fonte_oculta]:[R$  Executado (2027)]],11,FALSE))","v":0},{"$f":"IF(VLOOKUP(A33,Financeiro[[id_ação_Fonte_oculta]:[R$  Executado (2027)]],4,FALSE)=0,\"\",VLOOKUP(A33,Financeiro[[id_ação_Fonte_oculta]:[R$  Executado (2027)]],14,FALSE))","v":350000},530000,{"$f":"IFERROR(INDEX(IdentAcoes[Prioridade do PDC],MATCH(B33,IdentAcoes[ID Ação],0)),\"\")","v":"Não prioritário"},{"$f":"IFERROR(INDEX(IdentAcoes[Segmento do executor],MATCH($B33,IdentAcoes[ID Ação],0)),\"\")","v":"Sociedade Civil"},{"$f":"IFERROR(INDEX(IdentAcoes[Área de abrangência],MATCH($B33,IdentAcoes[ID Ação],0)),\"\")","v":"UGRHi"},{"$f":"IFERROR(INDEX(IdentAcoes[Detalhamento da área de abrangência],MATCH($B33,IdentAcoes[ID Ação],0)),\"\")","v":"UGRHI-1"}]
["SM-32-2024FEHIDRO - CFURH","SM-32-2024",{"$f":"INDEX(Financeiro[Descrição da ação],MATCH(B34,Financeiro[ID Ação], 0))","v":"1.2.19 Revisão do Plano de Gestão Integrada de Resíduos sólidos de Santo Antonio do Pinhal."},{"$f":"IF(INDEX('Acompanhamento das metas 24-27'!$C$2:$C$50,MATCH(B34,'Acompanhamento das metas 24-27'!$A$2:$A$50,0))<>0,INDEX('Acompanhamento das metas 24-27'!$C$2:$C$50,MATCH(B34,'Acompanhamento das metas 24-27'!$A$2:$A$50,0)),\"\")","v":"Atualizar o Plano de Residos Sólidos no município de Santo Antonio do Pinhal."},{"$f":"IF(VLOOKUP(A34,Financeiro[[id_ação_Fonte_oculta]:[R$  Executado (2027)]],4,FALSE)=0,\"\",VLOOKUP(A34,Financeiro[[id_ação_Fonte_oculta]:[R$  Executado (2027)]],4,FALSE))","v":"FEHIDRO - CFURH"},{"$f":"IFERROR(INDEX(IdentAcoes[SubPDC],MATCH(B34,IdentAcoes[ID Ação],0)),\"\")","v":"1.2 - Planejamento"},{"$f":"IF(VLOOKUP(A34,Financeiro[[id_ação_Fonte_oculta]:[R$  Executado (2027)]],4,FALSE)=0,\"\",VLOOKUP(A34,Financeiro[[id_ação_Fonte_oculta]:[R$  Executado (2027)]],5,FALSE))","v":0},{"$f":"IF(VLOOKUP(A34,Financeiro[[id_ação_Fonte_oculta]:[R$  Executado (2027)]],4,FALSE)=0,\"\",VLOOKUP(A34,Financeiro[[id_ação_Fonte_oculta]:[R$  Executado (2027)]],8,FALSE))","v":0},{"$f":"IF(VLOOKUP(A34,Financeiro[[id_ação_Fonte_oculta]:[R$  Executado (2027)]],4,FALSE)=0,\"\",VLOOKUP(A34,Financeiro[[id_ação_Fonte_oculta]:[R$  Executado (2027)]],11,FALSE))","v":0},{"$f":"IF(VLOOKUP(A34,Financeiro[[id_ação_Fonte_oculta]:[R$  Executado (2027)]],4,FALSE)=0,\"\",VLOOKUP(A34,Financeiro[[id_ação_Fonte_oculta]:[R$  Executado (2027)]],14,FALSE))","v":0},0,{"$f":"IFERROR(INDEX(IdentAcoes[Prioridade do PDC],MATCH(B34,IdentAcoes[ID Ação],0)),\"\")","v":"PDC 1 e 2"},{"$f":"IFERROR(INDEX(IdentAcoes[Segmento do executor],MATCH($B34,IdentAcoes[ID Ação],0)),\"\")","v":"Sociedade Civil"},{"$f":"IFERROR(INDEX(IdentAcoes[Área de abrangência],MATCH($B34,IdentAcoes[ID Ação],0)),\"\")","v":"Município"},{"$f":"IFERROR(INDEX(IdentAcoes[Detalhamento da área de abrangência],MATCH($B34,IdentAcoes[ID Ação],0)),\"\")","v":"Município de Santo Antonio do Pinhal"}]
["SM-33-2024FEHIDRO - CFURH","SM-33-2024",{"$f":"INDEX(Financeiro[Descrição da ação],MATCH(B35,Financeiro[ID Ação], 0))","v":"1.2.19 Revisão do Plano de Gestão Integrada de Resíduos sólidos de São Bento do Sapucaí"},{"$f":"IF(INDEX('Acompanhamento das metas 24-27'!$C$2:$C$50,MATCH(B35,'Acompanhamento das metas 24-27'!$A$2:$A$50,0))<>0,INDEX('Acompanhamento das metas 24-27'!$C$2:$C$50,MATCH(B35,'Acompanhamento das metas 24-27'!$A$2:$A$50,0)),\"\")","v":"Atualizar o Plano de Residos Sólidos no município de São Bento do Sapucai."},{"$f":"IF(VLOOKUP(A35,Financeiro[[id_ação_Fonte_oculta]:[R$  Executado (2027)]],4,FALSE)=0,\"\",VLOOKUP(A35,Financeiro[[id_ação_Fonte_oculta]:[R$  Executado (2027)]],4,FALSE))","v":"FEHIDRO - CFURH"},{"$f":"IFERROR(INDEX(IdentAcoes[SubPDC],MATCH(B35,IdentAcoes[ID Ação],0)),\"\")","v":"1.2 - Planejamento"},{"$f":"IF(VLOOKUP(A35,Financeiro[[id_ação_Fonte_oculta]:[R$  Executado (2027)]],4,FALSE)=0,\"\",VLOOKUP(A35,Financeiro[[id_ação_Fonte_oculta]:[R$  Executado (2027)]],5,FALSE))","v":0},{"$f":"IF(VLOOKUP(A35,Financeiro[[id_ação_Fonte_oculta]:[R$  Executado (2027)]],4,FALSE)=0,\"\",VLOOKUP(A35,Financeiro[[id_ação_Fonte_oculta]:[R$  Executado (2027)]],8,FALSE))","v":0},{"$f":"IF(VLOOKUP(A35,Financeiro[[id_ação_Fonte_oculta]:[R$  Executado (2027)]],4,FALSE)=0,\"\",VLOOKUP(A35,Financeiro[[id_ação_Fonte_oculta]:[R$  Executado (2027)]],11,FALSE))","v":0},{"$f":"IF(VLOOKUP(A35,Financeiro[[id_ação_Fonte_oculta]:[R$  Executado (2027)]],4,FALSE)=0,\"\",VLOOKUP(A35,Financeiro[[id_ação_Fonte_oculta]:[R$  Executado (2027)]],14,FALSE))","v":0},0,{"$f":"IFERROR(INDEX(IdentAcoes[Prioridade do PDC],MATCH(B35,IdentAcoes[ID Ação],0)),\"\")","v":"PDC 1 e 2"},{"$f":"IFERROR(INDEX(IdentAcoes[Segmento do executor],MATCH($B35,IdentAcoes[ID Ação],0)),\"\")","v":"Sociedade Civil"},{"$f":"IFERROR(INDEX(IdentAcoes[Área de abrangência],MATCH($B35,IdentAcoes[ID Ação],0)),\"\")","v":"Município"},{"$f":"IFERROR(INDEX(IdentAcoes[Detalhamento da área de abrangência],MATCH($B35,IdentAcoes[ID Ação],0)),\"\")","v":"Município \nSão Bento do Sapucaí"}]
["SM-34-2024FEHIDRO - CFURH","SM-34-2024",{"$f":"INDEX(Financeiro[Descrição da ação],MATCH(B36,Financeiro[ID Ação], 0))","v":"T.4.2.13. Projeto executivo de Pagamento por Serviços Ambientais relacionados à água "},{"$f":"IF(INDEX('Acompanhamento das metas 24-27'!$C$2:$C$50,MATCH(B36,'Acompanhamento das metas 24-27'!$A$2:$A$50,0))<>0,INDEX('Acompanhamento das metas 24-27'!$C$2:$C$50,MATCH(B36,'Acompanhamento das metas 24-27'!$A$2:$A$50,0)),\"\")","v":"Obter Diagnostico, Estudos, Recuperação e Proteção da Bacia do Ribeirão Serrano – São Bento do Sapucaí"},{"$f":"IF(VLOOKUP(A36,Financeiro[[id_ação_Fonte_oculta]:[R$  Executado (2027)]],4,FALSE)=0,\"\",VLOOKUP(A36,Financeiro[[id_ação_Fonte_oculta]:[R$  Executado (2027)]],4,FALSE))","v":"FEHIDRO - CFURH"},{"$f":"IFERROR(INDEX(IdentAcoes[SubPDC],MATCH(B36,IdentAcoes[ID Ação],0)),\"\")","v":"4.2 - Soluções baseadas Natureza"},{"$f":"IF(VLOOKUP(A36,Financeiro[[id_ação_Fonte_oculta]:[R$  Executado (2027)]],4,FALSE)=0,\"\",VLOOKUP(A36,Financeiro[[id_ação_Fonte_oculta]:[R$  Executado (2027)]],5,FALSE))","v":0},{"$f":"IF(VLOOKUP(A36,Financeiro[[id_ação_Fonte_oculta]:[R$  Executado (2027)]],4,FALSE)=0,\"\",VLOOKUP(A36,Financeiro[[id_ação_Fonte_oculta]:[R$  Executado (2027)]],8,FALSE))","v":0},{"$f":"IF(VLOOKUP(A36,Financeiro[[id_ação_Fonte_oculta]:[R$  Executado (2027)]],4,FALSE)=0,\"\",VLOOKUP(A36,Financeiro[[id_ação_Fonte_oculta]:[R$  Executado (2027)]],11,FALSE))","v":0},{"$f":"IF(VLOOKUP(A36,Financeiro[[id_ação_Fonte_oculta]:[R$  Executado (2027)]],4,FALSE)=0,\"\",VLOOKUP(A36,Financeiro[[id_ação_Fonte_oculta]:[R$  Executado (2027)]],14,FALSE))","v":0},0,{"$f":"IFERROR(INDEX(IdentAcoes[Prioridade do PDC],MATCH(B36,IdentAcoes[ID Ação],0)),\"\")","v":"Prioritário"},{"$f":"IFERROR(INDEX(IdentAcoes[Segmento do executor],MATCH($B36,IdentAcoes[ID Ação],0)),\"\")","v":"Sociedade Civil"},{"$f":"IFERROR(INDEX(IdentAcoes[Área de abrangência],MATCH($B36,IdentAcoes[ID Ação],0)),\"\")","v":"Sub-bacia"},{"$f":"IFERROR(INDEX(IdentAcoes[Detalhamento da área de abrangência],MATCH($B36,IdentAcoes[ID Ação],0)),\"\")","v":"Município de São Bento do Sapucaí / a definir"}]
["SM-35-2025FEHIDRO - CFURH","SM-35-2025",{"$f":"INDEX(Financeiro[Descrição da ação],MATCH(B37,Financeiro[ID Ação], 0))","v":"T.1.2.11. Estudo, levantamento, diagnóstico para subsidiar projetos de PSA "},{"$f":"IF(INDEX('Acompanhamento das metas 24-27'!$C$2:$C$50,MATCH(B37,'Acompanhamento das metas 24-27'!$A$2:$A$50,0))<>0,INDEX('Acompanhamento das metas 24-27'!$C$2:$C$50,MATCH(B37,'Acompanhamento das metas 24-27'!$A$2:$A$50,0)),\"\")","v":"Subsidiar PSA – cadastramento das propriedades rurais interessadas em projetos melhorias ambientais."},{"$f":"IF(VLOOKUP(A37,Financeiro[[id_ação_Fonte_oculta]:[R$  Executado (2027)]],4,FALSE)=0,\"\",VLOOKUP(A37,Financeiro[[id_ação_Fonte_oculta]:[R$  Executado (2027)]],4,FALSE))","v":"FEHIDRO - CFURH"},{"$f":"IFERROR(INDEX(IdentAcoes[SubPDC],MATCH(B37,IdentAcoes[ID Ação],0)),\"\")","v":"1.2 - Planejamento"},{"$f":"IF(VLOOKUP(A37,Financeiro[[id_ação_Fonte_oculta]:[R$  Executado (2027)]],4,FALSE)=0,\"\",VLOOKUP(A37,Financeiro[[id_ação_Fonte_oculta]:[R$  Executado (2027)]],5,FALSE))","v":0},{"$f":"IF(VLOOKUP(A37,Financeiro[[id_ação_Fonte_oculta]:[R$  Executado (2027)]],4,FALSE)=0,\"\",VLOOKUP(A37,Financeiro[[id_ação_Fonte_oculta]:[R$  Executado (2027)]],8,FALSE))","v":200000},{"$f":"IF(VLOOKUP(A37,Financeiro[[id_ação_Fonte_oculta]:[R$  Executado (2027)]],4,FALSE)=0,\"\",VLOOKUP(A37,Financeiro[[id_ação_Fonte_oculta]:[R$  Executado (2027)]],11,FALSE))","v":0},{"$f":"IF(VLOOKUP(A37,Financeiro[[id_ação_Fonte_oculta]:[R$  Executado (2027)]],4,FALSE)=0,\"\",VLOOKUP(A37,Financeiro[[id_ação_Fonte_oculta]:[R$  Executado (2027)]],14,FALSE))","v":0},200000,{"$f":"IFERROR(INDEX(IdentAcoes[Prioridade do PDC],MATCH(B37,IdentAcoes[ID Ação],0)),\"\")","v":"PDC 1 e 2"},{"$f":"IFERROR(INDEX(IdentAcoes[Segmento do executor],MATCH($B37,IdentAcoes[ID Ação],0)),\"\")","v":"Sociedade Civil"},{"$f":"IFERROR(INDEX(IdentAcoes[Área de abrangência],MATCH($B37,IdentAcoes[ID Ação],0)),\"\")","v":"Sub-bacia"},{"$f":"IFERROR(INDEX(IdentAcoes[Detalhamento da área de abrangência],MATCH($B37,IdentAcoes[ID Ação],0)),\"\")","v":"Município de São Bento do Sapucaí / a definir"}]
["SM-36-2026FEHIDRO - CFURH","SM-36-2026",{"$f":"INDEX(Financeiro[Descrição da ação],MATCH(B38,Financeiro[ID Ação], 0))","v":"T.1.2.16 Planejamento territorial com foco na conservação, proteção, recuperação ou uso dos recur-sos hídricos -Sao Bento do Sapucai"},{"$f":"IF(INDEX('Acompanhamento das metas 24-27'!$C$2:$C$50,MATCH(B38,'Acompanhamento das metas 24-27'!$A$2:$A$50,0))<>0,INDEX('Acompanhamento das metas 24-27'!$C$2:$C$50,MATCH(B38,'Acompanhamento das metas 24-27'!$A$2:$A$50,0)),\"\")","v":"Planejamento territorial – (continuidade do mapa de uso e ocupação do solo)"},{"$f":"IF(VLOOKUP(A38,Financeiro[[id_ação_Fonte_oculta]:[R$  Executado (2027)]],4,FALSE)=0,\"\",VLOOKUP(A38,Financeiro[[id_ação_Fonte_oculta]:[R$  Executado (2027)]],4,FALSE))","v":"FEHIDRO - CFURH"},{"$f":"IFERROR(INDEX(IdentAcoes[SubPDC],MATCH(B38,IdentAcoes[ID Ação],0)),\"\")","v":"1.2 - Planejamento"},{"$f":"IF(VLOOKUP(A38,Financeiro[[id_ação_Fonte_oculta]:[R$  Executado (2027)]],4,FALSE)=0,\"\",VLOOKUP(A38,Financeiro[[id_ação_Fonte_oculta]:[R$  Executado (2027)]],5,FALSE))","v":0},{"$f":"IF(VLOOKUP(A38,Financeiro[[id_ação_Fonte_oculta]:[R$  Executado (2027)]],4,FALSE)=0,\"\",VLOOKUP(A38,Financeiro[[id_ação_Fonte_oculta]:[R$  Executado (2027)]],8,FALSE))","v":0},{"$f":"IF(VLOOKUP(A38,Financeiro[[id_ação_Fonte_oculta]:[R$  Executado (2027)]],4,FALSE)=0,\"\",VLOOKUP(A38,Financeiro[[id_ação_Fonte_oculta]:[R$  Executado (2027)]],11,FALSE))","v":300000},{"$f":"IF(VLOOKUP(A38,Financeiro[[id_ação_Fonte_oculta]:[R$  Executado (2027)]],4,FALSE)=0,\"\",VLOOKUP(A38,Financeiro[[id_ação_Fonte_oculta]:[R$  Executado (2027)]],14,FALSE))","v":0},300000,{"$f":"IFERROR(INDEX(IdentAcoes[Prioridade do PDC],MATCH(B38,IdentAcoes[ID Ação],0)),\"\")","v":"PDC 1 e 2"},{"$f":"IFERROR(INDEX(IdentAcoes[Segmento do executor],MATCH($B38,IdentAcoes[ID Ação],0)),\"\")","v":"Sociedade Civil"},{"$f":"IFERROR(INDEX(IdentAcoes[Área de abrangência],MATCH($B38,IdentAcoes[ID Ação],0)),\"\")","v":"Município"},{"$f":"IFERROR(INDEX(IdentAcoes[Detalhamento da área de abrangência],MATCH($B38,IdentAcoes[ID Ação],0)),\"\")","v":"Município \nSão Bento do Sapucaí"}]
["SM-37-2026FEHIDRO - CFURH","SM-37-2026",{"$f":"INDEX(Financeiro[Descrição da ação],MATCH(B39,Financeiro[ID Ação], 0))","v":"T.1.2.16 Planejamento territorial com foco na conservação, proteção, recuperação ou uso dos recur-sos hídricos -Santo Antonio do Pinhal"},{"$f":"IF(INDEX('Acompanhamento das metas 24-27'!$C$2:$C$50,MATCH(B39,'Acompanhamento das metas 24-27'!$A$2:$A$50,0))<>0,INDEX('Acompanhamento das metas 24-27'!$C$2:$C$50,MATCH(B39,'Acompanhamento das metas 24-27'!$A$2:$A$50,0)),\"\")","v":"Planejamento territorial – (continuidade do mapa de uso e ocupação do solo)"},{"$f":"IF(VLOOKUP(A39,Financeiro[[id_ação_Fonte_oculta]:[R$  Executado (2027)]],4,FALSE)=0,\"\",VLOOKUP(A39,Financeiro[[id_ação_Fonte_oculta]:[R$  Executado (2027)]],4,FALSE))","v":"FEHIDRO - CFURH"},{"$f":"IFERROR(INDEX(IdentAcoes[SubPDC],MATCH(B39,IdentAcoes[ID Ação],0)),\"\")","v":"1.2 - Planejamento"},{"$f":"IF(VLOOKUP(A39,Financeiro[[id_ação_Fonte_oculta]:[R$  Executado (2027)]],4,FALSE)=0,\"\",VLOOKUP(A39,Financeiro[[id_ação_Fonte_oculta]:[R$  Executado (2027)]],5,FALSE))","v":0},{"$f":"IF(VLOOKUP(A39,Financeiro[[id_ação_Fonte_oculta]:[R$  Executado (2027)]],4,FALSE)=0,\"\",VLOOKUP(A39,Financeiro[[id_ação_Fonte_oculta]:[R$  Executado (2027)]],8,FALSE))","v":0},{"$f":"IF(VLOOKUP(A39,Financeiro[[id_ação_Fonte_oculta]:[R$  Executado (2027)]],4,FALSE)=0,\"\",VLOOKUP(A39,Financeiro[[id_ação_Fonte_oculta]:[R$  Executado (2027)]],11,FALSE))","v":300000},{"$f":"IF(VLOOKUP(A39,Financeiro[[id_ação_Fonte_oculta]:[R$  Executado (2027)]],4,FALSE)=0,\"\",VLOOKUP(A39,Financeiro[[id_ação_Fonte_oculta]:[R$  Executado (2027)]],14,FALSE))","v":0},300000,{"$f":"IFERROR(INDEX(IdentAcoes[Prioridade do PDC],MATCH(B39,IdentAcoes[ID Ação],0)),\"\")","v":"PDC 1 e 2"},{"$f":"IFERROR(INDEX(IdentAcoes[Segmento do executor],MATCH($B39,IdentAcoes[ID Ação],0)),\"\")","v":"Sociedade Civil"},{"$f":"IFERROR(INDEX(IdentAcoes[Área de abrangência],MATCH($B39,IdentAcoes[ID Ação],0)),\"\")","v":"Município"},{"$f":"IFERROR(INDEX(IdentAcoes[Detalhamento da área de abrangência],MATCH($B39,IdentAcoes[ID Ação],0)),\"\")","v":"Município de Santo Antonio do Pinhal"}]
["SM-38-2025FEHIDRO - CFURH","SM-38-2025",{"$f":"INDEX(Financeiro[Descrição da ação],MATCH(B40,Financeiro[ID Ação], 0))","v":"T.3.2.1. Projetos (básicos e/ou executivos) de recuperação de áreas contaminadas "},{"$f":"IF(INDEX('Acompanhamento das metas 24-27'!$C$2:$C$50,MATCH(B40,'Acompanhamento das metas 24-27'!$A$2:$A$50,0))<>0,INDEX('Acompanhamento das metas 24-27'!$C$2:$C$50,MATCH(B40,'Acompanhamento das metas 24-27'!$A$2:$A$50,0)),\"\")","v":"áreas contaminadas – poluição difusa – cemitério São Bento do Sapucai – 2025"},{"$f":"IF(VLOOKUP(A40,Financeiro[[id_ação_Fonte_oculta]:[R$  Executado (2027)]],4,FALSE)=0,\"\",VLOOKUP(A40,Financeiro[[id_ação_Fonte_oculta]:[R$  Executado (2027)]],4,FALSE))","v":"FEHIDRO - CFURH"},{"$f":"IFERROR(INDEX(IdentAcoes[SubPDC],MATCH(B40,IdentAcoes[ID Ação],0)),\"\")","v":"3.3 - Resíduos"},{"$f":"IF(VLOOKUP(A40,Financeiro[[id_ação_Fonte_oculta]:[R$  Executado (2027)]],4,FALSE)=0,\"\",VLOOKUP(A40,Financeiro[[id_ação_Fonte_oculta]:[R$  Executado (2027)]],5,FALSE))","v":0},{"$f":"IF(VLOOKUP(A40,Financeiro[[id_ação_Fonte_oculta]:[R$  Executado (2027)]],4,FALSE)=0,\"\",VLOOKUP(A40,Financeiro[[id_ação_Fonte_oculta]:[R$  Executado (2027)]],8,FALSE))","v":150000},{"$f":"IF(VLOOKUP(A40,Financeiro[[id_ação_Fonte_oculta]:[R$  Executado (2027)]],4,FALSE)=0,\"\",VLOOKUP(A40,Financeiro[[id_ação_Fonte_oculta]:[R$  Executado (2027)]],11,FALSE))","v":0},{"$f":"IF(VLOOKUP(A40,Financeiro[[id_ação_Fonte_oculta]:[R$  Executado (2027)]],4,FALSE)=0,\"\",VLOOKUP(A40,Financeiro[[id_ação_Fonte_oculta]:[R$  Executado (2027)]],14,FALSE))","v":0},150000,{"$f":"IFERROR(INDEX(IdentAcoes[Prioridade do PDC],MATCH(B40,IdentAcoes[ID Ação],0)),\"\")","v":"Prioritário"},{"$f":"IFERROR(INDEX(IdentAcoes[Segmento do executor],MATCH($B40,IdentAcoes[ID Ação],0)),\"\")","v":"Sociedade Civil"},{"$f":"IFERROR(INDEX(IdentAcoes[Área de abrangência],MATCH($B40,IdentAcoes[ID Ação],0)),\"\")","v":"Área urbana"},{"$f":"IFERROR(INDEX(IdentAcoes[Detalhamento da área de abrangência],MATCH($B40,IdentAcoes[ID Ação],0)),\"\")","v":"Município \nSão Bento do Sapucaí / cemiterio"}]
["SM-39-2026FEHIDRO - CFURH","SM-39-2026",{"$f":"INDEX(Financeiro[Descrição da ação],MATCH(B41,Financeiro[ID Ação], 0))","v":"T.3.3.1 – Projeto ( básico ou executivo) de aterro sanitário para disposição de resíduos solidos domiciliares (continuidade Revisão Plano de Resíduos Sólidos São Bento do Sapucaí)"},{"$f":"IF(INDEX('Acompanhamento das metas 24-27'!$C$2:$C$50,MATCH(B41,'Acompanhamento das metas 24-27'!$A$2:$A$50,0))<>0,INDEX('Acompanhamento das metas 24-27'!$C$2:$C$50,MATCH(B41,'Acompanhamento das metas 24-27'!$A$2:$A$50,0)),\"\")","v":"Projeto inicial de aterro sanitário para disposição de resíduos solidos domiciliares (continuidade Revisão Plano de Resíduos Sólidos) - São Bento do Sapucaí"},{"$f":"IF(VLOOKUP(A41,Financeiro[[id_ação_Fonte_oculta]:[R$  Executado (2027)]],4,FALSE)=0,\"\",VLOOKUP(A41,Financeiro[[id_ação_Fonte_oculta]:[R$  Executado (2027)]],4,FALSE))","v":"FEHIDRO - CFURH"},{"$f":"IFERROR(INDEX(IdentAcoes[SubPDC],MATCH(B41,IdentAcoes[ID Ação],0)),\"\")","v":"3.3 - Resíduos"},{"$f":"IF(VLOOKUP(A41,Financeiro[[id_ação_Fonte_oculta]:[R$  Executado (2027)]],4,FALSE)=0,\"\",VLOOKUP(A41,Financeiro[[id_ação_Fonte_oculta]:[R$  Executado (2027)]],5,FALSE))","v":0},{"$f":"IF(VLOOKUP(A41,Financeiro[[id_ação_Fonte_oculta]:[R$  Executado (2027)]],4,FALSE)=0,\"\",VLOOKUP(A41,Financeiro[[id_ação_Fonte_oculta]:[R$  Executado (2027)]],8,FALSE))","v":0},{"$f":"IF(VLOOKUP(A41,Financeiro[[id_ação_Fonte_oculta]:[R$  Executado (2027)]],4,FALSE)=0,\"\",VLOOKUP(A41,Financeiro[[id_ação_Fonte_oculta]:[R$  Executado (2027)]],11,FALSE))","v":100000},{"$f":"IF(VLOOKUP(A41,Financeiro[[id_ação_Fonte_oculta]:[R$  Executado (2027)]],4,FALSE)=0,\"\",VLOOKUP(A41,Financeiro[[id_ação_Fonte_oculta]:[R$  Executado (2027)]],14,FALSE))","v":0},100000,{"$f":"IFERROR(INDEX(IdentAcoes[Prioridade do PDC],MATCH(B41,IdentAcoes[ID Ação],0)),\"\")","v":"Prioritário"},{"$f":"IFERROR(INDEX(IdentAcoes[Segmento do executor],MATCH($B41,IdentAcoes[ID Ação],0)),\"\")","v":"Município e Sociedade Civil"},{"$f":"IFERROR(INDEX(IdentAcoes[Área de abrangência],MATCH($B41,IdentAcoes[ID Ação],0)),\"\")","v":"Município"},{"$f":"IFERROR(INDEX(IdentAcoes[Detalhamento da área de abrangência],MATCH($B41,IdentAcoes[ID Ação],0)),\"\")","v":"Município \nSão Bento do Sapucaí"}]
["SM-40-2027FEHIDRO - CFURH","SM-40-2027",{"$f":"INDEX(Financeiro[Descrição da ação],MATCH(B42,Financeiro[ID Ação], 0))","v":"T.3.3.1 – Projeto ( básico ou executivo) de aterro sanitário para disposição de resíduos solidos domiciliares (continuidade Revisão Plano de Resíduos Sólidos - Santo Antonio do Pinhal)"},{"$f":"IF(INDEX('Acompanhamento das metas 24-27'!$C$2:$C$50,MATCH(B42,'Acompanhamento das metas 24-27'!$A$2:$A$50,0))<>0,INDEX('Acompanhamento das metas 24-27'!$C$2:$C$50,MATCH(B42,'Acompanhamento das metas 24-27'!$A$2:$A$50,0)),\"\")","v":"Projeto inicial de aterro sanitário para disposição de resíduos solidos domiciliares (continuidade Revisão Plano de Resíduos Sólidos)-Santo Antonio do Pinhal"},{"$f":"IF(VLOOKUP(A42,Financeiro[[id_ação_Fonte_oculta]:[R$  Executado (2027)]],4,FALSE)=0,\"\",VLOOKUP(A42,Financeiro[[id_ação_Fonte_oculta]:[R$  Executado (2027)]],4,FALSE))","v":"FEHIDRO - CFURH"},{"$f":"IFERROR(INDEX(IdentAcoes[SubPDC],MATCH(B42,IdentAcoes[ID Ação],0)),\"\")","v":"3.3 - Resíduos"},{"$f":"IF(VLOOKUP(A42,Financeiro[[id_ação_Fonte_oculta]:[R$  Executado (2027)]],4,FALSE)=0,\"\",VLOOKUP(A42,Financeiro[[id_ação_Fonte_oculta]:[R$  Executado (2027)]],5,FALSE))","v":0},{"$f":"IF(VLOOKUP(A42,Financeiro[[id_ação_Fonte_oculta]:[R$  Executado (2027)]],4,FALSE)=0,\"\",VLOOKUP(A42,Financeiro[[id_ação_Fonte_oculta]:[R$  Executado (2027)]],8,FALSE))","v":0},{"$f":"IF(VLOOKUP(A42,Financeiro[[id_ação_Fonte_oculta]:[R$  Executado (2027)]],4,FALSE)=0,\"\",VLOOKUP(A42,Financeiro[[id_ação_Fonte_oculta]:[R$  Executado (2027)]],11,FALSE))","v":0},{"$f":"IF(VLOOKUP(A42,Financeiro[[id_ação_Fonte_oculta]:[R$  Executado (2027)]],4,FALSE)=0,\"\",VLOOKUP(A42,Financeiro[[id_ação_Fonte_oculta]:[R$  Executado (2027)]],14,FALSE))","v":100000},100000,{"$f":"IFERROR(INDEX(IdentAcoes[Prioridade do PDC],MATCH(B42,IdentAcoes[ID Ação],0)),\"\")","v":"Prioritário"},{"$f":"IFERROR(INDEX(IdentAcoes[Segmento do executor],MATCH($B42,IdentAcoes[ID Ação],0)),\"\")","v":"Município e Sociedade Civil"},{"$f":"IFERROR(INDEX(IdentAcoes[Área de abrangência],MATCH($B42,IdentAcoes[ID Ação],0)),\"\")","v":"Município"},{"$f":"IFERROR(INDEX(IdentAcoes[Detalhamento da área de abrangência],MATCH($B42,IdentAcoes[ID Ação],0)),\"\")","v":"Município de Santo Antonio do Pinhal"}]
["SM-41-2027FEHIDRO - CFURH","SM-41-2027",{"$f":"INDEX(Financeiro[Descrição da ação],MATCH(B43,Financeiro[ID Ação], 0))","v":"T.3.3.4 – Implantação de unidade de tratamento de residuos sólidos – Sao Bento do Sapucaí (compostagem, reciclagem ou incineração) associado ou não a undade de transbordo"},{"$f":"IF(INDEX('Acompanhamento das metas 24-27'!$C$2:$C$50,MATCH(B43,'Acompanhamento das metas 24-27'!$A$2:$A$50,0))<>0,INDEX('Acompanhamento das metas 24-27'!$C$2:$C$50,MATCH(B43,'Acompanhamento das metas 24-27'!$A$2:$A$50,0)),\"\")","v":"Implantação de aterro sanitário, ecoponto e PEV – Ponto de Entrega Voluntária – (continuidade Revisão Plano de Resíduos Sólidos) - São Bento do Sapucaí"},{"$f":"IF(VLOOKUP(A43,Financeiro[[id_ação_Fonte_oculta]:[R$  Executado (2027)]],4,FALSE)=0,\"\",VLOOKUP(A43,Financeiro[[id_ação_Fonte_oculta]:[R$  Executado (2027)]],4,FALSE))","v":"FEHIDRO - CFURH"},{"$f":"IFERROR(INDEX(IdentAcoes[SubPDC],MATCH(B43,IdentAcoes[ID Ação],0)),\"\")","v":"3.3 - Resíduos"},{"$f":"IF(VLOOKUP(A43,Financeiro[[id_ação_Fonte_oculta]:[R$  Executado (2027)]],4,FALSE)=0,\"\",VLOOKUP(A43,Financeiro[[id_ação_Fonte_oculta]:[R$  Executado (2027)]],5,FALSE))","v":0},{"$f":"IF(VLOOKUP(A43,Financeiro[[id_ação_Fonte_oculta]:[R$  Executado (2027)]],4,FALSE)=0,\"\",VLOOKUP(A43,Financeiro[[id_ação_Fonte_oculta]:[R$  Executado (2027)]],8,FALSE))","v":0},{"$f":"IF(VLOOKUP(A43,Financeiro[[id_ação_Fonte_oculta]:[R$  Executado (2027)]],4,FALSE)=0,\"\",VLOOKUP(A43,Financeiro[[id_ação_Fonte_oculta]:[R$  Executado (2027)]],11,FALSE))","v":0},{"$f":"IF(VLOOKUP(A43,Financeiro[[id_ação_Fonte_oculta]:[R$  Executado (2027)]],4,FALSE)=0,\"\",VLOOKUP(A43,Financeiro[[id_ação_Fonte_oculta]:[R$  Executado (2027)]],14,FALSE))","v":200000},200000,{"$f":"IFERROR(INDEX(IdentAcoes[Prioridade do PDC],MATCH(B43,IdentAcoes[ID Ação],0)),\"\")","v":"Prioritário"},{"$f":"IFERROR(INDEX(IdentAcoes[Segmento do executor],MATCH($B43,IdentAcoes[ID Ação],0)),\"\")","v":"Município"},{"$f":"IFERROR(INDEX(IdentAcoes[Área de abrangência],MATCH($B43,IdentAcoes[ID Ação],0)),\"\")","v":"Município"},{"$f":"IFERROR(INDEX(IdentAcoes[Detalhamento da área de abrangência],MATCH($B43,IdentAcoes[ID Ação],0)),\"\")","v":"Município \nSão Bento do Sapucaí"}]
["SM-42-2027FEHIDRO - CFURH","SM-42-2027",{"$f":"INDEX(Financeiro[Descrição da ação],MATCH(B44,Financeiro[ID Ação], 0))","v":"T.3.3.4 – Implantação de unidade de tratamento de residuos sólidos – Santo Antonio do Pinhal (compostagem, reciclagem ou incineração) associado ou não a undade de transbordo"},{"$f":"IF(INDEX('Acompanhamento das metas 24-27'!$C$2:$C$50,MATCH(B44,'Acompanhamento das metas 24-27'!$A$2:$A$50,0))<>0,INDEX('Acompanhamento das metas 24-27'!$C$2:$C$50,MATCH(B44,'Acompanhamento das metas 24-27'!$A$2:$A$50,0)),\"\")","v":"Implantação de aterro sanitário, ecoponto e PEV – Ponto de Entrega Voluntária – (continuidade Revisão Plano de Resíduos Sólidos) - Santo Antonio do Pinhal"},{"$f":"IF(VLOOKUP(A44,Financeiro[[id_ação_Fonte_oculta]:[R$  Executado (2027)]],4,FALSE)=0,\"\",VLOOKUP(A44,Financeiro[[id_ação_Fonte_oculta]:[R$  Executado (2027)]],4,FALSE))","v":"FEHIDRO - CFURH"},{"$f":"IFERROR(INDEX(IdentAcoes[SubPDC],MATCH(B44,IdentAcoes[ID Ação],0)),\"\")","v":"3.3 - Resíduos"},{"$f":"IF(VLOOKUP(A44,Financeiro[[id_ação_Fonte_oculta]:[R$  Executado (2027)]],4,FALSE)=0,\"\",VLOOKUP(A44,Financeiro[[id_ação_Fonte_oculta]:[R$  Executado (2027)]],5,FALSE))","v":0},{"$f":"IF(VLOOKUP(A44,Financeiro[[id_ação_Fonte_oculta]:[R$  Executado (2027)]],4,FALSE)=0,\"\",VLOOKUP(A44,Financeiro[[id_ação_Fonte_oculta]:[R$  Executado (2027)]],8,FALSE))","v":0},{"$f":"IF(VLOOKUP(A44,Financeiro[[id_ação_Fonte_oculta]:[R$  Executado (2027)]],4,FALSE)=0,\"\",VLOOKUP(A44,Financeiro[[id_ação_Fonte_oculta]:[R$  Executado (2027)]],11,FALSE))","v":0},{"$f":"IF(VLOOKUP(A44,Financeiro[[id_ação_Fonte_oculta]:[R$  Executado (2027)]],4,FALSE)=0,\"\",VLOOKUP(A44,Financeiro[[id_ação_Fonte_oculta]:[R$  Executado (2027)]],14,FALSE))","v":200000},200000,{"$f":"IFERROR(INDEX(IdentAcoes[Prioridade do PDC],MATCH(B44,IdentAcoes[ID Ação],0)),\"\")","v":"Prioritário"},{"$f":"IFERROR(INDEX(IdentAcoes[Segmento do executor],MATCH($B44,IdentAcoes[ID Ação],0)),\"\")","v":"Município"},{"$f":"IFERROR(INDEX(IdentAcoes[Área de abrangência],MATCH($B44,IdentAcoes[ID Ação],0)),\"\")","v":"Município"},{"$f":"IFERROR(INDEX(IdentAcoes[Detalhamento da área de abrangência],MATCH($B44,IdentAcoes[ID Ação],0)),\"\")","v":"Município de Santo Antonio do Pinhal"}]
["SM-43-2026FEHIDRO - CFURH","SM-43-2026",{"$f":"INDEX(Financeiro[Descrição da ação],MATCH(B45,Financeiro[ID Ação], 0))","v":"T.4.1.5 Projeto ( Básico ou executivo) de desassoreamento de curso dágua - Sao Bento do Sapucaí"},{"$f":"IF(INDEX('Acompanhamento das metas 24-27'!$C$2:$C$50,MATCH(B45,'Acompanhamento das metas 24-27'!$A$2:$A$50,0))<>0,INDEX('Acompanhamento das metas 24-27'!$C$2:$C$50,MATCH(B45,'Acompanhamento das metas 24-27'!$A$2:$A$50,0)),\"\")","v":"Controle de processos erosivos - Proteção margens – (continuidade do macrodrenagem) - São Bento do Sapucaí"},{"$f":"IF(VLOOKUP(A45,Financeiro[[id_ação_Fonte_oculta]:[R$  Executado (2027)]],4,FALSE)=0,\"\",VLOOKUP(A45,Financeiro[[id_ação_Fonte_oculta]:[R$  Executado (2027)]],4,FALSE))","v":"FEHIDRO - CFURH"},{"$f":"IFERROR(INDEX(IdentAcoes[SubPDC],MATCH(B45,IdentAcoes[ID Ação],0)),\"\")","v":"4.1 - Controle erosão"},{"$f":"IF(VLOOKUP(A45,Financeiro[[id_ação_Fonte_oculta]:[R$  Executado (2027)]],4,FALSE)=0,\"\",VLOOKUP(A45,Financeiro[[id_ação_Fonte_oculta]:[R$  Executado (2027)]],5,FALSE))","v":0},{"$f":"IF(VLOOKUP(A45,Financeiro[[id_ação_Fonte_oculta]:[R$  Executado (2027)]],4,FALSE)=0,\"\",VLOOKUP(A45,Financeiro[[id_ação_Fonte_oculta]:[R$  Executado (2027)]],8,FALSE))","v":0},{"$f":"IF(VLOOKUP(A45,Financeiro[[id_ação_Fonte_oculta]:[R$  Executado (2027)]],4,FALSE)=0,\"\",VLOOKUP(A45,Financeiro[[id_ação_Fonte_oculta]:[R$  Executado (2027)]],11,FALSE))","v":150000},{"$f":"IF(VLOOKUP(A45,Financeiro[[id_ação_Fonte_oculta]:[R$  Executado (2027)]],4,FALSE)=0,\"\",VLOOKUP(A45,Financeiro[[id_ação_Fonte_oculta]:[R$  Executado (2027)]],14,FALSE))","v":0},150000,{"$f":"IFERROR(INDEX(IdentAcoes[Prioridade do PDC],MATCH(B45,IdentAcoes[ID Ação],0)),\"\")","v":"Prioritário"},{"$f":"IFERROR(INDEX(IdentAcoes[Segmento do executor],MATCH($B45,IdentAcoes[ID Ação],0)),\"\")","v":"Município"},{"$f":"IFERROR(INDEX(IdentAcoes[Área de abrangência],MATCH($B45,IdentAcoes[ID Ação],0)),\"\")","v":"Corpo hídrico"},{"$f":"IFERROR(INDEX(IdentAcoes[Detalhamento da área de abrangência],MATCH($B45,IdentAcoes[ID Ação],0)),\"\")","v":0}]
["SM-44-2026FEHIDRO - CFURH","SM-44-2026",{"$f":"INDEX(Financeiro[Descrição da ação],MATCH(B46,Financeiro[ID Ação], 0))","v":"T.4.1.5 Projeto ( Básico ou executivo) de desassoreamento de curso dágua - Santo Antonio do Pinhal"},{"$f":"IF(INDEX('Acompanhamento das metas 24-27'!$C$2:$C$50,MATCH(B46,'Acompanhamento das metas 24-27'!$A$2:$A$50,0))<>0,INDEX('Acompanhamento das metas 24-27'!$C$2:$C$50,MATCH(B46,'Acompanhamento das metas 24-27'!$A$2:$A$50,0)),\"\")","v":"Controle de processos erosivos - Proteção margens – (continuidade do macrodrenagem) - Santo Antonio do Pinhal"},{"$f":"IF(VLOOKUP(A46,Financeiro[[id_ação_Fonte_oculta]:[R$  Executado (2027)]],4,FALSE)=0,\"\",VLOOKUP(A46,Financeiro[[id_ação_Fonte_oculta]:[R$  Executado (2027)]],4,FALSE))","v":"FEHIDRO - CFURH"},{"$f":"IFERROR(INDEX(IdentAcoes[SubPDC],MATCH(B46,IdentAcoes[ID Ação],0)),\"\")","v":"4.1 - Controle erosão"},{"$f":"IF(VLOOKUP(A46,Financeiro[[id_ação_Fonte_oculta]:[R$  Executado (2027)]],4,FALSE)=0,\"\",VLOOKUP(A46,Financeiro[[id_ação_Fonte_oculta]:[R$  Executado (2027)]],5,FALSE))","v":0},{"$f":"IF(VLOOKUP(A46,Financeiro[[id_ação_Fonte_oculta]:[R$  Executado (2027)]],4,FALSE)=0,\"\",VLOOKUP(A46,Financeiro[[id_ação_Fonte_oculta]:[R$  Executado (2027)]],8,FALSE))","v":0},{"$f":"IF(VLOOKUP(A46,Financeiro[[id_ação_Fonte_oculta]:[R$  Executado (2027)]],4,FALSE)=0,\"\",VLOOKUP(A46,Financeiro[[id_ação_Fonte_oculta]:[R$  Executado (2027)]],11,FALSE))","v":150000},{"$f":"IF(VLOOKUP(A46,Financeiro[[id_ação_Fonte_oculta]:[R$  Executado (2027)]],4,FALSE)=0,\"\",VLOOKUP(A46,Financeiro[[id_ação_Fonte_oculta]:[R$  Executado (2027)]],14,FALSE))","v":0},150000,{"$f":"IFERROR(INDEX(IdentAcoes[Prioridade do PDC],MATCH(B46,IdentAcoes[ID Ação],0)),\"\")","v":"Prioritário"},{"$f":"IFERROR(INDEX(IdentAcoes[Segmento do executor],MATCH($B46,IdentAcoes[ID Ação],0)),\"\")","v":"Município"},{"$f":"IFERROR(INDEX(IdentAcoes[Área de abrangência],MATCH($B46,IdentAcoes[ID Ação],0)),\"\")","v":"Corpo hídrico"},{"$f":"IFERROR(INDEX(IdentAcoes[Detalhamento da área de abrangência],MATCH($B46,IdentAcoes[ID Ação],0)),\"\")","v":"Município de Santo Antonio do Pinhal"}]
["SM-45-2025FEHIDRO - CFURH","SM-45-2025",{"$f":"INDEX(Financeiro[Descrição da ação],MATCH(B47,Financeiro[ID Ação], 0))","v":"T.4.2.11 Projeto Executivo de aumento de áreas permeáveis e/ou redução de escoamento superficial por meio de implantacao de estrutura verde - parque linear"},{"$f":"IF(INDEX('Acompanhamento das metas 24-27'!$C$2:$C$50,MATCH(B47,'Acompanhamento das metas 24-27'!$A$2:$A$50,0))<>0,INDEX('Acompanhamento das metas 24-27'!$C$2:$C$50,MATCH(B47,'Acompanhamento das metas 24-27'!$A$2:$A$50,0)),\"\")","v":"Implantação de parque linear , bosque urbano em São Bento do Sapucaí"},{"$f":"IF(VLOOKUP(A47,Financeiro[[id_ação_Fonte_oculta]:[R$  Executado (2027)]],4,FALSE)=0,\"\",VLOOKUP(A47,Financeiro[[id_ação_Fonte_oculta]:[R$  Executado (2027)]],4,FALSE))","v":"FEHIDRO - CFURH"},{"$f":"IFERROR(INDEX(IdentAcoes[SubPDC],MATCH(B47,IdentAcoes[ID Ação],0)),\"\")","v":"4.2 - Soluções baseadas Natureza"},{"$f":"IF(VLOOKUP(A47,Financeiro[[id_ação_Fonte_oculta]:[R$  Executado (2027)]],4,FALSE)=0,\"\",VLOOKUP(A47,Financeiro[[id_ação_Fonte_oculta]:[R$  Executado (2027)]],5,FALSE))","v":0},{"$f":"IF(VLOOKUP(A47,Financeiro[[id_ação_Fonte_oculta]:[R$  Executado (2027)]],4,FALSE)=0,\"\",VLOOKUP(A47,Financeiro[[id_ação_Fonte_oculta]:[R$  Executado (2027)]],8,FALSE))","v":150000},{"$f":"IF(VLOOKUP(A47,Financeiro[[id_ação_Fonte_oculta]:[R$  Executado (2027)]],4,FALSE)=0,\"\",VLOOKUP(A47,Financeiro[[id_ação_Fonte_oculta]:[R$  Executado (2027)]],11,FALSE))","v":0},{"$f":"IF(VLOOKUP(A47,Financeiro[[id_ação_Fonte_oculta]:[R$  Executado (2027)]],4,FALSE)=0,\"\",VLOOKUP(A47,Financeiro[[id_ação_Fonte_oculta]:[R$  Executado (2027)]],14,FALSE))","v":0},150000,{"$f":"IFERROR(INDEX(IdentAcoes[Prioridade do PDC],MATCH(B47,IdentAcoes[ID Ação],0)),\"\")","v":"Prioritário"},{"$f":"IFERROR(INDEX(IdentAcoes[Segmento do executor],MATCH($B47,IdentAcoes[ID Ação],0)),\"\")","v":"Município e Sociedade Civil"},{"$f":"IFERROR(INDEX(IdentAcoes[Área de abrangência],MATCH($B47,IdentAcoes[ID Ação],0)),\"\")","v":"Região Hidrográfica"},{"$f":"IFERROR(INDEX(IdentAcoes[Detalhamento da área de abrangência],MATCH($B47,IdentAcoes[ID Ação],0)),\"\")","v":"Município \nSão Bento do Sapucaí"}]
["SM-46-2025FEHIDRO - CFURH","SM-46-2025",{"$f":"INDEX(Financeiro[Descrição da ação],MATCH(B48,Financeiro[ID Ação], 0))","v":"T.8.3.1. Campanha educativa voltada para a conservação e gestão dos recursos hídricos - continuidade Plano Educação Ambiental"},{"$f":"IF(INDEX('Acompanhamento das metas 24-27'!$C$2:$C$50,MATCH(B48,'Acompanhamento das metas 24-27'!$A$2:$A$50,0))<>0,INDEX('Acompanhamento das metas 24-27'!$C$2:$C$50,MATCH(B48,'Acompanhamento das metas 24-27'!$A$2:$A$50,0)),\"\")","v":"Realizar campanha educativa na gestão de recursos hídricos - continuidade e ações do Projeto  Plano de Educação Ambiental - Caminho das Águas"},{"$f":"IF(VLOOKUP(A48,Financeiro[[id_ação_Fonte_oculta]:[R$  Executado (2027)]],4,FALSE)=0,\"\",VLOOKUP(A48,Financeiro[[id_ação_Fonte_oculta]:[R$  Executado (2027)]],4,FALSE))","v":"FEHIDRO - CFURH"},{"$f":"IFERROR(INDEX(IdentAcoes[SubPDC],MATCH(B48,IdentAcoes[ID Ação],0)),\"\")","v":"8.2 - Educação"},{"$f":"IF(VLOOKUP(A48,Financeiro[[id_ação_Fonte_oculta]:[R$  Executado (2027)]],4,FALSE)=0,\"\",VLOOKUP(A48,Financeiro[[id_ação_Fonte_oculta]:[R$  Executado (2027)]],5,FALSE))","v":0},{"$f":"IF(VLOOKUP(A48,Financeiro[[id_ação_Fonte_oculta]:[R$  Executado (2027)]],4,FALSE)=0,\"\",VLOOKUP(A48,Financeiro[[id_ação_Fonte_oculta]:[R$  Executado (2027)]],8,FALSE))","v":300000},{"$f":"IF(VLOOKUP(A48,Financeiro[[id_ação_Fonte_oculta]:[R$  Executado (2027)]],4,FALSE)=0,\"\",VLOOKUP(A48,Financeiro[[id_ação_Fonte_oculta]:[R$  Executado (2027)]],11,FALSE))","v":0},{"$f":"IF(VLOOKUP(A48,Financeiro[[id_ação_Fonte_oculta]:[R$  Executado (2027)]],4,FALSE)=0,\"\",VLOOKUP(A48,Financeiro[[id_ação_Fonte_oculta]:[R$  Executado (2027)]],14,FALSE))","v":0},300000,{"$f":"IFERROR(INDEX(IdentAcoes[Prioridade do PDC],MATCH(B48,IdentAcoes[ID Ação],0)),\"\")","v":"Não prioritário"},{"$f":"IFERROR(INDEX(IdentAcoes[Segmento do executor],MATCH($B48,IdentAcoes[ID Ação],0)),\"\")","v":"Sociedade Civil"},{"$f":"IFERROR(INDEX(IdentAcoes[Área de abrangência],MATCH($B48,IdentAcoes[ID Ação],0)),\"\")","v":"UGRHi"},{"$f":"IFERROR(INDEX(IdentAcoes[Detalhamento da área de abrangência],MATCH($B48,IdentAcoes[ID Ação],0)),\"\")","v":"UGRHI-1"}]
["SM-47-2024FEHIDRO - Cobrança estadual","SM-47-2024",{"$f":"INDEX(Financeiro[Descrição da ação],MATCH(B49,Financeiro[ID Ação], 0))","v":"T.1.2.2 . Diagnóstico qualitativo e/ou quantitativo de recursos hídricos superficiais e/ou subterrâneos nas sub bacias Perdizes,Bau,Serrano e Prata"},{"$f":"IF(INDEX('Acompanhamento das metas 24-27'!$C$2:$C$50,MATCH(B49,'Acompanhamento das metas 24-27'!$A$2:$A$50,0))<>0,INDEX('Acompanhamento das metas 24-27'!$C$2:$C$50,MATCH(B49,'Acompanhamento das metas 24-27'!$A$2:$A$50,0)),\"\")","v":"Caracterização da Vulnerabilidade Ambiental das Nascentes, e Diagnóstico dos Recursos Hidricos das Sub-Bacias de Perdizes, Baú, Serrano e Prata da Bacia Hidrográfica da Serra da Mantiqueira – UGRHI 1 "},{"$f":"IF(VLOOKUP(A49,Financeiro[[id_ação_Fonte_oculta]:[R$  Executado (2027)]],4,FALSE)=0,\"\",VLOOKUP(A49,Financeiro[[id_ação_Fonte_oculta]:[R$  Executado (2027)]],4,FALSE))","v":"FEHIDRO - Cobrança estadual"},{"$f":"IFERROR(INDEX(IdentAcoes[SubPDC],MATCH(B49,IdentAcoes[ID Ação],0)),\"\")","v":"1.2 - Planejamento"},{"$f":"IF(VLOOKUP(A49,Financeiro[[id_ação_Fonte_oculta]:[R$  Executado (2027)]],4,FALSE)=0,\"\",VLOOKUP(A49,Financeiro[[id_ação_Fonte_oculta]:[R$  Executado (2027)]],5,FALSE))","v":0},{"$f":"IF(VLOOKUP(A49,Financeiro[[id_ação_Fonte_oculta]:[R$  Executado (2027)]],4,FALSE)=0,\"\",VLOOKUP(A49,Financeiro[[id_ação_Fonte_oculta]:[R$  Executado (2027)]],8,FALSE))","v":0},{"$f":"IF(VLOOKUP(A49,Financeiro[[id_ação_Fonte_oculta]:[R$  Executado (2027)]],4,FALSE)=0,\"\",VLOOKUP(A49,Financeiro[[id_ação_Fonte_oculta]:[R$  Executado (2027)]],11,FALSE))","v":0},{"$f":"IF(VLOOKUP(A49,Financeiro[[id_ação_Fonte_oculta]:[R$  Executado (2027)]],4,FALSE)=0,\"\",VLOOKUP(A49,Financeiro[[id_ação_Fonte_oculta]:[R$  Executado (2027)]],14,FALSE))","v":0},0,{"$f":"IFERROR(INDEX(IdentAcoes[Prioridade do PDC],MATCH(B49,IdentAcoes[ID Ação],0)),\"\")","v":"PDC 1 e 2"},{"$f":"IFERROR(INDEX(IdentAcoes[Segmento do executor],MATCH($B49,IdentAcoes[ID Ação],0)),\"\")","v":"Sociedade Civil"},{"$f":"IFERROR(INDEX(IdentAcoes[Área de abrangência],MATCH($B49,IdentAcoes[ID Ação],0)),\"\")","v":"Sub-bacia"},{"$f":"IFERROR(INDEX(IdentAcoes[Detalhamento da área de abrangência],MATCH($B49,IdentAcoes[ID Ação],0)),\"\")","v":"Sub Bacia Sapucai Guacu"}]
["","",{"$f":"INDEX(Financeiro[Descrição da ação],MATCH(B50,Financeiro[ID Ação], 0))","v":""},{"$f":"IF(INDEX('Acompanhamento das metas 24-27'!$C$2:$C$50,MATCH(B50,'Acompanhamento das metas 24-27'!$A$2:$A$50,0))<>0,INDEX('Acompanhamento das metas 24-27'!$C$2:$C$50,MATCH(B50,'Acompanhamento das metas 24-27'!$A$2:$A$50,0)),\"\")","v":""},{"$f":"IF(VLOOKUP(A50,Financeiro[[id_ação_Fonte_oculta]:[R$  Executado (2027)]],4,FALSE)=0,\"\",VLOOKUP(A50,Financeiro[[id_ação_Fonte_oculta]:[R$  Executado (2027)]],4,FALSE))","v":""},{"$f":"IFERROR(INDEX(IdentAcoes[SubPDC],MATCH(B50,IdentAcoes[ID Ação],0)),\"\")","v":""},{"$f":"IF(VLOOKUP(A50,Financeiro[[id_ação_Fonte_oculta]:[R$  Executado (2027)]],4,FALSE)=0,\"\",VLOOKUP(A50,Financeiro[[id_ação_Fonte_oculta]:[R$  Executado (2027)]],5,FALSE))","v":""},{"$f":"IF(VLOOKUP(A50,Financeiro[[id_ação_Fonte_oculta]:[R$  Executado (2027)]],4,FALSE)=0,\"\",VLOOKUP(A50,Financeiro[[id_ação_Fonte_oculta]:[R$  Executado (2027)]],8,FALSE))","v":""},{"$f":"IF(VLOOKUP(A50,Financeiro[[id_ação_Fonte_oculta]:[R$  Executado (2027)]],4,FALSE)=0,\"\",VLOOKUP(A50,Financeiro[[id_ação_Fonte_oculta]:[R$  Executado (2027)]],11,FALSE))","v":""},{"$f":"IF(VLOOKUP(A50,Financeiro[[id_ação_Fonte_oculta]:[R$  Executado (2027)]],4,FALSE)=0,\"\",VLOOKUP(A50,Financeiro[[id_ação_Fonte_oculta]:[R$  Executado (2027)]],14,FALSE))","v":""},0,{"$f":"IFERROR(INDEX(IdentAcoes[Prioridade do PDC],MATCH(B50,IdentAcoes[ID Ação],0)),\"\")","v":""},{"$f":"IFERROR(INDEX(IdentAcoes[Segmento do executor],MATCH($B50,IdentAcoes[ID Ação],0)),\"\")","v":""},{"$f":"IFERROR(INDEX(IdentAcoes[Área de abrangência],MATCH($B50,IdentAcoes[ID Ação],0)),\"\")","v":""},{"$f":"IFERROR(INDEX(IdentAcoes[Detalhamento da área de abrangência],MATCH($B50,IdentAcoes[ID Ação],0)),\"\")","v":""}]
["","",{"$f":"INDEX(Financeiro[Descrição da ação],MATCH(B51,Financeiro[ID Ação], 0))","v":""},null,{"$f":"IF(VLOOKUP(A51,Financeiro[[id_ação_Fonte_oculta]:[R$  Executado (2027)]],4,FALSE)=0,\"\",VLOOKUP(A51,Financeiro[[id_ação_Fonte_oculta]:[R$  Executado (2027)]],4,FALSE))","v":""},{"$f":"IFERROR(INDEX(IdentAcoes[SubPDC],MATCH(B51,IdentAcoes[ID Ação],0)),\"\")","v":""},{"$f":"IF(VLOOKUP(A51,Financeiro[[id_ação_Fonte_oculta]:[R$  Executado (2027)]],4,FALSE)=0,\"\",VLOOKUP(A51,Financeiro[[id_ação_Fonte_oculta]:[R$  Executado (2027)]],5,FALSE))","v":""},{"$f":"IF(VLOOKUP(A51,Financeiro[[id_ação_Fonte_oculta]:[R$  Executado (2027)]],4,FALSE)=0,\"\",VLOOKUP(A51,Financeiro[[id_ação_Fonte_oculta]:[R$  Executado (2027)]],8,FALSE))","v":""},{"$f":"IF(VLOOKUP(A51,Financeiro[[id_ação_Fonte_oculta]:[R$  Executado (2027)]],4,FALSE)=0,\"\",VLOOKUP(A51,Financeiro[[id_ação_Fonte_oculta]:[R$  Executado (2027)]],11,FALSE))","v":""},{"$f":"IF(VLOOKUP(A51,Financeiro[[id_ação_Fonte_oculta]:[R$  Executado (2027)]],4,FALSE)=0,\"\",VLOOKUP(A51,Financeiro[[id_ação_Fonte_oculta]:[R$  Executado (2027)]],14,FALSE))","v":""},null,{"$f":"IFERROR(INDEX(IdentAcoes[Prioridade do PDC],MATCH(B51,IdentAcoes[ID Ação],0)),\"\")","v":""},{"$f":"IFERROR(INDEX(IdentAcoes[Segmento do executor],MATCH($B51,IdentAcoes[ID Ação],0)),\"\")","v":""},{"$f":"IFERROR(INDEX(IdentAcoes[Área de abrangência],MATCH($B51,IdentAcoes[ID Ação],0)),\"\")","v":""},{"$f":"IFERROR(INDEX(IdentAcoes[Detalhamento da área de abrangência],MATCH($B51,IdentAcoes[ID Ação],0)),\"\")","v":""}]

{"sheet":"Consolidaçao - 1","index":5,"n_rows":38,"n_cols":19,"rows_kept":38,"cut":false,"hidden":true,"merged":[]}
["Delib. 190",null,"2021 (R$ Estimado)",null,null,null,null,"Delib. 246","2022 (R$ Estimado)",null,null,null,null,"2023 (R$ Estimado)",null,null,null,null,"2022 - 2023  (R$ Estimado)"]
["SubPDC","CFURH","Cobrança Estadual","Cobrança Federal","Outras","TOTAL",null,"SubPDC","CFURH","Cobrança Estadual","Cobrança Federal","Outras","TOTAL","CFURH","Cobrança Estadual","Cobrança Federal","Outras","TOTAL","TOTAL"]
["1.1 - SI",{"$f":"SUMIFS(#REF!,#REF!,A3,#REF!,2021)","v":{"$error":"#REF!"}},{"$f":"SUMIFS(#REF!,#REF!,A3,#REF!,2021)","v":{"$error":"#REF!"}},{"$f":"SUMIFS(#REF!,#REF!,A3,#REF!,2021)","v":{"$error":"#REF!"}},{"$f":"SUMIFS(#REF!,#REF!,A3,#REF!,2021)","v":{"$error":"#REF!"}},{"$f":"SUM(B3:E3)","v":{"$error":"#REF!"}},null,"1.1 - Legislação",{"$f":"SUMIFS(PAPI20_22_23[Recurso financeiro estimado no ano (R$) - CFURH],PAPI20_22_23[SubPDC],'Consolidaçao - 1'!H3,PAPI20_22_23[Ano previsto para início],2022)","v":0},{"$f":"SUMIFS(PAPI20_22_23[Recurso financeiro estimado no ano\n(R$) - Cobrança Estadual],PAPI20_22_23[SubPDC],'Consolidaçao - 1'!H3,PAPI20_22_23[Ano previsto para início],2022)","v":0},{"$f":"SUMIFS(PAPI20_22_23[Recurso financeiro estimado no ano\n(R$) - Cobrança Federal],PAPI20_22_23[SubPDC],'Consolidaçao - 1'!H3,PAPI20_22_23[Ano previsto para início],2022)","v":0},{"$f":"SUMIFS(PAPI20_22_23[Recurso financeiro estimado no ano (R$) - Outras],PAPI20_22_23[SubPDC],'Consolidaçao - 1'!H3,PAPI20_22_23[Ano previsto para início],2022)","v":0},{"$f":"SUM(I3:L3)","v":0},{"$f":"SUMIFS(PAPI20_22_23[Recurso financeiro estimado no ano (R$) - CFURH],PAPI20_22_23[SubPDC],'Consolidaçao - 1'!H3,PAPI20_22_23[Ano previsto para início],2023)","v":0},{"$f":"SUMIFS(PAPI20_22_23[Recurso financeiro estimado no ano\n(R$) - Cobrança Estadual],PAPI20_22_23[SubPDC],'Consolidaçao - 1'!M3,PAPI20_22_23[Ano previsto para início],2023)","v":0},{"$f":"SUMIFS(PAPI20_22_23[Recurso financeiro estimado no ano\n(R$) - Cobrança Federal],PAPI20_22_23[SubPDC],'Consolidaçao - 1'!M3,PAPI20_22_23[Ano previsto para início],2023)","v":0},{"$f":"SUMIFS(PAPI20_22_23[Recurso financeiro estimado no ano (R$) - Outras],PAPI20_22_23[SubPDC],'Consolidaçao - 1'!M3,PAPI20_22_23[Ano previsto para início],2023)","v":0},{"$f":"SUM(N3:Q3)","v":0},{"$f":"SUM(M3,R3)","v":0}]
["1.2 - Planejamento",{"$f":"SUMIFS(#REF!,#REF!,A4,#REF!,2021)","v":{"$error":"#REF!"}},{"$f":"SUMIFS(#REF!,#REF!,A4,#REF!,2021)","v":{"$error":"#REF!"}},{"$f":"SUMIFS(#REF!,#REF!,A4,#REF!,2021)","v":{"$error":"#REF!"}},{"$f":"SUMIFS(#REF!,#REF!,A4,#REF!,2021)","v":{"$error":"#REF!"}},{"$error":"#REF!"},null,"1.2 - Planejamento",{"$f":"SUMIFS(PAPI20_22_23[Recurso financeiro estimado no ano (R$) - CFURH],PAPI20_22_23[SubPDC],'Consolidaçao - 1'!H4,PAPI20_22_23[Ano previsto para início],2022)","v":0},{"$f":"SUMIFS(PAPI20_22_23[Recurso financeiro estimado no ano\n(R$) - Cobrança Estadual],PAPI20_22_23[SubPDC],'Consolidaçao - 1'!H4,PAPI20_22_23[Ano previsto para início],2022)","v":0},{"$f":"SUMIFS(PAPI20_22_23[Recurso financeiro estimado no ano\n(R$) - Cobrança Federal],PAPI20_22_23[SubPDC],'Consolidaçao - 1'!H4,PAPI20_22_23[Ano previsto para início],2022)","v":0},{"$f":"SUMIFS(PAPI20_22_23[Recurso financeiro estimado no ano (R$) - Outras],PAPI20_22_23[SubPDC],'Consolidaçao - 1'!H4,PAPI20_22_23[Ano previsto para início],2022)","v":0},0,{"$f":"SUMIFS(PAPI20_22_23[Recurso financeiro estimado no ano (R$) - CFURH],PAPI20_22_23[SubPDC],'Consolidaçao - 1'!H4,PAPI20_22_23[Ano previsto para início],2023)","v":0},{"$f":"SUMIFS(PAPI20_22_23[Recurso financeiro estimado no ano\n(R$) - Cobrança Estadual],PAPI20_22_23[SubPDC],'Consolidaçao - 1'!M4,PAPI20_22_23[Ano previsto para início],2023)","v":0},{"$f":"SUMIFS(PAPI20_22_23[Recurso financeiro estimado no ano\n(R$) - Cobrança Federal],PAPI20_22_23[SubPDC],'Consolidaçao - 1'!M4,PAPI20_22_23[Ano previsto para início],2023)","v":0},{"$f":"SUMIFS(PAPI20_22_23[Recurso financeiro estimado no ano (R$) - Outras],PAPI20_22_23[SubPDC],'Consolidaçao - 1'!M4,PAPI20_22_23[Ano previsto para início],2023)","v":0},0,{"$f":"SUM(M4,R4)","v":0}]
["1.3 - Enquadramento",{"$f":"SUMIFS(#REF!,#REF!,A5,#REF!,2021)","v":{"$error":"#REF!"}},{"$f":"SUMIFS(#REF!,#REF!,A5,#REF!,2021)","v":{"$error":"#REF!"}},{"$f":"SUMIFS(#REF!,#REF!,A5,#REF!,2021)","v":{"$error":"#REF!"}},{"$f":"SUMIFS(#REF!,#REF!,A5,#REF!,2021)","v":{"$error":"#REF!"}},{"$error":"#REF!"},null,"2.1 - Plano",{"$f":"SUMIFS(PAPI20_22_23[Recurso financeiro estimado no ano (R$) - CFURH],PAPI20_22_23[SubPDC],'Consolidaçao - 1'!H5,PAPI20_22_23[Ano previsto para início],2022)","v":0},{"$f":"SUMIFS(PAPI20_22_23[Recurso financeiro estimado no ano\n(R$) - Cobrança Estadual],PAPI20_22_23[SubPDC],'Consolidaçao - 1'!H5,PAPI20_22_23[Ano previsto para início],2022)","v":0},{"$f":"SUMIFS(PAPI20_22_23[Recurso financeiro estimado no ano\n(R$) - Cobrança Federal],PAPI20_22_23[SubPDC],'Consolidaçao - 1'!H5,PAPI20_22_23[Ano previsto para início],2022)","v":0},{"$f":"SUMIFS(PAPI20_22_23[Recurso financeiro estimado no ano (R$) - Outras],PAPI20_22_23[SubPDC],'Consolidaçao - 1'!H5,PAPI20_22_23[Ano previsto para início],2022)","v":0},0,{"$f":"SUMIFS(PAPI20_22_23[Recurso financeiro estimado no ano (R$) - CFURH],PAPI20_22_23[SubPDC],'Consolidaçao - 1'!H5,PAPI20_22_23[Ano previsto para início],2023)","v":0},{"$f":"SUMIFS(PAPI20_22_23[Recurso financeiro estimado no ano\n(R$) - Cobrança Estadual],PAPI20_22_23[SubPDC],'Consolidaçao - 1'!M5,PAPI20_22_23[Ano previsto para início],2023)","v":0},{"$f":"SUMIFS(PAPI20_22_23[Recurso financeiro estimado no ano\n(R$) - Cobrança Federal],PAPI20_22_23[SubPDC],'Consolidaçao - 1'!M5,PAPI20_22_23[Ano previsto para início],2023)","v":0},{"$f":"SUMIFS(PAPI20_22_23[Recurso financeiro estimado no ano (R$) - Outras],PAPI20_22_23[SubPDC],'Consolidaçao - 1'!M5,PAPI20_22_23[Ano previsto para início],2023)","v":0},0,0]
["1.4 - Monitoramento",{"$f":"SUMIFS(#REF!,#REF!,A6,#REF!,2021)","v":{"$error":"#REF!"}},{"$f":"SUMIFS(#REF!,#REF!,A6,#REF!,2021)","v":{"$error":"#REF!"}},{"$f":"SUMIFS(#REF!,#REF!,A6,#REF!,2021)","v":{"$error":"#REF!"}},{"$f":"SUMIFS(#REF!,#REF!,A6,#REF!,2021)","v":{"$error":"#REF!"}},{"$error":"#REF!"},null,"2.2 - Outorga",{"$f":"SUMIFS(PAPI20_22_23[Recurso financeiro estimado no ano (R$) - CFURH],PAPI20_22_23[SubPDC],'Consolidaçao - 1'!H6,PAPI20_22_23[Ano previsto para início],2022)","v":0},{"$f":"SUMIFS(PAPI20_22_23[Recurso financeiro estimado no ano\n(R$) - Cobrança Estadual],PAPI20_22_23[SubPDC],'Consolidaçao - 1'!H6,PAPI20_22_23[Ano previsto para início],2022)","v":0},{"$f":"SUMIFS(PAPI20_22_23[Recurso financeiro estimado no ano\n(R$) - Cobrança Federal],PAPI20_22_23[SubPDC],'Consolidaçao - 1'!H6,PAPI20_22_23[Ano previsto para início],2022)","v":0},{"$f":"SUMIFS(PAPI20_22_23[Recurso financeiro estimado no ano (R$) - Outras],PAPI20_22_23[SubPDC],'Consolidaçao - 1'!H6,PAPI20_22_23[Ano previsto para início],2022)","v":0},0,{"$f":"SUMIFS(PAPI20_22_23[Recurso financeiro estimado no ano (R$) - CFURH],PAPI20_22_23[SubPDC],'Consolidaçao - 1'!H6,PAPI20_22_23[Ano previsto para início],2023)","v":0},{"$f":"SUMIFS(PAPI20_22_23[Recurso financeiro estimado no ano\n(R$) - Cobrança Estadual],PAPI20_22_23[SubPDC],'Consolidaçao - 1'!M6,PAPI20_22_23[Ano previsto para início],2023)","v":0},{"$f":"SUMIFS(PAPI20_22_23[Recurso financeiro estimado no ano\n(R$) - Cobrança Federal],PAPI20_22_23[SubPDC],'Consolidaçao - 1'!M6,PAPI20_22_23[Ano previsto para início],2023)","v":0},{"$f":"SUMIFS(PAPI20_22_23[Recurso financeiro estimado no ano (R$) - Outras],PAPI20_22_23[SubPDC],'Consolidaçao - 1'!M6,PAPI20_22_23[Ano previsto para início],2023)","v":0},0,0]
["1.5 - Disponibilidade",{"$f":"SUMIFS(#REF!,#REF!,A7,#REF!,2021)","v":{"$error":"#REF!"}},{"$f":"SUMIFS(#REF!,#REF!,A7,#REF!,2021)","v":{"$error":"#REF!"}},{"$f":"SUMIFS(#REF!,#REF!,A7,#REF!,2021)","v":{"$error":"#REF!"}},{"$f":"SUMIFS(#REF!,#REF!,A7,#REF!,2021)","v":{"$error":"#REF!"}},{"$error":"#REF!"},null,"2.3 - Cobrança",{"$f":"SUMIFS(PAPI20_22_23[Recurso financeiro estimado no ano (R$) - CFURH],PAPI20_22_23[SubPDC],'Consolidaçao - 1'!H7,PAPI20_22_23[Ano previsto para início],2022)","v":0},{"$f":"SUMIFS(PAPI20_22_23[Recurso financeiro estimado no ano\n(R$) - Cobrança Estadual],PAPI20_22_23[SubPDC],'Consolidaçao - 1'!H7,PAPI20_22_23[Ano previsto para início],2022)","v":0},{"$f":"SUMIFS(PAPI20_22_23[Recurso financeiro estimado no ano\n(R$) - Cobrança Federal],PAPI20_22_23[SubPDC],'Consolidaçao - 1'!H7,PAPI20_22_23[Ano previsto para início],2022)","v":0},{"$f":"SUMIFS(PAPI20_22_23[Recurso financeiro estimado no ano (R$) - Outras],PAPI20_22_23[SubPDC],'Consolidaçao - 1'!H7,PAPI20_22_23[Ano previsto para início],2022)","v":0},0,{"$f":"SUMIFS(PAPI20_22_23[Recurso financeiro estimado no ano (R$) - CFURH],PAPI20_22_23[SubPDC],'Consolidaçao - 1'!H7,PAPI20_22_23[Ano previsto para início],2023)","v":0},{"$f":"SUMIFS(PAPI20_22_23[Recurso financeiro estimado no ano\n(R$) - Cobrança Estadual],PAPI20_22_23[SubPDC],'Consolidaçao - 1'!M7,PAPI20_22_23[Ano previsto para início],2023)","v":0},{"$f":"SUMIFS(PAPI20_22_23[Recurso financeiro estimado no ano\n(R$) - Cobrança Federal],PAPI20_22_23[SubPDC],'Consolidaçao - 1'!M7,PAPI20_22_23[Ano previsto para início],2023)","v":0},{"$f":"SUMIFS(PAPI20_22_23[Recurso financeiro estimado no ano (R$) - Outras],PAPI20_22_23[SubPDC],'Consolidaçao - 1'!M7,PAPI20_22_23[Ano previsto para início],2023)","v":0},0,0]
["1.6 - Legislação",{"$f":"SUMIFS(#REF!,#REF!,A8,#REF!,2021)","v":{"$error":"#REF!"}},{"$f":"SUMIFS(#REF!,#REF!,A8,#REF!,2021)","v":{"$error":"#REF!"}},{"$f":"SUMIFS(#REF!,#REF!,A8,#REF!,2021)","v":{"$error":"#REF!"}},{"$f":"SUMIFS(#REF!,#REF!,A8,#REF!,2021)","v":{"$error":"#REF!"}},{"$error":"#REF!"},null,"2.4 - Enquadramento",{"$f":"SUMIFS(PAPI20_22_23[Recurso financeiro estimado no ano (R$) - CFURH],PAPI20_22_23[SubPDC],'Consolidaçao - 1'!H8,PAPI20_22_23[Ano previsto para início],2022)","v":0},{"$f":"SUMIFS(PAPI20_22_23[Recurso financeiro estimado no ano\n(R$) - Cobrança Estadual],PAPI20_22_23[SubPDC],'Consolidaçao - 1'!H8,PAPI20_22_23[Ano previsto para início],2022)","v":0},{"$f":"SUMIFS(PAPI20_22_23[Recurso financeiro estimado no ano\n(R$) - Cobrança Federal],PAPI20_22_23[SubPDC],'Consolidaçao - 1'!H8,PAPI20_22_23[Ano previsto para início],2022)","v":0},{"$f":"SUMIFS(PAPI20_22_23[Recurso financeiro estimado no ano (R$) - Outras],PAPI20_22_23[SubPDC],'Consolidaçao - 1'!H8,PAPI20_22_23[Ano previsto para início],2022)","v":0},0,{"$f":"SUMIFS(PAPI20_22_23[Recurso financeiro estimado no ano (R$) - CFURH],PAPI20_22_23[SubPDC],'Consolidaçao - 1'!H8,PAPI20_22_23[Ano previsto para início],2023)","v":0},{"$f":"SUMIFS(PAPI20_22_23[Recurso financeiro estimado no ano\n(R$) - Cobrança Estadual],PAPI20_22_23[SubPDC],'Consolidaçao - 1'!M8,PAPI20_22_23[Ano previsto para início],2023)","v":0},{"$f":"SUMIFS(PAPI20_22_23[Recurso financeiro estimado no ano\n(R$) - Cobrança Federal],PAPI20_22_23[SubPDC],'Consolidaçao - 1'!M8,PAPI20_22_23[Ano previsto para início],2023)","v":0},{"$f":"SUMIFS(PAPI20_22_23[Recurso financeiro estimado no ano (R$) - Outras],PAPI20_22_23[SubPDC],'Consolidaçao - 1'!M8,PAPI20_22_23[Ano previsto para início],2023)","v":0},0,0]
["1.7 - Poluição",{"$f":"SUMIFS(#REF!,#REF!,A9,#REF!,2021)","v":{"$error":"#REF!"}},{"$f":"SUMIFS(#REF!,#REF!,A9,#REF!,2021)","v":{"$error":"#REF!"}},{"$f":"SUMIFS(#REF!,#REF!,A9,#REF!,2021)","v":{"$error":"#REF!"}},{"$f":"SUMIFS(#REF!,#REF!,A9,#REF!,2021)","v":{"$error":"#REF!"}},{"$error":"#REF!"},null,"2.5 - Monitoramento e SI",{"$f":"SUMIFS(PAPI20_22_23[Recurso financeiro estimado no ano (R$) - CFURH],PAPI20_22_23[SubPDC],'Consolidaçao - 1'!H9,PAPI20_22_23[Ano previsto para início],2022)","v":0},{"$f":"SUMIFS(PAPI20_22_23[Recurso financeiro estimado no ano\n(R$) - Cobrança Estadual],PAPI20_22_23[SubPDC],'Consolidaçao - 1'!H9,PAPI20_22_23[Ano previsto para início],2022)","v":0},{"$f":"SUMIFS(PAPI20_22_23[Recurso financeiro estimado no ano\n(R$) - Cobrança Federal],PAPI20_22_23[SubPDC],'Consolidaçao - 1'!H9,PAPI20_22_23[Ano previsto para início],2022)","v":0},{"$f":"SUMIFS(PAPI20_22_23[Recurso financeiro estimado no ano (R$) - Outras],PAPI20_22_23[SubPDC],'Consolidaçao - 1'!H9,PAPI20_22_23[Ano previsto para início],2022)","v":0},0,{"$f":"SUMIFS(PAPI20_22_23[Recurso financeiro estimado no ano (R$) - CFURH],PAPI20_22_23[SubPDC],'Consolidaçao - 1'!H9,PAPI20_22_23[Ano previsto para início],2023)","v":0},{"$f":"SUMIFS(PAPI20_22_23[Recurso financeiro estimado no ano\n(R$) - Cobrança Estadual],PAPI20_22_23[SubPDC],'Consolidaçao - 1'!M9,PAPI20_22_23[Ano previsto para início],2023)","v":0},{"$f":"SUMIFS(PAPI20_22_23[Recurso financeiro estimado no ano\n(R$) - Cobrança Federal],PAPI20_22_23[SubPDC],'Consolidaçao - 1'!M9,PAPI20_22_23[Ano previsto para início],2023)","v":0},{"$f":"SUMIFS(PAPI20_22_23[Recurso financeiro estimado no ano (R$) - Outras],PAPI20_22_23[SubPDC],'Consolidaçao - 1'!M9,PAPI20_22_23[Ano previsto para início],2023)","v":0},0,0]
["2.1 - Planos",{"$f":"SUMIFS(#REF!,#REF!,A10,#REF!,2021)","v":{"$error":"#REF!"}},{"$f":"SUMIFS(#REF!,#REF!,A10,#REF!,2021)","v":{"$error":"#REF!"}},{"$f":"SUMIFS(#REF!,#REF!,A10,#REF!,2021)","v":{"$error":"#REF!"}},{"$f":"SUMIFS(#REF!,#REF!,A10,#REF!,2021)","v":{"$error":"#REF!"}},{"$error":"#REF!"},null,"2.6 - Integração",{"$f":"SUMIFS(PAPI20_22_23[Recurso financeiro estimado no ano (R$) - CFURH],PAPI20_22_23[SubPDC],'Consolidaçao - 1'!H10,PAPI20_22_23[Ano previsto para início],2022)","v":0},{"$f":"SUMIFS(PAPI20_22_23[Recurso financeiro estimado no ano\n(R$) - Cobrança Estadual],PAPI20_22_23[SubPDC],'Consolidaçao - 1'!H10,PAPI20_22_23[Ano previsto para início],2022)","v":0},{"$f":"SUMIFS(PAPI20_22_23[Recurso financeiro estimado no ano\n(R$) - Cobrança Federal],PAPI20_22_23[SubPDC],'Consolidaçao - 1'!H10,PAPI20_22_23[Ano previsto para início],2022)","v":0},{"$f":"SUMIFS(PAPI20_22_23[Recurso financeiro estimado no ano (R$) - Outras],PAPI20_22_23[SubPDC],'Consolidaçao - 1'!H10,PAPI20_22_23[Ano previsto para início],2022)","v":0},0,{"$f":"SUMIFS(PAPI20_22_23[Recurso financeiro estimado no ano (R$) - CFURH],PAPI20_22_23[SubPDC],'Consolidaçao - 1'!H10,PAPI20_22_23[Ano previsto para início],2023)","v":0},{"$f":"SUMIFS(PAPI20_22_23[Recurso financeiro estimado no ano\n(R$) - Cobrança Estadual],PAPI20_22_23[SubPDC],'Consolidaçao - 1'!M10,PAPI20_22_23[Ano previsto para início],2023)","v":0},{"$f":"SUMIFS(PAPI20_22_23[Recurso financeiro estimado no ano\n(R$) - Cobrança Federal],PAPI20_22_23[SubPDC],'Consolidaçao - 1'!M10,PAPI20_22_23[Ano previsto para início],2023)","v":0},{"$f":"SUMIFS(PAPI20_22_23[Recurso financeiro estimado no ano (R$) - Outras],PAPI20_22_23[SubPDC],'Consolidaçao - 1'!M10,PAPI20_22_23[Ano previsto para início],2023)","v":0},0,0]
["2.2 - Outorga",{"$f":"SUMIFS(#REF!,#REF!,A11,#REF!,2021)","v":{"$error":"#REF!"}},{"$f":"SUMIFS(#REF!,#REF!,A11,#REF!,2021)","v":{"$error":"#REF!"}},{"$f":"SUMIFS(#REF!,#REF!,A11,#REF!,2021)","v":{"$error":"#REF!"}},{"$f":"SUMIFS(#REF!,#REF!,A11,#REF!,2021)","v":{"$error":"#REF!"}},{"$error":"#REF!"},null,"2.7 - CORHI",{"$f":"SUMIFS(PAPI20_22_23[Recurso financeiro estimado no ano (R$) - CFURH],PAPI20_22_23[SubPDC],'Consolidaçao - 1'!H11,PAPI20_22_23[Ano previsto para início],2022)","v":0},{"$f":"SUMIFS(PAPI20_22_23[Recurso financeiro estimado no ano\n(R$) - Cobrança Estadual],PAPI20_22_23[SubPDC],'Consolidaçao - 1'!H11,PAPI20_22_23[Ano previsto para início],2022)","v":0},{"$f":"SUMIFS(PAPI20_22_23[Recurso financeiro estimado no ano\n(R$) - Cobrança Federal],PAPI20_22_23[SubPDC],'Consolidaçao - 1'!H11,PAPI20_22_23[Ano previsto para início],2022)","v":0},{"$f":"SUMIFS(PAPI20_22_23[Recurso financeiro estimado no ano (R$) - Outras],PAPI20_22_23[SubPDC],'Consolidaçao - 1'!H11,PAPI20_22_23[Ano previsto para início],2022)","v":0},0,{"$f":"SUMIFS(PAPI20_22_23[Recurso financeiro estimado no ano (R$) - CFURH],PAPI20_22_23[SubPDC],'Consolidaçao - 1'!H11,PAPI20_22_23[Ano previsto para início],2023)","v":0},{"$f":"SUMIFS(PAPI20_22_23[Recurso financeiro estimado no ano\n(R$) - Cobrança Estadual],PAPI20_22_23[SubPDC],'Consolidaçao - 1'!M11,PAPI20_22_23[Ano previsto para início],2023)","v":0},{"$f":"SUMIFS(PAPI20_22_23[Recurso financeiro estimado no ano\n(R$) - Cobrança Federal],PAPI20_22_23[SubPDC],'Consolidaçao - 1'!M11,PAPI20_22_23[Ano previsto para início],2023)","v":0},{"$f":"SUMIFS(PAPI20_22_23[Recurso financeiro estimado no ano (R$) - Outras],PAPI20_22_23[SubPDC],'Consolidaçao - 1'!M11,PAPI20_22_23[Ano previsto para início],2023)","v":0},0,0]
["2.3 - Cobrança",{"$f":"SUMIFS(#REF!,#REF!,A12,#REF!,2021)","v":{"$error":"#REF!"}},{"$f":"SUMIFS(#REF!,#REF!,A12,#REF!,2021)","v":{"$error":"#REF!"}},{"$f":"SUMIFS(#REF!,#REF!,A12,#REF!,2021)","v":{"$error":"#REF!"}},{"$f":"SUMIFS(#REF!,#REF!,A12,#REF!,2021)","v":{"$error":"#REF!"}},{"$error":"#REF!"},null,"3.1 - Efluentes",{"$f":"SUMIFS(PAPI20_22_23[Recurso financeiro estimado no ano (R$) - CFURH],PAPI20_22_23[SubPDC],'Consolidaçao - 1'!H12,PAPI20_22_23[Ano previsto para início],2022)","v":0},{"$f":"SUMIFS(PAPI20_22_23[Recurso financeiro estimado no ano\n(R$) - Cobrança Estadual],PAPI20_22_23[SubPDC],'Consolidaçao - 1'!H12,PAPI20_22_23[Ano previsto para início],2022)","v":0},{"$f":"SUMIFS(PAPI20_22_23[Recurso financeiro estimado no ano\n(R$) - Cobrança Federal],PAPI20_22_23[SubPDC],'Consolidaçao - 1'!H12,PAPI20_22_23[Ano previsto para início],2022)","v":0},{"$f":"SUMIFS(PAPI20_22_23[Recurso financeiro estimado no ano (R$) - Outras],PAPI20_22_23[SubPDC],'Consolidaçao - 1'!H12,PAPI20_22_23[Ano previsto para início],2022)","v":0},0,{"$f":"SUMIFS(PAPI20_22_23[Recurso financeiro estimado no ano (R$) - CFURH],PAPI20_22_23[SubPDC],'Consolidaçao - 1'!H12,PAPI20_22_23[Ano previsto para início],2023)","v":0},{"$f":"SUMIFS(PAPI20_22_23[Recurso financeiro estimado no ano\n(R$) - Cobrança Estadual],PAPI20_22_23[SubPDC],'Consolidaçao - 1'!M12,PAPI20_22_23[Ano previsto para início],2023)","v":0},{"$f":"SUMIFS(PAPI20_22_23[Recurso financeiro estimado no ano\n(R$) - Cobrança Federal],PAPI20_22_23[SubPDC],'Consolidaçao - 1'!M12,PAPI20_22_23[Ano previsto para início],2023)","v":0},{"$f":"SUMIFS(PAPI20_22_23[Recurso financeiro estimado no ano (R$) - Outras],PAPI20_22_23[SubPDC],'Consolidaçao - 1'!M12,PAPI20_22_23[Ano previsto para início],2023)","v":0},0,0]
["2.4 - Efetivação",{"$f":"SUMIFS(#REF!,#REF!,A13,#REF!,2021)","v":{"$error":"#REF!"}},{"$f":"SUMIFS(#REF!,#REF!,A13,#REF!,2021)","v":{"$error":"#REF!"}},{"$f":"SUMIFS(#REF!,#REF!,A13,#REF!,2021)","v":{"$error":"#REF!"}},{"$f":"SUMIFS(#REF!,#REF!,A13,#REF!,2021)","v":{"$error":"#REF!"}},{"$error":"#REF!"},null,"3.2 - Poluição",{"$f":"SUMIFS(PAPI20_22_23[Recurso financeiro estimado no ano (R$) - CFURH],PAPI20_22_23[SubPDC],'Consolidaçao - 1'!H13,PAPI20_22_23[Ano previsto para início],2022)","v":0},{"$f":"SUMIFS(PAPI20_22_23[Recurso financeiro estimado no ano\n(R$) - Cobrança Estadual],PAPI20_22_23[SubPDC],'Consolidaçao - 1'!H13,PAPI20_22_23[Ano previsto para início],2022)","v":0},{"$f":"SUMIFS(PAPI20_22_23[Recurso financeiro estimado no ano\n(R$) - Cobrança Federal],PAPI20_22_23[SubPDC],'Consolidaçao - 1'!H13,PAPI20_22_23[Ano previsto para início],2022)","v":0},{"$f":"SUMIFS(PAPI20_22_23[Recurso financeiro estimado no ano (R$) - Outras],PAPI20_22_23[SubPDC],'Consolidaçao - 1'!H13,PAPI20_22_23[Ano previsto para início],2022)","v":0},0,{"$f":"SUMIFS(PAPI20_22_23[Recurso financeiro estimado no ano (R$) - CFURH],PAPI20_22_23[SubPDC],'Consolidaçao - 1'!H13,PAPI20_22_23[Ano previsto para início],2023)","v":0},{"$f":"SUMIFS(PAPI20_22_23[Recurso financeiro estimado no ano\n(R$) - Cobrança Estadual],PAPI20_22_23[SubPDC],'Consolidaçao - 1'!M13,PAPI20_22_23[Ano previsto para início],2023)","v":0},{"$f":"SUMIFS(PAPI20_22_23[Recurso financeiro estimado no ano\n(R$) - Cobrança Federal],PAPI20_22_23[SubPDC],'Consolidaçao - 1'!M13,PAPI20_22_23[Ano previsto para início],2023)","v":0},{"$f":"SUMIFS(PAPI20_22_23[Recurso financeiro estimado no ano (R$) - Outras],PAPI20_22_23[SubPDC],'Consolidaçao - 1'!M13,PAPI20_22_23[Ano previsto para início],2023)","v":0},0,0]
["2.5 - Integração",{"$f":"SUMIFS(#REF!,#REF!,A14,#REF!,2021)","v":{"$error":"#REF!"}},{"$f":"SUMIFS(#REF!,#REF!,A14,#REF!,2021)","v":{"$error":"#REF!"}},{"$f":"SUMIFS(#REF!,#REF!,A14,#REF!,2021)","v":{"$error":"#REF!"}},{"$f":"SUMIFS(#REF!,#REF!,A14,#REF!,2021)","v":{"$error":"#REF!"}},{"$error":"#REF!"},null,"3.3 - Resíduos",{"$f":"SUMIFS(PAPI20_22_23[Recurso financeiro estimado no ano (R$) - CFURH],PAPI20_22_23[SubPDC],'Consolidaçao - 1'!H14,PAPI20_22_23[Ano previsto para início],2022)","v":0},{"$f":"SUMIFS(PAPI20_22_23[Recurso financeiro estimado no ano\n(R$) - Cobrança Estadual],PAPI20_22_23[SubPDC],'Consolidaçao - 1'!H14,PAPI20_22_23[Ano previsto para início],2022)","v":0},{"$f":"SUMIFS(PAPI20_22_23[Recurso financeiro estimado no ano\n(R$) - Cobrança Federal],PAPI20_22_23[SubPDC],'Consolidaçao - 1'!H14,PAPI20_22_23[Ano previsto para início],2022)","v":0},{"$f":"SUMIFS(PAPI20_22_23[Recurso financeiro estimado no ano (R$) - Outras],PAPI20_22_23[SubPDC],'Consolidaçao - 1'!H14,PAPI20_22_23[Ano previsto para início],2022)","v":0},0,{"$f":"SUMIFS(PAPI20_22_23[Recurso financeiro estimado no ano (R$) - CFURH],PAPI20_22_23[SubPDC],'Consolidaçao - 1'!H14,PAPI20_22_23[Ano previsto para início],2023)","v":0},{"$f":"SUMIFS(PAPI20_22_23[Recurso financeiro estimado no ano\n(R$) - Cobrança Estadual],PAPI20_22_23[SubPDC],'Consolidaçao - 1'!M14,PAPI20_22_23[Ano previsto para início],2023)","v":0},{"$f":"SUMIFS(PAPI20_22_23[Recurso financeiro estimado no ano\n(R$) - Cobrança Federal],PAPI20_22_23[SubPDC],'Consolidaçao - 1'!M14,PAPI20_22_23[Ano previsto para início],2023)","v":0},{"$f":"SUMIFS(PAPI20_22_23[Recurso financeiro estimado no ano (R$) - Outras],PAPI20_22_23[SubPDC],'Consolidaçao - 1'!M14,PAPI20_22_23[Ano previsto para início],2023)","v":0},0,0]
["2.6 - CORHI",{"$f":"SUMIFS(#REF!,#REF!,A15,#REF!,2021)","v":{"$error":"#REF!"}},{"$f":"SUMIFS(#REF!,#REF!,A15,#REF!,2021)","v":{"$error":"#REF!"}},{"$f":"SUMIFS(#REF!,#REF!,A15,#REF!,2021)","v":{"$error":"#REF!"}},{"$f":"SUMIFS(#REF!,#REF!,A15,#REF!,2021)","v":{"$error":"#REF!"}},{"$error":"#REF!"},null,"3.4 - Intervenções",{"$f":"SUMIFS(PAPI20_22_23[Recurso financeiro estimado no ano (R$) - CFURH],PAPI20_22_23[SubPDC],'Consolidaçao - 1'!H15,PAPI20_22_23[Ano previsto para início],2022)","v":0},{"$f":"SUMIFS(PAPI20_22_23[Recurso financeiro estimado no ano\n(R$) - Cobrança Estadual],PAPI20_22_23[SubPDC],'Consolidaçao - 1'!H15,PAPI20_22_23[Ano previsto para início],2022)","v":0},{"$f":"SUMIFS(PAPI20_22_23[Recurso financeiro estimado no ano\n(R$) - Cobrança Federal],PAPI20_22_23[SubPDC],'Consolidaçao - 1'!H15,PAPI20_22_23[Ano previsto para início],2022)","v":0},{"$f":"SUMIFS(PAPI20_22_23[Recurso financeiro estimado no ano (R$) - Outras],PAPI20_22_23[SubPDC],'Consolidaçao - 1'!H15,PAPI20_22_23[Ano previsto para início],2022)","v":0},0,{"$f":"SUMIFS(PAPI20_22_23[Recurso financeiro estimado no ano (R$) - CFURH],PAPI20_22_23[SubPDC],'Consolidaçao - 1'!H15,PAPI20_22_23[Ano previsto para início],2023)","v":0},{"$f":"SUMIFS(PAPI20_22_23[Recurso financeiro estimado no ano\n(R$) - Cobrança Estadual],PAPI20_22_23[SubPDC],'Consolidaçao - 1'!H15,PAPI20_22_23[Ano previsto para início],2023)","v":0},{"$f":"SUMIFS(PAPI20_22_23[Recurso financeiro estimado no ano\n(R$) - Cobrança Federal],PAPI20_22_23[SubPDC],'Consolidaçao - 1'!H15,PAPI20_22_23[Ano previsto para início],2023)","v":0},{"$f":"SUMIFS(PAPI20_22_23[Recurso financeiro estimado no ano (R$) - Outras],PAPI20_22_23[SubPDC],'Consolidaçao - 1'!H15,PAPI20_22_23[Ano previsto para início],2023)","v":0},0,0]
["3.1 - Efluentes",{"$f":"SUMIFS(#REF!,#REF!,A16,#REF!,2021)","v":{"$error":"#REF!"}},{"$f":"SUMIFS(#REF!,#REF!,A16,#REF!,2021)","v":{"$error":"#REF!"}},{"$f":"SUMIFS(#REF!,#REF!,A16,#REF!,2021)","v":{"$error":"#REF!"}},{"$f":"SUMIFS(#REF!,#REF!,A16,#REF!,2021)","v":{"$error":"#REF!"}},{"$error":"#REF!"},null,"4.1 - Erosão",{"$f":"SUMIFS(PAPI20_22_23[Recurso financeiro estimado no ano (R$) - CFURH],PAPI20_22_23[SubPDC],'Consolidaçao - 1'!H16,PAPI20_22_23[Ano previsto para início],2022)","v":0},{"$f":"SUMIFS(PAPI20_22_23[Recurso financeiro estimado no ano\n(R$) - Cobrança Estadual],PAPI20_22_23[SubPDC],'Consolidaçao - 1'!H16,PAPI20_22_23[Ano previsto para início],2022)","v":0},{"$f":"SUMIFS(PAPI20_22_23[Recurso financeiro estimado no ano\n(R$) - Cobrança Federal],PAPI20_22_23[SubPDC],'Consolidaçao - 1'!H16,PAPI20_22_23[Ano previsto para início],2022)","v":0},{"$f":"SUMIFS(PAPI20_22_23[Recurso financeiro estimado no ano (R$) - Outras],PAPI20_22_23[SubPDC],'Consolidaçao - 1'!H16,PAPI20_22_23[Ano previsto para início],2022)","v":0},0,{"$f":"SUMIFS(PAPI20_22_23[Recurso financeiro estimado no ano (R$) - CFURH],PAPI20_22_23[SubPDC],'Consolidaçao - 1'!H16,PAPI20_22_23[Ano previsto para início],2023)","v":0},{"$f":"SUMIFS(PAPI20_22_23[Recurso financeiro estimado no ano\n(R$) - Cobrança Estadual],PAPI20_22_23[SubPDC],'Consolidaçao - 1'!H16,PAPI20_22_23[Ano previsto para início],2023)","v":0},{"$f":"SUMIFS(PAPI20_22_23[Recurso financeiro estimado no ano\n(R$) - Cobrança Federal],PAPI20_22_23[SubPDC],'Consolidaçao - 1'!H16,PAPI20_22_23[Ano previsto para início],2023)","v":0},{"$f":"SUMIFS(PAPI20_22_23[Recurso financeiro estimado no ano (R$) - Outras],PAPI20_22_23[SubPDC],'Consolidaçao - 1'!H16,PAPI20_22_23[Ano previsto para início],2023)","v":0},0,0]
["3.2 - Resíduos",{"$f":"SUMIFS(#REF!,#REF!,A17,#REF!,2021)","v":{"$error":"#REF!"}},{"$f":"SUMIFS(#REF!,#REF!,A17,#REF!,2021)","v":{"$error":"#REF!"}},{"$f":"SUMIFS(#REF!,#REF!,A17,#REF!,2021)","v":{"$error":"#REF!"}},{"$f":"SUMIFS(#REF!,#REF!,A17,#REF!,2021)","v":{"$error":"#REF!"}},{"$error":"#REF!"},null,"4.2 - Conservação",{"$f":"SUMIFS(PAPI20_22_23[Recurso financeiro estimado no ano (R$) - CFURH],PAPI20_22_23[SubPDC],'Consolidaçao - 1'!H17,PAPI20_22_23[Ano previsto para início],2022)","v":0},{"$f":"SUMIFS(PAPI20_22_23[Recurso financeiro estimado no ano\n(R$) - Cobrança Estadual],PAPI20_22_23[SubPDC],'Consolidaçao - 1'!H17,PAPI20_22_23[Ano previsto para início],2022)","v":0},{"$f":"SUMIFS(PAPI20_22_23[Recurso financeiro estimado no ano\n(R$) - Cobrança Federal],PAPI20_22_23[SubPDC],'Consolidaçao - 1'!H17,PAPI20_22_23[Ano previsto para início],2022)","v":0},{"$f":"SUMIFS(PAPI20_22_23[Recurso financeiro estimado no ano (R$) - Outras],PAPI20_22_23[SubPDC],'Consolidaçao - 1'!H17,PAPI20_22_23[Ano previsto para início],2022)","v":0},0,{"$f":"SUMIFS(PAPI20_22_23[Recurso financeiro estimado no ano (R$) - CFURH],PAPI20_22_23[SubPDC],'Consolidaçao - 1'!H17,PAPI20_22_23[Ano previsto para início],2023)","v":0},{"$f":"SUMIFS(PAPI20_22_23[Recurso financeiro estimado no ano\n(R$) - Cobrança Estadual],PAPI20_22_23[SubPDC],'Consolidaçao - 1'!H17,PAPI20_22_23[Ano previsto para início],2023)","v":0},{"$f":"SUMIFS(PAPI20_22_23[Recurso financeiro estimado no ano\n(R$) - Cobrança Federal],PAPI20_22_23[SubPDC],'Consolidaçao - 1'!H17,PAPI20_22_23[Ano previsto para início],2023)","v":0},{"$f":"SUMIFS(PAPI20_22_23[Recurso financeiro estimado no ano (R$) - Outras],PAPI20_22_23[SubPDC],'Consolidaçao - 1'!H17,PAPI20_22_23[Ano previsto para início],2023)","v":0},0,0]
["3.3 - Drenagem",{"$f":"SUMIFS(#REF!,#REF!,A18,#REF!,2021)","v":{"$error":"#REF!"}},{"$f":"SUMIFS(#REF!,#REF!,A18,#REF!,2021)","v":{"$error":"#REF!"}},{"$f":"SUMIFS(#REF!,#REF!,A18,#REF!,2021)","v":{"$error":"#REF!"}},{"$f":"SUMIFS(#REF!,#REF!,A18,#REF!,2021)","v":{"$error":"#REF!"}},{"$error":"#REF!"},null,"4.3 - Mananciais",{"$f":"SUMIFS(PAPI20_22_23[Recurso financeiro estimado no ano (R$) - CFURH],PAPI20_22_23[SubPDC],'Consolidaçao - 1'!H18,PAPI20_22_23[Ano previsto para início],2022)","v":0},{"$f":"SUMIFS(PAPI20_22_23[Recurso financeiro estimado no ano\n(R$) - Cobrança Estadual],PAPI20_22_23[SubPDC],'Consolidaçao - 1'!H18,PAPI20_22_23[Ano previsto para início],2022)","v":0},{"$f":"SUMIFS(PAPI20_22_23[Recurso financeiro estimado no ano\n(R$) - Cobrança Federal],PAPI20_22_23[SubPDC],'Consolidaçao - 1'!H18,PAPI20_22_23[Ano previsto para início],2022)","v":0},{"$f":"SUMIFS(PAPI20_22_23[Recurso financeiro estimado no ano (R$) - Outras],PAPI20_22_23[SubPDC],'Consolidaçao - 1'!H18,PAPI20_22_23[Ano previsto para início],2022)","v":0},0,{"$f":"SUMIFS(PAPI20_22_23[Recurso financeiro estimado no ano (R$) - CFURH],PAPI20_22_23[SubPDC],'Consolidaçao - 1'!H18,PAPI20_22_23[Ano previsto para início],2023)","v":0},{"$f":"SUMIFS(PAPI20_22_23[Recurso financeiro estimado no ano\n(R$) - Cobrança Estadual],PAPI20_22_23[SubPDC],'Consolidaçao - 1'!H18,PAPI20_22_23[Ano previsto para início],2023)","v":0},{"$f":"SUMIFS(PAPI20_22_23[Recurso financeiro estimado no ano\n(R$) - Cobrança Federal],PAPI20_22_23[SubPDC],'Consolidaçao - 1'!H18,PAPI20_22_23[Ano previsto para início],2023)","v":0},{"$f":"SUMIFS(PAPI20_22_23[Recurso financeiro estimado no ano (R$) - Outras],PAPI20_22_23[SubPDC],'Consolidaçao - 1'!H18,PAPI20_22_23[Ano previsto para início],2023)","v":0},0,0]
["3.4 - Erosão",{"$f":"SUMIFS(#REF!,#REF!,A19,#REF!,2021)","v":{"$error":"#REF!"}},{"$f":"SUMIFS(#REF!,#REF!,A19,#REF!,2021)","v":{"$error":"#REF!"}},{"$f":"SUMIFS(#REF!,#REF!,A19,#REF!,2021)","v":{"$error":"#REF!"}},{"$f":"SUMIFS(#REF!,#REF!,A19,#REF!,2021)","v":{"$error":"#REF!"}},{"$error":"#REF!"},null,"5.1 - Perdas",{"$f":"SUMIFS(PAPI20_22_23[Recurso financeiro estimado no ano (R$) - CFURH],PAPI20_22_23[SubPDC],'Consolidaçao - 1'!H19,PAPI20_22_23[Ano previsto para início],2022)","v":0},{"$f":"SUMIFS(PAPI20_22_23[Recurso financeiro estimado no ano\n(R$) - Cobrança Estadual],PAPI20_22_23[SubPDC],'Consolidaçao - 1'!H19,PAPI20_22_23[Ano previsto para início],2022)","v":0},{"$f":"SUMIFS(PAPI20_22_23[Recurso financeiro estimado no ano\n(R$) - Cobrança Federal],PAPI20_22_23[SubPDC],'Consolidaçao - 1'!H19,PAPI20_22_23[Ano previsto para início],2022)","v":0},{"$f":"SUMIFS(PAPI20_22_23[Recurso financeiro estimado no ano (R$) - Outras],PAPI20_22_23[SubPDC],'Consolidaçao - 1'!H19,PAPI20_22_23[Ano previsto para início],2022)","v":0},0,{"$f":"SUMIFS(PAPI20_22_23[Recurso financeiro estimado no ano (R$) - CFURH],PAPI20_22_23[SubPDC],'Consolidaçao - 1'!H19,PAPI20_22_23[Ano previsto para início],2023)","v":0},{"$f":"SUMIFS(PAPI20_22_23[Recurso financeiro estimado no ano\n(R$) - Cobrança Estadual],PAPI20_22_23[SubPDC],'Consolidaçao - 1'!H19,PAPI20_22_23[Ano previsto para início],2023)","v":0},{"$f":"SUMIFS(PAPI20_22_23[Recurso financeiro estimado no ano\n(R$) - Cobrança Federal],PAPI20_22_23[SubPDC],'Consolidaçao - 1'!H19,PAPI20_22_23[Ano previsto para início],2023)","v":0},{"$f":"SUMIFS(PAPI20_22_23[Recurso financeiro estimado no ano (R$) - Outras],PAPI20_22_23[SubPDC],'Consolidaçao - 1'!H19,PAPI20_22_23[Ano previsto para início],2023)","v":0},0,0]
["3.5 - Intervenções",{"$f":"SUMIFS(#REF!,#REF!,A20,#REF!,2021)","v":{"$error":"#REF!"}},{"$f":"SUMIFS(#REF!,#REF!,A20,#REF!,2021)","v":{"$error":"#REF!"}},{"$f":"SUMIFS(#REF!,#REF!,A20,#REF!,2021)","v":{"$error":"#REF!"}},{"$f":"SUMIFS(#REF!,#REF!,A20,#REF!,2021)","v":{"$error":"#REF!"}},{"$error":"#REF!"},null,"5.2 - Racionalização",{"$f":"SUMIFS(PAPI20_22_23[Recurso financeiro estimado no ano (R$) - CFURH],PAPI20_22_23[SubPDC],'Consolidaçao - 1'!H20,PAPI20_22_23[Ano previsto para início],2022)","v":0},{"$f":"SUMIFS(PAPI20_22_23[Recurso financeiro estimado no ano\n(R$) - Cobrança Estadual],PAPI20_22_23[SubPDC],'Consolidaçao - 1'!H20,PAPI20_22_23[Ano previsto para início],2022)","v":0},{"$f":"SUMIFS(PAPI20_22_23[Recurso financeiro estimado no ano\n(R$) - Cobrança Federal],PAPI20_22_23[SubPDC],'Consolidaçao - 1'!H20,PAPI20_22_23[Ano previsto para início],2022)","v":0},{"$f":"SUMIFS(PAPI20_22_23[Recurso financeiro estimado no ano (R$) - Outras],PAPI20_22_23[SubPDC],'Consolidaçao - 1'!H20,PAPI20_22_23[Ano previsto para início],2022)","v":0},0,{"$f":"SUMIFS(PAPI20_22_23[Recurso financeiro estimado no ano (R$) - CFURH],PAPI20_22_23[SubPDC],'Consolidaçao - 1'!H20,PAPI20_22_23[Ano previsto para início],2023)","v":0},{"$f":"SUMIFS(PAPI20_22_23[Recurso financeiro estimado no ano\n(R$) - Cobrança Estadual],PAPI20_22_23[SubPDC],'Consolidaçao - 1'!H20,PAPI20_22_23[Ano previsto para início],2023)","v":0},{"$f":"SUMIFS(PAPI20_22_23[Recurso financeiro estimado no ano\n(R$) - Cobrança Federal],PAPI20_22_23[SubPDC],'Consolidaçao - 1'!H20,PAPI20_22_23[Ano previsto para início],2023)","v":0},{"$f":"SUMIFS(PAPI20_22_23[Recurso financeiro estimado no ano (R$) - Outras],PAPI20_22_23[SubPDC],'Consolidaçao - 1'!H20,PAPI20_22_23[Ano previsto para início],2023)","v":0},0,0]
["4.1 - Mananciais",{"$f":"SUMIFS(#REF!,#REF!,A21,#REF!,2021)","v":{"$error":"#REF!"}},{"$f":"SUMIFS(#REF!,#REF!,A21,#REF!,2021)","v":{"$error":"#REF!"}},{"$f":"SUMIFS(#REF!,#REF!,A21,#REF!,2021)","v":{"$error":"#REF!"}},{"$f":"SUMIFS(#REF!,#REF!,A21,#REF!,2021)","v":{"$error":"#REF!"}},{"$error":"#REF!"},null,"5.3 - Reuso",{"$f":"SUMIFS(PAPI20_22_23[Recurso financeiro estimado no ano (R$) - CFURH],PAPI20_22_23[SubPDC],'Consolidaçao - 1'!H21,PAPI20_22_23[Ano previsto para início],2022)","v":0},{"$f":"SUMIFS(PAPI20_22_23[Recurso financeiro estimado no ano\n(R$) - Cobrança Estadual],PAPI20_22_23[SubPDC],'Consolidaçao - 1'!H21,PAPI20_22_23[Ano previsto para início],2022)","v":0},{"$f":"SUMIFS(PAPI20_22_23[Recurso financeiro estimado no ano\n(R$) - Cobrança Federal],PAPI20_22_23[SubPDC],'Consolidaçao - 1'!H21,PAPI20_22_23[Ano previsto para início],2022)","v":0},{"$f":"SUMIFS(PAPI20_22_23[Recurso financeiro estimado no ano (R$) - Outras],PAPI20_22_23[SubPDC],'Consolidaçao - 1'!H21,PAPI20_22_23[Ano previsto para início],2022)","v":0},0,{"$f":"SUMIFS(PAPI20_22_23[Recurso financeiro estimado no ano (R$) - CFURH],PAPI20_22_23[SubPDC],'Consolidaçao - 1'!H21,PAPI20_22_23[Ano previsto para início],2023)","v":0},{"$f":"SUMIFS(PAPI20_22_23[Recurso financeiro estimado no ano\n(R$) - Cobrança Estadual],PAPI20_22_23[SubPDC],'Consolidaçao - 1'!H21,PAPI20_22_23[Ano previsto para início],2023)","v":0},{"$f":"SUMIFS(PAPI20_22_23[Recurso financeiro estimado no ano\n(R$) - Cobrança Federal],PAPI20_22_23[SubPDC],'Consolidaçao - 1'!H21,PAPI20_22_23[Ano previsto para início],2023)","v":0},{"$f":"SUMIFS(PAPI20_22_23[Recurso financeiro estimado no ano (R$) - Outras],PAPI20_22_23[SubPDC],'Consolidaçao - 1'!H21,PAPI20_22_23[Ano previsto para início],2023)","v":0},0,0]
["4.2 - Vegetação",{"$f":"SUMIFS(#REF!,#REF!,A22,#REF!,2021)","v":{"$error":"#REF!"}},{"$f":"SUMIFS(#REF!,#REF!,A22,#REF!,2021)","v":{"$error":"#REF!"}},{"$f":"SUMIFS(#REF!,#REF!,A22,#REF!,2021)","v":{"$error":"#REF!"}},{"$f":"SUMIFS(#REF!,#REF!,A22,#REF!,2021)","v":{"$error":"#REF!"}},{"$error":"#REF!"},null,"6.1 - Captação",{"$f":"SUMIFS(PAPI20_22_23[Recurso financeiro estimado no ano (R$) - CFURH],PAPI20_22_23[SubPDC],'Consolidaçao - 1'!H22,PAPI20_22_23[Ano previsto para início],2022)","v":0},{"$f":"SUMIFS(PAPI20_22_23[Recurso financeiro estimado no ano\n(R$) - Cobrança Estadual],PAPI20_22_23[SubPDC],'Consolidaçao - 1'!H22,PAPI20_22_23[Ano previsto para início],2022)","v":0},{"$f":"SUMIFS(PAPI20_22_23[Recurso financeiro estimado no ano\n(R$) - Cobrança Federal],PAPI20_22_23[SubPDC],'Consolidaçao - 1'!H22,PAPI20_22_23[Ano previsto para início],2022)","v":0},{"$f":"SUMIFS(PAPI20_22_23[Recurso financeiro estimado no ano (R$) - Outras],PAPI20_22_23[SubPDC],'Consolidaçao - 1'!H22,PAPI20_22_23[Ano previsto para início],2022)","v":0},0,{"$f":"SUMIFS(PAPI20_22_23[Recurso financeiro estimado no ano (R$) - CFURH],PAPI20_22_23[SubPDC],'Consolidaçao - 1'!H22,PAPI20_22_23[Ano previsto para início],2023)","v":0},{"$f":"SUMIFS(PAPI20_22_23[Recurso financeiro estimado no ano\n(R$) - Cobrança Estadual],PAPI20_22_23[SubPDC],'Consolidaçao - 1'!H22,PAPI20_22_23[Ano previsto para início],2023)","v":0},{"$f":"SUMIFS(PAPI20_22_23[Recurso financeiro estimado no ano\n(R$) - Cobrança Federal],PAPI20_22_23[SubPDC],'Consolidaçao - 1'!H22,PAPI20_22_23[Ano previsto para início],2023)","v":0},{"$f":"SUMIFS(PAPI20_22_23[Recurso financeiro estimado no ano (R$) - Outras],PAPI20_22_23[SubPDC],'Consolidaçao - 1'!H22,PAPI20_22_23[Ano previsto para início],2023)","v":0},0,0]
["5.1 - Perdas",{"$f":"SUMIFS(#REF!,#REF!,A23,#REF!,2021)","v":{"$error":"#REF!"}},{"$f":"SUMIFS(#REF!,#REF!,A23,#REF!,2021)","v":{"$error":"#REF!"}},{"$f":"SUMIFS(#REF!,#REF!,A23,#REF!,2021)","v":{"$error":"#REF!"}},{"$f":"SUMIFS(#REF!,#REF!,A23,#REF!,2021)","v":{"$error":"#REF!"}},{"$error":"#REF!"},null,"6.2 - Regularização",{"$f":"SUMIFS(PAPI20_22_23[Recurso financeiro estimado no ano (R$) - CFURH],PAPI20_22_23[SubPDC],'Consolidaçao - 1'!H23,PAPI20_22_23[Ano previsto para início],2022)","v":0},{"$f":"SUMIFS(PAPI20_22_23[Recurso financeiro estimado no ano\n(R$) - Cobrança Estadual],PAPI20_22_23[SubPDC],'Consolidaçao - 1'!H23,PAPI20_22_23[Ano previsto para início],2022)","v":0},{"$f":"SUMIFS(PAPI20_22_23[Recurso financeiro estimado no ano\n(R$) - Cobrança Federal],PAPI20_22_23[SubPDC],'Consolidaçao - 1'!H23,PAPI20_22_23[Ano previsto para início],2022)","v":0},{"$f":"SUMIFS(PAPI20_22_23[Recurso financeiro estimado no ano (R$) - Outras],PAPI20_22_23[SubPDC],'Consolidaçao - 1'!H23,PAPI20_22_23[Ano previsto para início],2022)","v":0},0,{"$f":"SUMIFS(PAPI20_22_23[Recurso financeiro estimado no ano (R$) - CFURH],PAPI20_22_23[SubPDC],'Consolidaçao - 1'!H23,PAPI20_22_23[Ano previsto para início],2023)","v":0},{"$f":"SUMIFS(PAPI20_22_23[Recurso financeiro estimado no ano\n(R$) - Cobrança Estadual],PAPI20_22_23[SubPDC],'Consolidaçao - 1'!H23,PAPI20_22_23[Ano previsto para início],2023)","v":0},{"$f":"SUMIFS(PAPI20_22_23[Recurso financeiro estimado no ano\n(R$) - Cobrança Federal],PAPI20_22_23[SubPDC],'Consolidaçao - 1'!H23,PAPI20_22_23[Ano previsto para início],2023)","v":0},{"$f":"SUMIFS(PAPI20_22_23[Recurso financeiro estimado no ano (R$) - Outras],PAPI20_22_23[SubPDC],'Consolidaçao - 1'!H23,PAPI20_22_23[Ano previsto para início],2023)","v":0},0,0]
["5.2 - Racionalização",{"$f":"SUMIFS(#REF!,#REF!,A24,#REF!,2021)","v":{"$error":"#REF!"}},{"$f":"SUMIFS(#REF!,#REF!,A24,#REF!,2021)","v":{"$error":"#REF!"}},{"$f":"SUMIFS(#REF!,#REF!,A24,#REF!,2021)","v":{"$error":"#REF!"}},{"$f":"SUMIFS(#REF!,#REF!,A24,#REF!,2021)","v":{"$error":"#REF!"}},{"$error":"#REF!"},null,"7.1 - Drenagem",{"$f":"SUMIFS(PAPI20_22_23[Recurso financeiro estimado no ano (R$) - CFURH],PAPI20_22_23[SubPDC],'Consolidaçao - 1'!H24,PAPI20_22_23[Ano previsto para início],2022)","v":0},{"$f":"SUMIFS(PAPI20_22_23[Recurso financeiro estimado no ano\n(R$) - Cobrança Estadual],PAPI20_22_23[SubPDC],'Consolidaçao - 1'!H24,PAPI20_22_23[Ano previsto para início],2022)","v":0},{"$f":"SUMIFS(PAPI20_22_23[Recurso financeiro estimado no ano\n(R$) - Cobrança Federal],PAPI20_22_23[SubPDC],'Consolidaçao - 1'!H24,PAPI20_22_23[Ano previsto para início],2022)","v":0},{"$f":"SUMIFS(PAPI20_22_23[Recurso financeiro estimado no ano (R$) - Outras],PAPI20_22_23[SubPDC],'Consolidaçao - 1'!H24,PAPI20_22_23[Ano previsto para início],2022)","v":0},0,{"$f":"SUMIFS(PAPI20_22_23[Recurso financeiro estimado no ano (R$) - CFURH],PAPI20_22_23[SubPDC],'Consolidaçao - 1'!H24,PAPI20_22_23[Ano previsto para início],2023)","v":0},{"$f":"SUMIFS(PAPI20_22_23[Recurso financeiro estimado no ano\n(R$) - Cobrança Estadual],PAPI20_22_23[SubPDC],'Consolidaçao - 1'!H24,PAPI20_22_23[Ano previsto para início],2023)","v":0},{"$f":"SUMIFS(PAPI20_22_23[Recurso financeiro estimado no ano\n(R$) - Cobrança Federal],PAPI20_22_23[SubPDC],'Consolidaçao - 1'!H24,PAPI20_22_23[Ano previsto para início],2023)","v":0},{"$f":"SUMIFS(PAPI20_22_23[Recurso financeiro estimado no ano (R$) - Outras],PAPI20_22_23[SubPDC],'Consolidaçao - 1'!H24,PAPI20_22_23[Ano previsto para início],2023)","v":0},0,0]
["5.3 - Reuso",{"$f":"SUMIFS(#REF!,#REF!,A25,#REF!,2021)","v":{"$error":"#REF!"}},{"$f":"SUMIFS(#REF!,#REF!,A25,#REF!,2021)","v":{"$error":"#REF!"}},{"$f":"SUMIFS(#REF!,#REF!,A25,#REF!,2021)","v":{"$error":"#REF!"}},{"$f":"SUMIFS(#REF!,#REF!,A25,#REF!,2021)","v":{"$error":"#REF!"}},{"$error":"#REF!"},null,"7.2 - Escassez",{"$f":"SUMIFS(PAPI20_22_23[Recurso financeiro estimado no ano (R$) - CFURH],PAPI20_22_23[SubPDC],'Consolidaçao - 1'!H25,PAPI20_22_23[Ano previsto para início],2022)","v":0},{"$f":"SUMIFS(PAPI20_22_23[Recurso financeiro estimado no ano\n(R$) - Cobrança Estadual],PAPI20_22_23[SubPDC],'Consolidaçao - 1'!H25,PAPI20_22_23[Ano previsto para início],2022)","v":0},{"$f":"SUMIFS(PAPI20_22_23[Recurso financeiro estimado no ano\n(R$) - Cobrança Federal],PAPI20_22_23[SubPDC],'Consolidaçao - 1'!H25,PAPI20_22_23[Ano previsto para início],2022)","v":0},{"$f":"SUMIFS(PAPI20_22_23[Recurso financeiro estimado no ano (R$) - Outras],PAPI20_22_23[SubPDC],'Consolidaçao - 1'!H25,PAPI20_22_23[Ano previsto para início],2022)","v":0},0,{"$f":"SUMIFS(PAPI20_22_23[Recurso financeiro estimado no ano (R$) - CFURH],PAPI20_22_23[SubPDC],'Consolidaçao - 1'!H25,PAPI20_22_23[Ano previsto para início],2023)","v":0},{"$f":"SUMIFS(PAPI20_22_23[Recurso financeiro estimado no ano\n(R$) - Cobrança Estadual],PAPI20_22_23[SubPDC],'Consolidaçao - 1'!H25,PAPI20_22_23[Ano previsto para início],2023)","v":0},{"$f":"SUMIFS(PAPI20_22_23[Recurso financeiro estimado no ano\n(R$) - Cobrança Federal],PAPI20_22_23[SubPDC],'Consolidaçao - 1'!H25,PAPI20_22_23[Ano previsto para início],2023)","v":0},{"$f":"SUMIFS(PAPI20_22_23[Recurso financeiro estimado no ano (R$) - Outras],PAPI20_22_23[SubPDC],'Consolidaçao - 1'!H25,PAPI20_22_23[Ano previsto para início],2023)","v":0},0,0]
["6.1 - Usos",{"$f":"SUMIFS(#REF!,#REF!,A26,#REF!,2021)","v":{"$error":"#REF!"}},{"$f":"SUMIFS(#REF!,#REF!,A26,#REF!,2021)","v":{"$error":"#REF!"}},{"$f":"SUMIFS(#REF!,#REF!,A26,#REF!,2021)","v":{"$error":"#REF!"}},{"$f":"SUMIFS(#REF!,#REF!,A26,#REF!,2021)","v":{"$error":"#REF!"}},{"$error":"#REF!"},null,"8.1 - Capacitação",{"$f":"SUMIFS(PAPI20_22_23[Recurso financeiro estimado no ano (R$) - CFURH],PAPI20_22_23[SubPDC],'Consolidaçao - 1'!H26,PAPI20_22_23[Ano previsto para início],2022)","v":0},{"$f":"SUMIFS(PAPI20_22_23[Recurso financeiro estimado no ano\n(R$) - Cobrança Estadual],PAPI20_22_23[SubPDC],'Consolidaçao - 1'!H26,PAPI20_22_23[Ano previsto para início],2022)","v":0},{"$f":"SUMIFS(PAPI20_22_23[Recurso financeiro estimado no ano\n(R$) - Cobrança Federal],PAPI20_22_23[SubPDC],'Consolidaçao - 1'!H26,PAPI20_22_23[Ano previsto para início],2022)","v":0},{"$f":"SUMIFS(PAPI20_22_23[Recurso financeiro estimado no ano (R$) - Outras],PAPI20_22_23[SubPDC],'Consolidaçao - 1'!H26,PAPI20_22_23[Ano previsto para início],2022)","v":0},0,{"$f":"SUMIFS(PAPI20_22_23[Recurso financeiro estimado no ano (R$) - CFURH],PAPI20_22_23[SubPDC],'Consolidaçao - 1'!H26,PAPI20_22_23[Ano previsto para início],2023)","v":0},{"$f":"SUMIFS(PAPI20_22_23[Recurso financeiro estimado no ano\n(R$) - Cobrança Estadual],PAPI20_22_23[SubPDC],'Consolidaçao - 1'!H26,PAPI20_22_23[Ano previsto para início],2023)","v":0},{"$f":"SUMIFS(PAPI20_22_23[Recurso financeiro estimado no ano\n(R$) - Cobrança Federal],PAPI20_22_23[SubPDC],'Consolidaçao - 1'!H26,PAPI20_22_23[Ano previsto para início],2023)","v":0},{"$f":"SUMIFS(PAPI20_22_23[Recurso financeiro estimado no ano (R$) - Outras],PAPI20_22_23[SubPDC],'Consolidaçao - 1'!H26,PAPI20_22_23[Ano previsto para início],2023)","v":0},0,0]
["6.2 - Segurança",{"$f":"SUMIFS(#REF!,#REF!,A27,#REF!,2021)","v":{"$error":"#REF!"}},{"$f":"SUMIFS(#REF!,#REF!,A27,#REF!,2021)","v":{"$error":"#REF!"}},{"$f":"SUMIFS(#REF!,#REF!,A27,#REF!,2021)","v":{"$error":"#REF!"}},{"$f":"SUMIFS(#REF!,#REF!,A27,#REF!,2021)","v":{"$error":"#REF!"}},{"$error":"#REF!"},null,"8.2 - Educação",{"$f":"SUMIFS(PAPI20_22_23[Recurso financeiro estimado no ano (R$) - CFURH],PAPI20_22_23[SubPDC],'Consolidaçao - 1'!H27,PAPI20_22_23[Ano previsto para início],2022)","v":0},{"$f":"SUMIFS(PAPI20_22_23[Recurso financeiro estimado no ano\n(R$) - Cobrança Estadual],PAPI20_22_23[SubPDC],'Consolidaçao - 1'!H27,PAPI20_22_23[Ano previsto para início],2022)","v":0},{"$f":"SUMIFS(PAPI20_22_23[Recurso financeiro estimado no ano\n(R$) - Cobrança Federal],PAPI20_22_23[SubPDC],'Consolidaçao - 1'!H27,PAPI20_22_23[Ano previsto para início],2022)","v":0},{"$f":"SUMIFS(PAPI20_22_23[Recurso financeiro estimado no ano (R$) - Outras],PAPI20_22_23[SubPDC],'Consolidaçao - 1'!H27,PAPI20_22_23[Ano previsto para início],2022)","v":0},0,{"$f":"SUMIFS(PAPI20_22_23[Recurso financeiro estimado no ano (R$) - CFURH],PAPI20_22_23[SubPDC],'Consolidaçao - 1'!H27,PAPI20_22_23[Ano previsto para início],2023)","v":0},{"$f":"SUMIFS(PAPI20_22_23[Recurso financeiro estimado no ano\n(R$) - Cobrança Estadual],PAPI20_22_23[SubPDC],'Consolidaçao - 1'!H27,PAPI20_22_23[Ano previsto para início],2023)","v":0},{"$f":"SUMIFS(PAPI20_22_23[Recurso financeiro estimado no ano\n(R$) - Cobrança Federal],PAPI20_22_23[SubPDC],'Consolidaçao - 1'!H27,PAPI20_22_23[Ano previsto para início],2023)","v":0},{"$f":"SUMIFS(PAPI20_22_23[Recurso financeiro estimado no ano (R$) - Outras],PAPI20_22_23[SubPDC],'Consolidaçao - 1'!H27,PAPI20_22_23[Ano previsto para início],2023)","v":0},0,0]
["6.3 - Aproveitamento",{"$f":"SUMIFS(#REF!,#REF!,A28,#REF!,2021)","v":{"$error":"#REF!"}},{"$f":"SUMIFS(#REF!,#REF!,A28,#REF!,2021)","v":{"$error":"#REF!"}},{"$f":"SUMIFS(#REF!,#REF!,A28,#REF!,2021)","v":{"$error":"#REF!"}},{"$f":"SUMIFS(#REF!,#REF!,A28,#REF!,2021)","v":{"$error":"#REF!"}},{"$error":"#REF!"},null,"8.3 - Comunicação",{"$f":"SUMIFS(PAPI20_22_23[Recurso financeiro estimado no ano (R$) - CFURH],PAPI20_22_23[SubPDC],'Consolidaçao - 1'!H28,PAPI20_22_23[Ano previsto para início],2022)","v":0},{"$f":"SUMIFS(PAPI20_22_23[Recurso financeiro estimado no ano\n(R$) - Cobrança Estadual],PAPI20_22_23[SubPDC],'Consolidaçao - 1'!H28,PAPI20_22_23[Ano previsto para início],2022)","v":0},{"$f":"SUMIFS(PAPI20_22_23[Recurso financeiro estimado no ano\n(R$) - Cobrança Federal],PAPI20_22_23[SubPDC],'Consolidaçao - 1'!H28,PAPI20_22_23[Ano previsto para início],2022)","v":0},{"$f":"SUMIFS(PAPI20_22_23[Recurso financeiro estimado no ano (R$) - Outras],PAPI20_22_23[SubPDC],'Consolidaçao - 1'!H28,PAPI20_22_23[Ano previsto para início],2022)","v":0},0,{"$f":"SUMIFS(PAPI20_22_23[Recurso financeiro estimado no ano (R$) - CFURH],PAPI20_22_23[SubPDC],'Consolidaçao - 1'!H28,PAPI20_22_23[Ano previsto para início],2023)","v":0},{"$f":"SUMIFS(PAPI20_22_23[Recurso financeiro estimado no ano\n(R$) - Cobrança Estadual],PAPI20_22_23[SubPDC],'Consolidaçao - 1'!H28,PAPI20_22_23[Ano previsto para início],2023)","v":0},{"$f":"SUMIFS(PAPI20_22_23[Recurso financeiro estimado no ano\n(R$) - Cobrança Federal],PAPI20_22_23[SubPDC],'Consolidaçao - 1'!H28,PAPI20_22_23[Ano previsto para início],2023)","v":0},{"$f":"SUMIFS(PAPI20_22_23[Recurso financeiro estimado no ano (R$) - Outras],PAPI20_22_23[SubPDC],'Consolidaçao - 1'!H28,PAPI20_22_23[Ano previsto para início],2023)","v":0},0,0]
["7.1 - Criticidades",{"$f":"SUMIFS(#REF!,#REF!,A29,#REF!,2021)","v":{"$error":"#REF!"}},{"$f":"SUMIFS(#REF!,#REF!,A29,#REF!,2021)","v":{"$error":"#REF!"}},{"$f":"SUMIFS(#REF!,#REF!,A29,#REF!,2021)","v":{"$error":"#REF!"}},{"$f":"SUMIFS(#REF!,#REF!,A29,#REF!,2021)","v":{"$error":"#REF!"}},{"$error":"#REF!"}]
["7.2 - Inundações",{"$f":"SUMIFS(#REF!,#REF!,A30,#REF!,2021)","v":{"$error":"#REF!"}},{"$f":"SUMIFS(#REF!,#REF!,A30,#REF!,2021)","v":{"$error":"#REF!"}},{"$f":"SUMIFS(#REF!,#REF!,A30,#REF!,2021)","v":{"$error":"#REF!"}},{"$f":"SUMIFS(#REF!,#REF!,A30,#REF!,2021)","v":{"$error":"#REF!"}},{"$error":"#REF!"},null,"Delib. 246","PDC 1 e 2","Prioritário","Não Prioritário"]
["7.3 - Estiagens",{"$f":"SUMIFS(#REF!,#REF!,A31,#REF!,2021)","v":{"$error":"#REF!"}},{"$f":"SUMIFS(#REF!,#REF!,A31,#REF!,2021)","v":{"$error":"#REF!"}},{"$f":"SUMIFS(#REF!,#REF!,A31,#REF!,2021)","v":{"$error":"#REF!"}},{"$f":"SUMIFS(#REF!,#REF!,A31,#REF!,2021)","v":{"$error":"#REF!"}},{"$error":"#REF!"},null,"SubPDC",{"$f":"SUMIF(#REF!,I$30,PAPI20_22_23[Recurso financeiro estimado no ano\n(R$)])","v":{"$error":"#REF!"}},{"$f":"SUMIF(#REF!,J$30,PAPI20_22_23[Recurso financeiro estimado no ano\n(R$)])","v":{"$error":"#REF!"}},{"$f":"SUMIF(#REF!,K$30,PAPI20_22_23[Recurso financeiro estimado no ano\n(R$)])","v":{"$error":"#REF!"}}]
["8.1 - Capacitação",{"$f":"SUMIFS(#REF!,#REF!,A32,#REF!,2021)","v":{"$error":"#REF!"}},{"$f":"SUMIFS(#REF!,#REF!,A32,#REF!,2021)","v":{"$error":"#REF!"}},{"$f":"SUMIFS(#REF!,#REF!,A32,#REF!,2021)","v":{"$error":"#REF!"}},{"$f":"SUMIFS(#REF!,#REF!,A32,#REF!,2021)","v":{"$error":"#REF!"}},{"$error":"#REF!"},null,null,{"$f":"IFERROR(I31/SUM(I31:K31),\"\")","v":""},{"$f":"IFERROR(J31/SUM(I31:K31),\"\")","v":""},{"$f":"IFERROR(K31/SUM(I31:K31),\"\")","v":""}]
["8.2 - Educação",{"$f":"SUMIFS(#REF!,#REF!,A33,#REF!,2021)","v":{"$error":"#REF!"}},{"$f":"SUMIFS(#REF!,#REF!,A33,#REF!,2021)","v":{"$error":"#REF!"}},{"$f":"SUMIFS(#REF!,#REF!,A33,#REF!,2021)","v":{"$error":"#REF!"}},{"$f":"SUMIFS(#REF!,#REF!,A33,#REF!,2021)","v":{"$error":"#REF!"}},{"$error":"#REF!"}]
["8.3 - Comunicação",{"$f":"SUMIFS(#REF!,#REF!,A34,#REF!,2021)","v":{"$error":"#REF!"}},{"$f":"SUMIFS(#REF!,#REF!,A34,#REF!,2021)","v":{"$error":"#REF!"}},{"$f":"SUMIFS(#REF!,#REF!,A34,#REF!,2021)","v":{"$error":"#REF!"}},{"$f":"SUMIFS(#REF!,#REF!,A34,#REF!,2021)","v":{"$error":"#REF!"}},{"$error":"#REF!"}]
[]
["Delib. 190","PDC 1 e 2","Prioritário","Não Prioritário"]
["SubPDC",{"$f":"SUMIF(#REF!,B$36,#REF!)","v":{"$error":"#REF!"}},{"$f":"SUMIF(#REF!,C$36,#REF!)","v":{"$error":"#REF!"}},{"$f":"SUMIF(#REF!,D$36,#REF!)","v":{"$error":"#REF!"}}]
[null,{"$f":"B37/SUM(B37:D37)","v":{"$error":"#REF!"}},{"$f":"C37/SUM(B37:D37)","v":{"$error":"#REF!"}},{"$f":"D37/SUM(B37:D37)","v":{"$error":"#REF!"}}]

{"sheet":"Consolidaçao - 2","index":6,"n_rows":2,"n_cols":1,"rows_kept":2,"cut":false,"hidden":true,"merged":[]}
["Para atualizar, vá em Dados --> Atualizar Tudo ou aperte"]
["CTRL + Alt + F5"]

{"sheet":"Orientações","index":7,"n_rows":17,"n_cols":3,"rows_kept":17,"cut":false,"hidden":false,"merged":[]}
[null,null,"MELHOR VISUALIZADO no Office 365"]
[]
[null,null,"Este modelo de PAPI para o quadriênio 2024-2027 tem uma estrutura distinta dos enviados nos outros períodos/anos, pois ele contempla tanto o PAPI 24-27 e seu acompanhamento, quanto o acompanhamento do PAPI anterior."]
[null,null,"Está dividido em multiplas  planilhas (\"abas\"), estruturadas em dois grupos: PAPI 24-27 e PAPI 20-23 (Acompanhamento). A expectativa é que a mesma planilha sirva para todo o quadriênio."]
[]
[]
[]
[null,"A","PAPI 2024-2027"]
[null,null,"Compreende quatro planilhas (\"abas\") e se refere ao planejamento e acompanhamento do PAPI - 24-27. "]
[null,1,"Identificação das ações - 24-27\" - Compreende a indicação das ações previstas para o PAPI 2024-2027. Sugere-se a indicação do que será produzido/realizado com o recurso pleiteado, considerando a esfera de atuação direta do CBH. Envolve um fluxo de atividades a serem executadas para entregar um produto final. Preencher TODAS  informações das colunas também de forma sequencial (esquerda para direita)."]
[null,2,"Acompanhamento das metas 24-27 - Compreende a indicação e o acompanhamento da execução das Metas (do quadriênio e anuais).Devem ser quantificáveis e mensuráveis por meio de indicadores que reflitam as mudanças para as quais espera-se que as intervenções previstos pelas ações propostas influenciem."]
[null,3,"Acomp. Financeiro  24-27  -  Acompanhamento das previsões dos valores (R$) planejados, disponbilizados e executados. Para esta primeira etapa, só precisam ser preenchidos os valores Planejados (colunas em roxo). O acompanhamento se dará ao longo do quadriênio."]
[null,4,"PAPI 2024-2027 - Resultado automático do preenchimento anterior. Somente as ações sem recursos financeiros previstos deve ser preenchida. As demais são inseridas automaticamente. É o conteúdo mínimo do PAPI 24/27 que deve ser deliberado e referendado nas revisões anuais."]
[]
[null,"B","ACOMPANHAMENTO -  PAPI 20-23"]
[null,null,"Compreende o acompanhamento das ações iniciadas no quadriênio anterior. Como grande parte delas ainda está em execução,  ideal é monitorar, na medida do possível, sua execução."]
[null,1,"Serão utilizadas as mesmas planilhas do ano anterior, que devem ser incorporadas no presente arquivo. Observar as duas colunas na cor roxa, relativa ao acompanhamento 2024. As outras colunas devem ser copiadas do último PAPI aprovado. Como se trata do acompanhamento de 2024 dessas ações, só será iniciado em 2025."]

{"sheet":"Acomp. - PAPI_21 (Delib. 190) ","index":8,"n_rows":19,"n_cols":12,"rows_kept":19,"cut":false,"hidden":false,"merged":[]}
["ID Ação","Ano","SubPDC","Prioridade do SubPDC","Ação","Meta","% Execução da meta","Segmento do executor","Área de abrangência","Nome da área de abrangência","Recurso financeiro executado no ano (R$)","Justificativa sobre execução física e financeira em 2024"]
["SM-01-2022",2021,"1.2 - Planejamento","PDC 1 e 2","Contratação de Estudos para elaboração do Plano Municipal de Recursos Hídricos que subsidiem a criação da Política Municipal de Recursos Hídricos em cada município da UGRHI-1, incluindo minutas para as respectivas legislações. ","Estudos para Elaboração de Plano de Recursos Hídricos para criação e implantação da Política municipal de Recursos Hídricos nos 3 municípios da UGRHI-1 ",0,"Sociedade civil","UGRHi","UGRHI-1",0,"Esta Ação foi cancelada pois sua implementação era continuidade de uma outra Ação préviamente anterior ( condicionante) ser implemntada e a qual sofre um atraso de 18 meses não permitindo a continuidade no planejamento estabelecido.\nA Meta  planejada \"Elaborar um Plano Diretor de recomposição Florestal foi revisada e alterada para outra Meta na revisão do PAPI  dezembro 2021: a nova meta deu continuidade na utilização dos produtos entregues na Ação 1a'fase ( vide linha 13 desta planilha)"]
["SM-02-2022",2021,"1.2 - Planejamento","PDC 1 e 2","Apoiar os municípios a estabelecer um programa de trabalho junto a  SABESP, visando estabelecer acoes urgentes para situações criticas já identificadas e também conhecer o planejamento de investimentos e metas para melhoria dos indicadores e serviços de saneamento básico.","Atingir  a classificação de “Ótimo / Bom “ para os Indicadores de cobertura e qualidade de saneamento Básico e abastecimento de água  nos 3 municípios",0.5,"Estado","UGRHi","UGRHI-1",0,"Esta Ação não demanda investimento financeiro e foi mantida na revisão do PAPI - Deliberação CBH-SM 09/2022 , procurando estabelecer um contato de nível gerencial com a SABESP.\nDeve se observar que o Plano Estadual de Saneamento Basico indica que os municípios da UGRHI-1 não estão com capacidade de atingir o indice de 100 % ate 2033 cfme estabelecido no PLANSAB / federal."]
["SM-03-2022",2021,"1.2 - Planejamento","PDC 1 e 2","Induzir projeto / empreendimento FEHIDRO para obter um estudo de Saneamento Básico Rural para estabelecer diretrizes , segundo a orientação e parceria com a área de vigilância sanitária Estadual / municipal com foco nas áreas rurais e não atendidas pela SABESP.  ","Fazer Diagnóstico da Situação do  Saneamento Básico Rural da UGRHI-1 , com foco nos municípios de Sao Bento do Sapucai e Santo Antonio do Pinhal ",0.25,"A definir","UGRHi","UGRHI-1",0,"Esta Ação foi mantida / revisada no PAPI 2023 - Deliberação CBH-SM 09/2022 e foi apresentada e aprovada / indicada para financiamento FEHIDRO em 2023 pela Deliberação CBH-SM xx 2023 , porem foi cancelada pelo Agente Técnico devido a necessidade de alteração de termo de Referência para dividir o projeto e realiza-lo por municípío.\nSerá incluída na PAPI 2024/2027 com novo termo de Referência de acordo com a orientação do Agente Técnico."]
["SM-04-2022",2021,"1.2 - Planejamento","PDC 1 e 2","Induzir projeto / empreendimento FEHIDRO para realizar estudo de viabilidade  para implantação de um aterro sanitário regional para atender os 3 municípios da UGRHI-1","Obter estudo de viabilidade para implantação de aterro sanitário na UGRHI-1 com indicação de local e requisitos ambientais e financeiros.",0,"Estado","UGRHi","UGRHI-1",0,"O projeto foi mantido na revisão do PAPI 2023 - Deliberação CBH-SM 09/2022."]
["SM-05-2022",2021,"2.5 - Integração","PDC 1 e 2","Projeto e ações / empreendimentos FEHIDRO  visando a implantação de Sala de Situação Virtual e online e sua operação, manutenção, modernização bem como instalação  de equipamentos de monitoramento qualitativo-quantitativo dos recursos hídricos e Hidro meteorológicos em parceria com o DAEE / SABESP e DEFESA CIVIL dos municípios da UGRHI-1","Implantar Sala da Situação online para fornecer um Sistema de Suporte a Decisão ( SSD ) e de Alerta de prevenção de eventos climáticos e ambientais extremos para os 3 municípios da UGRHI-1",0,"Estado","UGRHi","UGRHI-1",0,"A Ação de implementação da Sala da Situaçao online foi cancelada pelo agente Técnico / CRH , porem é de alta relevância / necessidade e deve ser novamente debatido com o CRH visando obter solução para a necessidade de gestão da UGRHI-1"]
["SM-06-2022",2021,"2.5 - Integração","PDC 1 e 2","Induzir projeto / empreendimento FEHIDRO para estabelecer um programa continuo de monitoramento de uso e ocupação do solo nas cabeceiras das principais microbacias para ações de controle, fiscalização ou normatização.","Implantar Sistema de informações e avaliações periódicas sobre o uso e ocupação do solo por microbacias da UGRHI-1",0,"Sociedade civil","UGRHi","UGRHI-1",0,"Esta Açao deverá ser reavaliada e sua continuidade deverá estar no planejamento do PAPI 2024/2027"]
["SM-07-2022",2021,"2.5 - Integração","PDC 1 e 2","Aprimorar a comunicação com municípios situados nos arredores da UGRHI-1 que sofrem influência ou que influenciam os recursos hídricos da UGRHI-1","Promover a interação institucional com organismos estaduais / federais ",1,"A definir","UGRHi","UGRHI-1",0,"Esta Ação deve ser mantida na revisão do PAPI 2024/2027 e considerada estratégica no planejamento. Não demanda recursos financeiros para sua implemantação."]
["SM-08-2022",2021,"3.1 - Efluentes","Prioritário","Induzir estudos para  tratamento de esgotos em comunidades isoladas (área rural), onde a SABESP não atende. ","Aprimorar as estruturas de atendimento de agua e tratamento de esgotos em pelo menos 01 comunidade isolada até 2023",0,"Município","Bairro","A definir ",0,"Esta Açao deverá ser reavaliada e sua continuidade deverá estar no planejamento do PAPI 2024/2027"]
["SM-09-2022",2021,"3.2 - Resíduos","Prioritário","Induzir projetos de elaboração de Planos de Coleta e Tratamento de Resíduos  Sólidos e/ou ações para melhorias em processos já existentes, segundo diretrizes e legislação Estadual / Municipal,  nos 3 municípios com foco em Sao Bento do Sapucai e Santo Antonio do Pinhal","Aprimorar o sistema de coleta e disposição de resíduos sólidos ( orgânico, reciclável, eletrônico, obras civis, químicos e poluentes ) nos 3 municípios",0,"Município","Município","SAMA",0,"A continuidade ou mesmo a implementação deste tipo de projeto dependerá de maior  apoio e recursos tecnicos aos municípios de SBS e SAP devido a falta de recursos dos mesmos para apresentação de propostas e projetos pois é crítica a necessidade de implamentação de ações para atender os Planos Municipáis de Resíduos Sólidos\nEsta Ação foi excluída da revisão do PAPI 2022 - Deliberação CBH-SM 09 / 2022 e deverá ser reavaliada no planejamento do PAPI 2024/2027"]
["SM-10-2022",2021,"4.1 - Mananciais","Prioritário","Induzir , apoiar e orientar os municípios a apresentar projetos e / ou implementar obras de desassoreamento e contenção de margem de cursos d'água a serem financiados pelo FEHIDRO","Aprimorar sistemas de desassoreamento e controle de erosão rural e urbana em pelo menos 01 sub-bacia",1,"Município","Sub-bacia",null,null,"Projeto específico de muro de conteção - Vila Fátima no município de Santo Antonio do Pinhal -  necessita revisão do Plano de Drenagem"]
["SM-11-2022",2021,"4.2 - Vegetação","Prioritário","Suporte Tecnico e Financeiro aos municípios através de indução de projetos e serviços de restauração e preservação de áreas prioritárias através de programas de Pagamento de Serviços Ambientais – PSA financiados pelo FEHIDRO ou por Entidades da Sociedade civil através da criação de parcerias.","Restauração e  Preservação de áreas  em propriedades rurais e microbacias via implantação de Projetos de Pagamento de Serviços Ambientais-  PSA ",0.25,"Sociedade civil","UGRHi","UGRHI-1",null,"A continuidade desta Ação ira ser planejada na revisão do PAPI 2024/2027 através de projetos similares em áreas a ser definidas da UGRHI-1."]
["SM-12-2023",2021,"4.1 - Mananciais","Prioritário","Induzir e apoiar / orientar os municípios a apresentarem projetos e / ou obras de  desassoreamento e recuperação dos mananciais de abastecimento visando aumento da reservação ","Aumento da disponibilidade hídrica nos mananciais de abastecimento público",0,"Município","Sub-bacia",null,null,"O projeto sera incluído na revisão do PAPI 2024/2027"]
["SM-13-2023",2021,"7.2 - Inundações","Não prioritário","Induzir e apoiar / orientar os municípios a apresentar projetos e / ou obras de melhorias de drenagem pluvial urbana a serem indicados para financiamento FEHIDRO.","Aprimoramento do sistema de drenagem urbana dos municípios",0.5,"Município","Município",null,null,"A continuidade desta ação depende do prjeto de execução da obra / intervenção que deverá ser incluído na revisão do PAPI 2024/2027"]
["SM-14-2023",2021,"7.2 - Inundações","Não prioritário","Induzir projeto  de elaboração e / ou atualização do Plano de drenagem dos 3 municípios, com foco em soluções de drenagem em áreas de inundação identificadas e recorrentes.","Entregar um Plano de Drenagem atualizado para os 3 municípios ",0,"Sociedade civil","Município",null,null,"O projeto será incluído na revisão do PAPI 2024-2027"]
["SM15-2022",2021,"8.1 - Capacitação","Não prioritário","Desenvolver programa de capacitacao e certificação em conformidade com diretrizes do CRH para Gestão de Recursos Hídricos a ser aplicado aos membros do CBH-SM ","Capacitar e certificar os membros do CBH-SM em durante o ano de 2022",1,"Estado","UGRHi",null,null,"A revisão do Plano de Capacitação será realizada no primeiro semestre de 2024 - para o período 2024/2025\n\na Capacitação dos membros do CBH-SM ( plenária e CTs) deve ser continua"]
["SM-16-2022",2021,"8.2 - Educação","Prioritário","Induzir projeto para elaboração do Plano de Educação  Ambiental da UGRHI-1 em conformidade com o plano de Bacias e com as diretrizes do CRH – Deliberação 231 / 2019."," Plano de Educação Ambiental da UGRHI-1 ",0.25,"Sociedade civil","UGRHi",null,null,"O projeto está em fase inicial de execução e tem duração de 24 meses"]
["SM-17-2022",2021,"8.2 - Educação","Prioritário","Induzir projetos de Educação Ambiental  a serem financiados pelo FEHIDRO segundo as diretrizes e roteiros / MPO  do CRH – Deliberação 231 / 2019 ","Desenvolver Programas e Projetos de Educação Ambiental que atendam os municípios da UGRHI-1.",0,"Sociedade civil","UGRHi",null,null,"O projeto será incluído na revisão do PAPI 2024-2027"]
["SM-18-2022",2021,"8.3 - Comunicação","Prioritário","Induzir e apoiar projetos  para construir e manter canais de comunicação com a população dos municípios visando a divulgação das acoes do CBH-SM e a conscientização sobre a preservação dos recursos hídricos","Implantar programa continuo de Comunicação Social através de canais e mídias  digitais de comunicação alem de eventos sociais específicos nos municípios da UGRHI-1 ",0,"Sociedade civil","UGRHi",null,null,"O projeto será incluído na revisão do PAPI 2024-2027"]

{"sheet":"Acomp. PAPI_22_23 (Delib. 246) ","index":9,"n_rows":20,"n_cols":11,"rows_kept":20,"cut":false,"hidden":false,"merged":[]}
["ID Ação","Ano","SubPDC","Prioridade do SubPDC","Ação","Meta","% Execução da meta","Segmento do executor","Área de abrangência","Nome da área de abrangência","Justificativa sobre execução física e financeira em 2024"]
["SM-02-2022",2022,"1.2 - Planejamento e gestão de recursos hídricos","PDC 1 e 2","Apoiar os municípios a estabelecer um programa de trabalho junto a  SABESP, visando estabelecer acoes urgentes para situações criticas já identificadas e também conhecer o planejamento de investimentos e metas para melhoria dos indicadores e serviços de saneamento básico.","Atingir  a classificação de “Ótimo/Bom “ para os Indicadores de cobertura e qualidade de saneamento Básico e abastecimento de água  nos 3 municípios",0.5,"Estado","UGRHi","UGRHI-1","Esta Ação não demanda investimento financeiro e foi mantida na revisão do PAPI - Deliberação CBH-SM 09/2022 , procurando estabelecer um contato de nível gerencial com a SABESP.\nDeve se observar que o Plano Estadual de Saneamento Basico indica que os municípios da UGRHI-1 não estão com capacidade de atingir o indice de 100 % ate 2033 cfme estabelecido no PLANSAB / federal."]
["SM-03-2022",2022,"1.2 - Planejamento e gestão de recursos hídricos","PDC 1 e 2","Induzir projeto / empreendimento FEHIDRO para obter um estudo de Saneamento Básico Rural para estabelecer diretrizes, segundo a orientação e parceria com a área de vigilância sanitária Estadual/municipal com foco nas áreas rurais e não atendidas pela SABESP.  ","Fazer Diagnóstico da Situação do  Saneamento Básico Rural da UGRHI-1, com foco nos municípios de Sao Bento do Sapucai e Santo Antonio do Pinhal ",0,"Sociedade civil","UGRHi","UGRHI-1","Esta Ação foi mantida / revisada no PAPI 2023 - Deliberação CBH-SM 09/2022 e foi apresentada e aprovada / indicada para financiamento FEHIDRO em 2023 pela Deliberação CBH-SM xx 2023 , porem foi cancelada pelo Agente Técnico devido a necessidade de alteração de termo de Referência para dividir o projeto e realiza-lo por municípío.\nSerá incluída na PAPI 2024/2027 com novo termo de Referência de acordo com a orientação do Agente Técnico."]
["SM-04-2022",2022,"1.2 - Planejamento e gestão de recursos hídricos","PDC 1 e 2","Induzir projeto / empreendimento FEHIDRO para realizar estudo de viabilidade  para implantação de um aterro sanitário regional para atender os 3 municípios da UGRHI-1","Obter estudo de viabilidade para implantação de aterro sanitário na UGRHI-1 com indicação de local e requisitos ambientais e financeiros.",0,"Estado","UGRHi","UGRHI-1","Dificuldade de realizar a integração dos muncípios em formato de Consórcio visando solução comum devido a todos terem o mesmo problema . Projeto foi adiado para revisão 2024/2027"]
["SM-01-2023",2023,"2.1 - Planos de Recursos Hídricos e Relatórios de Situação","PDC 1 e 2","Elaboração do Plano de Bacias Hidrográficas da UGRHI-1 para o planejamento de Ações e Investimentos para o quadriênio 2024/2027","Plano de Recursos Hídricos/Plano de Bacias da UGRI-1 para o quadriênio 2024/2027",1,"Sociedade civil","Bacia","UGRHI-1","O projeto foi incluído na revisão do PAPI 2022/2023 - Deliberação CBH-SM 09/2022 e foi indicado para financiamento FEHIDRO em 2023 e contrato 357/ 2023 com início em Março de 2024."]
["SM-02-2023",2023,"2.3 - Cobrança pelo uso dos recursos hídricos","PDC 1 e 2","Estudo de fundamentação para revisão de valores, critérios ou procedimentos para cobrança pelo uso dos recursos hídricos.","Realizar a revisão de valores da cobranca de agua na UGRHI-1 e implantar  a correção dos valores a partir de 2025",1,"Sociedade civil","UGRHi","UGRHI-1","O projeto foi incluído na revisão do PAPI 2022/2023 - Deliberação CBH-SM 09/2022 e foi indicado para financiamento FEHIDRO em 2023 e contrato 287/ 2023 com início em Abril de 2024."]
["SM-05-2022",2022,"2.5 - Redes de Monitoramento e Sistemas de informação sobre recursos hídricos","PDC 1 e 2","Projeto e ações / empreendimentos FEHIDRO  visando a implantação de Sala de Situação Virtual e online e sua operação, manutenção, modernização bem como instalação  de equipamentos de monitoramento qualitativo-quantitativo dos recursos hídricos e Hidro meteorológicos em parceria com o DAEE / SABESP e DEFESA CIVIL dos municípios da UGRHI-1","Implantar Sala da Situação online para fornecer um Sistema de Suporte a Decisão ( SSD ) e de Alerta de prevenção de eventos climáticos e ambientais extremos para os 3 municípios da UGRHI-1",0,"Estado","UGRHi","UGRHI-1","A projeto de implementação da Sala da Situaçao online foi indicado pelo Comite  Deliberação 03/2022 e foi cancelado pelo agente Técnico / CRH , porem é de alta relevância / necessidade e deve ser novamente debatido com o CRH visando obter solução para a necessidade de gestão da UGRHI-1."]
["SM-06-2022",2022,"2.5 - Redes de Monitoramento e Sistemas de informação sobre recursos hídricos","PDC 1 e 2","Induzir projeto / empreendimento FEHIDRO para estabelecer um programa continuo de monitoramento de uso e ocupação do solo nas cabeceiras das principais microbacias para ações de controle, fiscalização ou normatização.","Implantar Sistema de informações e avaliações periódicas sobre o uso e ocupação do solo por microbacias da UGRHI-1",0,"Sociedade civil","UGRHi","UGRHI-1","Nao houve apresentação de proposta / Tomador no período de  2020 a 2023 . Projeto será reavaliado."]
["SM-07-2022",2022,"2.6 - Gestão integrada dos recursos hídricos","PDC 1 e 2","Aprimorar a comunicação com municípios situados nos arredores da UGRHI-1 que sofrem influência ou que influenciam os recursos hídricos da UGRHI-1","Promover a interação institucional com organismos estaduais / federais ",1,"Município e Sociedade Civil","UGRHi","UGRHI-1","Esta Ação deve ser mantida na revisão do PAPI 2024/2027 e considerada estratégica no planejamento. Não demanda recursos financeiros para sua implemantação."]
["SM-03-2023",2023,"3.1 - Esgotamento sanitário","Não prioritário","Induzir estudos para  tratamento de esgotos em comunidades isoladas (área rural), não atendidas pela SABESP. ","Aprimorar as estruturas de atendimento de agua e tratamento de esgotos em pelo menos 01 comunidade isolada até 2023",0,"Município","Bairro","A definir ","Nao houve apresentação de proposta / Tomador no período de  2020 a 2023 . Projeto será reavaliado."]
["SM-04-2023",2023,"3.3 - Manejo e disposição de resíduos sólidos","Não prioritário","Induzir projetos de elaboração de Planos de Coleta e Tratamento de Resíduos  Sólidos e/ou ações para melhorias em processos já existentes, segundo diretrizes e legislação Estadual / Municipal,  nos 3 municípios com foco em Sao Bento do Sapucai e Santo Antonio do Pinhal","Aprimorar o sistema de coleta e disposição de resíduos sólidos ( orgânico, reciclável, eletrônico, obras civis, químicos e poluentes ) nos 3 municípios",0,"Município","Município","SAMA","Nao houve apresentação de proposta / Tomador no período de  2020 a 2023 . Projeto será reavaliado."]
["SM-08-2022",2022,"4.1 - Controle de processos erosivos","Prioritário","Induzir, apoiar e orientar os municípios a apresentar projetos e/ou implementar obras de desassoreamento e contenção de margem de cursos d'água a serem financiados pelo FEHIDRO","Aprimorar sistemas de desassoreamento e controle de erosão rural e urbana em pelo menos 01 sub-bacia",0,"Município","Sub-bacia","Rio da Prata","Projeto Foi indicado pelo CBH-SM porem devido a alterações introduzidas no Manual de Procedimento Operacional pelo FEHIDRO demandaram alteração  no projeto técnico / solicitado ao Tomador município de SAP e não conseguiu fazer o ajuste necessário em tempo pleito 2023 sendo cancelado. Será revisado e incluído no PAPI 2024-2027."]
["SM-09-2022",2022,"4.2 - Soluções baseadas na natureza","Prioritário","Suporte Tecnico e Financeiro aos municípios através de indução de projetos e serviços de restauração e preservação de áreas prioritárias através de programas de Pagamento de Serviços Ambientais – PSA financiados pelo FEHIDRO ou por Entidades da Sociedade civil através da criação de parcerias.","Restauração e  Preservação de áreas  em propriedades rurais e microbacias via implantação de Projetos de Pagamento de Serviços Ambientais-  PSA ",1,"Sociedade civil","UGRHi","UGRHI-1","Projeto foi indicado pelo CBH-SM em Maio de 2022 e teve atraso de 16 meses no processo para assinatura do contrato FEHIDRO desde a indicão do projeto pelo CBH-SM, devido a transição da equipe de Agentes Técnicos e alterações no MPO.\nContrato FEHIDRO 030/2023 e início do projeto em Fevereiro 2024."]
["SM-10-2022",2022,"4.3 Proteção de mananciais","Prioritário","Induzir e apoiar/orientar os municípios a apresentarem projetos e/ou obras de  desassoreamento e recuperação dos mananciais de abastecimento visando aumento da reservação ","Aumento da disponibilidade hídrica nos mananciais de abastecimento público",0,"Município","Sub-bacia","Rio Sapucaí Guaçu","Município de Campos do Jordão não apresentou proposta.A  Ação deverá ser replanejada na revisão do PAPI 2024/2027.\nO município necessita atualização do Plano de Macrodrenagem"]
["SM-05-2023",2023,"7.1 - Ações  estruturais de micro ou macro drenagem para mitigação de inundações e alagamentos","Prioritário","Induzir e apoiar/orientar os municípios a apresentar projetos e/ou obras de melhorias de drenagem pluvial urbana a serem indicados para financiamento FEHIDRO.","Aprimoramento do sistema de drenagem urbana dos municípios",0,"Município","Município","3 municípios","Municípios não apresentaram proposta . A ação deverá ser replanejada na revisão do PAPI 2024-2027."]
["SM-06-2023",2023,"7.1 - Ações  estruturais de micro ou macro drenagem para mitigação de inundações e alagamentos","Prioritário","Induzir projeto de elaboração e/ou atualização do Plano de macrodrenagem dos 3 municípios, com foco em soluções de drenagem em áreas de inundação identificadas e recorrentes.","Entregar um Plano de Drenagem atualizado para os 3 municípios ",0,"Município","Município","UGRHI-1","A  implementação deste tipo de projeto dependerá de maior  apoio e recursos tecnicos aos municípios  devido a falta de recursos dos mesmos para apresentação de propostas e projetos pois é crítica a necessidade de implementação da atualização do Plano de Macrodrenagem de todos os municípios da UGRHI-1\nEsta Ação deverá ser incluída na  revisão do PAPI 2024/2027"]
["SM-11-2022",2022,"8.1 - Capacitação técnica em planejamento e gestão de recursos hídricos","Prioritário","Desenvolver programa de capacitacao e certificação em conformidade com diretrizes do CRH para Gestão de Recursos Hídricos a ser aplicado aos membros do CBH-SM ","Capacitar e certificar os membros do CBH-SM em durante o ano de 2022",1,"Sociedade Civil","UGRHi","Membros do CBH-SM","O Plano de Capacitação foi entregue Deliberação CBH-SM 07/2022. A revisão do Plano de Capacitação será realizada no primeiro trimestre de 2024 - para o período 2024/2026\na Capacitação dos membros do CBH-SM ( plenária e CTs) deve ser continua."]
["SM-12-2022",2022,"8.2 - Educação ambiental vinculada às ações dos planos de bacias hidrográficas","Prioritário","Induzir projeto para elaboração do Plano de Educação  Ambiental da UGRHI-1 em conformidade com o plano de Bacias e com as diretrizes do CRH – Deliberação 231 / 2019.","Plano de Educação Ambiental da UGRHI-1 ",1,"Sociedade Civil","UGRHi","UGRHI-1","O Projeto foi indicado pelo CBH-SM em 2022 - Deliberação CBH-SM 03/2022 e teve atraso de 18 meses na assinatura do contrato devido as alterações realizadas pelo CRH referente a contratação / substituição do grupo de Agentes Técnicos. Contrato FEHIDRO 032/2023 e início em Março de 2024."]
["SM-13-2022",2022,"8.2 - Educação ambiental vinculada às ações dos planos de bacias hidrográficas","Prioritário","Induzir projetos de Educação Ambiental a serem financiados pelo FEHIDRO segundo as diretrizes e roteiros/MPO  do CRH – Deliberação 231/2019 ","Desenvolver Programas e Projetos de Educação Ambiental que atendam os municípios da UGRHI-1.",0,"Sociedade civil","UGRHi","UGRHI-1","A Câmara Técnica CT-TEAM decidiu não desenvolver esta ação em 2022 e 2023 devido a falta de Recursos financeiros e será incluída na revisão do PAPI 2024/2027"]
["SM-07-2023",2023,"8.3 - Comunicação social e difusão de informações relacionadas à gestão de recursos hídricos","Prioritário","Induzir e apoiar projetos  para construir e manter canais de comunicação com a população dos municípios visando a divulgação das ações do CBH-SM e a conscientização sobre a preservação dos recursos hídricos","Implantar programa continuo de Comunicação Social através de canais e mídias  digitais de comunicação alem de eventos sociais específicos nos municípios da UGRHI-1 ",0,"Sociedade civil","UGRHi","UGRHI-1","O projeto foi indicado pelo CBH-SM em 2022 - Deliberação 03/2022 e teve atraso de 12 meses na avaliação do agente técnico devido as alterações realizadas pelo CRH referente a contratação / substituição do grupo de Agentes Técnicos.\nTomador desistiu do projeto por não ter equipe disponível devido ao atraso da análise do agente técnico. O projeto será incluído na revisão do PAPI 2024-2027"]

{"sheet":"Operacional","index":10,"n_rows":76,"n_cols":95,"rows_kept":76,"cut":false,"hidden":false,"merged":[]}
[null,"SubPDC - Delib.CRH N° 190 /2016","SubPDC - Delib.CRH N° 246/2021 ",null,"Area","Executor","Fonte",null,"Tipo de Ação",null,"Prioridade",null,"Fonte"]
[null,"1.1 - SI","Não se aplica",null,"APRM","Estado","CFURH",null,"Obra",null,"Não prioritário",null,"FEHIDRO - Cobrança estadual"]
[null,"1.2 - Planejamento","1.1 - Legislação",null,"Aquífero","Município","Cobrança Estadual",null,"Serviços",null,"PDC 1 e 2",null,"FEHIDRO - CFURH"]
[null,"1.3 - Enquadramento","1.2 - Planejamento",null,"Área rural","Sociedade Civil","Outras",null,"Projeto Básico/Executivo",null,"Prioritário",null,"Cobrança Federal"]
[null,"1.4 - Monitoramento","2.1 - Plano",null,"Área urbana","Município e Sociedade Civil","Cobrança Federal",null,"Estudo/Diagnóstico",null,null,null,"Tesouro do Estado"]
[null,"1.5 - Disponibilidade","2.2 - Outorga",null,"Bacia","Estado e Município",null,null,"Capacitação",null,null,null,"Fundo especial de despesa\n"]
[null,"1.6 - Legislação","2.3 - Cobrança",null,"Corpo hídrico","Estado e Sociedade Civil",null,null,null,null,null,null,"Recursos da administração indireta"]
[null,"1.7 - Poluição","2.4 - Enquadramento",null,"Município","Estado, Município e Sociedade Civil",null,null,null,null,null,null,"Recursos vinculados federais"]
[null,"2.1 - Planos","2.5 - Redes de monitoramento e SI",null,"Região Hidrográfica","Iniciativa privada",null,null,null,null,null,null,"Operações de crédito"]
[null,"2.2 - Outorga","2.6 - Integração",null,"Sub-bacia",null,null,null,null,null,null,null,"Recursos privados da sociedade civil"]
[null,"2.3 - Cobrança","2.7 - CORHI",null,"UGRHi",null,null,null,null,null,null,null,"Recursos de instrumentos de fomento"]
[null,"2.4 - Efetivação","3.1 - Efluentes",null,"Outra",null,null,null,null,null,null,null,"Outras fontes"]
[null,"2.5 - Integração","3.2 - Poluição"]
[null,"2.6 - CORHI","3.3 - Resíduos"]
[null,"3.1 - Efluentes","3.4 - Intervenções"]
[null,"3.2 - Resíduos","4.1 - Controle erosão",null,null,null,"PRIORIDADE"]
[null,"3.3 - Drenagem","4.2 - Soluções baseadas Natureza",null,null,null,"PDC 1 e 2"]
[null,"3.4 - Erosão","4.3 - Mananciais",null,null,null,"Prioritário"]
[null,"3.5 - Intervenções","5.1 - Perdas",null,null,null,"Não prioritário"]
[null,"4.1 - Mananciais","5.2 - Racionalização"]
[null,"4.2 - Vegetação","5.3 - Reuso",null,"Area"]
[null,"5.1 - Perdas","6.1 - Captação",null,"APRM"]
[null,"5.2 - Racionalização","6.2 - Regularização",null,"Aquífero"]
[null,"5.3 - Reuso","7.1 - Drenagem",null,"Área rural (via de circulação; rodovia; distrito; etc.)"]
[null,"6.1 - Usos","7.2 - Escassez",null,"Área urbana (bairro; via de circulação; distrito; praça; parque; etc.)"]
[null,"6.2 - Segurança","8.1 - Capacitação",null,"Bacia"]
[null,"6.3 - Aproveitamento","8.2 - Educação",null,"Corpo hídrico"]
[null,"7.1 - Criticidades","8.3 - Comunicação",null,"Município"]
[null,"7.2 - Inundações",null,null,"Região Hidrográfica"]
[null,"7.3 - Estiagens",null,null,"Sub-bacia"]
[null,"8.1 - Capacitação",null,null,"UGRHi"]
[null,"8.2 - Educação"]
[null,"8.3 - Comunicação"]
[]
[]
[null,"Delib. CRH N° 246/2021 ",null,null,null,null,null,null,null,null,null,null,null,null,null,null,null,null,null,null,null,null,null,null,null,null,null,null,null,null,null,null,null,null,null,null,null,null,null,null,null,null,null,null,null,null,null,null,null,null,null,null,null,null,null,null,null,null,null,null,null,null,null,"Delib. CRH N° 190/2016, revogada a partir de 31/12/21"]
["Não se aplica","1.1 - Legislação","1.2 - Planejamento","2.1 - Plano","2.2 - Outorga","2.3 - Cobrança","2.4 - Enquadramento","2.5 - Redes de monitoramento e SI","2.6 - Integração","2.7 - CORHI","3.1 - Efluentes","3.2 - Poluição","3.3 - Resíduos","3.4 - Intervenções","4.1 - Controle erosão","4.2 - Soluções baseadas Natureza","4.3 - Mananciais","5.1 - Perdas","5.2 - Racionalização","5.3 - Reuso","6.1 - Captação","6.2 - Regularização","7.1 - Drenagem","7.2 - Escassez","8.1 - Capacitação","8.2 - Educação","8.3 - Comunicação",null,null,null,null,null,null,null,null,null,null,null,null,null,null,null,null,null,null,null,null,null,null,null,null,null,null,null,null,null,null,null,null,2020,2021,null,null,"1.1 - SI","1.2 - Planejamento","1.3 - Enquadramento","1.4 - Monitoramento","1.5 - Disponibilidade","1.6 - Legislação","1.7 - Poluição","2.1 - Planos","2.2 - Outorga","2.3 - Cobrança","2.4 - Efetivação","2.5 - Integração","2.6 - CORHI","3.1 - Efluentes","3.2 - Resíduos","3.3 - Drenagem","3.4 - Erosão","3.5 - Intervenções","4.1 - Mananciais","4.2 - Vegetação","5.1 - Perdas","5.2 - Racionalização","5.3 - Reuso","6.1 - Usos","6.2 - Segurança","6.3 - Aproveitamento","7.1 - Criticidades","7.2 - Inundações","7.3 - Estiagens","8.1 - Capacitação","8.2 - Educação","8.3 - Comunicação"]
["Não se aplica","PDC 1 e 2","PDC 1 e 2","PDC 1 e 2","PDC 1 e 2","PDC 1 e 2","PDC 1 e 2","PDC 1 e 2","PDC 1 e 2","PDC 1 e 2","Prioritário","Prioritário","Prioritário","Prioritário","Prioritário","Prioritário","Prioritário","Prioritário","Prioritário","Prioritário","Prioritário","Prioritário","Prioritário","Prioritário","Prioritário","Prioritário","Prioritário",null,null,null,null,null,null,null,null,null,null,null,null,null,null,null,null,null,null,null,null,null,null,null,null,null,null,null,null,null,null,null,null,"1.1","1.1",null,null,"PDC 1 e 2","PDC 1 e 2","PDC 1 e 2","PDC 1 e 2","PDC 1 e 2","PDC 1 e 2","PDC 1 e 2","PDC 1 e 2","PDC 1 e 2","PDC 1 e 2","PDC 1 e 2","PDC 1 e 2","PDC 1 e 2","Prioritário","Prioritário","Prioritário","Prioritário","Prioritário","Prioritário","Prioritário","Prioritário","Prioritário","Prioritário","Prioritário","Prioritário","Prioritário","Prioritário","Prioritário","Prioritário","Prioritário","Prioritário","Prioritário"]
[null,null,null,null,null,null,null,null,null,null,"Não prioritário","Não prioritário","Não prioritário","Não prioritário","Não prioritário","Não prioritário","Não prioritário","Não prioritário","Não prioritário","Não prioritário","Não prioritário","Não prioritário","Não prioritário","Não prioritário","Não prioritário","Não prioritário","Não prioritário",null,null,null,null,null,null,null,null,null,null,null,null,null,null,null,null,null,null,null,null,null,null,null,null,null,null,null,null,null,null,null,null,"1.2","1.2",null,null,null,null,null,null,null,null,null,null,null,null,null,null,null,"Não prioritário","Não prioritário","Não prioritário","Não prioritário","Não prioritário","Não prioritário","Não prioritário","Não prioritário","Não prioritário","Não prioritário","Não prioritário","Não prioritário","Não prioritário","Não prioritário","Não prioritário","Não prioritário","Não prioritário","Não prioritário","Não prioritário"]
[null,null,null,null,null,null,null,null,null,null,null,null,null,null,null,null,null,null,null,null,null,null,null,null,null,null,null,null,null,null,null,null,null,null,null,null,null,null,null,null,null,null,null,null,null,null,null,null,null,null,null,null,null,null,null,null,null,null,null,"1.3","1.3"]
[null,null,null,null,null,null,null,null,null,null,null,null,null,null,null,null,null,null,null,null,null,null,null,null,null,null,null,null,null,null,null,null,null,null,null,null,null,null,null,null,null,null,null,null,null,null,null,null,null,null,null,null,null,null,null,null,null,null,null,"1.4","1.4"]
[null,null,null,null,null,null,null,null,null,null,null,null,null,null,null,null,null,null,null,null,null,null,null,null,null,null,null,null,null,null,null,null,null,null,null,null,null,null,null,null,null,null,null,null,null,null,null,null,null,null,null,null,null,null,null,null,null,null,null,"1.5","1.5"]
[null,null,null,null,null,null,null,null,null,null,null,null,null,null,null,null,null,null,null,null,null,null,null,null,null,null,null,null,null,null,null,null,null,null,null,null,null,null,null,null,null,null,null,null,null,null,null,null,null,null,null,null,null,null,null,null,null,null,null,"1.6","1.6"]
[null,null,null,null,null,null,null,null,null,null,null,null,null,null,null,null,null,null,null,null,null,null,null,null,null,null,null,null,null,null,null,null,null,null,null,null,null,null,null,null,null,null,null,null,null,null,null,null,null,null,null,null,null,null,null,null,null,null,null,"1.7","1.7"]
["Sim","Não",null,null,null,null,null,null,null,null,null,null,null,null,null,null,null,null,null,null,null,null,null,null,null,null,null,null,null,null,null,null,null,null,null,null,null,null,null,null,null,null,null,null,null,null,null,null,null,null,null,null,null,null,null,null,null,null,null,"2.1","2.1"]
["Sim","Sim",null,null,null,null,null,null,null,null,null,null,null,null,null,null,null,null,null,null,null,null,null,null,null,null,null,null,null,null,null,null,null,null,null,null,null,null,null,null,null,null,null,null,null,null,null,null,null,null,null,null,null,null,null,null,null,null,null,"2.2","2.2"]
[null,"Não",null,null,null,null,null,null,null,null,null,null,null,null,null,null,null,null,null,null,null,null,null,null,null,null,null,null,null,null,null,null,null,null,null,null,null,null,null,null,null,null,null,null,null,null,null,null,null,null,null,null,null,null,null,null,null,null,null,"2.3","2.3"]
[null,null,null,null,null,null,null,null,null,null,null,null,null,null,null,null,null,null,null,null,null,null,null,null,null,null,null,null,null,null,null,null,null,null,null,null,null,null,null,null,null,null,null,null,null,null,null,null,null,null,null,null,null,null,null,null,null,null,null,"2.4","2.4"]
[null,null,null,null,null,null,null,null,null,null,null,null,null,null,null,null,null,null,null,null,null,null,null,null,null,null,null,null,null,null,null,null,null,null,null,null,null,null,null,null,null,null,null,null,null,null,null,null,null,null,null,null,null,null,null,null,null,null,null,"2.5","2.5"]
[null,null,null,null,null,null,null,null,null,null,null,null,null,null,null,null,null,null,null,null,null,null,null,null,null,null,null,null,null,null,null,null,null,null,null,null,null,null,null,null,null,null,null,null,null,null,null,null,null,null,null,null,null,null,null,null,null,null,null,"2.6","2.6"]
["Não se aplica","Não se aplica",null,null,null,null,null,null,null,null,null,null,null,null,null,null,null,null,null,null,null,null,null,null,null,null,null,null,null,null,null,null,null,null,null,null,null,null,null,null,null,null,null,null,null,null,null,null,null,null,null,null,null,null,null,null,null,null,null,"3.1","3.1"]
["1.1 - Legislação","PDC 1 e 2",null,null,null,null,null,null,null,null,null,null,null,null,null,null,null,null,null,null,null,null,null,null,null,null,null,null,null,null,null,null,null,null,null,null,null,null,null,null,null,null,null,null,null,null,null,null,null,null,null,null,null,null,null,null,null,null,null,"3.2","3.2"]
["1.2 - Planejamento",null,null,null,null,null,null,null,null,null,null,null,null,null,null,null,null,null,null,null,null,null,null,null,null,null,null,null,null,null,null,null,null,null,null,null,null,null,null,null,null,null,null,null,null,null,null,null,null,null,null,null,null,null,null,null,null,null,null,"3.3","3.3"]
["2.1 - Plano",null,null,null,null,null,null,null,null,null,null,null,null,null,null,null,null,null,null,null,null,null,null,null,null,null,null,null,null,null,null,null,null,null,null,null,null,null,null,null,null,null,null,null,null,null,null,null,null,null,null,null,null,null,null,null,null,null,null,"3.4","3.4"]
["2.2 - Outorga",null,null,null,null,null,null,null,null,null,null,null,null,null,null,null,null,null,null,null,null,null,null,null,null,null,null,null,null,null,null,null,null,null,null,null,null,null,null,null,null,null,null,null,null,null,null,null,null,null,null,null,null,null,null,null,null,null,null,"3.5","3.5"]
["2.3 - Cobrança",null,null,null,null,null,null,null,null,null,null,null,null,null,null,null,null,null,null,null,null,null,null,null,null,null,null,null,null,null,null,null,null,null,null,null,null,null,null,null,null,null,null,null,null,null,null,null,null,null,null,null,null,null,null,null,null,null,null,"4.1","4.1"]
["2.4 - Enquadramento",null,null,null,null,null,null,null,null,null,null,null,null,null,null,null,null,null,null,null,null,null,null,null,null,null,null,null,null,null,null,null,null,null,null,null,null,null,null,null,null,null,null,null,null,null,null,null,null,null,null,null,null,null,null,null,null,null,null,"4.2","4.2"]
["2.6 - Integração",null,null,null,null,null,null,null,null,null,null,null,null,null,null,null,null,null,null,null,null,null,null,null,null,null,null,null,null,null,null,null,null,null,null,null,null,null,null,null,null,null,null,null,null,null,null,null,null,null,null,null,null,null,null,null,null,null,null,"5.1","5.1"]
["2.7 - CORHI",null,null,null,null,null,null,null,null,null,null,null,null,null,null,null,null,null,null,null,null,null,null,null,null,null,null,null,null,null,null,null,null,null,null,null,null,null,null,null,null,null,null,null,null,null,null,null,null,null,null,null,null,null,null,null,null,null,null,"5.2","5.2"]
["3.1 - Efluentes",null,null,null,null,null,null,null,null,null,null,null,null,null,null,null,null,null,null,null,null,null,null,null,null,null,null,null,null,null,null,null,null,null,null,null,null,null,null,null,null,null,null,null,null,null,null,null,null,null,null,null,null,null,null,null,null,null,null,"5.3","5.3"]
["3.2 - Poluição",null,null,null,null,null,null,null,null,null,null,null,null,null,null,null,null,null,null,null,null,null,null,null,null,null,null,null,null,null,null,null,null,null,null,null,null,null,null,null,null,null,null,null,null,null,null,null,null,null,null,null,null,null,null,null,null,null,null,"6.1","6.1"]
["3.3 - Resíduos",null,null,null,null,null,null,null,null,null,null,null,null,null,null,null,null,null,null,null,null,null,null,null,null,null,null,null,null,null,null,null,null,null,null,null,null,null,null,null,null,null,null,null,null,null,null,null,null,null,null,null,null,null,null,null,null,null,null,"6.2","6.2"]
["3.4 - Intervenções",null,null,null,null,null,null,null,null,null,null,null,null,null,null,null,null,null,null,null,null,null,null,null,null,null,null,null,null,null,null,null,null,null,null,null,null,null,null,null,null,null,null,null,null,null,null,null,null,null,null,null,null,null,null,null,null,null,null,"6.3","6.3"]
["4.1 - Erosão",null,null,null,null,null,null,null,null,null,null,null,null,null,null,null,null,null,null,null,null,null,null,null,null,null,null,null,null,null,null,null,null,null,null,null,null,null,null,null,null,null,null,null,null,null,null,null,null,null,null,null,null,null,null,null,null,null,null,"7.1","7.1"]
["4.2 - Conservação",null,null,null,null,null,null,null,null,null,null,null,null,null,null,null,null,null,null,null,null,null,null,null,null,null,null,null,null,null,null,null,null,null,null,null,null,null,null,null,null,null,null,null,null,null,null,null,null,null,null,null,null,null,null,null,null,null,null,"7.2","7.2"]
["4.3 - Mananciais",null,null,null,null,null,null,null,null,null,null,null,null,null,null,null,null,null,null,null,null,null,null,null,null,null,null,null,null,null,null,null,null,null,null,null,null,null,null,null,null,null,null,null,null,null,null,null,null,null,null,null,null,null,null,null,null,null,null,"7.3","7.3"]
["5.1 - Perdas",null,null,null,null,null,null,null,null,null,null,null,null,null,null,null,null,null,null,null,null,null,null,null,null,null,null,null,null,null,null,null,null,null,null,null,null,null,null,null,null,null,null,null,null,null,null,null,null,null,null,null,null,null,null,null,null,null,null,"8.1","8.1"]
["5.2 - Racionalização",null,null,null,null,null,null,null,null,null,null,null,null,null,null,null,null,null,null,null,null,null,null,null,null,null,null,null,null,null,null,null,null,null,null,null,null,null,null,null,null,null,null,null,null,null,null,null,null,null,null,null,null,null,null,null,null,null,null,"8.2","8.2"]
["5.3 - Reuso",null,null,null,null,null,null,null,null,null,null,null,null,null,null,null,null,null,null,null,null,null,null,null,null,null,null,null,null,null,null,null,null,null,null,null,null,null,null,null,null,null,null,null,null,null,null,null,null,null,null,null,null,null,null,null,null,null,null,"8.3","8.3"]
["6.1 - Captação"]
["6.2 - Regularização"]
["7.1 - Drenagem"]
["7.2 - Escassez"]
["8.1 - Capacitação"]
["8.2 - Educação"]
["8.3 - Comunicação"]

{"sheet":"Explicativo","index":11,"n_rows":39,"n_cols":2,"rows_kept":39,"cut":false,"hidden":true,"merged":[]}
["Explicativo","Função"]
["sheet PAPI_20_21"]
["Coluna A","PDCs da Delib. CRH 190/2016 = lista suspensa (Operacional)"]
["Coluna B","subPDCs da Delib. CRH 190/2016 = lista suspensa (Operacional)"]
["Coluna E","formatação condicional para % = % tem que coincidir com o informado pelo CBH na Coluna O (Execução)"]
["Coluna F","categorias de Executores de Empreendimentos Fehidro = lista suspensa (Operacional)"]
["Coluna G","Área de abrangencia = delimitações possível em mapeamento = lista suspensa (Operacional)"]
["Coluna H","Nome da área de abrangencia conforme consta no Empreendimento Fehidro ou TR ou similar (preenchimento livre)"]
["Coluna I","R$ total que consta no PAPI vigente aprovado pelo CBH no RS "]
["Coluna J","R$ total disponibilizado para investimento conforme Deliberação do COFEHIDRO"]
["Coluna K","R$ total efetivamente pago/repassado neste exercício (Coluna L) ao Executor da Ação = tem que coincidir com informações do SINFehidro\nQuando R$ de K é maior que R$ de I, valor é destacado em vermelho = CBH tem que explicar a extrapolação dos recursos"]
["Coluna L","ano/exercício ao qual se referem os dados informados"]
["Coluna M","categorias de Fontes de recursos para os Executores da Ação = lista suspensa (Operacional)"]
["Coluna N","Nome da Fonte de recursos conforme consta no Empreendimento Fehidro ou TR ou similar = tem que coincidir com informações do SinFEHIDRO"]
["Coluna O","Informações relevantes sobre a execução Física e Financeira da Ação = tem que coincidir com a execução do Empreendimento e informações do SinFEHIDRO"]
[]
["sheet PAPI_22_23"]
["Coluna A","PDCs da Delib. CRH 246/2021 = lista suspensa (Operacional)"]
["Coluna B","subPDCs da Delib. CRH 246/2021 = lista suspensa (Operacional)"]
["Coluna E","formatação condicional para % = % tem que coincidir com o informado pelo CBH na Coluna O (Execução)"]
["Coluna F","categorias de Executores de Empreendimentos Fehidro = lista suspensa (Operacional)"]
["Coluna G","Área de abrangencia = delimitações possível em mapeamento = lista suspensa (Operacional)"]
["Coluna H","Nome da área de abrangencia conforme consta no Empreendimento Fehidro ou TR ou similar (preenchimento livre)"]
["Coluna I","R$ total que consta no PAPI vigente aprovado pelo CBH no RS "]
["Coluna J","R$ total disponibilizado para investimento conforme Deliberação do COFEHIDRO"]
["Coluna K","R$ total efetivamente pago/repassado neste exercício (Coluna L) ao Executor da Ação = tem que coincidir com informações do SINFehidro\nQuando R$ de K é maior que R$ de I, valor é destacado em vermelho = CBH tem que explicar a extrapolação dos recursos"]
["Coluna L","ano/exercício ao qual se referem os dados informados"]
["Coluna M","categorias de Fontes de recursos para os Executores da Ação = lista suspensa (Operacional)"]
["Coluna N","Nome da Fonte de recursos conforme consta no Empreendimento Fehidro ou TR ou similar = tem que coincidir com informações do SinFEHIDRO"]
["Coluna O","Informações relevantes sobre a execução Física e Financeira da Ação = tem que coincidir com a execução do Empreendimento e informações do SinFEHIDRO"]
[]
["sheet Consolidação","DEVE SER BLOQUEADA PARA ALTERAÇÕES"]
[]
["Coluna A","PDCs da Delib. CRH 190/2016 = lista suspensa (Operacional)"]
["Colunas B C D","Cálculos com os valores de Recurso financeiro Executado 2020 (sheet PAPI_20_21; Coluna K) para cada fonte FEHIDRO e para outras (soma da demais fontes)"]
["Colunas E F G","Cálculos com os valores de Recurso financeiro Executado 2021 (sheet PAPI_20_21; Coluna K) para cada fonte FEHIDRO e para outras (soma da demais fontes)"]
["Coluna H","PDCs da Delib. CRH 246/2021 = lista suspensa (Operacional)"]
["Colunas H I J","Cálculos com os valores de Recurso financeiro Executado 2022 (sheet PAPI_22_23; Coluna K) para cada fonte FEHIDRO e para outras (soma da demais fontes)"]
["Colunas K L M","Cálculos com os valores de Recurso financeiro Executado 2023 (sheet PAPI_22_23; Coluna K) para cada fonte FEHIDRO e para outras (soma da demais fontes)"]

{"sheet":"de-para 246 190","index":12,"n_rows":33,"n_cols":14,"rows_kept":33,"cut":false,"hidden":true,"merged":[]}
["246","190","Coluna1",null,"246","190","Coluna1","Coluna12",null,"190","246",null,"190","246"]
["1.1","1.6",null,null,"1.1","1.6",null,null,null,"1.1","2.5",null,"1.1","2.5"]
["1.2","1.2",null,null,"1.2","1.2","1.5","1.7",null,"1.2","1.2",null,"1.2","1.2"]
["2.1","2.1",null,null,"2.1","2.1",null,null,null,"1.3","2.4",null,"1.3","2.4"]
["2.2","2.2",null,null,"2.2","2.2",null,null,null,"1.4","2.5",null,"1.4","2.5"]
["2.3","2.3",null,null,"2.3","2.3",null,null,null,"1.5","6.1",null,"1.5","1.2"]
["2.4","1.3",null,null,"2.4","1.3","2.4",null,null,"1.6","1.1",null,"1.6","1.1"]
["2.4","2.4",null,null,"2.5","1.1","1.4","7.1",null,"1.7","3.2",null,"1.7","1.2"]
["2.5","1.1","1.4",null,"2.6","2.5",null,null,null,"2.1","2.1",null,"2.1","2.1"]
["2.6","2.5",null,null,"2.7","2.6",null,null,null,"2.2","2.2",null,"2.2","2.2"]
["2.7","2.6",null,null,"3.1","3.1",null,null,null,"2.3","2.3",null,"2.3","2.3"]
["3.1","3.1",null,null,"3.2",null,null,null,null,"2.4","2.4",null,"2.4","2.4"]
["3.2","1.7",null,null,"3.3","3.2",null,null,null,"2.5","2.6",null,"2.5","2.6"]
["3.3","3.2",null,null,"3.4","3.5",null,null,null,"2.6","2.7",null,"2.6","2.7"]
["3.4","3.5",null,null,"4.1","3.4",null,null,null,"3.1","3.1",null,"3.1","3.1"]
["4.1","3.4",null,null,"4.2","4.2",null,null,null,"3.2","3.3",null,"3.2","3.3"]
["4.2","4.2",null,null,"4.3","4.1",null,null,null,"3.3","7.1",null,"3.4","4.1"]
["4.3","4.1",null,null,"5.1","5.1",null,null,null,"3.4","4.1",null,"3.5","3.4"]
["5.1","5.1",null,null,"5.2","5.2",null,null,null,"3.5","3.4",null,"4.1","4.3"]
["5.2","5.2",null,null,"5.3","5.3",null,null,null,"4.1","4.3",null,"4.2","4.2"]
["5.3","5.3",null,null,"6.1",null,null,null,null,"4.2","4.2",null,"5.1","5.1"]
["6.1","1.5","6.2",null,"6.2","6.2",null,null,null,"5.1","5.1",null,"5.2","5.2"]
["6.2","6.1","6.3",null,"7.1","7.2",null,null,null,"5.2","5.2",null,"5.3","5.3"]
["7.1","3.3","7.2",null,"7.2","7.3",null,null,null,"5.3","5.3",null,"6.2","6.2"]
["7.2","7.1","7.3",null,"8.1","8.1",null,null,null,"6.1","6.2",null,"7.1","2.5"]
["8.1","8.1",null,null,"8.2","8.2",null,null,null,"6.2","6.1",null,"7.2","7.1"]
["8.2","8.2",null,null,"8.3","8.3",null,null,null,"6.3","6.2",null,"7.3","7.2"]
["8.3","8.3",null,null,null,null,null,null,null,"7.1","7.2",null,"8.1","8.1"]
[null,null,null,null,null,null,null,null,null,"7.2","7.1",null,"8.2","8.2"]
[null,null,null,null,null,null,null,null,null,"7.3","7.2",null,"8.3","8.3"]
[null,null,null,null,null,null,null,null,null,"8.1","8.1"]
[null,null,null,null,null,null,null,null,null,"8.2","8.2"]
[null,null,null,null,null,null,null,null,null,"8.3","8.3"]